Workbook

Sheet Flerårsbudget (hidden)
A1: ='Från 3L'!A2 -> 278 | B1: ='Från 3L'!B2 -> Brf Kämpevägen
AC2: Obs! måste här ändra årtal i omsatserna nedan vid nytt budgetår.
B3: FLERÅRSBUDGET
C5: =+Grunddata!F8 -> 201601 | D5: =C5+100 -> 201701 | E5: =D5+100 -> 201801 | F5: 201901 | G5: 202001 | H5: 202101 | I5: 202201 | J5: 202301 | K5: 202401 | L5: 202501 | M5: 202601 | AB5: =C5 -> 201601 | AC5: =+D5 -> 201701 | AD5: =+E5 -> 201801 | AE5: 201901 | AF5: 202001 | AG5: 202101 | AH5: 202201 | AI5: 202301 | AJ5: =+K5 -> 202401 | AK5: =+L5 -> 202501 | AL5: =+M5 -> 202601
Z6: indexuppräkn. | AA6: 7074 | AB6: =AA6*Grunddata!$F$69 -> 7148.594025 | AC6: =AB6*Grunddata!$F$69 -> 7223.974629 | AD6: =AC6*Grunddata!$F$69 -> 7300.150109 | AE6: =AD6*Grunddata!$F$69 -> 7377.128845 | AF6: =AE6*Grunddata!$F$69 -> 7454.919307 | AG6: =AF6*Grunddata!$F$69 -> 7533.530055 | AH6: =AG6*Grunddata!$F$69 -> 7612.96974 | AI6: =AH6*Grunddata!$F$69 -> 7693.247101 | AJ6: =AI6*Grunddata!$F$69 -> 7774.370972 | AK6: =AJ6*Grunddata!$F$69 -> 7856.350279 | AL6: =AK6*Grunddata!$F$69 -> 7939.194043 | AM6: småhus
B7: =+budget!B27 -> Årsavgifter | C7: =budget!G35 -> 1901 | D7: =+C7+C7*Grunddata!$F$65 -> 1939.02 | E7: =+D7+D7*Grunddata!$F$65 -> 1977.8004 | F7: =+E7+E7*Grunddata!$F$65 -> 2017.356408 | G7: =+F7+F7*Grunddata!$F$65 -> 2057.703536 | H7: =+G7+G7*Grunddata!$F$66 -> 2098.857607 | I7: =+H7+H7*Grunddata!$F$66 -> 2140.834759 | J7: =+I7+I7*Grunddata!$F$66 -> 2183.651454 | K7: =+J7+J7*Grunddata!$F$66 -> 2227.324483 | L7: =+K7+K7*Grunddata!$F$66 -> 2271.870973 | M7: =+L7+L7*Grunddata!$F$66 -> 2317.308392 | AA7: 3537 | AB7: =AB6/2 -> 3574.297012 | AC7: =AC6/2 -> 3611.987315 | AD7: 3650.075054 | AE7: 3688.564422 | AF7: 3727.459653 | AG7: 3766.765028 | AH7: 3806.48487 | AI7: 3846.62355 | AJ7: 3887.185486 | AK7: 3928.175139 | AL7: 3969.597021 | AM7: småhus
B8: =+budget!B238 -> Bokslutsdispositioner | C8: =budget!G239 -> 0 | D8: =+C8 -> 0 | E8: =+D8 -> 0 | F8: 0 | G8: 0 | H8: 0 | I8: 0 | J8: 0 | K8: 0 | L8: 0 | M8: 0 | AA8: 1210 | AB8: =AA8*Grunddata!$F$69 -> 1222.759227 | AC8: =AB8*Grunddata!$F$69 -> 1235.652997 | AD8: =AC8*Grunddata!$F$69 -> 1248.68273 | AE8: =AD8*Grunddata!$F$69 -> 1261.849859 | AF8: =AE8*Grunddata!$F$69 -> 1275.155833 | AG8: =AF8*Grunddata!$F$69 -> 1288.602116 | AH8: =AG8*Grunddata!$F$69 -> 1302.190187 | AI8: =AH8*Grunddata!$F$69 -> 1315.921543 | AJ8: =AI8*Grunddata!$F$69 -> 1329.797692 | AK8: =AJ8*Grunddata!$F$69 -> 1343.820164 | AL8: =AK8*Grunddata!$F$69 -> 1357.990499 | AM8: hyreshus
B9: =+budget!B36 -> Hyresintäkter | C9: =budget!G48 -> 0 | D9: =+C9+C9*Grunddata!$F$67 -> 0 | E9: =+D9+D9*Grunddata!$F$67 -> 0 | F9: =+E9+E9*Grunddata!$F$67 -> 0 | G9: =+F9+F9*Grunddata!$F$67 -> 0 | H9: =+G9+G9*Grunddata!$F$67 -> 0 | I9: =+H9+H9*Grunddata!$F$67 -> 0 | J9: =+I9+I9*Grunddata!$F$67 -> 0 | K9: =+J9+J9*Grunddata!$F$67 -> 0 | L9: =+K9+K9*Grunddata!$F$67 -> 0 | M9: =+L9+L9*Grunddata!$F$67 -> 0 | AA9: 605 | AB9: =AB8/2 -> 611.3796134 | AC9: =AC8/2 -> 617.8264986 | AD9: 624.341365 | AE9: 630.9249295 | AF9: 637.5779164 | AG9: 644.3010579 | AH9: 651.0950936 | AI9: 657.9607713 | AJ9: 664.8988462 | AK9: 671.9100818 | AL9: 678.9952496 | AM9: hyreshus
B10: =budget!B49 -> Övriga rörelseintäkter | C10: =budget!G68 -> 73 | D10: =+C10 -> 73 | E10: =+D10 -> 73 | F10: 73 | G10: 73 | H10: 73 | I10: 73 | J10: 73 | K10: 73 | L10: 73 | M10: 73
B11: Summa intäkter | C11: =SUM(C7:C10) -> 1974 | D11: =SUM(D7:D10) -> 2012.02 | E11: 2050.8004 | F11: 2090.356408 | G11: 2130.703536 | H11: 2171.857607 | I11: 2213.834759 | J11: 2256.651454 | K11: 2300.324483 | L11: 2344.870973 | M11: 2390.308392
Z12: testberäkning | AB12: =6000*1.046 -> 6276 | AC12: =+AB12*1.046 -> 6564.696 | AD12: =+AC12*1.046 -> 6866.672016 | AE12: 7182.538929 | AF12: 7512.935719 | AG12: 7858.530763 | AH12: 8220.023178 | AI12: 8598.144244 | AJ12: 8993.658879 | AK12: 9407.367187 | AL12: 9840.106078 | AM12: jämförelseberäkning
B13: =budget!B73 -> Reparationer (samlingskonto) | C13: =budget!G98-SUM(budget!G87:G97) -> -35 | D13: =+C13+C13*Grunddata!$F$68 -> -35.7 | E13: =+D13+D13*Grunddata!$F$68 -> -36.414 | F13: =+E13+E13*Grunddata!$F$68 -> -37.14228 | G13: =+F13+F13*Grunddata!$F$68 -> -37.8851256 | H13: =+G13+G13*Grunddata!$F$68 -> -38.64282811 | I13: =+H13+H13*Grunddata!$F$68 -> -39.41568467 | J13: =+I13+I13*Grunddata!$F$68 -> -40.20399837 | K13: =+J13+J13*Grunddata!$F$68 -> -41.00807834 | L13: =+K13+K13*Grunddata!$F$68 -> -41.8282399 | M13: =+L13+L13*Grunddata!$F$68 -> -42.6648047
B14: =budget!B87 -> Planerat underhåll (samlingsk) | C14: =SUM(budget!G87:G97) -> 0 | D14: 0 | E14: 0 | F14: 0 | G14: 0 | H14: 0 | I14: 0 | J14: 0 | K14: 0 | L14: 0 | M14: 0
B15: =budget!B99 -> Driftkostnader | C15: =budget!G142 -> -381 | D15: =+C15+C15*Grunddata!$F$68 -> -388.62 | E15: =+D15+D15*Grunddata!$F$68 -> -396.3924 | F15: =+E15+E15*Grunddata!$F$68 -> -404.320248 | G15: =+F15+F15*Grunddata!$F$68 -> -412.406653 | H15: =+G15+G15*Grunddata!$F$68 -> -420.654786 | I15: =+H15+H15*Grunddata!$F$68 -> -429.0678817 | J15: =+I15+I15*Grunddata!$F$68 -> -437.6492394 | K15: =+J15+J15*Grunddata!$F$68 -> -446.4022242 | L15: =+K15+K15*Grunddata!$F$68 -> -455.3302686 | M15: =+L15+L15*Grunddata!$F$68 -> -464.436874 | AB15: =+AB6-AB12 -> 872.5940246 | AC15: =+AC6-AC12 -> 659.2786294 | AD15: 433.4780928 | AE15: 194.5899159 | AF15: -58.01641252 | AG15: -325.0007072 | AH15: -607.0534381 | AI15: -904.8971432 | AJ15: -1219.287907 | AK15: -1551.016909 | AL15: -1900.912035 | AM15: diff är OK
B16: =+budget!B143 -> Administrationskostnader | C16: =budget!G169 -> -137.25 | D16: =+C16+C16*Grunddata!$F$68 -> -139.995 | E16: =+D16+D16*Grunddata!$F$68 -> -142.7949 | F16: =+E16+E16*Grunddata!$F$68 -> -145.650798 | G16: =+F16+F16*Grunddata!$F$68 -> -148.563814 | H16: =+G16+G16*Grunddata!$F$68 -> -151.5350902 | I16: =+H16+H16*Grunddata!$F$68 -> -154.565792 | J16: =+I16+I16*Grunddata!$F$68 -> -157.6571079 | K16: =+J16+J16*Grunddata!$F$68 -> -160.81025 | L16: =+K16+K16*Grunddata!$F$68 -> -164.026455 | M16: =+L16+L16*Grunddata!$F$68 -> -167.3069841
B17: =+budget!B170 -> Personalkostnader | C17: =budget!G183 -> -7 | D17: =+C17+C17*Grunddata!$F$68 -> -7.14 | E17: =+D17+D17*Grunddata!$F$68 -> -7.2828 | F17: =+E17+E17*Grunddata!$F$68 -> -7.428456 | G17: =+F17+F17*Grunddata!$F$68 -> -7.57702512 | H17: =+G17+G17*Grunddata!$F$68 -> -7.728565622 | I17: =+H17+H17*Grunddata!$F$68 -> -7.883136935 | J17: =+I17+I17*Grunddata!$F$68 -> -8.040799674 | K17: =+J17+J17*Grunddata!$F$68 -> -8.201615667 | L17: =+K17+K17*Grunddata!$F$68 -> -8.36564798 | M17: =+L17+L17*Grunddata!$F$68 -> -8.53296094
B18: =+budget!B185 -> Fastighetsskatt | C18: =budget!G185 -> 0 | D18: =+C18+C18*Grunddata!$F$70 -> 0 | E18: =+D18 -> 0 | F18: =+E18 -> 0 | G18: =+F18+F18*Grunddata!$F$70 -> 0 | H18: =+G18 -> 0 | I18: =+G18 -> 0 | J18: =+I18+I18*Grunddata!$F$70 -> 0 | K18: =+J18 -> 0 | L18: =+K18 -> 0 | M18: =+L18+L18*Grunddata!$F$70 -> 0 | Z18: val index | AA18: 2011 | AC18: =IF(Grunddata!$F$14>=$AA$18,0,IF(Grunddata!$F$14<=$AA$19,Flerårsbudget!AC6,Flerårsbudget!AC7)) -> 7223.974629 | AD18: =IF(Grunddata!$F$14>=$AA$18+1,0,IF(Grunddata!$F$14<=$AA$19+1,Flerårsbudget!AD6,Flerårsbudget!AD7)) -> 7300.150109 | AE18: =IF(Grunddata!$F$14>=$AA$18+2,0,IF(Grunddata!$F$14<=$AA$19+2,Flerårsbudget!AE6,Flerårsbudget!AE7)) -> 7377.128845 | AF18: =IF(Grunddata!$F$14>=$AA$18+3,0,IF(Grunddata!$F$14<=$AA$19+3,Flerårsbudget!AF6,Flerårsbudget!AF7)) -> 7454.919307 | AG18: =IF(Grunddata!$F$14>=$AA$18+4,0,IF(Grunddata!$F$14<=$AA$19+4,Flerårsbudget!AG6,Flerårsbudget!AG7)) -> 7533.530055 | AH18: =IF(Grunddata!$F$14>=$AA$18+5,0,IF(Grunddata!$F$14<=$AA$19+5,Flerårsbudget!AH6,Flerårsbudget!AH7)) -> 7612.96974 | AI18: =IF(Grunddata!$F$14>=$AA$18+6,0,IF(Grunddata!$F$14<=$AA$19+6,Flerårsbudget!AI6,Flerårsbudget!AI7)) -> 7693.247101 | AJ18: =IF(Grunddata!$F$14>=$AA$18+7,0,IF(Grunddata!$F$14<=$AA$19+7,Flerårsbudget!AJ6,Flerårsbudget!AJ7)) -> 7774.370972 | AK18: =IF(Grunddata!$F$14>=$AA$18+8,0,IF(Grunddata!$F$14<=$AA$19+8,Flerårsbudget!AK6,Flerårsbudget!AK7)) -> 7856.350279 | AL18: =IF(Grunddata!$F$14>=2019,0,IF(Grunddata!$F$14<=2013,Flerårsbudget!AL6,Flerårsbudget!AL7)) -> 7939.194043 | AM18: småhus
B19: =+budget!B186 -> Kommunal fastighetsavgift | C19: =budget!G186 -> -170.868 | D19: =IF(Grunddata!$F$18>0,-Flerårsbudget!AC19/1000*Grunddata!$F$23,-Flerårsbudget!AC18/1000*Grunddata!$F$29) -> -14.82783597 | E19: =IF(Grunddata!$F$18>0,-Flerårsbudget!AD19/1000*Grunddata!$F$23,-Flerårsbudget!AD18/1000*Grunddata!$F$29) -> -14.98419276 | F19: =IF(Grunddata!$F$18>0,-Flerårsbudget!AE19/1000*Grunddata!$F$23,-Flerårsbudget!AE18/1000*Grunddata!$F$29) -> -15.14219831 | G19: =IF(Grunddata!$F$18>0,-Flerårsbudget!AF19/1000*Grunddata!$F$23,-Flerårsbudget!AF18/1000*Grunddata!$F$29) -> -15.30186999 | H19: =IF(Grunddata!$F$18>0,-Flerårsbudget!AG19/1000*Grunddata!$F$23,-Flerårsbudget!AG18/1000*Grunddata!$F$29) -> -15.46322539 | I19: =IF(Grunddata!$F$18>0,-Flerårsbudget!AH19/1000*Grunddata!$F$23,-Flerårsbudget!AH18/1000*Grunddata!$F$29) -> -15.62628225 | J19: =IF(Grunddata!$F$18>0,-Flerårsbudget!AI19/1000*Grunddata!$F$23,-Flerårsbudget!AI18/1000*Grunddata!$F$29) -> -15.79105851 | K19: =IF(Grunddata!$F$18>0,-Flerårsbudget!AJ19/1000*Grunddata!$F$23,-Flerårsbudget!AJ18/1000*Grunddata!$F$29) -> -15.95757231 | L19: =IF(Grunddata!$F$18>0,-Flerårsbudget!AK19/1000*Grunddata!$F$23,-Flerårsbudget!AK18/1000*Grunddata!$F$29) -> -16.12584196 | M19: =IF(Grunddata!$F$18>0,-Flerårsbudget!AL19/1000*Grunddata!$F$23,-Flerårsbudget!AL18/1000*Grunddata!$F$29) -> -16.29588599 | Z19: utifrån värdeår | AA19: 2005 | AC19: =IF(Grunddata!$F$14>=$AA$18,0,IF(Grunddata!$F$14<=$AA$19,Flerårsbudget!AC8,Flerårsbudget!AC9)) -> 1235.652997 | AD19: =IF(Grunddata!$F$14>=$AA$18+1,0,IF(Grunddata!$F$14<=$AA$19+1,Flerårsbudget!AD8,Flerårsbudget!AD9)) -> 1248.68273 | AE19: =IF(Grunddata!$F$14>=$AA$18+2,0,IF(Grunddata!$F$14<=$AA$19+2,Flerårsbudget!AE8,Flerårsbudget!AE9)) -> 1261.849859 | AF19: =IF(Grunddata!$F$14>=$AA$18+3,0,IF(Grunddata!$F$14<=$AA$19+3,Flerårsbudget!AF8,Flerårsbudget!AF9)) -> 1275.155833 | AG19: =IF(Grunddata!$F$14>=$AA$18+4,0,IF(Grunddata!$F$14<=$AA$19+4,Flerårsbudget!AG8,Flerårsbudget!AG9)) -> 1288.602116 | AH19: =IF(Grunddata!$F$14>=$AA$18+5,0,IF(Grunddata!$F$14<=$AA$19+5,Flerårsbudget!AH8,Flerårsbudget!AH9)) -> 1302.190187 | AI19: =IF(Grunddata!$F$14>=$AA$18+6,0,IF(Grunddata!$F$14<=$AA$19+6,Flerårsbudget!AI8,Flerårsbudget!AI9)) -> 1315.921543 | AJ19: =IF(Grunddata!$F$14>=$AA$18+7,0,IF(Grunddata!$F$14<=$AA$19+7,Flerårsbudget!AJ8,Flerårsbudget!AJ9)) -> 1329.797692 | AK19: =IF(Grunddata!$F$14>=$AA$18+8,0,IF(Grunddata!$F$14<=$AA$19+8,Flerårsbudget!AK8,Flerårsbudget!AK9)) -> 1343.820164 | AL19: =IF(Grunddata!$F$14>=2019,0,IF(Grunddata!$F$14<=2013,Flerårsbudget!AL8,Flerårsbudget!AL9)) -> 1357.990499 | AM19: hyreshus
B20: Korrigeringsrad om både hyreshus- och småhustax. | D20: 0 | E20: 0 | F20: 0 | G20: 0 | H20: 0 | I20: 0 | J20: 0 | K20: 0 | L20: 0 | M20: 0
C21: =+budget!G181 -> 0 | D21: =IF(D17<=-150,D17*25%,0) -> 0 | E21: =IF(E17<=-150,E17*25%,0) -> 0 | F21: 0 | G21: 0 | H21: 0 | I21: 0 | J21: 0 | K21: 0 | L21: =IF(L17<=-150,L17*25%,0) -> 0 | M21: 0
B22: =budget!B189 -> Summa kostnader fastighetsförvaltning | C22: =SUM(C13:C21) -> -731.118 | D22: =SUM(D13:D21) -> -586.282836 | E22: -597.8682928 | F22: -609.6839803 | G22: -621.7344876 | H22: -634.0244954 | I22: -646.5587776 | J22: -659.3422038 | K22: -672.3797405 | L22: -685.6764535 | M22: -699.2375098
B24: =+budget!B191 -> Avskrivningar | C24: =budget!G207 -> -704.877 | D24: =+C24 -> -704.877 | E24: =+D24 -> -704.877 | F24: -704.877 | G24: -704.877 | H24: -704.877 | I24: -704.877 | J24: -704.877 | K24: -704.877 | L24: -704.877 | M24: -704.877
B26: =budget!B210 -> Resultat från aktier och andelar | C26: =budget!G215 -> 0 | D26: =+C26 -> 0 | E26: =+D26 -> 0 | F26: 0 | G26: 0 | H26: 0 | I26: 0 | J26: 0 | K26: 0 | L26: 0 | M26: 0 | Z26: ber. snittskuld | AA26: IB | AC26: =Grunddata!$F$72/1000 -> 0 | AD26: =+AC27 -> 0 | AE26: =+AD27 -> 0 | AF26: =+AE27 -> 0 | AG26: 0 | AH26: 0 | AI26: 0 | AJ26: 0 | AK26: 0 | AL26: 0
B27: =+budget!B216 -> Ränteintäkter | C27: =budget!G222 -> 1 | D27: =+C27+C27*Grunddata!$F$68 -> 1.02 | E27: =+D27+D27*Grunddata!$F$68 -> 1.0404 | F27: =+E27+E27*Grunddata!$F$68 -> 1.061208 | G27: =+F27+F27*Grunddata!$F$68 -> 1.08243216 | H27: =+G27+G27*Grunddata!$F$68 -> 1.104080803 | I27: =+H27+H27*Grunddata!$F$68 -> 1.126162419 | J27: =+I27+I27*Grunddata!$F$68 -> 1.148685668 | K27: =+J27+J27*Grunddata!$F$68 -> 1.171659381 | L27: =+K27+K27*Grunddata!$F$68 -> 1.195092569 | M27: =+L27+L27*Grunddata!$F$68 -> 1.21899442 | AA27: UB | AC27: =(Grunddata!$F$72-Grunddata!$F$73)/1000 -> 0 | AD27: =+AD26-Grunddata!$F$73/1000 -> 0 | AE27: =+AE26-Grunddata!$F$73/1000 -> 0 | AF27: =+AF26-Grunddata!$F$73/1000 -> 0 | AG27: =+AG26-Grunddata!$F$73/1000 -> 0 | AH27: =+AH26-Grunddata!$F$73/1000 -> 0 | AI27: =+AI26-Grunddata!$F$73/1000 -> 0 | AJ27: =+AJ26-Grunddata!$F$73/1000 -> 0 | AK27: =+AK26-Grunddata!$F$73/1000 -> 0 | AL27: =+AL26-Grunddata!$F$73/1000 -> 0
B28: =budget!B223 -> Räntekostnader | C28: =budget!G227 -> -290.1212925 | D28: =-AC28*Grunddata!$F$74 -> 0 | E28: =-AD28*Grunddata!$F$74 -> 0 | F28: =-AE28*Grunddata!$F$74 -> 0 | G28: =-AF28*Grunddata!$F$74 -> 0 | H28: =-AG28*Grunddata!$F$74 -> 0 | I28: =-AH28*Grunddata!$F$74 -> 0 | J28: =-AI28*Grunddata!$F$74 -> 0 | K28: =-AJ28*Grunddata!$F$74 -> 0 | L28: =-AK28*Grunddata!$F$74 -> 0 | M28: =-AL28*Grunddata!$F$74 -> 0 | AA28: snittvärde | AC28: =(+AC26+AC27)/2 -> 0 | AD28: =(+AD26+AD27)/2 -> 0 | AE28: =(+AE26+AE27)/2 -> 0 | AF28: =(+AF26+AF27)/2 -> 0 | AG28: 0 | AH28: 0 | AI28: =(+AI26+AI27)/2 -> 0 | AJ28: =(+AJ26+AJ27)/2 -> 0 | AK28: 0 | AL28: =(+AL26+AL27)/2 -> 0
B29: =+budget!B228 -> Ledig rubrik | C29: 0 | D29: 0 | E29: 0 | F29: 0 | G29: 0 | H29: 0 | I29: 0 | J29: 0 | K29: 0 | L29: 0 | M29: 0
B30: =+budget!B231 -> Övriga räntekostnader och liknande resultatposter | C30: =budget!G235 -> 0 | D30: =+C30 -> 0 | E30: =+D30 -> 0 | F30: 0 | G30: 0 | H30: 0 | I30: 0 | J30: 0 | K30: 0 | L30: 0 | M30: 0
B31: =+budget!B236 -> Summa kapitalnetto | C31: =SUM(C26:C30) -> -289.1212925 | D31: =SUM(D26:D30) -> 1.02 | E31: 1.0404 | F31: 1.061208 | G31: 1.08243216 | H31: 1.104080803 | I31: 1.126162419 | J31: 1.148685668 | K31: 1.171659381 | L31: 1.195092569 | M31: 1.21899442
B33: =+budget!B244 -> Statlig inkomstskatt | C33: =budget!G244 -> 0 | D33: =IF(+$D$26+$D$27+(skatteberäkning!$E$38/1000)>0,-($D$26+$D$27+(skatteberäkning!$E$38/1000))*0%,0) -> 0 | E33: =IF(+$D$26+$D$27+(skatteberäkning!$E$38/1000)>0,-($D$26+$D$27+(skatteberäkning!$E$38/1000))*0%,0) -> 0 | F33: =IF(+$D$26+$D$27+(skatteberäkning!$E$38/1000)>0,-($D$26+$D$27+(skatteberäkning!$E$38/1000))*0%,0) -> 0 | G33: =IF(+$D$26+$D$27+(skatteberäkning!$E$38/1000)>0,-($D$26+$D$27+(skatteberäkning!$E$38/1000))*0%,0) -> 0 | H33: =IF(+$D$26+$D$27+(skatteberäkning!$E$38/1000)>0,-($D$26+$D$27+(skatteberäkning!$E$38/1000))*0%,0) -> 0 | I33: =IF(+$D$26+$D$27+(skatteberäkning!$E$38/1000)>0,-($D$26+$D$27+(skatteberäkning!$E$38/1000))*0%,0) -> 0 | J33: =IF(+$D$26+$D$27+(skatteberäkning!$E$38/1000)>0,-($D$26+$D$27+(skatteberäkning!$E$38/1000))*0%,0) -> 0 | K33: =IF(+$D$26+$D$27+(skatteberäkning!$E$38/1000)>0,-($D$26+$D$27+(skatteberäkning!$E$38/1000))*0%,0) -> 0 | L33: =IF(+$D$26+$D$27+(skatteberäkning!$E$38/1000)>0,-($D$26+$D$27+(skatteberäkning!$E$38/1000))*0%,0) -> 0 | M33: =IF(+$D$26+$D$27+(skatteberäkning!$E$38/1000)>0,-($D$26+$D$27+(skatteberäkning!$E$38/1000))*0%,0) -> 0
B35: =+budget!B248 -> ÅRETS RESULTAT | C35: =+budget!G248 -> 248.8837075 | D35: =+D11+D22+D24+D31+D33 -> 721.880164 | E35: =+E11+E22+E24+E31+E33 -> 749.0955072 | F35: 776.8566357 | G35: 805.1744807 | H35: 834.0601923 | I35: 863.5251438 | J35: 893.5809361 | K35: 924.2394022 | L35: 955.512612 | M35: 987.412877
B37: kontrollrad | C37: =+C11+C22+C24+C31+C33-C35 -> 0 | D37: =+D11+D22+D24+D31+D33-D35 -> 0 | E37: 0 | F37: 0 | G37: 0 | H37: 0 | I37: 0 | J37: 0 | K37: 0 | L37: 0 | M37: 0
B40: Underhållsfond och balanserade vinstmedel
B41: Att avsätta till fond för yttre underhåll | C41: =+budget!G277+budget!G278 -> 153 | D41: =+C41+C41*Grunddata!$F$71 -> 156.825 | E41: =+D41+D41*Grunddata!$F$71 -> 160.745625 | F41: =+E41+E41*Grunddata!$F$71 -> 164.7642656 | G41: =+F41+F41*Grunddata!$F$71 -> 168.8833723 | H41: =+G41+G41*Grunddata!$F$71 -> 173.1054566 | I41: =+H41+H41*Grunddata!$F$71 -> 177.433093 | J41: =+I41+I41*Grunddata!$F$71 -> 181.8689203 | K41: =+J41+J41*Grunddata!$F$71 -> 186.4156433 | L41: =+K41+K41*Grunddata!$F$71 -> 191.0760344 | M41: =+L41+L41*Grunddata!$F$71 -> 195.8529353
B42: Ianspråktagande ur fond för yttre underhåll | C42: =+C14 -> 0 | D42: =+D14 -> 0 | E42: =+E14 -> 0 | F42: 0 | G42: 0 | H42: 0 | I42: 0 | J42: 0 | K42: 0 | L42: 0 | M42: 0
B44: Föreningens fond för yttre underhåll efter disposition | C44: =+budget!G280 -> 635 | D44: =+C44+D41+D42 -> 791.825 | E44: =+D44+E41+E42 -> 952.570625 | F44: 1117.334891 | G44: 1286.218263 | H44: 1459.323719 | I44: 1636.756812 | J44: 1818.625733 | K44: 2005.041376 | L44: 2196.11741 | M44: 2391.970346
B45: Balanserat resultat (+ vinst / - förlust) | C45: =+budget!G281 -> 2259.465708 | D45: =+C45+D35-D41-D42 -> 2824.520872 | E45: =+D45+E35-E41-E42 -> 3412.870754 | F45: 4024.963124 | G45: 4661.254232 | H45: 5322.208968 | I45: 6008.301019 | J45: 6720.013035 | K45: 7457.836793 | L45: 8222.273371 | M45: 9013.833313
B46: Summa | C46: =+budget!G282 -> 2894.465708 | D46: =SUM(D44:D45) -> 3616.345872 | E46: =SUM(E44:E45) -> 4365.441379 | F46: 5142.298015 | G46: 5947.472495 | H46: 6781.532687 | I46: 7645.057831 | J46: 8538.638767 | K46: 9462.87817 | L46: 10418.39078 | M46: 11405.80366
B49: Kassabehållning | C49: =+likviditetsbudget!N58 -> 1532.134782 | D49: =+C49+D35-D8 -> 2254.014946 | E49: =+D49+E35-E8 -> 3003.110453 | F49: 3779.967089 | G49: 4585.141569 | H49: 5419.201762 | I49: 6282.726906 | J49: 7176.307842 | K49: 8100.547244 | L49: 9056.059856 | M49: 10043.47273
B50: Korrigeringsrad om amort. ej lika med avskrivn. | D50: =-D24-Grunddata!$F$73/1000 -> 704.877 | E50: =-E24-Grunddata!$F$73/1000 -> 704.877 | F50: =-F24-Grunddata!$F$73/1000 -> 704.877 | G50: =-G24-Grunddata!$F$73/1000 -> 704.877 | H50: =-H24-Grunddata!$F$73/1000 -> 704.877 | I50: =-I24-Grunddata!$F$73/1000 -> 704.877 | J50: =-J24-Grunddata!$F$73/1000 -> 704.877 | K50: =-K24-Grunddata!$F$73/1000 -> 704.877 | L50: =-L24-Grunddata!$F$73/1000 -> 704.877 | M50: =-M24-Grunddata!$F$73/1000 -> 704.877
B51: Summa | D51: =SUM(D49:D50) -> 2958.891946 | E51: =SUM(E49:E50) -> 3707.987453 | F51: 4484.844089 | G51: 5290.018569 | H51: 6124.078762 | I51: 6987.603906 | J51: 7881.184842 | K51: 8805.424244 | L51: 9760.936856 | M51: 10748.34973
B57: Kommentarer

Sheet Grunddata
B2: ='Från 3L'!A2 -> 278 | C2: ='Från 3L'!B2 -> Brf Kämpevägen
C8: Uppgifter budget år | F8: ='Från 3L'!C2+200 -> 201601
C10: Kvm bostadsyta | F10: 2723
C12: Kvm lokalyta
C14: Värdeår | F14: 1999
C15: belopp i kronor | D15: uppräkning %
C16: År i treårscykeln | F16: 1
C17: Taxeringsvärde hyreshus, totalt | E17: 2010 | F17: 0
C18: Taxeringsvärde hyreshus, totalt | E18: 2013 | F18: 7549000
C19: Taxeringsvärde hyreshus, lokaldel | E19: 2013
C20: Taxeringsvärde hyreshus, lokaldel | E20: 2010 | F20: 0
C21: Taxeringsvärde hyreshus, totalt | D21: 0.1 | E21: 2016 | F21: =CEILING(+F18+(F18*D21),1000) -> 8304000
C22: Taxeringsvärde hyreshus, lokaldel | D22: 0.1 | E22: 2016 | F22: =CEILING(+F19+(F19*D22),1000) -> 0
C23: Antal lägenheter hyreshus | F23: 12
C24: År i treårscykeln | F24: 1
C25: Taxeringsvärde småhus, totalt | E25: 2015 | F25: 43302000
C26: Taxeringsvärde småhus, totalt | D26: 0 | E26: 2015 | F26: =+F25+(F25*D26) -> 43302000
C27: Taxeringsvärde småhus, lokaldel | E27: 2015
C28: Taxeringsvärde småhus, lokaldel | D28: 0 | E28: 2015 | F28: =+F27+(F27*D28) -> 0
C29: Antal värderingsenheter (tomter) småhus | F29: 21
C30: Outnyttjat underskott | E30: 2012 | F30: 0
C31: Debiterad preliminärskatt | E31: 2015 | F31: 171228
C32: OCR-nr, för fyllnadsinbetalning via bankgiro | F32: 1676960351175
C34: Beräkning arvode Fastum | E34: =LEFT('Från 3L'!C2,4)+2 -> 2016
C35: Nuvarande räntereducerade arvode, exkl moms | E35: =+E34-1 -> 2015 | F35: 56000
C36: Avtalat snittsaldo | E36: =+E35 -> 2015 | F36: 400000
C37: Räntesats avtalat snittsaldo | E37: =+E35 -> 2015 | F37: 0.0025
C38: Räntesats avdrag snittsaldo > 0 kr | E38: =+E35 -> 2015 | F38: 0.001
C39: Räntesats avdrag snittsaldo > 250 tkr | E39: =E35 -> 2015 | F39: 0.001
C40: Räntesats avdrag snittsaldo > 500 tkr | E40: =+E35 -> 2015 | F40: 0.001
C41: Räntesats avtalat snittsaldo | E41: =+E34 -> 2016 | F41: 0.0025
C42: Räntesats avdrag snittsaldo > 0 kr | E42: =E34 -> 2016 | F42: 0.001
C43: Räntesats avdrag snittsaldo > 250 tkr | E43: =E34 -> 2016 | F43: 0.001
C44: Räntesats avdrag snittsaldo > 500 tkr | E44: =+E34 -> 2016 | F44: 0.001
C45: Indexuppräkning arvode % | E45: =+E34 -> 2016 | F45: 0.03
C46: Beräknat nytt snittsaldo | E46: =+E34 -> 2016 | F46: 0
C47: För brutet räkenskapsår
C48: Räntesats avtalat snittsaldo | E48: =+E34+1 -> 2017 | F48: 0.0025
C49: Räntesats avdrag snittsaldo > 0 kr | E49: =E48 -> 2017 | F49: 0.001
C50: Räntesats avdrag snittsaldo > 250 tkr | E50: =E49 -> 2017 | F50: 0.001
C51: Räntesats avdrag snittsaldo > 500 tkr | E51: 2017 | F51: 0.001
C54: Betalar föreningen arvode till JM? | E54: belopp i kr | F54: 0
C64: Flerårsbudget
C65: Höjning årsavgifter tom år 5 | F65: 0.02
C66: Höjning årsavgifter år 6 till 11 | F66: 0.02
C67: Höjning hyror per år | F67: 0.02
C68: Driftskostnadsökning per år | F68: 0.02
C69: Uppräkning inkomstbasbeloppet per år | F69: =57500/56900 -> 1.010544815
C70: Uppräkning tax.värde lokaler (vart 3:e år) | F70: 0.25
C71: Uppräkning avsättning enligt UH-plan per år | F71: 0.025
C72: Utgående kapitalskuld budgetåret | F72: 0
C73: Beräknade årliga amorteringar | F73: 0
C74: Beräknad årlig snittränta | F74: 0.04
C78: Detta budgetförslag kommer från:
C80: Fastum
C81: Tel vx 08-506 04 700

Sheet budget
B1: ='Från 3L'!A2 -> 278 | C1: ='Från 3L'!B2 -> Brf Kämpevägen | G1: Nuvarande årsavgift | K1: =G28*1000/L3 -> 698.1270657 | L1: kr/m2 och år
G2: Budgeterad årsavgift | K2: =(G28+G29)*1000/L3 -> 698.1270657 | L2: kr/m2 och år
K3: kvm bostadsyta | L3: =Grunddata!F10 -> 2723
B4: FÖRSLAG TILL
B5: RESULTATBUDGET ÅR | D5: 2016
B7: Belopp i tkr
G8: ="Budget"&" "&D5 -> Budget 2016 | J8: ="Prognos"&" "&LEFT('Från 3L'!$C$2,4)+1 -> Prognos 2015 | K8: ="Budget"&" "&LEFT('Från 3L'!$C$2,4)+1 -> Budget 2015 | L8: ="Utfall"&" "&LEFT('Från 3L'!$C$2,4) -> Utfall 2014
F22: Styrelsens förslag | G22: =G8 -> Budget 2016 | H22: BN | I22: B/P % | J22: Prognos 2015 | K22: Budget 2015 | L22: Utfall 2014
B23: RÖRELSENS INTÄKTER
G24: .
B25: Nettoomsättning | G25: .
B27: Årsavgifter
A28: 3021 | B28: Årsavgifter bostäder | G28: =+'kostn med flera BN'!B11 -> 1901 | H28: ='kostn med flera BN'!C9 -> 20 | I28: =IF(J28=0,0,(G28-J28)/J28) -> 0 | J28: 1901 | K28: =IF(ISNA(VLOOKUP(A28,'Från 3L'!$D$1:G47,4,0))," ",IF(VLOOKUP(A28,'Från 3L'!$D$1:G47,4,0)="NULL",0,(VLOOKUP(A28,'Från 3L'!$D$1:G47,4,0)))) -> 1901 | L28: =IF(ISNA(VLOOKUP(A28,'Från 3L'!$D$1:G47,2,0))," ",IF(VLOOKUP(A28,'Från 3L'!$D$1:G47,2,0)="NULL",0,(VLOOKUP(A28,'Från 3L'!$D$1:G47,2,0)))) -> 1901.435 | V28: kalenderår | W28: juli - juni | X28: sept - aug | Z28: kalenderår | AA28: juli - juni | AB28: sept - aug
A29: 3021 | B29: Årsavgifter bostäder | C29: 0 | D29: % fr o m | E29: 2016-01-01 | F29: =IF(RIGHT('Från 3L'!$C$2,2)="01",$V$29,IF(RIGHT('Från 3L'!$C$2,2)="07",$W$29,$X$29)) -> 0 | G29: =IF(RIGHT('Från 3L'!$C$2,2)="01",$V$29,IF(RIGHT('Från 3L'!$C$2,2)="07",$W$29,$X$29)) -> 0 | H29: =H28 -> 20 | I29: 0 | J29: 0 | K29: 0 | V29: =($G$28*$C$29/100)/365*($Z$29-$E$29) -> 0 | W29: =($G$28*$C$29/100)/365*($AA$29-$E$29) -> 0 | X29: =($G$28*$C$29/100)/365*($AB$29-$E$29) -> 0 | Z29: =LEFT('Från 3L'!$C$2,4)+2&"-12-31" -> 2016-12-31 | AA29: =LEFT('Från 3L'!$C$2,4)+2+1&"-06-30" -> 2017-06-30 | AB29: =LEFT('Från 3L'!$C$2,4)+2+1&"-08-30" -> 2017-08-30
A31: 3023 | B31: Årsavgifter lokaler | F31: =+'kostn med flera BN'!B16 -> 0 | G31: =+'kostn med flera BN'!B16 -> 0 | I31: 0 | J31: 0 | K31: =IF(ISNA(VLOOKUP(A31,'Från 3L'!$D$1:G50,4,0))," ",IF(VLOOKUP(A31,'Från 3L'!$D$1:G50,4,0)="NULL",0,(VLOOKUP(A31,'Från 3L'!$D$1:G50,4,0)))) ->  | L31: =IF(ISNA(VLOOKUP(A31,'Från 3L'!$D$1:G50,2,0))," ",IF(VLOOKUP(A31,'Från 3L'!$D$1:G50,2,0)="NULL",0,(VLOOKUP(A31,'Från 3L'!$D$1:G50,2,0)))) -> 
A32: 3023 | B32: Årsavgifter lokaler | D32: % fr o m | E32: 2016-01-01 | F32: =IF(RIGHT('Från 3L'!$C$2,2)="01",$V$32,IF(RIGHT('Från 3L'!$C$2,2)="07",$W$32,$X$32)) -> 0 | G32: =IF(RIGHT('Från 3L'!$C$2,2)="01",$V$32,IF(RIGHT('Från 3L'!$C$2,2)="07",$W$32,$X$32)) -> 0 | I32: 0 | J32: 0 | K32: 0 | L32: 0 | V32: =($G$31*$C$32/100)/365*($Z$32-$E$32) -> 0 | W32: =($G$31*$C$32/100)/365*($AA$32-$E$32) -> 0 | X32: =($G$31*$C$32/100)/365*($AB$32-$E$32) -> 0 | Z32: =LEFT('Från 3L'!$C$2,4)+2&"-12-31" -> 2016-12-31 | AA32: =LEFT('Från 3L'!$C$2,4)+2+1&"-06-30" -> 2017-06-30 | AB32: =LEFT('Från 3L'!$C$2,4)+2+1&"-08-30" -> 2017-08-30
A34: 3092 | B34: Årsavgifter reducering | G34: 0 | I34: 0 | J34: 0 | K34: 0 | L34: =IF(ISNA(VLOOKUP(A34,'Från 3L'!$D$1:G53,2,0))," ",IF(VLOOKUP(A34,'Från 3L'!$D$1:G53,2,0)="NULL",0,(VLOOKUP(A34,'Från 3L'!$D$1:G53,2,0)))) -> 
B35: Summa årsavgifter | F35: =SUM(F28:F34) -> 0 | G35: =SUM($G$28:$G$34) -> 1901 | I35: 0 | J35: =SUM(J28:J34) -> 1901 | K35: =SUM(K28:K34) -> 1901 | L35: =SUM(L28:L34) -> 1901.435
B36: Hyresintäkter
A37: 3041 | B37: Hyresintäkter, bostäder | G37: 0 | I37: 0 | J37: 0 | K37: =IF(ISNA(VLOOKUP(A37,'Från 3L'!$D$1:G56,4,0))," ",IF(VLOOKUP(A37,'Från 3L'!$D$1:G56,4,0)="NULL",0,(VLOOKUP(A37,'Från 3L'!$D$1:G56,4,0)))) ->  | L37: =IF(ISNA(VLOOKUP(A37,'Från 3L'!$D$1:G56,2,0))," ",IF(VLOOKUP(A37,'Från 3L'!$D$1:G56,2,0)="NULL",0,(VLOOKUP(A37,'Från 3L'!$D$1:G56,2,0)))) -> 
A38: 3042 | B38: Hyresintäkter, lokaler moms | G38: 0 | I38: =IF(J38=0,0,(G38-J38)/J38) -> 0 | J38: 0 | K38: =IF(ISNA(VLOOKUP(A38,'Från 3L'!$D$1:G57,4,0))," ",IF(VLOOKUP(A38,'Från 3L'!$D$1:G57,4,0)="NULL",0,(VLOOKUP(A38,'Från 3L'!$D$1:G57,4,0)))) ->  | L38: =IF(ISNA(VLOOKUP(A38,'Från 3L'!$D$1:G57,2,0))," ",IF(VLOOKUP(A38,'Från 3L'!$D$1:G57,2,0)="NULL",0,(VLOOKUP(A38,'Från 3L'!$D$1:G57,2,0)))) -> 
A39: 3043 | B39: Hyresintäkter, lokaler ej moms | G39: 0 | I39: 0 | J39: 0 | K39: =IF(ISNA(VLOOKUP(A39,'Från 3L'!$D$1:G58,4,0))," ",IF(VLOOKUP(A39,'Från 3L'!$D$1:G58,4,0)="NULL",0,(VLOOKUP(A39,'Från 3L'!$D$1:G58,4,0)))) ->  | L39: =IF(ISNA(VLOOKUP(A39,'Från 3L'!$D$1:G58,2,0))," ",IF(VLOOKUP(A39,'Från 3L'!$D$1:G58,2,0)="NULL",0,(VLOOKUP(A39,'Från 3L'!$D$1:G58,2,0)))) -> 
A40: 3044 | B40: Hyresintäkter, garage moms | G40: 0 | I40: 0 | J40: 0 | K40: =IF(ISNA(VLOOKUP(A40,'Från 3L'!$D$1:G59,4,0))," ",IF(VLOOKUP(A40,'Från 3L'!$D$1:G59,4,0)="NULL",0,(VLOOKUP(A40,'Från 3L'!$D$1:G59,4,0)))) ->  | L40: =IF(ISNA(VLOOKUP(A40,'Från 3L'!$D$1:G59,2,0))," ",IF(VLOOKUP(A40,'Från 3L'!$D$1:G59,2,0)="NULL",0,(VLOOKUP(A40,'Från 3L'!$D$1:G59,2,0)))) -> 
A41: 3045 | B41: Hyresintäkter, garage ej moms | G41: 0 | I41: 0 | J41: 0 | K41: =IF(ISNA(VLOOKUP(A41,'Från 3L'!$D$1:G60,4,0))," ",IF(VLOOKUP(A41,'Från 3L'!$D$1:G60,4,0)="NULL",0,(VLOOKUP(A41,'Från 3L'!$D$1:G60,4,0)))) ->  | L41: =IF(ISNA(VLOOKUP(A41,'Från 3L'!$D$1:G60,2,0))," ",IF(VLOOKUP(A41,'Från 3L'!$D$1:G60,2,0)="NULL",0,(VLOOKUP(A41,'Från 3L'!$D$1:G60,2,0)))) -> 
A42: 3046 | B42: Hyresintäkter, p-plats moms | G42: 0 | I42: 0 | J42: 0 | K42: =IF(ISNA(VLOOKUP(A42,'Från 3L'!$D$1:G61,4,0))," ",IF(VLOOKUP(A42,'Från 3L'!$D$1:G61,4,0)="NULL",0,(VLOOKUP(A42,'Från 3L'!$D$1:G61,4,0)))) ->  | L42: =IF(ISNA(VLOOKUP(A42,'Från 3L'!$D$1:G61,2,0))," ",IF(VLOOKUP(A42,'Från 3L'!$D$1:G61,2,0)="NULL",0,(VLOOKUP(A42,'Från 3L'!$D$1:G61,2,0)))) -> 
A43: 3047 | B43: Hyresintäkter, p-plats ej moms | G43: 0 | I43: 0 | J43: 0 | K43: =IF(ISNA(VLOOKUP(A43,'Från 3L'!$D$1:G62,4,0))," ",IF(VLOOKUP(A43,'Från 3L'!$D$1:G62,4,0)="NULL",0,(VLOOKUP(A43,'Från 3L'!$D$1:G62,4,0)))) ->  | L43: =IF(ISNA(VLOOKUP(A43,'Från 3L'!$D$1:G62,2,0))," ",IF(VLOOKUP(A43,'Från 3L'!$D$1:G62,2,0)="NULL",0,(VLOOKUP(A43,'Från 3L'!$D$1:G62,2,0)))) -> 
A44: 3081 | B44: Hyresbortfall, bostad hyresr. | G44: 0 | I44: 0 | J44: 0 | K44: =IF(ISNA(VLOOKUP(A44,'Från 3L'!$D$1:G63,4,0))," ",IF(VLOOKUP(A44,'Från 3L'!$D$1:G63,4,0)="NULL",0,(VLOOKUP(A44,'Från 3L'!$D$1:G63,4,0)))) ->  | L44: =IF(ISNA(VLOOKUP(A44,'Från 3L'!$D$1:G63,2,0))," ",IF(VLOOKUP(A44,'Från 3L'!$D$1:G63,2,0)="NULL",0,(VLOOKUP(A44,'Från 3L'!$D$1:G63,2,0)))) -> 
A45: 3083 | B45: Hyresbortfall, lokaler ej moms | G45: 0 | I45: 0 | J45: 0 | K45: =IF(ISNA(VLOOKUP(A45,'Från 3L'!$D$1:G64,4,0))," ",IF(VLOOKUP(A45,'Från 3L'!$D$1:G64,4,0)="NULL",0,(VLOOKUP(A45,'Från 3L'!$D$1:G64,4,0)))) ->  | L45: =IF(ISNA(VLOOKUP(A45,'Från 3L'!$D$1:G64,2,0))," ",IF(VLOOKUP(A45,'Från 3L'!$D$1:G64,2,0)="NULL",0,(VLOOKUP(A45,'Från 3L'!$D$1:G64,2,0)))) -> 
A46: 3087 | B46: Hyresbortfall, p-plats ej moms | G46: 0 | I46: 0 | J46: 0 | K46: =IF(ISNA(VLOOKUP(A46,'Från 3L'!$D$1:G65,4,0))," ",IF(VLOOKUP(A46,'Från 3L'!$D$1:G65,4,0)="NULL",0,(VLOOKUP(A46,'Från 3L'!$D$1:G65,4,0)))) ->  | L46: =IF(ISNA(VLOOKUP(A46,'Från 3L'!$D$1:G65,2,0))," ",IF(VLOOKUP(A46,'Från 3L'!$D$1:G65,2,0)="NULL",0,(VLOOKUP(A46,'Från 3L'!$D$1:G65,2,0)))) -> 
A47: 3085 | B47: Hyresbortfall, garage ej moms | G47: 0 | I47: 0 | J47: 0 | K47: =IF(ISNA(VLOOKUP(A47,'Från 3L'!$D$1:G66,4,0))," ",IF(VLOOKUP(A47,'Från 3L'!$D$1:G66,4,0)="NULL",0,(VLOOKUP(A47,'Från 3L'!$D$1:G66,4,0)))) ->  | L47: =IF(ISNA(VLOOKUP(A47,'Från 3L'!$D$1:G66,2,0))," ",IF(VLOOKUP(A47,'Från 3L'!$D$1:G66,2,0)="NULL",0,(VLOOKUP(A47,'Från 3L'!$D$1:G66,2,0)))) -> 
B48: Summa hyresintäkter | F48: =SUM(F37:F47) -> 0 | G48: =SUM(G37:G47) -> 0 | I48: 0 | J48: 0 | K48: 0 | L48: 0
B49: Övriga rörelseintäkter
A50: 3050 | B50: Deb. fastighetsskatt, moms | G50: 0 | I50: =IF(J50=0,0,(G50-J50)/J50) -> 0 | J50: 0 | K50: =IF(ISNA(VLOOKUP(A50,'Från 3L'!$D$1:G69,4,0))," ",IF(VLOOKUP(A50,'Från 3L'!$D$1:G69,4,0)="NULL",0,(VLOOKUP(A50,'Från 3L'!$D$1:G69,4,0)))) ->  | L50: =IF(ISNA(VLOOKUP(A50,'Från 3L'!$D$1:G69,2,0))," ",IF(VLOOKUP(A50,'Från 3L'!$D$1:G69,2,0)="NULL",0,(VLOOKUP(A50,'Från 3L'!$D$1:G69,2,0)))) -> 
A51: 3051 | B51: Deb. fastighetsskatt, ej moms | G51: 0 | I51: =IF(J51=0,0,(G51-J51)/J51) -> 0 | J51: 0 | K51: =IF(ISNA(VLOOKUP(A51,'Från 3L'!$D$1:G70,4,0))," ",IF(VLOOKUP(A51,'Från 3L'!$D$1:G70,4,0)="NULL",0,(VLOOKUP(A51,'Från 3L'!$D$1:G70,4,0)))) ->  | L51: =IF(ISNA(VLOOKUP(A51,'Från 3L'!$D$1:G70,2,0))," ",IF(VLOOKUP(A51,'Från 3L'!$D$1:G70,2,0)="NULL",0,(VLOOKUP(A51,'Från 3L'!$D$1:G70,2,0)))) -> 
A52: 3035 | B52: Samfällighetsavgift | G52: 0 | I52: =IF(J52=0,0,(G52-J52)/J52) -> 0 | J52: 0 | K52: =IF(ISNA(VLOOKUP(A52,'Från 3L'!$D$1:G71,4,0))," ",IF(VLOOKUP(A52,'Från 3L'!$D$1:G71,4,0)="NULL",0,(VLOOKUP(A52,'Från 3L'!$D$1:G71,4,0)))) ->  | L52: =IF(ISNA(VLOOKUP(A52,'Från 3L'!$D$1:G71,2,0))," ",IF(VLOOKUP(A52,'Från 3L'!$D$1:G71,2,0)="NULL",0,(VLOOKUP(A52,'Från 3L'!$D$1:G71,2,0)))) -> 
A53: 3072 | B53: Hyresintäkt kabel-tv, ej moms | G53: 0 | I53: =IF(J53=0,0,(G53-J53)/J53) -> 0 | J53: 0 | K53: =IF(ISNA(VLOOKUP(A53,'Från 3L'!$D$1:G72,4,0))," ",IF(VLOOKUP(A53,'Från 3L'!$D$1:G72,4,0)="NULL",0,(VLOOKUP(A53,'Från 3L'!$D$1:G72,4,0)))) ->  | L53: =IF(ISNA(VLOOKUP(A53,'Från 3L'!$D$1:G72,2,0))," ",IF(VLOOKUP(A53,'Från 3L'!$D$1:G72,2,0)="NULL",0,(VLOOKUP(A53,'Från 3L'!$D$1:G72,2,0)))) -> 
A54: 3074 | B54: Hyresintäkt bredband, ej moms | G54: 0 | I54: =IF(J54=0,0,(G54-J54)/J54) -> 0 | J54: 0 | K54: =IF(ISNA(VLOOKUP(A54,'Från 3L'!$D$1:G73,4,0))," ",IF(VLOOKUP(A54,'Från 3L'!$D$1:G73,4,0)="NULL",0,(VLOOKUP(A54,'Från 3L'!$D$1:G73,4,0)))) ->  | L54: =IF(ISNA(VLOOKUP(A54,'Från 3L'!$D$1:G73,2,0))," ",IF(VLOOKUP(A54,'Från 3L'!$D$1:G73,2,0)="NULL",0,(VLOOKUP(A54,'Från 3L'!$D$1:G73,2,0)))) -> 
A55: 3112 | B55: Vatten, ej moms | G55: 73 | H55: 20 | I55: 0 | J55: 73 | K55: =IF(ISNA(VLOOKUP(A55,'Från 3L'!$D$1:G74,4,0))," ",IF(VLOOKUP(A55,'Från 3L'!$D$1:G74,4,0)="NULL",0,(VLOOKUP(A55,'Från 3L'!$D$1:G74,4,0)))) -> 88 | L55: =IF(ISNA(VLOOKUP(A55,'Från 3L'!$D$1:G74,2,0))," ",IF(VLOOKUP(A55,'Från 3L'!$D$1:G74,2,0)="NULL",0,(VLOOKUP(A55,'Från 3L'!$D$1:G74,2,0)))) -> 87.768
A56: 3121 | B56: El, moms | G56: 0 | I56: 0 | J56: 0 | K56: =IF(ISNA(VLOOKUP(A56,'Från 3L'!$D$1:G75,4,0))," ",IF(VLOOKUP(A56,'Från 3L'!$D$1:G75,4,0)="NULL",0,(VLOOKUP(A56,'Från 3L'!$D$1:G75,4,0)))) ->  | L56: =IF(ISNA(VLOOKUP(A56,'Från 3L'!$D$1:G75,2,0))," ",IF(VLOOKUP(A56,'Från 3L'!$D$1:G75,2,0)="NULL",0,(VLOOKUP(A56,'Från 3L'!$D$1:G75,2,0)))) -> 
A57: 3122 | B57: El, ej moms | G57: 0 | I57: 0 | J57: 0 | K57: =IF(ISNA(VLOOKUP(A57,'Från 3L'!$D$1:G76,4,0))," ",IF(VLOOKUP(A57,'Från 3L'!$D$1:G76,4,0)="NULL",0,(VLOOKUP(A57,'Från 3L'!$D$1:G76,4,0)))) ->  | L57: =IF(ISNA(VLOOKUP(A57,'Från 3L'!$D$1:G76,2,0))," ",IF(VLOOKUP(A57,'Från 3L'!$D$1:G76,2,0)="NULL",0,(VLOOKUP(A57,'Från 3L'!$D$1:G76,2,0)))) -> 
A58: 3131 | B58: Uppvärmning, moms | G58: 0 | I58: 0 | J58: 0 | K58: =IF(ISNA(VLOOKUP(A58,'Från 3L'!$D$1:G77,4,0))," ",IF(VLOOKUP(A58,'Från 3L'!$D$1:G77,4,0)="NULL",0,(VLOOKUP(A58,'Från 3L'!$D$1:G77,4,0)))) ->  | L58: =IF(ISNA(VLOOKUP(A58,'Från 3L'!$D$1:G77,2,0))," ",IF(VLOOKUP(A58,'Från 3L'!$D$1:G77,2,0)="NULL",0,(VLOOKUP(A58,'Från 3L'!$D$1:G77,2,0)))) -> 
A59: 3132 | B59: Uppvärmning, ej moms | G59: 0 | I59: 0 | J59: 0 | K59: =IF(ISNA(VLOOKUP(A59,'Från 3L'!$D$1:G78,4,0))," ",IF(VLOOKUP(A59,'Från 3L'!$D$1:G78,4,0)="NULL",0,(VLOOKUP(A59,'Från 3L'!$D$1:G78,4,0)))) ->  | L59: =IF(ISNA(VLOOKUP(A59,'Från 3L'!$D$1:G78,2,0))," ",IF(VLOOKUP(A59,'Från 3L'!$D$1:G78,2,0)="NULL",0,(VLOOKUP(A59,'Från 3L'!$D$1:G78,2,0)))) -> 
A60: 3211 | B60: Tvättavgifter | G60: 0 | I60: 0 | J60: 0 | K60: =IF(ISNA(VLOOKUP(A60,'Från 3L'!$D$1:G79,4,0))," ",IF(VLOOKUP(A60,'Från 3L'!$D$1:G79,4,0)="NULL",0,(VLOOKUP(A60,'Från 3L'!$D$1:G79,4,0)))) ->  | L60: =IF(ISNA(VLOOKUP(A60,'Från 3L'!$D$1:G79,2,0))," ",IF(VLOOKUP(A60,'Från 3L'!$D$1:G79,2,0)="NULL",0,(VLOOKUP(A60,'Från 3L'!$D$1:G79,2,0)))) -> 
A61: 3214 | B61: Gemensamhetslokal | G61: 0 | I61: 0 | J61: 0 | K61: =IF(ISNA(VLOOKUP(A61,'Från 3L'!$D$1:G80,4,0))," ",IF(VLOOKUP(A61,'Från 3L'!$D$1:G80,4,0)="NULL",0,(VLOOKUP(A61,'Från 3L'!$D$1:G80,4,0)))) ->  | L61: =IF(ISNA(VLOOKUP(A61,'Från 3L'!$D$1:G80,2,0))," ",IF(VLOOKUP(A61,'Från 3L'!$D$1:G80,2,0)="NULL",0,(VLOOKUP(A61,'Från 3L'!$D$1:G80,2,0)))) -> 
A62: 3250 | B62: Övernattnings-/gästlägenhet | G62: 0 | I62: 0 | J62: 0 | K62: =IF(ISNA(VLOOKUP(A62,'Från 3L'!$D$1:G81,4,0))," ",IF(VLOOKUP(A62,'Från 3L'!$D$1:G81,4,0)="NULL",0,(VLOOKUP(A62,'Från 3L'!$D$1:G81,4,0)))) ->  | L62: =IF(ISNA(VLOOKUP(A62,'Från 3L'!$D$1:G81,2,0))," ",IF(VLOOKUP(A62,'Från 3L'!$D$1:G81,2,0)="NULL",0,(VLOOKUP(A62,'Från 3L'!$D$1:G81,2,0)))) -> 
A63: 3590 | B63: Övriga fakturerade kostnader | G63: 0 | I63: 0 | J63: 0 | K63: =IF(ISNA(VLOOKUP(A63,'Från 3L'!$D$1:G82,4,0))," ",IF(VLOOKUP(A63,'Från 3L'!$D$1:G82,4,0)="NULL",0,(VLOOKUP(A63,'Från 3L'!$D$1:G82,4,0)))) ->  | L63: =IF(ISNA(VLOOKUP(A63,'Från 3L'!$D$1:G82,2,0))," ",IF(VLOOKUP(A63,'Från 3L'!$D$1:G82,2,0)="NULL",0,(VLOOKUP(A63,'Från 3L'!$D$1:G82,2,0)))) -> 
A64: 3740 | B64: Öres- och kronutjämning | G64: 0 | I64: 0 | J64: 0 | K64: =IF(ISNA(VLOOKUP(A64,'Från 3L'!$D$1:G83,4,0))," ",IF(VLOOKUP(A64,'Från 3L'!$D$1:G83,4,0)="NULL",0,(VLOOKUP(A64,'Från 3L'!$D$1:G83,4,0)))) -> 0 | L64: =IF(ISNA(VLOOKUP(A64,'Från 3L'!$D$1:G83,2,0))," ",IF(VLOOKUP(A64,'Från 3L'!$D$1:G83,2,0)="NULL",0,(VLOOKUP(A64,'Från 3L'!$D$1:G83,2,0)))) -> 0.013
A65: 3941 | B65: Ersättn ränta kapitaltillskott | G65: 0 | I65: 0 | J65: 0 | K65: =IF(ISNA(VLOOKUP(A65,'Från 3L'!$D$1:G84,4,0))," ",IF(VLOOKUP(A65,'Från 3L'!$D$1:G84,4,0)="NULL",0,(VLOOKUP(A65,'Från 3L'!$D$1:G84,4,0)))) ->  | L65: =IF(ISNA(VLOOKUP(A65,'Från 3L'!$D$1:G84,2,0))," ",IF(VLOOKUP(A65,'Från 3L'!$D$1:G84,2,0)="NULL",0,(VLOOKUP(A65,'Från 3L'!$D$1:G84,2,0)))) -> 
A66: 3992 | B66: Övr momspl ersättn och intäkt | G66: 0 | I66: 0 | J66: 0 | K66: =IF(ISNA(VLOOKUP(A66,'Från 3L'!$D$1:G85,4,0))," ",IF(VLOOKUP(A66,'Från 3L'!$D$1:G85,4,0)="NULL",0,(VLOOKUP(A66,'Från 3L'!$D$1:G85,4,0)))) ->  | L66: =IF(ISNA(VLOOKUP(A66,'Från 3L'!$D$1:G85,2,0))," ",IF(VLOOKUP(A66,'Från 3L'!$D$1:G85,2,0)="NULL",0,(VLOOKUP(A66,'Från 3L'!$D$1:G85,2,0)))) -> 
A67: 3993 | B67: Övr ej momspl ers. och intäkt | G67: 0 | I67: -1 | J67: -40 | K67: =IF(ISNA(VLOOKUP(A67,'Från 3L'!$D$1:G86,4,0))," ",IF(VLOOKUP(A67,'Från 3L'!$D$1:G86,4,0)="NULL",0,(VLOOKUP(A67,'Från 3L'!$D$1:G86,4,0)))) ->  | L67: =IF(ISNA(VLOOKUP(A67,'Från 3L'!$D$1:G86,2,0))," ",IF(VLOOKUP(A67,'Från 3L'!$D$1:G86,2,0)="NULL",0,(VLOOKUP(A67,'Från 3L'!$D$1:G86,2,0)))) -> 
B68: Summa övriga rörelseintäkter | F68: =SUM(F50:F67) -> 0 | G68: =SUM(G50:G67) -> 73 | I68: 1.212121212 | J68: =SUM(J50:J67) -> 33 | K68: =SUM(K50:K67) -> 88 | L68: 87.781
B69: Summa nettoomsättning | F69: =F35+F48+F68 -> 0 | G69: =G35+G48+G68 -> 1974 | I69: 0.02068252327 | J69: 1934 | K69: 1989 | L69: 1989.216
B70: RÖRELSENS KOSTNADER
B71: Kostnader för fastighetsförvaltning
B72: Reparationer och underhåll
A73: 4300 | B73: Reparationer (samlingskonto) | G73: -35 | H73: 20 | I73: =IF(J73=0,0,(G73-J73)/J73) -> 0 | J73: -35 | K73: =IF(ISNA(VLOOKUP(A73,'Från 3L'!$D$1:G92,4,0))," ",IF(VLOOKUP(A73,'Från 3L'!$D$1:G92,4,0)="NULL",0,(VLOOKUP(A73,'Från 3L'!$D$1:G92,4,0)))) -> -48 | L73: =IF(ISNA(VLOOKUP(A73,'Från 3L'!$D$1:G92,2,0))," ",IF(VLOOKUP(A73,'Från 3L'!$D$1:G92,2,0)="NULL",0,(VLOOKUP(A73,'Från 3L'!$D$1:G92,2,0)))) -> -44.67
A74: 4310 | B74: Reparation bostad/hyreslokal | G74: 0 | I74: 0 | J74: 0 | K74: =IF(ISNA(VLOOKUP(A74,'Från 3L'!$D$1:G93,4,0))," ",IF(VLOOKUP(A74,'Från 3L'!$D$1:G93,4,0)="NULL",0,(VLOOKUP(A74,'Från 3L'!$D$1:G93,4,0)))) ->  | L74: =IF(ISNA(VLOOKUP(A74,'Från 3L'!$D$1:G93,2,0))," ",IF(VLOOKUP(A74,'Från 3L'!$D$1:G93,2,0)="NULL",0,(VLOOKUP(A74,'Från 3L'!$D$1:G93,2,0)))) -> 
B75: Fri rad | G75: 0 | I75: 0 | J75: 0 | K75: =IF(ISNA(VLOOKUP(A75,'Från 3L'!$D$1:G94,4,0))," ",IF(VLOOKUP(A75,'Från 3L'!$D$1:G94,4,0)="NULL",0,(VLOOKUP(A75,'Från 3L'!$D$1:G94,4,0)))) ->  | L75: =IF(ISNA(VLOOKUP(A75,'Från 3L'!$D$1:G94,2,0))," ",IF(VLOOKUP(A75,'Från 3L'!$D$1:G94,2,0)="NULL",0,(VLOOKUP(A75,'Från 3L'!$D$1:G94,2,0)))) -> 
A76: 4313 | B76: Reparation vattenskada | G76: 0 | I76: -1 | J76: -4 | K76: =IF(ISNA(VLOOKUP(A76,'Från 3L'!$D$1:G95,4,0))," ",IF(VLOOKUP(A76,'Från 3L'!$D$1:G95,4,0)="NULL",0,(VLOOKUP(A76,'Från 3L'!$D$1:G95,4,0)))) ->  | L76: =IF(ISNA(VLOOKUP(A76,'Från 3L'!$D$1:G95,2,0))," ",IF(VLOOKUP(A76,'Från 3L'!$D$1:G95,2,0)="NULL",0,(VLOOKUP(A76,'Från 3L'!$D$1:G95,2,0)))) -> 
A77: 4331 | B77: Reparation tvättstuga | G77: 0 | I77: 0 | J77: 0 | K77: =IF(ISNA(VLOOKUP(A77,'Från 3L'!$D$1:G96,4,0))," ",IF(VLOOKUP(A77,'Från 3L'!$D$1:G96,4,0)="NULL",0,(VLOOKUP(A77,'Från 3L'!$D$1:G96,4,0)))) ->  | L77: =IF(ISNA(VLOOKUP(A77,'Från 3L'!$D$1:G96,2,0))," ",IF(VLOOKUP(A77,'Från 3L'!$D$1:G96,2,0)="NULL",0,(VLOOKUP(A77,'Från 3L'!$D$1:G96,2,0)))) -> 
A78: 4340 | B78: Reparation av installationer | G78: 0 | I78: 0 | J78: 0 | K78: =IF(ISNA(VLOOKUP(A78,'Från 3L'!$D$1:G97,4,0))," ",IF(VLOOKUP(A78,'Från 3L'!$D$1:G97,4,0)="NULL",0,(VLOOKUP(A78,'Från 3L'!$D$1:G97,4,0)))) ->  | L78: =IF(ISNA(VLOOKUP(A78,'Från 3L'!$D$1:G97,2,0))," ",IF(VLOOKUP(A78,'Från 3L'!$D$1:G97,2,0)="NULL",0,(VLOOKUP(A78,'Från 3L'!$D$1:G97,2,0)))) -> 
A79: 4342 | B79: Reparation värme | G79: 0 | I79: 0 | J79: 0 | K79: =IF(ISNA(VLOOKUP(A79,'Från 3L'!$D$1:G98,4,0))," ",IF(VLOOKUP(A79,'Från 3L'!$D$1:G98,4,0)="NULL",0,(VLOOKUP(A79,'Från 3L'!$D$1:G98,4,0)))) ->  | L79: =IF(ISNA(VLOOKUP(A79,'Från 3L'!$D$1:G98,2,0))," ",IF(VLOOKUP(A79,'Från 3L'!$D$1:G98,2,0)="NULL",0,(VLOOKUP(A79,'Från 3L'!$D$1:G98,2,0)))) -> 
A80: 4343 | B80: Reparation ventilation | G80: 0 | I80: 0 | J80: 0 | K80: =IF(ISNA(VLOOKUP(A80,'Från 3L'!$D$1:G99,4,0))," ",IF(VLOOKUP(A80,'Från 3L'!$D$1:G99,4,0)="NULL",0,(VLOOKUP(A80,'Från 3L'!$D$1:G99,4,0)))) ->  | L80: =IF(ISNA(VLOOKUP(A80,'Från 3L'!$D$1:G99,2,0))," ",IF(VLOOKUP(A80,'Från 3L'!$D$1:G99,2,0)="NULL",0,(VLOOKUP(A80,'Från 3L'!$D$1:G99,2,0)))) -> 
A81: 4345 | B81: Rep kabel-tv/bredband/porttele | G81: 0 | I81: 0 | J81: 0 | K81: =IF(ISNA(VLOOKUP(A81,'Från 3L'!$D$1:G100,4,0))," ",IF(VLOOKUP(A81,'Från 3L'!$D$1:G100,4,0)="NULL",0,(VLOOKUP(A81,'Från 3L'!$D$1:G100,4,0)))) ->  | L81: =IF(ISNA(VLOOKUP(A81,'Från 3L'!$D$1:G100,2,0))," ",IF(VLOOKUP(A81,'Från 3L'!$D$1:G100,2,0)="NULL",0,(VLOOKUP(A81,'Från 3L'!$D$1:G100,2,0)))) -> 
A82: 4346 | B82: Reparation hissar | G82: 0 | I82: 0 | J82: 0 | K82: =IF(ISNA(VLOOKUP(A82,'Från 3L'!$D$1:G101,4,0))," ",IF(VLOOKUP(A82,'Från 3L'!$D$1:G101,4,0)="NULL",0,(VLOOKUP(A82,'Från 3L'!$D$1:G101,4,0)))) ->  | L82: =IF(ISNA(VLOOKUP(A82,'Från 3L'!$D$1:G101,2,0))," ",IF(VLOOKUP(A82,'Från 3L'!$D$1:G101,2,0)="NULL",0,(VLOOKUP(A82,'Från 3L'!$D$1:G101,2,0)))) -> 
A83: 4360 | B83: Reparation av markytor | G83: 0 | I83: 0 | J83: 0 | K83: =IF(ISNA(VLOOKUP(A83,'Från 3L'!$D$1:G102,4,0))," ",IF(VLOOKUP(A83,'Från 3L'!$D$1:G102,4,0)="NULL",0,(VLOOKUP(A83,'Från 3L'!$D$1:G102,4,0)))) ->  | L83: =IF(ISNA(VLOOKUP(A83,'Från 3L'!$D$1:G102,2,0))," ",IF(VLOOKUP(A83,'Från 3L'!$D$1:G102,2,0)="NULL",0,(VLOOKUP(A83,'Från 3L'!$D$1:G102,2,0)))) -> 
B84: Fri rad | G84: 0 | I84: 0 | J84: 0 | K84: =IF(ISNA(VLOOKUP(A84,'Från 3L'!$D$1:G103,4,0))," ",IF(VLOOKUP(A84,'Från 3L'!$D$1:G103,4,0)="NULL",0,(VLOOKUP(A84,'Från 3L'!$D$1:G103,4,0)))) ->  | L84: =IF(ISNA(VLOOKUP(A84,'Från 3L'!$D$1:G103,2,0))," ",IF(VLOOKUP(A84,'Från 3L'!$D$1:G103,2,0)="NULL",0,(VLOOKUP(A84,'Från 3L'!$D$1:G103,2,0)))) -> 
B85: Fri rad | G85: 0 | I85: 0 | J85: 0 | K85: =IF(ISNA(VLOOKUP(A85,'Från 3L'!$D$1:G104,4,0))," ",IF(VLOOKUP(A85,'Från 3L'!$D$1:G104,4,0)="NULL",0,(VLOOKUP(A85,'Från 3L'!$D$1:G104,4,0)))) ->  | L85: =IF(ISNA(VLOOKUP(A85,'Från 3L'!$D$1:G104,2,0))," ",IF(VLOOKUP(A85,'Från 3L'!$D$1:G104,2,0)="NULL",0,(VLOOKUP(A85,'Från 3L'!$D$1:G104,2,0)))) -> 
B86: Fri rad | G86: 0 | I86: 0 | J86: 0 | K86: =IF(ISNA(VLOOKUP(A86,'Från 3L'!$D$1:G105,4,0))," ",IF(VLOOKUP(A86,'Från 3L'!$D$1:G105,4,0)="NULL",0,(VLOOKUP(A86,'Från 3L'!$D$1:G105,4,0)))) ->  | L86: =IF(ISNA(VLOOKUP(A86,'Från 3L'!$D$1:G105,2,0))," ",IF(VLOOKUP(A86,'Från 3L'!$D$1:G105,2,0)="NULL",0,(VLOOKUP(A86,'Från 3L'!$D$1:G105,2,0)))) -> 
A87: 4500 | B87: Planerat underhåll (samlingsk) | G87: 0 | I87: -1 | J87: -119 | K87: =IF(ISNA(VLOOKUP(A87,'Från 3L'!$D$1:G106,4,0))," ",IF(VLOOKUP(A87,'Från 3L'!$D$1:G106,4,0)="NULL",0,(VLOOKUP(A87,'Från 3L'!$D$1:G106,4,0)))) -> -350 | L87: =IF(ISNA(VLOOKUP(A87,'Från 3L'!$D$1:G106,2,0))," ",IF(VLOOKUP(A87,'Från 3L'!$D$1:G106,2,0)="NULL",0,(VLOOKUP(A87,'Från 3L'!$D$1:G106,2,0)))) -> -285.646
A88: 4530 | B88: Underhåll av gem utrymmen | G88: 0 | I88: 0 | J88: 0 | K88: =IF(ISNA(VLOOKUP(A88,'Från 3L'!$D$1:G107,4,0))," ",IF(VLOOKUP(A88,'Från 3L'!$D$1:G107,4,0)="NULL",0,(VLOOKUP(A88,'Från 3L'!$D$1:G107,4,0)))) ->  | L88: =IF(ISNA(VLOOKUP(A88,'Från 3L'!$D$1:G107,2,0))," ",IF(VLOOKUP(A88,'Från 3L'!$D$1:G107,2,0)="NULL",0,(VLOOKUP(A88,'Från 3L'!$D$1:G107,2,0)))) -> 
A89: 4542 | B89: Underhåll värme | G89: 0 | I89: 0 | J89: 0 | K89: =IF(ISNA(VLOOKUP(A89,'Från 3L'!$D$1:G108,4,0))," ",IF(VLOOKUP(A89,'Från 3L'!$D$1:G108,4,0)="NULL",0,(VLOOKUP(A89,'Från 3L'!$D$1:G108,4,0)))) ->  | L89: =IF(ISNA(VLOOKUP(A89,'Från 3L'!$D$1:G108,2,0))," ",IF(VLOOKUP(A89,'Från 3L'!$D$1:G108,2,0)="NULL",0,(VLOOKUP(A89,'Från 3L'!$D$1:G108,2,0)))) -> 
A90: 4543 | B90: Underhåll ventilation | G90: 0 | I90: 0 | J90: 0 | K90: =IF(ISNA(VLOOKUP(A90,'Från 3L'!$D$1:G109,4,0))," ",IF(VLOOKUP(A90,'Från 3L'!$D$1:G109,4,0)="NULL",0,(VLOOKUP(A90,'Från 3L'!$D$1:G109,4,0)))) ->  | L90: =IF(ISNA(VLOOKUP(A90,'Från 3L'!$D$1:G109,2,0))," ",IF(VLOOKUP(A90,'Från 3L'!$D$1:G109,2,0)="NULL",0,(VLOOKUP(A90,'Från 3L'!$D$1:G109,2,0)))) -> 
A91: 4546 | B91: Underhåll hissar | G91: 0 | I91: 0 | J91: 0 | K91: =IF(ISNA(VLOOKUP(A91,'Från 3L'!$D$1:G110,4,0))," ",IF(VLOOKUP(A91,'Från 3L'!$D$1:G110,4,0)="NULL",0,(VLOOKUP(A91,'Från 3L'!$D$1:G110,4,0)))) ->  | L91: =IF(ISNA(VLOOKUP(A91,'Från 3L'!$D$1:G110,2,0))," ",IF(VLOOKUP(A91,'Från 3L'!$D$1:G110,2,0)="NULL",0,(VLOOKUP(A91,'Från 3L'!$D$1:G110,2,0)))) -> 
A92: 4548 | B92: OVK-besiktning | G92: 0 | I92: 0 | J92: 0 | K92: =IF(ISNA(VLOOKUP(A92,'Från 3L'!$D$1:G111,4,0))," ",IF(VLOOKUP(A92,'Från 3L'!$D$1:G111,4,0)="NULL",0,(VLOOKUP(A92,'Från 3L'!$D$1:G111,4,0)))) ->  | L92: =IF(ISNA(VLOOKUP(A92,'Från 3L'!$D$1:G111,2,0))," ",IF(VLOOKUP(A92,'Från 3L'!$D$1:G111,2,0)="NULL",0,(VLOOKUP(A92,'Från 3L'!$D$1:G111,2,0)))) -> 
A93: 4550 | B93: Underh av huskropp utvändigt | G93: 0 | I93: 0 | J93: 0 | K93: =IF(ISNA(VLOOKUP(A93,'Från 3L'!$D$1:G112,4,0))," ",IF(VLOOKUP(A93,'Från 3L'!$D$1:G112,4,0)="NULL",0,(VLOOKUP(A93,'Från 3L'!$D$1:G112,4,0)))) ->  | L93: =IF(ISNA(VLOOKUP(A93,'Från 3L'!$D$1:G112,2,0))," ",IF(VLOOKUP(A93,'Från 3L'!$D$1:G112,2,0)="NULL",0,(VLOOKUP(A93,'Från 3L'!$D$1:G112,2,0)))) -> 
A94: 4560 | B94: Underhåll av markytor | G94: 0 | I94: 0 | J94: 0 | K94: =IF(ISNA(VLOOKUP(A94,'Från 3L'!$D$1:G113,4,0))," ",IF(VLOOKUP(A94,'Från 3L'!$D$1:G113,4,0)="NULL",0,(VLOOKUP(A94,'Från 3L'!$D$1:G113,4,0)))) ->  | L94: =IF(ISNA(VLOOKUP(A94,'Från 3L'!$D$1:G113,2,0))," ",IF(VLOOKUP(A94,'Från 3L'!$D$1:G113,2,0)="NULL",0,(VLOOKUP(A94,'Från 3L'!$D$1:G113,2,0)))) -> 
B95: Fri rad | G95: 0 | I95: 0 | J95: 0 | K95: =IF(ISNA(VLOOKUP(A95,'Från 3L'!$D$1:G114,4,0))," ",IF(VLOOKUP(A95,'Från 3L'!$D$1:G114,4,0)="NULL",0,(VLOOKUP(A95,'Från 3L'!$D$1:G114,4,0)))) ->  | L95: =IF(ISNA(VLOOKUP(A95,'Från 3L'!$D$1:G114,2,0))," ",IF(VLOOKUP(A95,'Från 3L'!$D$1:G114,2,0)="NULL",0,(VLOOKUP(A95,'Från 3L'!$D$1:G114,2,0)))) -> 
B96: Fri rad | G96: 0 | I96: 0 | J96: 0 | K96: =IF(ISNA(VLOOKUP(A96,'Från 3L'!$D$1:G115,4,0))," ",IF(VLOOKUP(A96,'Från 3L'!$D$1:G115,4,0)="NULL",0,(VLOOKUP(A96,'Från 3L'!$D$1:G115,4,0)))) ->  | L96: =IF(ISNA(VLOOKUP(A96,'Från 3L'!$D$1:G115,2,0))," ",IF(VLOOKUP(A96,'Från 3L'!$D$1:G115,2,0)="NULL",0,(VLOOKUP(A96,'Från 3L'!$D$1:G115,2,0)))) -> 
B97: Fri rad | G97: 0 | I97: 0 | J97: 0 | K97: =IF(ISNA(VLOOKUP(A97,'Från 3L'!$D$1:G116,4,0))," ",IF(VLOOKUP(A97,'Från 3L'!$D$1:G116,4,0)="NULL",0,(VLOOKUP(A97,'Från 3L'!$D$1:G116,4,0)))) ->  | L97: =IF(ISNA(VLOOKUP(A97,'Från 3L'!$D$1:G116,2,0))," ",IF(VLOOKUP(A97,'Från 3L'!$D$1:G116,2,0)="NULL",0,(VLOOKUP(A97,'Från 3L'!$D$1:G116,2,0)))) -> 
B98: Summa reparationer och underhåll | F98: =SUM(F73:F97) -> 0 | G98: =SUM(G73:G97) -> -35 | I98: -0.7784810127 | J98: -158 | K98: =SUM(K73:K97) -> -398 | L98: =SUM(L73:L97) -> -330.316
B99: Driftkostnader
A100: 4111 | B100: Fastighetsskötsel grundavtal | G100: 0 | I100: =IF(J100=0,0,(G100-J100)/J100) -> 0 | J100: 0 | K100: =IF(ISNA(VLOOKUP(A100,'Från 3L'!$D$1:G119,4,0))," ",IF(VLOOKUP(A100,'Från 3L'!$D$1:G119,4,0)="NULL",0,(VLOOKUP(A100,'Från 3L'!$D$1:G119,4,0)))) ->  | L100: =IF(ISNA(VLOOKUP(A100,'Från 3L'!$D$1:G119,2,0))," ",IF(VLOOKUP(A100,'Från 3L'!$D$1:G119,2,0)="NULL",0,(VLOOKUP(A100,'Från 3L'!$D$1:G119,2,0)))) -> 
A101: 4112 | B101: Fastighetsskötsel extradeb | G101: 0 | I101: 0 | J101: 0 | K101: =IF(ISNA(VLOOKUP(A101,'Från 3L'!$D$1:G120,4,0))," ",IF(VLOOKUP(A101,'Från 3L'!$D$1:G120,4,0)="NULL",0,(VLOOKUP(A101,'Från 3L'!$D$1:G120,4,0)))) ->  | L101: =IF(ISNA(VLOOKUP(A101,'Från 3L'!$D$1:G120,2,0))," ",IF(VLOOKUP(A101,'Från 3L'!$D$1:G120,2,0)="NULL",0,(VLOOKUP(A101,'Från 3L'!$D$1:G120,2,0)))) -> 
A102: 4113 | B102: Trädgårdsskötsel grundavtal | G102: -71 | H102: 20 | I102: 0.01428571429 | J102: -70 | K102: =IF(ISNA(VLOOKUP(A102,'Från 3L'!$D$1:G121,4,0))," ",IF(VLOOKUP(A102,'Från 3L'!$D$1:G121,4,0)="NULL",0,(VLOOKUP(A102,'Från 3L'!$D$1:G121,4,0)))) -> -60 | L102: =IF(ISNA(VLOOKUP(A102,'Från 3L'!$D$1:G121,2,0))," ",IF(VLOOKUP(A102,'Från 3L'!$D$1:G121,2,0)="NULL",0,(VLOOKUP(A102,'Från 3L'!$D$1:G121,2,0)))) -> -68.25
A103: 4114 | B103: Trädgårdsskötsel extradeb | G103: 0 | I103: 0 | J103: 0 | K103: =IF(ISNA(VLOOKUP(A103,'Från 3L'!$D$1:G122,4,0))," ",IF(VLOOKUP(A103,'Från 3L'!$D$1:G122,4,0)="NULL",0,(VLOOKUP(A103,'Från 3L'!$D$1:G122,4,0)))) ->  | L103: =IF(ISNA(VLOOKUP(A103,'Från 3L'!$D$1:G122,2,0))," ",IF(VLOOKUP(A103,'Från 3L'!$D$1:G122,2,0)="NULL",0,(VLOOKUP(A103,'Från 3L'!$D$1:G122,2,0)))) -> 
A104: 4116 | B104: Snöröjning/sandning | G104: ='kostn med flera BN'!B23 -> -36 | I104: 0.05882352941 | J104: -34 | K104: =IF(ISNA(VLOOKUP(A104,'Från 3L'!$D$1:G123,4,0))," ",IF(VLOOKUP(A104,'Från 3L'!$D$1:G123,4,0)="NULL",0,(VLOOKUP(A104,'Från 3L'!$D$1:G123,4,0)))) -> -16 | L104: =IF(ISNA(VLOOKUP(A104,'Från 3L'!$D$1:G123,2,0))," ",IF(VLOOKUP(A104,'Från 3L'!$D$1:G123,2,0)="NULL",0,(VLOOKUP(A104,'Från 3L'!$D$1:G123,2,0)))) -> -21.033
A105: 4115 | B105: Städdagar kostn i samband med | G105: 0 | I105: 0 | J105: 0 | K105: =IF(ISNA(VLOOKUP(A105,'Från 3L'!$D$1:G124,4,0))," ",IF(VLOOKUP(A105,'Från 3L'!$D$1:G124,4,0)="NULL",0,(VLOOKUP(A105,'Från 3L'!$D$1:G124,4,0)))) -> 0 | L105: =IF(ISNA(VLOOKUP(A105,'Från 3L'!$D$1:G124,2,0))," ",IF(VLOOKUP(A105,'Från 3L'!$D$1:G124,2,0)="NULL",0,(VLOOKUP(A105,'Från 3L'!$D$1:G124,2,0)))) -> -0.796
B106: Fri rad | G106: 0 | I106: 0 | J106: 0 | K106: =IF(ISNA(VLOOKUP(A106,'Från 3L'!$D$1:G125,4,0))," ",IF(VLOOKUP(A106,'Från 3L'!$D$1:G125,4,0)="NULL",0,(VLOOKUP(A106,'Från 3L'!$D$1:G125,4,0)))) ->  | L106: =IF(ISNA(VLOOKUP(A106,'Från 3L'!$D$1:G125,2,0))," ",IF(VLOOKUP(A106,'Från 3L'!$D$1:G125,2,0)="NULL",0,(VLOOKUP(A106,'Från 3L'!$D$1:G125,2,0)))) -> 
B107: Fri rad | G107: 0 | I107: 0 | J107: 0 | K107: =IF(ISNA(VLOOKUP(A107,'Från 3L'!$D$1:G126,4,0))," ",IF(VLOOKUP(A107,'Från 3L'!$D$1:G126,4,0)="NULL",0,(VLOOKUP(A107,'Från 3L'!$D$1:G126,4,0)))) ->  | L107: =IF(ISNA(VLOOKUP(A107,'Från 3L'!$D$1:G126,2,0))," ",IF(VLOOKUP(A107,'Från 3L'!$D$1:G126,2,0)="NULL",0,(VLOOKUP(A107,'Från 3L'!$D$1:G126,2,0)))) -> 
A108: 4121 | B108: Städning grundavtal | G108: 0 | I108: 0 | J108: 0 | K108: =IF(ISNA(VLOOKUP(A108,'Från 3L'!$D$1:G127,4,0))," ",IF(VLOOKUP(A108,'Från 3L'!$D$1:G127,4,0)="NULL",0,(VLOOKUP(A108,'Från 3L'!$D$1:G127,4,0)))) ->  | L108: =IF(ISNA(VLOOKUP(A108,'Från 3L'!$D$1:G127,2,0))," ",IF(VLOOKUP(A108,'Från 3L'!$D$1:G127,2,0)="NULL",0,(VLOOKUP(A108,'Från 3L'!$D$1:G127,2,0)))) -> 
A109: 4122 | B109: Städning extradebiteringar | G109: 0 | I109: 0 | J109: 0 | K109: =IF(ISNA(VLOOKUP(A109,'Från 3L'!$D$1:G128,4,0))," ",IF(VLOOKUP(A109,'Från 3L'!$D$1:G128,4,0)="NULL",0,(VLOOKUP(A109,'Från 3L'!$D$1:G128,4,0)))) ->  | L109: =IF(ISNA(VLOOKUP(A109,'Från 3L'!$D$1:G128,2,0))," ",IF(VLOOKUP(A109,'Från 3L'!$D$1:G128,2,0)="NULL",0,(VLOOKUP(A109,'Från 3L'!$D$1:G128,2,0)))) -> 
A110: 4131 | B110: Sotning (ej planerad) | G110: 0 | I110: 0 | J110: 0 | K110: =IF(ISNA(VLOOKUP(A110,'Från 3L'!$D$1:G129,4,0))," ",IF(VLOOKUP(A110,'Från 3L'!$D$1:G129,4,0)="NULL",0,(VLOOKUP(A110,'Från 3L'!$D$1:G129,4,0)))) ->  | L110: =IF(ISNA(VLOOKUP(A110,'Från 3L'!$D$1:G129,2,0))," ",IF(VLOOKUP(A110,'Från 3L'!$D$1:G129,2,0)="NULL",0,(VLOOKUP(A110,'Från 3L'!$D$1:G129,2,0)))) -> 
A111: 4123 | B111: Hyra av entrémattor | G111: 0 | I111: 0 | J111: 0 | K111: =IF(ISNA(VLOOKUP(A111,'Från 3L'!$D$1:G130,4,0))," ",IF(VLOOKUP(A111,'Från 3L'!$D$1:G130,4,0)="NULL",0,(VLOOKUP(A111,'Från 3L'!$D$1:G130,4,0)))) ->  | L111: =IF(ISNA(VLOOKUP(A111,'Från 3L'!$D$1:G130,2,0))," ",IF(VLOOKUP(A111,'Från 3L'!$D$1:G130,2,0)="NULL",0,(VLOOKUP(A111,'Från 3L'!$D$1:G130,2,0)))) -> 
A112: 4141 | B112: Hiss besiktning | G112: 0 | I112: 0 | J112: 0 | K112: =IF(ISNA(VLOOKUP(A112,'Från 3L'!$D$1:G131,4,0))," ",IF(VLOOKUP(A112,'Från 3L'!$D$1:G131,4,0)="NULL",0,(VLOOKUP(A112,'Från 3L'!$D$1:G131,4,0)))) ->  | L112: =IF(ISNA(VLOOKUP(A112,'Från 3L'!$D$1:G131,2,0))," ",IF(VLOOKUP(A112,'Från 3L'!$D$1:G131,2,0)="NULL",0,(VLOOKUP(A112,'Från 3L'!$D$1:G131,2,0)))) -> 
A113: 4142 | B113: Hiss serviceavtal | G113: 0 | I113: 0 | J113: 0 | K113: =IF(ISNA(VLOOKUP(A113,'Från 3L'!$D$1:G132,4,0))," ",IF(VLOOKUP(A113,'Från 3L'!$D$1:G132,4,0)="NULL",0,(VLOOKUP(A113,'Från 3L'!$D$1:G132,4,0)))) ->  | L113: =IF(ISNA(VLOOKUP(A113,'Från 3L'!$D$1:G132,2,0))," ",IF(VLOOKUP(A113,'Från 3L'!$D$1:G132,2,0)="NULL",0,(VLOOKUP(A113,'Från 3L'!$D$1:G132,2,0)))) -> 
A114: 4143 | B114: Hiss larmavtal | G114: 0 | I114: 0 | J114: 0 | K114: =IF(ISNA(VLOOKUP(A114,'Från 3L'!$D$1:G133,4,0))," ",IF(VLOOKUP(A114,'Från 3L'!$D$1:G133,4,0)="NULL",0,(VLOOKUP(A114,'Från 3L'!$D$1:G133,4,0)))) ->  | L114: =IF(ISNA(VLOOKUP(A114,'Från 3L'!$D$1:G133,2,0))," ",IF(VLOOKUP(A114,'Från 3L'!$D$1:G133,2,0)="NULL",0,(VLOOKUP(A114,'Från 3L'!$D$1:G133,2,0)))) -> 
A115: 4146 | B115: Porttelefoner serviceavtal | G115: 0 | I115: 0 | J115: 0 | K115: =IF(ISNA(VLOOKUP(A115,'Från 3L'!$D$1:G134,4,0))," ",IF(VLOOKUP(A115,'Från 3L'!$D$1:G134,4,0)="NULL",0,(VLOOKUP(A115,'Från 3L'!$D$1:G134,4,0)))) ->  | L115: =IF(ISNA(VLOOKUP(A115,'Från 3L'!$D$1:G134,2,0))," ",IF(VLOOKUP(A115,'Från 3L'!$D$1:G134,2,0)="NULL",0,(VLOOKUP(A115,'Från 3L'!$D$1:G134,2,0)))) -> 
A116: 4147 | B116: Övriga serviceavtal | G116: 0 | I116: 0 | J116: 0 | K116: =IF(ISNA(VLOOKUP(A116,'Från 3L'!$D$1:G135,4,0))," ",IF(VLOOKUP(A116,'Från 3L'!$D$1:G135,4,0)="NULL",0,(VLOOKUP(A116,'Från 3L'!$D$1:G135,4,0)))) ->  | L116: =IF(ISNA(VLOOKUP(A116,'Från 3L'!$D$1:G135,2,0))," ",IF(VLOOKUP(A116,'Från 3L'!$D$1:G135,2,0)="NULL",0,(VLOOKUP(A116,'Från 3L'!$D$1:G135,2,0)))) -> 
A117: 4148 | B117: Besiktningskostnader | G117: 0 | I117: 0 | J117: 0 | K117: =IF(ISNA(VLOOKUP(A117,'Från 3L'!$D$1:G136,4,0))," ",IF(VLOOKUP(A117,'Från 3L'!$D$1:G136,4,0)="NULL",0,(VLOOKUP(A117,'Från 3L'!$D$1:G136,4,0)))) ->  | L117: =IF(ISNA(VLOOKUP(A117,'Från 3L'!$D$1:G136,2,0))," ",IF(VLOOKUP(A117,'Från 3L'!$D$1:G136,2,0)="NULL",0,(VLOOKUP(A117,'Från 3L'!$D$1:G136,2,0)))) -> 
A118: 4151 | B118: Bevakningskostnader grundavtal | G118: 0 | I118: 0 | J118: 0 | K118: =IF(ISNA(VLOOKUP(A118,'Från 3L'!$D$1:G137,4,0))," ",IF(VLOOKUP(A118,'Från 3L'!$D$1:G137,4,0)="NULL",0,(VLOOKUP(A118,'Från 3L'!$D$1:G137,4,0)))) ->  | L118: =IF(ISNA(VLOOKUP(A118,'Från 3L'!$D$1:G137,2,0))," ",IF(VLOOKUP(A118,'Från 3L'!$D$1:G137,2,0)="NULL",0,(VLOOKUP(A118,'Från 3L'!$D$1:G137,2,0)))) -> 
A119: 4152 | B119: Bevakn.kostn utryckning/jour | G119: 0 | I119: 0 | J119: 0 | K119: =IF(ISNA(VLOOKUP(A119,'Från 3L'!$D$1:G138,4,0))," ",IF(VLOOKUP(A119,'Från 3L'!$D$1:G138,4,0)="NULL",0,(VLOOKUP(A119,'Från 3L'!$D$1:G138,4,0)))) ->  | L119: =IF(ISNA(VLOOKUP(A119,'Från 3L'!$D$1:G138,2,0))," ",IF(VLOOKUP(A119,'Från 3L'!$D$1:G138,2,0)="NULL",0,(VLOOKUP(A119,'Från 3L'!$D$1:G138,2,0)))) -> 
A120: 4153 | B120: Inköp av parkeringstjänster | G120: 0 | I120: 0 | J120: 0 | K120: =IF(ISNA(VLOOKUP(A120,'Från 3L'!$D$1:G139,4,0))," ",IF(VLOOKUP(A120,'Från 3L'!$D$1:G139,4,0)="NULL",0,(VLOOKUP(A120,'Från 3L'!$D$1:G139,4,0)))) ->  | L120: =IF(ISNA(VLOOKUP(A120,'Från 3L'!$D$1:G139,2,0))," ",IF(VLOOKUP(A120,'Från 3L'!$D$1:G139,2,0)="NULL",0,(VLOOKUP(A120,'Från 3L'!$D$1:G139,2,0)))) -> 
A121: 4161 | B121: Gemensamhetsanläggning 1 | G121: 0 | I121: 0 | J121: 0 | K121: =IF(ISNA(VLOOKUP(A121,'Från 3L'!$D$1:G140,4,0))," ",IF(VLOOKUP(A121,'Från 3L'!$D$1:G140,4,0)="NULL",0,(VLOOKUP(A121,'Från 3L'!$D$1:G140,4,0)))) ->  | L121: =IF(ISNA(VLOOKUP(A121,'Från 3L'!$D$1:G140,2,0))," ",IF(VLOOKUP(A121,'Från 3L'!$D$1:G140,2,0)="NULL",0,(VLOOKUP(A121,'Från 3L'!$D$1:G140,2,0)))) -> 
A122: 4191 | B122: Övriga driftskostnader | G122: 0 | I122: 0 | J122: 0 | K122: =IF(ISNA(VLOOKUP(A122,'Från 3L'!$D$1:G141,4,0))," ",IF(VLOOKUP(A122,'Från 3L'!$D$1:G141,4,0)="NULL",0,(VLOOKUP(A122,'Från 3L'!$D$1:G141,4,0)))) ->  | L122: =IF(ISNA(VLOOKUP(A122,'Från 3L'!$D$1:G141,2,0))," ",IF(VLOOKUP(A122,'Från 3L'!$D$1:G141,2,0)="NULL",0,(VLOOKUP(A122,'Från 3L'!$D$1:G141,2,0)))) -> 
A123: 4611 | B123: Fastighetsel | G123: -18 | H123: 20 | I123: 0.05882352941 | J123: -17 | K123: =IF(ISNA(VLOOKUP(A123,'Från 3L'!$D$1:G142,4,0))," ",IF(VLOOKUP(A123,'Från 3L'!$D$1:G142,4,0)="NULL",0,(VLOOKUP(A123,'Från 3L'!$D$1:G142,4,0)))) -> -18 | L123: =IF(ISNA(VLOOKUP(A123,'Från 3L'!$D$1:G142,2,0))," ",IF(VLOOKUP(A123,'Från 3L'!$D$1:G142,2,0)="NULL",0,(VLOOKUP(A123,'Från 3L'!$D$1:G142,2,0)))) -> -18.742
A124: 4623 | B124: Fjärrvärme | G124: 0 | I124: 0 | J124: 0 | K124: =IF(ISNA(VLOOKUP(A124,'Från 3L'!$D$1:G143,4,0))," ",IF(VLOOKUP(A124,'Från 3L'!$D$1:G143,4,0)="NULL",0,(VLOOKUP(A124,'Från 3L'!$D$1:G143,4,0)))) ->  | L124: =IF(ISNA(VLOOKUP(A124,'Från 3L'!$D$1:G143,2,0))," ",IF(VLOOKUP(A124,'Från 3L'!$D$1:G143,2,0)="NULL",0,(VLOOKUP(A124,'Från 3L'!$D$1:G143,2,0)))) -> 
A125: 4631 | B125: Vatten- och avlopp | G125: -69 | H125: 20 | I125: 0.01470588235 | J125: -68 | K125: =IF(ISNA(VLOOKUP(A125,'Från 3L'!$D$1:G144,4,0))," ",IF(VLOOKUP(A125,'Från 3L'!$D$1:G144,4,0)="NULL",0,(VLOOKUP(A125,'Från 3L'!$D$1:G144,4,0)))) -> -112 | L125: =IF(ISNA(VLOOKUP(A125,'Från 3L'!$D$1:G144,2,0))," ",IF(VLOOKUP(A125,'Från 3L'!$D$1:G144,2,0)="NULL",0,(VLOOKUP(A125,'Från 3L'!$D$1:G144,2,0)))) -> 27.758
A126: 4632 | B126: Avhärdningssalt | G126: 0 | I126: 0 | J126: 0 | K126: =IF(ISNA(VLOOKUP(A126,'Från 3L'!$D$1:G145,4,0))," ",IF(VLOOKUP(A126,'Från 3L'!$D$1:G145,4,0)="NULL",0,(VLOOKUP(A126,'Från 3L'!$D$1:G145,4,0)))) ->  | L126: =IF(ISNA(VLOOKUP(A126,'Från 3L'!$D$1:G145,2,0))," ",IF(VLOOKUP(A126,'Från 3L'!$D$1:G145,2,0)="NULL",0,(VLOOKUP(A126,'Från 3L'!$D$1:G145,2,0)))) -> 
A127: 4640 | B127: Avfallshantering | G127: ='kostn med flera BN'!B31 -> -73 | I127: 0.01388888889 | J127: -72 | K127: =IF(ISNA(VLOOKUP(A127,'Från 3L'!$D$1:G146,4,0))," ",IF(VLOOKUP(A127,'Från 3L'!$D$1:G146,4,0)="NULL",0,(VLOOKUP(A127,'Från 3L'!$D$1:G146,4,0)))) -> -58 | L127: =IF(ISNA(VLOOKUP(A127,'Från 3L'!$D$1:G146,2,0))," ",IF(VLOOKUP(A127,'Från 3L'!$D$1:G146,2,0)="NULL",0,(VLOOKUP(A127,'Från 3L'!$D$1:G146,2,0)))) -> -66.219
A128: 4641 | B128: Avfall med producentansvar | G128: 0 | I128: 0 | J128: 0 | K128: =IF(ISNA(VLOOKUP(A128,'Från 3L'!$D$1:G147,4,0))," ",IF(VLOOKUP(A128,'Från 3L'!$D$1:G147,4,0)="NULL",0,(VLOOKUP(A128,'Från 3L'!$D$1:G147,4,0)))) ->  | L128: =IF(ISNA(VLOOKUP(A128,'Från 3L'!$D$1:G147,2,0))," ",IF(VLOOKUP(A128,'Från 3L'!$D$1:G147,2,0)="NULL",0,(VLOOKUP(A128,'Från 3L'!$D$1:G147,2,0)))) -> 
A129: 4646 | B129: Container/tippavgift | G129: 0 | I129: 0 | J129: 0 | K129: =IF(ISNA(VLOOKUP(A129,'Från 3L'!$D$1:G148,4,0))," ",IF(VLOOKUP(A129,'Från 3L'!$D$1:G148,4,0)="NULL",0,(VLOOKUP(A129,'Från 3L'!$D$1:G148,4,0)))) ->  | L129: =IF(ISNA(VLOOKUP(A129,'Från 3L'!$D$1:G148,2,0))," ",IF(VLOOKUP(A129,'Från 3L'!$D$1:G148,2,0)="NULL",0,(VLOOKUP(A129,'Från 3L'!$D$1:G148,2,0)))) -> 
A130: 4651 | B130: Fjärrkyla | G130: 0 | I130: 0 | J130: 0 | K130: =IF(ISNA(VLOOKUP(A130,'Från 3L'!$D$1:G149,4,0))," ",IF(VLOOKUP(A130,'Från 3L'!$D$1:G149,4,0)="NULL",0,(VLOOKUP(A130,'Från 3L'!$D$1:G149,4,0)))) ->  | L130: =IF(ISNA(VLOOKUP(A130,'Från 3L'!$D$1:G149,2,0))," ",IF(VLOOKUP(A130,'Från 3L'!$D$1:G149,2,0)="NULL",0,(VLOOKUP(A130,'Från 3L'!$D$1:G149,2,0)))) -> 
A131: 4711 | B131: Fastighetsförsäkring | G131: -47 | H131: 20 | I131: 0.02173913043 | J131: -46 | K131: =IF(ISNA(VLOOKUP(A131,'Från 3L'!$D$1:G150,4,0))," ",IF(VLOOKUP(A131,'Från 3L'!$D$1:G150,4,0)="NULL",0,(VLOOKUP(A131,'Från 3L'!$D$1:G150,4,0)))) -> -46 | L131: =IF(ISNA(VLOOKUP(A131,'Från 3L'!$D$1:G150,2,0))," ",IF(VLOOKUP(A131,'Från 3L'!$D$1:G150,2,0)="NULL",0,(VLOOKUP(A131,'Från 3L'!$D$1:G150,2,0)))) -> -44.921
A132: 4717 | B132: Självrisker | G132: 0 | I132: 0 | J132: 0 | K132: =IF(ISNA(VLOOKUP(A132,'Från 3L'!$D$1:G151,4,0))," ",IF(VLOOKUP(A132,'Från 3L'!$D$1:G151,4,0)="NULL",0,(VLOOKUP(A132,'Från 3L'!$D$1:G151,4,0)))) ->  | L132: =IF(ISNA(VLOOKUP(A132,'Från 3L'!$D$1:G151,2,0))," ",IF(VLOOKUP(A132,'Från 3L'!$D$1:G151,2,0)="NULL",0,(VLOOKUP(A132,'Från 3L'!$D$1:G151,2,0)))) -> 
A133: 4718 | B133: Försäkringsersättningar | G133: 0 | I133: 0 | J133: 0 | K133: =IF(ISNA(VLOOKUP(A133,'Från 3L'!$D$1:G152,4,0))," ",IF(VLOOKUP(A133,'Från 3L'!$D$1:G152,4,0)="NULL",0,(VLOOKUP(A133,'Från 3L'!$D$1:G152,4,0)))) ->  | L133: =IF(ISNA(VLOOKUP(A133,'Från 3L'!$D$1:G152,2,0))," ",IF(VLOOKUP(A133,'Från 3L'!$D$1:G152,2,0)="NULL",0,(VLOOKUP(A133,'Från 3L'!$D$1:G152,2,0)))) -> 
A134: 4741 | B134: Tomträttsavgälder | G134: 0 | I134: 0 | J134: 0 | K134: =IF(ISNA(VLOOKUP(A134,'Från 3L'!$D$1:G153,4,0))," ",IF(VLOOKUP(A134,'Från 3L'!$D$1:G153,4,0)="NULL",0,(VLOOKUP(A134,'Från 3L'!$D$1:G153,4,0)))) ->  | L134: =IF(ISNA(VLOOKUP(A134,'Från 3L'!$D$1:G153,2,0))," ",IF(VLOOKUP(A134,'Från 3L'!$D$1:G153,2,0)="NULL",0,(VLOOKUP(A134,'Från 3L'!$D$1:G153,2,0)))) -> 
A135: 4761 | B135: Kabel-tv | G135: -54 | H135: 20 | I135: 0.01886792453 | J135: -53 | K135: =IF(ISNA(VLOOKUP(A135,'Från 3L'!$D$1:G154,4,0))," ",IF(VLOOKUP(A135,'Från 3L'!$D$1:G154,4,0)="NULL",0,(VLOOKUP(A135,'Från 3L'!$D$1:G154,4,0)))) -> -53 | L135: =IF(ISNA(VLOOKUP(A135,'Från 3L'!$D$1:G154,2,0))," ",IF(VLOOKUP(A135,'Från 3L'!$D$1:G154,2,0)="NULL",0,(VLOOKUP(A135,'Från 3L'!$D$1:G154,2,0)))) -> -52.196
A136: 4762 | B136: Bredband | G136: 0 | I136: 0 | J136: 0 | K136: =IF(ISNA(VLOOKUP(A136,'Från 3L'!$D$1:G155,4,0))," ",IF(VLOOKUP(A136,'Från 3L'!$D$1:G155,4,0)="NULL",0,(VLOOKUP(A136,'Från 3L'!$D$1:G155,4,0)))) ->  | L136: =IF(ISNA(VLOOKUP(A136,'Från 3L'!$D$1:G155,2,0))," ",IF(VLOOKUP(A136,'Från 3L'!$D$1:G155,2,0)="NULL",0,(VLOOKUP(A136,'Från 3L'!$D$1:G155,2,0)))) -> 
A137: 5410 | B137: Förbrukningsinventarier | G137: 0 | I137: 0 | J137: 0 | K137: =IF(ISNA(VLOOKUP(A137,'Från 3L'!$D$1:G156,4,0))," ",IF(VLOOKUP(A137,'Från 3L'!$D$1:G156,4,0)="NULL",0,(VLOOKUP(A137,'Från 3L'!$D$1:G156,4,0)))) -> 0 | L137: =IF(ISNA(VLOOKUP(A137,'Från 3L'!$D$1:G156,2,0))," ",IF(VLOOKUP(A137,'Från 3L'!$D$1:G156,2,0)="NULL",0,(VLOOKUP(A137,'Från 3L'!$D$1:G156,2,0)))) -> -6.557
A138: 5421 | B138: Datorprogram | G138: 0 | I138: 0 | J138: 0 | K138: =IF(ISNA(VLOOKUP(A138,'Från 3L'!$D$1:G157,4,0))," ",IF(VLOOKUP(A138,'Från 3L'!$D$1:G157,4,0)="NULL",0,(VLOOKUP(A138,'Från 3L'!$D$1:G157,4,0)))) ->  | L138: =IF(ISNA(VLOOKUP(A138,'Från 3L'!$D$1:G157,2,0))," ",IF(VLOOKUP(A138,'Från 3L'!$D$1:G157,2,0)="NULL",0,(VLOOKUP(A138,'Från 3L'!$D$1:G157,2,0)))) -> 
A139: 5461 | B139: Förbrukningsmaterial | G139: -13 | H139: 20 | I139: 0 | J139: -13 | K139: =IF(ISNA(VLOOKUP(A139,'Från 3L'!$D$1:G158,4,0))," ",IF(VLOOKUP(A139,'Från 3L'!$D$1:G158,4,0)="NULL",0,(VLOOKUP(A139,'Från 3L'!$D$1:G158,4,0)))) -> -2 | L139: =IF(ISNA(VLOOKUP(A139,'Från 3L'!$D$1:G158,2,0))," ",IF(VLOOKUP(A139,'Från 3L'!$D$1:G158,2,0)="NULL",0,(VLOOKUP(A139,'Från 3L'!$D$1:G158,2,0)))) -> -2.816
A140: 5521 | B140: Reparation inv/verktyg/IT | G140: 0 | I140: 0 | J140: 0 | K140: =IF(ISNA(VLOOKUP(A140,'Från 3L'!$D$1:G159,4,0))," ",IF(VLOOKUP(A140,'Från 3L'!$D$1:G159,4,0)="NULL",0,(VLOOKUP(A140,'Från 3L'!$D$1:G159,4,0)))) ->  | L140: =IF(ISNA(VLOOKUP(A140,'Från 3L'!$D$1:G159,2,0))," ",IF(VLOOKUP(A140,'Från 3L'!$D$1:G159,2,0)="NULL",0,(VLOOKUP(A140,'Från 3L'!$D$1:G159,2,0)))) -> 
A141: 5811 | B141: Biljetter | G141: 0 | I141: 0 | J141: 0 | K141: =IF(ISNA(VLOOKUP(A141,'Från 3L'!$D$1:G160,4,0))," ",IF(VLOOKUP(A141,'Från 3L'!$D$1:G160,4,0)="NULL",0,(VLOOKUP(A141,'Från 3L'!$D$1:G160,4,0)))) ->  | L141: =IF(ISNA(VLOOKUP(A141,'Från 3L'!$D$1:G160,2,0))," ",IF(VLOOKUP(A141,'Från 3L'!$D$1:G160,2,0)="NULL",0,(VLOOKUP(A141,'Från 3L'!$D$1:G160,2,0)))) -> 
B142: Summa driftskostnader | F142: =SUM(F100:F141) -> 0 | G142: =SUM(G100:G141) -> -381 | I142: 0.02144772118 | J142: -373 | K142: -365 | L142: -253.772
B143: Administrationskostnader
A144: 6061 | B144: Kreditupplysning | G144: 0 | I144: =IF(J144=0,0,(G144-J144)/J144) -> 0 | J144: 0 | K144: =IF(ISNA(VLOOKUP(A144,'Från 3L'!$D$1:G163,4,0))," ",IF(VLOOKUP(A144,'Från 3L'!$D$1:G163,4,0)="NULL",0,(VLOOKUP(A144,'Från 3L'!$D$1:G163,4,0)))) -> -1 | L144: =IF(ISNA(VLOOKUP(A144,'Från 3L'!$D$1:G163,2,0))," ",IF(VLOOKUP(A144,'Från 3L'!$D$1:G163,2,0)="NULL",0,(VLOOKUP(A144,'Från 3L'!$D$1:G163,2,0)))) -> -1.025
A145: 6062 | B145: Inkasso- och KFM-avgifter | G145: 0 | I145: 0 | J145: 0 | K145: =IF(ISNA(VLOOKUP(A145,'Från 3L'!$D$1:G164,4,0))," ",IF(VLOOKUP(A145,'Från 3L'!$D$1:G164,4,0)="NULL",0,(VLOOKUP(A145,'Från 3L'!$D$1:G164,4,0)))) ->  | L145: =IF(ISNA(VLOOKUP(A145,'Från 3L'!$D$1:G164,2,0))," ",IF(VLOOKUP(A145,'Från 3L'!$D$1:G164,2,0)="NULL",0,(VLOOKUP(A145,'Från 3L'!$D$1:G164,2,0)))) -> 
A146: 6111 | B146: Kontorsmaterial | G146: 0 | I146: 0 | J146: 0 | K146: =IF(ISNA(VLOOKUP(A146,'Från 3L'!$D$1:G165,4,0))," ",IF(VLOOKUP(A146,'Från 3L'!$D$1:G165,4,0)="NULL",0,(VLOOKUP(A146,'Från 3L'!$D$1:G165,4,0)))) -> 0 | L146: =IF(ISNA(VLOOKUP(A146,'Från 3L'!$D$1:G165,2,0))," ",IF(VLOOKUP(A146,'Från 3L'!$D$1:G165,2,0)="NULL",0,(VLOOKUP(A146,'Från 3L'!$D$1:G165,2,0)))) -> -0.214
A147: 6212 | B147: Mobil- och IP-telefoni | G147: 0 | I147: 0 | J147: 0 | K147: =IF(ISNA(VLOOKUP(A147,'Från 3L'!$D$1:G166,4,0))," ",IF(VLOOKUP(A147,'Från 3L'!$D$1:G166,4,0)="NULL",0,(VLOOKUP(A147,'Från 3L'!$D$1:G166,4,0)))) ->  | L147: =IF(ISNA(VLOOKUP(A147,'Från 3L'!$D$1:G166,2,0))," ",IF(VLOOKUP(A147,'Från 3L'!$D$1:G166,2,0)="NULL",0,(VLOOKUP(A147,'Från 3L'!$D$1:G166,2,0)))) -> 
A148: 6230 | B148: Datorkommunikation | G148: -1 | H148: 20 | I148: 0 | J148: -1 | K148: =IF(ISNA(VLOOKUP(A148,'Från 3L'!$D$1:G167,4,0))," ",IF(VLOOKUP(A148,'Från 3L'!$D$1:G167,4,0)="NULL",0,(VLOOKUP(A148,'Från 3L'!$D$1:G167,4,0)))) -> 0 | L148: -1.147
A149: 6251 | B149: Postbefordran | G149: -2 | H149: 20 | I149: 0 | J149: -2 | K149: =IF(ISNA(VLOOKUP(A149,'Från 3L'!$D$1:G168,4,0))," ",IF(VLOOKUP(A149,'Från 3L'!$D$1:G168,4,0)="NULL",0,(VLOOKUP(A149,'Från 3L'!$D$1:G168,4,0)))) -> -2 | L149: =IF(ISNA(VLOOKUP(A149,'Från 3L'!$D$1:G168,2,0))," ",IF(VLOOKUP(A149,'Från 3L'!$D$1:G168,2,0)="NULL",0,(VLOOKUP(A149,'Från 3L'!$D$1:G168,2,0)))) -> -3.169
A150: 6411 | B150: Styrelsearvode | G150: -22 | H150: 20 | I150: 0 | J150: -22 | K150: =IF(ISNA(VLOOKUP(A150,'Från 3L'!$D$1:G169,4,0))," ",IF(VLOOKUP(A150,'Från 3L'!$D$1:G169,4,0)="NULL",0,(VLOOKUP(A150,'Från 3L'!$D$1:G169,4,0)))) -> -14 | L150: =IF(ISNA(VLOOKUP(A150,'Från 3L'!$D$1:G169,2,0))," ",IF(VLOOKUP(A150,'Från 3L'!$D$1:G169,2,0)="NULL",0,(VLOOKUP(A150,'Från 3L'!$D$1:G169,2,0)))) -> -21.624
A151: 6421 | B151: Revisionsarvode extern revisor | G151: -26 | H151: 6 | I151: 0.04 | J151: -25 | K151: =IF(ISNA(VLOOKUP(A151,'Från 3L'!$D$1:G170,4,0))," ",IF(VLOOKUP(A151,'Från 3L'!$D$1:G170,4,0)="NULL",0,(VLOOKUP(A151,'Från 3L'!$D$1:G170,4,0)))) -> -22 | L151: =IF(ISNA(VLOOKUP(A151,'Från 3L'!$D$1:G170,2,0))," ",IF(VLOOKUP(A151,'Från 3L'!$D$1:G170,2,0)="NULL",0,(VLOOKUP(A151,'Från 3L'!$D$1:G170,2,0)))) -> -30.25
A152: 6441 | B152: Årsredovisning tryck | G152: 0 | I152: 0 | J152: 0 | K152: =IF(ISNA(VLOOKUP(A152,'Från 3L'!$D$1:G171,4,0))," ",IF(VLOOKUP(A152,'Från 3L'!$D$1:G171,4,0)="NULL",0,(VLOOKUP(A152,'Från 3L'!$D$1:G171,4,0)))) -> -2 | L152: =IF(ISNA(VLOOKUP(A152,'Från 3L'!$D$1:G171,2,0))," ",IF(VLOOKUP(A152,'Från 3L'!$D$1:G171,2,0)="NULL",0,(VLOOKUP(A152,'Från 3L'!$D$1:G171,2,0)))) -> -2.325
A153: 6451 | B153: Föreningsstämma/medlemsmöten | G153: -2 | H153: 20 | I153: 0 | J153: -2 | K153: =IF(ISNA(VLOOKUP(A153,'Från 3L'!$D$1:G172,4,0))," ",IF(VLOOKUP(A153,'Från 3L'!$D$1:G172,4,0)="NULL",0,(VLOOKUP(A153,'Från 3L'!$D$1:G172,4,0)))) ->  | L153: =IF(ISNA(VLOOKUP(A153,'Från 3L'!$D$1:G172,2,0))," ",IF(VLOOKUP(A153,'Från 3L'!$D$1:G172,2,0)="NULL",0,(VLOOKUP(A153,'Från 3L'!$D$1:G172,2,0)))) -> 
A154: 6461 | B154: Kostnader för styrelsemöten | G154: 0 | I154: 0 | J154: 0 | K154: =IF(ISNA(VLOOKUP(A154,'Från 3L'!$D$1:G173,4,0))," ",IF(VLOOKUP(A154,'Från 3L'!$D$1:G173,4,0)="NULL",0,(VLOOKUP(A154,'Från 3L'!$D$1:G173,4,0)))) ->  | L154: =IF(ISNA(VLOOKUP(A154,'Från 3L'!$D$1:G173,2,0))," ",IF(VLOOKUP(A154,'Från 3L'!$D$1:G173,2,0)="NULL",0,(VLOOKUP(A154,'Från 3L'!$D$1:G173,2,0)))) -> 
A155: 6471 | B155: Föreningsgemensamma aktivitet. | G155: -5 | H155: 20 | I155: 0 | J155: -5 | K155: =IF(ISNA(VLOOKUP(A155,'Från 3L'!$D$1:G174,4,0))," ",IF(VLOOKUP(A155,'Från 3L'!$D$1:G174,4,0)="NULL",0,(VLOOKUP(A155,'Från 3L'!$D$1:G174,4,0)))) -> 0 | L155: =IF(ISNA(VLOOKUP(A155,'Från 3L'!$D$1:G174,2,0))," ",IF(VLOOKUP(A155,'Från 3L'!$D$1:G174,2,0)="NULL",0,(VLOOKUP(A155,'Från 3L'!$D$1:G174,2,0)))) -> -4.753
A156: 6481 | B156: Ek förvaltning grundavtal | G156: ='arvode Fastum'!B21/1000*-1 -> -71.25 | H156: 22 | I156: 0.01785714286 | J156: -70 | K156: =IF(ISNA(VLOOKUP(A156,'Från 3L'!$D$1:G175,4,0))," ",IF(VLOOKUP(A156,'Från 3L'!$D$1:G175,4,0)="NULL",0,(VLOOKUP(A156,'Från 3L'!$D$1:G175,4,0)))) -> -70 | L156: =IF(ISNA(VLOOKUP(A156,'Från 3L'!$D$1:G175,2,0))," ",IF(VLOOKUP(A156,'Från 3L'!$D$1:G175,2,0)="NULL",0,(VLOOKUP(A156,'Från 3L'!$D$1:G175,2,0)))) -> -67.376
A157: 6482 | B157: Ek förvaltning extradeb. | G157: -2 | H157: 20 | I157: 0 | J157: -2 | K157: =IF(ISNA(VLOOKUP(A157,'Från 3L'!$D$1:G176,4,0))," ",IF(VLOOKUP(A157,'Från 3L'!$D$1:G176,4,0)="NULL",0,(VLOOKUP(A157,'Från 3L'!$D$1:G176,4,0)))) -> -2 | L157: =IF(ISNA(VLOOKUP(A157,'Från 3L'!$D$1:G176,2,0))," ",IF(VLOOKUP(A157,'Från 3L'!$D$1:G176,2,0)="NULL",0,(VLOOKUP(A157,'Från 3L'!$D$1:G176,2,0)))) -> -2.238
A158: 6489 | B158: Avgifter Bolagsverket | G158: 0 | I158: =IF(J158=0,0,(G158-J158)/J158) -> 0 | J158: 0 | K158: =IF(ISNA(VLOOKUP(A158,'Från 3L'!$D$1:G177,4,0))," ",IF(VLOOKUP(A158,'Från 3L'!$D$1:G177,4,0)="NULL",0,(VLOOKUP(A158,'Från 3L'!$D$1:G177,4,0)))) ->  | L158: =IF(ISNA(VLOOKUP(A158,'Från 3L'!$D$1:G177,2,0))," ",IF(VLOOKUP(A158,'Från 3L'!$D$1:G177,2,0)="NULL",0,(VLOOKUP(A158,'Från 3L'!$D$1:G177,2,0)))) -> 
A159: 6490 | B159: Övriga förvaltningskostnader | G159: 0 | I159: 0 | J159: 0 | K159: =IF(ISNA(VLOOKUP(A159,'Från 3L'!$D$1:G178,4,0))," ",IF(VLOOKUP(A159,'Från 3L'!$D$1:G178,4,0)="NULL",0,(VLOOKUP(A159,'Från 3L'!$D$1:G178,4,0)))) ->  | L159: =IF(ISNA(VLOOKUP(A159,'Från 3L'!$D$1:G178,2,0))," ",IF(VLOOKUP(A159,'Från 3L'!$D$1:G178,2,0)="NULL",0,(VLOOKUP(A159,'Från 3L'!$D$1:G178,2,0)))) -> 
A160: 6514 | B160: Underhållsplan | G160: 0 | I160: 0 | J160: 0 | K160: =IF(ISNA(VLOOKUP(A160,'Från 3L'!$D$1:G179,4,0))," ",IF(VLOOKUP(A160,'Från 3L'!$D$1:G179,4,0)="NULL",0,(VLOOKUP(A160,'Från 3L'!$D$1:G179,4,0)))) ->  | L160: =IF(ISNA(VLOOKUP(A160,'Från 3L'!$D$1:G179,2,0))," ",IF(VLOOKUP(A160,'Från 3L'!$D$1:G179,2,0)="NULL",0,(VLOOKUP(A160,'Från 3L'!$D$1:G179,2,0)))) -> 
A161: 6551 | B161: Konsultarvoden | G161: 0 | I161: 0 | J161: 0 | K161: =IF(ISNA(VLOOKUP(A161,'Från 3L'!$D$1:G180,4,0))," ",IF(VLOOKUP(A161,'Från 3L'!$D$1:G180,4,0)="NULL",0,(VLOOKUP(A161,'Från 3L'!$D$1:G180,4,0)))) ->  | L161: =IF(ISNA(VLOOKUP(A161,'Från 3L'!$D$1:G180,2,0))," ",IF(VLOOKUP(A161,'Från 3L'!$D$1:G180,2,0)="NULL",0,(VLOOKUP(A161,'Från 3L'!$D$1:G180,2,0)))) -> 
A162: 6571 | B162: Bankkostnader | G162: -3 | H162: 20 | I162: 0 | J162: -3 | K162: =IF(ISNA(VLOOKUP(A162,'Från 3L'!$D$1:G181,4,0))," ",IF(VLOOKUP(A162,'Från 3L'!$D$1:G181,4,0)="NULL",0,(VLOOKUP(A162,'Från 3L'!$D$1:G181,4,0)))) -> -3 | L162: =IF(ISNA(VLOOKUP(A162,'Från 3L'!$D$1:G181,2,0))," ",IF(VLOOKUP(A162,'Från 3L'!$D$1:G181,2,0)="NULL",0,(VLOOKUP(A162,'Från 3L'!$D$1:G181,2,0)))) -> -3.55
A163: 6581 | B163: Advokat- och rättegångskostn | G163: 0 | I163: 0 | J163: 0 | K163: =IF(ISNA(VLOOKUP(A163,'Från 3L'!$D$1:G182,4,0))," ",IF(VLOOKUP(A163,'Från 3L'!$D$1:G182,4,0)="NULL",0,(VLOOKUP(A163,'Från 3L'!$D$1:G182,4,0)))) ->  | L163: =IF(ISNA(VLOOKUP(A163,'Från 3L'!$D$1:G182,2,0))," ",IF(VLOOKUP(A163,'Från 3L'!$D$1:G182,2,0)="NULL",0,(VLOOKUP(A163,'Från 3L'!$D$1:G182,2,0)))) -> 
A164: 6591 | B164: Övriga externa tjänster | G164: 0 | I164: 0 | J164: 0 | K164: =IF(ISNA(VLOOKUP(A164,'Från 3L'!$D$1:G183,4,0))," ",IF(VLOOKUP(A164,'Från 3L'!$D$1:G183,4,0)="NULL",0,(VLOOKUP(A164,'Från 3L'!$D$1:G183,4,0)))) ->  | L164: =IF(ISNA(VLOOKUP(A164,'Från 3L'!$D$1:G183,2,0))," ",IF(VLOOKUP(A164,'Från 3L'!$D$1:G183,2,0)="NULL",0,(VLOOKUP(A164,'Från 3L'!$D$1:G183,2,0)))) -> 
A165: 6981 | B165: Medlem/föreningsavg, avdragsg | G165: -3 | H165: 20 | I165: 0 | J165: -3 | K165: =IF(ISNA(VLOOKUP(A165,'Från 3L'!$D$1:G184,4,0))," ",IF(VLOOKUP(A165,'Från 3L'!$D$1:G184,4,0)="NULL",0,(VLOOKUP(A165,'Från 3L'!$D$1:G184,4,0)))) -> -3 | L165: =IF(ISNA(VLOOKUP(A165,'Från 3L'!$D$1:G184,2,0))," ",IF(VLOOKUP(A165,'Från 3L'!$D$1:G184,2,0)="NULL",0,(VLOOKUP(A165,'Från 3L'!$D$1:G184,2,0)))) -> -3.464
B166: Fri rad | G166: 0 | I166: 0 | J166: 0 | K166: =IF(ISNA(VLOOKUP(A166,'Från 3L'!$D$1:G185,4,0))," ",IF(VLOOKUP(A166,'Från 3L'!$D$1:G185,4,0)="NULL",0,(VLOOKUP(A166,'Från 3L'!$D$1:G185,4,0)))) ->  | L166: =IF(ISNA(VLOOKUP(A166,'Från 3L'!$D$1:G185,2,0))," ",IF(VLOOKUP(A166,'Från 3L'!$D$1:G185,2,0)="NULL",0,(VLOOKUP(A166,'Från 3L'!$D$1:G185,2,0)))) -> 
A167: 6991 | B167: Övr ext kostnader, avdragsgill | G167: 0 | I167: 0 | J167: 0 | K167: =IF(ISNA(VLOOKUP(A167,'Från 3L'!$D$1:G186,4,0))," ",IF(VLOOKUP(A167,'Från 3L'!$D$1:G186,4,0)="NULL",0,(VLOOKUP(A167,'Från 3L'!$D$1:G186,4,0)))) ->  | L167: =IF(ISNA(VLOOKUP(A167,'Från 3L'!$D$1:G186,2,0))," ",IF(VLOOKUP(A167,'Från 3L'!$D$1:G186,2,0)="NULL",0,(VLOOKUP(A167,'Från 3L'!$D$1:G186,2,0)))) -> 
A168: 6993 | B168: Gåvor | G168: 0 | I168: 0 | J168: 0 | K168: =IF(ISNA(VLOOKUP(A168,'Från 3L'!$D$1:G187,4,0))," ",IF(VLOOKUP(A168,'Från 3L'!$D$1:G187,4,0)="NULL",0,(VLOOKUP(A168,'Från 3L'!$D$1:G187,4,0)))) ->  | L168: =IF(ISNA(VLOOKUP(A168,'Från 3L'!$D$1:G187,2,0))," ",IF(VLOOKUP(A168,'Från 3L'!$D$1:G187,2,0)="NULL",0,(VLOOKUP(A168,'Från 3L'!$D$1:G187,2,0)))) -> 
B169: Summa administrationskostnader | F169: =SUM(F144:F168) -> 0 | G169: =SUM(G144:G168) -> -137.25 | I169: 0.01666666667 | J169: -135 | K169: -119 | L169: -141.135
B170: Personalkostnader
A171: 7011 | B171: Lön fastighetsskötare | F171: 0 | G171: 0 | I171: =IF(J171=0,0,(G171-J171)/J171) -> 0 | J171: 0 | K171: =IF(ISNA(VLOOKUP(A171,'Från 3L'!$D$1:G190,4,0))," ",IF(VLOOKUP(A171,'Från 3L'!$D$1:G190,4,0)="NULL",0,(VLOOKUP(A171,'Från 3L'!$D$1:G190,4,0)))) ->  | L171: =IF(ISNA(VLOOKUP(A171,'Från 3L'!$D$1:G190,2,0))," ",IF(VLOOKUP(A171,'Från 3L'!$D$1:G190,2,0)="NULL",0,(VLOOKUP(A171,'Från 3L'!$D$1:G190,2,0)))) -> 
A172: 7021 | B172: Lön lokalvårdare | F172: 0 | G172: 0 | I172: 0 | J172: 0 | K172: =IF(ISNA(VLOOKUP(A172,'Från 3L'!$D$1:G191,4,0))," ",IF(VLOOKUP(A172,'Från 3L'!$D$1:G191,4,0)="NULL",0,(VLOOKUP(A172,'Från 3L'!$D$1:G191,4,0)))) ->  | L172: =IF(ISNA(VLOOKUP(A172,'Från 3L'!$D$1:G191,2,0))," ",IF(VLOOKUP(A172,'Från 3L'!$D$1:G191,2,0)="NULL",0,(VLOOKUP(A172,'Från 3L'!$D$1:G191,2,0)))) -> 
A173: 7031 | B173: Lön vicevärd | F173: 0 | G173: 0 | I173: 0 | J173: 0 | K173: =IF(ISNA(VLOOKUP(A173,'Från 3L'!$D$1:G192,4,0))," ",IF(VLOOKUP(A173,'Från 3L'!$D$1:G192,4,0)="NULL",0,(VLOOKUP(A173,'Från 3L'!$D$1:G192,4,0)))) ->  | L173: =IF(ISNA(VLOOKUP(A173,'Från 3L'!$D$1:G192,2,0))," ",IF(VLOOKUP(A173,'Från 3L'!$D$1:G192,2,0)="NULL",0,(VLOOKUP(A173,'Från 3L'!$D$1:G192,2,0)))) -> 
A174: 7061 | B174: Övriga löner | F174: 0 | G174: 0 | I174: 0 | J174: 0 | K174: =IF(ISNA(VLOOKUP(A174,'Från 3L'!$D$1:G193,4,0))," ",IF(VLOOKUP(A174,'Från 3L'!$D$1:G193,4,0)="NULL",0,(VLOOKUP(A174,'Från 3L'!$D$1:G193,4,0)))) ->  | L174: =IF(ISNA(VLOOKUP(A174,'Från 3L'!$D$1:G193,2,0))," ",IF(VLOOKUP(A174,'Från 3L'!$D$1:G193,2,0)="NULL",0,(VLOOKUP(A174,'Från 3L'!$D$1:G193,2,0)))) -> 
A175: 7311 | B175: Telefonersättningar | F175: 0 | G175: 0 | I175: 0 | J175: 0 | K175: =IF(ISNA(VLOOKUP(A175,'Från 3L'!$D$1:G194,4,0))," ",IF(VLOOKUP(A175,'Från 3L'!$D$1:G194,4,0)="NULL",0,(VLOOKUP(A175,'Från 3L'!$D$1:G194,4,0)))) ->  | L175: =IF(ISNA(VLOOKUP(A175,'Från 3L'!$D$1:G194,2,0))," ",IF(VLOOKUP(A175,'Från 3L'!$D$1:G194,2,0)="NULL",0,(VLOOKUP(A175,'Från 3L'!$D$1:G194,2,0)))) -> 
A176: 7331 | B176: Bilersättning, skattefri | F176: 0 | G176: 0 | I176: 0 | J176: 0 | K176: =IF(ISNA(VLOOKUP(A176,'Från 3L'!$D$1:G195,4,0))," ",IF(VLOOKUP(A176,'Från 3L'!$D$1:G195,4,0)="NULL",0,(VLOOKUP(A176,'Från 3L'!$D$1:G195,4,0)))) ->  | L176: =IF(ISNA(VLOOKUP(A176,'Från 3L'!$D$1:G195,2,0))," ",IF(VLOOKUP(A176,'Från 3L'!$D$1:G195,2,0)="NULL",0,(VLOOKUP(A176,'Från 3L'!$D$1:G195,2,0)))) -> 
A177: 7332 | B177: Bilersättning, skattepliktig | F177: 0 | G177: 0 | I177: 0 | J177: 0 | K177: =IF(ISNA(VLOOKUP(A177,'Från 3L'!$D$1:G196,4,0))," ",IF(VLOOKUP(A177,'Från 3L'!$D$1:G196,4,0)="NULL",0,(VLOOKUP(A177,'Från 3L'!$D$1:G196,4,0)))) ->  | L177: =IF(ISNA(VLOOKUP(A177,'Från 3L'!$D$1:G196,2,0))," ",IF(VLOOKUP(A177,'Från 3L'!$D$1:G196,2,0)="NULL",0,(VLOOKUP(A177,'Från 3L'!$D$1:G196,2,0)))) -> 
A178: 7511 | B178: Soc avg för löner och ersättn | F178: 0 | G178: 0 | I178: 0 | J178: 0 | K178: =IF(ISNA(VLOOKUP(A178,'Från 3L'!$D$1:G197,4,0))," ",IF(VLOOKUP(A178,'Från 3L'!$D$1:G197,4,0)="NULL",0,(VLOOKUP(A178,'Från 3L'!$D$1:G197,4,0)))) ->  | L178: =IF(ISNA(VLOOKUP(A178,'Från 3L'!$D$1:G197,2,0))," ",IF(VLOOKUP(A178,'Från 3L'!$D$1:G197,2,0)="NULL",0,(VLOOKUP(A178,'Från 3L'!$D$1:G197,2,0)))) -> 
A179: 7516 | B179: Sociala avgifter på arvoden | F179: 0 | G179: ='kostn med flera BN'!B38 -> -7 | I179: 0 | J179: -7 | K179: =IF(ISNA(VLOOKUP(A179,'Från 3L'!$D$1:G198,4,0))," ",IF(VLOOKUP(A179,'Från 3L'!$D$1:G198,4,0)="NULL",0,(VLOOKUP(A179,'Från 3L'!$D$1:G198,4,0)))) -> -5 | L179: =IF(ISNA(VLOOKUP(A179,'Från 3L'!$D$1:G198,2,0))," ",IF(VLOOKUP(A179,'Från 3L'!$D$1:G198,2,0)="NULL",0,(VLOOKUP(A179,'Från 3L'!$D$1:G198,2,0)))) -> -6.794
A180: 7571 | B180: Premier för AMF | F180: 0 | G180: 0 | I180: 0 | J180: 0 | K180: =IF(ISNA(VLOOKUP(A180,'Från 3L'!$D$1:G199,4,0))," ",IF(VLOOKUP(A180,'Från 3L'!$D$1:G199,4,0)="NULL",0,(VLOOKUP(A180,'Från 3L'!$D$1:G199,4,0)))) ->  | L180: =IF(ISNA(VLOOKUP(A180,'Från 3L'!$D$1:G199,2,0))," ",IF(VLOOKUP(A180,'Från 3L'!$D$1:G199,2,0)="NULL",0,(VLOOKUP(A180,'Från 3L'!$D$1:G199,2,0)))) -> 
A181: 7531 | B181: Sk löneskatt på löner/ ersättn | F181: 0 | G181: 0 | I181: 0 | J181: 0 | K181: =IF(ISNA(VLOOKUP(A181,'Från 3L'!$D$1:G200,4,0))," ",IF(VLOOKUP(A181,'Från 3L'!$D$1:G200,4,0)="NULL",0,(VLOOKUP(A181,'Från 3L'!$D$1:G200,4,0)))) ->  | L181: =IF(ISNA(VLOOKUP(A181,'Från 3L'!$D$1:G200,2,0))," ",IF(VLOOKUP(A181,'Från 3L'!$D$1:G200,2,0)="NULL",0,(VLOOKUP(A181,'Från 3L'!$D$1:G200,2,0)))) -> 
A182: 7611 | B182: Utbildning kurs/konf/seminarie | F182: 0 | G182: 0 | I182: 0 | J182: 0 | K182: =IF(ISNA(VLOOKUP(A182,'Från 3L'!$D$1:G201,4,0))," ",IF(VLOOKUP(A182,'Från 3L'!$D$1:G201,4,0)="NULL",0,(VLOOKUP(A182,'Från 3L'!$D$1:G201,4,0)))) ->  | L182: =IF(ISNA(VLOOKUP(A182,'Från 3L'!$D$1:G201,2,0))," ",IF(VLOOKUP(A182,'Från 3L'!$D$1:G201,2,0)="NULL",0,(VLOOKUP(A182,'Från 3L'!$D$1:G201,2,0)))) -> 
B183: Summa personalkostnader | F183: =SUM(F171:F182) -> 0 | G183: =SUM(G171:G182) -> -7 | I183: 0 | J183: -7 | K183: =SUM(K171:K182) -> -5 | L183: =SUM(L171:L182) -> -6.794
B184: Fastighetsskatt och fastighetsavgift
A185: 4801 | B185: Fastighetsskatt | F185: =skatteberäkning!I15/1000*-1 -> 0 | G185: =skatteberäkning!I15/1000*-1 -> 0 | I185: =IF(J185=0,0,(G185-J185)/J185) -> 0 | J185: ='ber. fyllnadsinbetalning'!I16/-1000 -> 0 | K185: =IF(ISNA(VLOOKUP(A185,'Från 3L'!$D$1:G204,4,0))," ",IF(VLOOKUP(A185,'Från 3L'!$D$1:G204,4,0)="NULL",0,(VLOOKUP(A185,'Från 3L'!$D$1:G204,4,0)))) ->  | L185: =IF(ISNA(VLOOKUP(A185,'Från 3L'!$D$1:G204,2,0))," ",IF(VLOOKUP(A185,'Från 3L'!$D$1:G204,2,0)="NULL",0,(VLOOKUP(A185,'Från 3L'!$D$1:G204,2,0)))) -> 
A186: 4802 | B186: Kommunal fastighetsavgift | G186: =((skatteberäkning!I17/1000)+(skatteberäkning!I20/1000))*-1 -> -170.868 | H186: 20 | I186: 0.02060710318 | J186: ='ber. fyllnadsinbetalning'!I24/-1000 -> -167.418 | K186: =IF(ISNA(VLOOKUP(A186,'Från 3L'!$D$1:G205,4,0))," ",IF(VLOOKUP(A186,'Från 3L'!$D$1:G205,4,0)="NULL",0,(VLOOKUP(A186,'Från 3L'!$D$1:G205,4,0)))) -> -167 | L186: =IF(ISNA(VLOOKUP(A186,'Från 3L'!$D$1:G205,2,0))," ",IF(VLOOKUP(A186,'Från 3L'!$D$1:G205,2,0)="NULL",0,(VLOOKUP(A186,'Från 3L'!$D$1:G205,2,0)))) -> -163.956
A187: 4803 | B187: Fast.skatt/avgift ändrad tax | G187: 0 | I187: 0 | J187: 0 | K187: =IF(ISNA(VLOOKUP(A187,'Från 3L'!$D$1:G206,4,0))," ",IF(VLOOKUP(A187,'Från 3L'!$D$1:G206,4,0)="NULL",0,(VLOOKUP(A187,'Från 3L'!$D$1:G206,4,0)))) ->  | L187: =IF(ISNA(VLOOKUP(A187,'Från 3L'!$D$1:G206,2,0))," ",IF(VLOOKUP(A187,'Från 3L'!$D$1:G206,2,0)="NULL",0,(VLOOKUP(A187,'Från 3L'!$D$1:G206,2,0)))) -> 
B188: Summa fastighetsskatt och fastighetsavgift | F188: =F185+F186+F187 -> 0 | G188: =G185+G186+G187 -> -170.868 | I188: 0.02060710318 | J188: -167.418 | K188: =SUM(K185:K187) -> -167 | L188: =SUM(L185:L187) -> -163.956
B189: Summa kostnader fastighetsförvaltning | F189: =F98+F142+F169+F183+F188 -> 0 | G189: =G98+G142+G169+G183+G188 -> -731.118 | I189: -0.1300543301 | J189: -840.418 | K189: -1054 | L189: -895.973
B190: RESULTAT FÖRE AVSKRIVNINGAR | F190: =F69+F189 -> 0 | G190: =G69+G189 -> 1242.882 | I190: 0.1365238272 | J190: 1093.582 | K190: 935 | L190: 1093.243
B191: Avskrivningar
A192: 7821 | B192: Avskrivning byggnader | G192: =L192 -> -646.877 | H192: 20 | I192: -0.0001901081917 | J192: -647 | K192: =IF(ISNA(VLOOKUP(A192,'Från 3L'!$D$1:G211,4,0))," ",IF(VLOOKUP(A192,'Från 3L'!$D$1:G211,4,0)="NULL",0,(VLOOKUP(A192,'Från 3L'!$D$1:G211,4,0)))) -> -311 | L192: =IF(ISNA(VLOOKUP(A192,'Från 3L'!$D$1:G211,2,0))," ",IF(VLOOKUP(A192,'Från 3L'!$D$1:G211,2,0)="NULL",0,(VLOOKUP(A192,'Från 3L'!$D$1:G211,2,0)))) -> -646.877
A193: 7823 | B193: Avskrivning ombyggnationer | G193: =L193 ->  | I193: 0 | K193: =IF(ISNA(VLOOKUP(A193,'Från 3L'!$D$1:G212,4,0))," ",IF(VLOOKUP(A193,'Från 3L'!$D$1:G212,4,0)="NULL",0,(VLOOKUP(A193,'Från 3L'!$D$1:G212,4,0)))) ->  | L193: =IF(ISNA(VLOOKUP(A193,'Från 3L'!$D$1:G212,2,0))," ",IF(VLOOKUP(A193,'Från 3L'!$D$1:G212,2,0)="NULL",0,(VLOOKUP(A193,'Från 3L'!$D$1:G212,2,0)))) -> 
A194: 7825 | B194: Avskrivning fjärrvärme/bergvärme | I194: 0 | K194: =IF(ISNA(VLOOKUP(A194,'Från 3L'!$D$1:G213,4,0))," ",IF(VLOOKUP(A194,'Från 3L'!$D$1:G213,4,0)="NULL",0,(VLOOKUP(A194,'Från 3L'!$D$1:G213,4,0)))) ->  | L194: =IF(ISNA(VLOOKUP(A194,'Från 3L'!$D$1:G213,2,0))," ",IF(VLOOKUP(A194,'Från 3L'!$D$1:G213,2,0)="NULL",0,(VLOOKUP(A194,'Från 3L'!$D$1:G213,2,0)))) -> 
A195: 7827 | B195: Avskrivning soprum | I195: 0 | K195: =IF(ISNA(VLOOKUP(A195,'Från 3L'!$D$1:G214,4,0))," ",IF(VLOOKUP(A195,'Från 3L'!$D$1:G214,4,0)="NULL",0,(VLOOKUP(A195,'Från 3L'!$D$1:G214,4,0)))) ->  | L195: =IF(ISNA(VLOOKUP(A195,'Från 3L'!$D$1:G214,2,0))," ",IF(VLOOKUP(A195,'Från 3L'!$D$1:G214,2,0)="NULL",0,(VLOOKUP(A195,'Från 3L'!$D$1:G214,2,0)))) -> 
A196: 7829 | B196: Avskrivning tilläggsisolering | I196: 0 | K196: =IF(ISNA(VLOOKUP(A196,'Från 3L'!$D$1:G215,4,0))," ",IF(VLOOKUP(A196,'Från 3L'!$D$1:G215,4,0)="NULL",0,(VLOOKUP(A196,'Från 3L'!$D$1:G215,4,0)))) ->  | L196: =IF(ISNA(VLOOKUP(A196,'Från 3L'!$D$1:G215,2,0))," ",IF(VLOOKUP(A196,'Från 3L'!$D$1:G215,2,0)="NULL",0,(VLOOKUP(A196,'Från 3L'!$D$1:G215,2,0)))) -> 
A197: 7831 | B197: Avskrivning fastighetsförbättringar | I197: 0 | K197: =IF(ISNA(VLOOKUP(A197,'Från 3L'!$D$1:G216,4,0))," ",IF(VLOOKUP(A197,'Från 3L'!$D$1:G216,4,0)="NULL",0,(VLOOKUP(A197,'Från 3L'!$D$1:G216,4,0)))) ->  | L197: =IF(ISNA(VLOOKUP(A197,'Från 3L'!$D$1:G216,2,0))," ",IF(VLOOKUP(A197,'Från 3L'!$D$1:G216,2,0)="NULL",0,(VLOOKUP(A197,'Från 3L'!$D$1:G216,2,0)))) -> 
A198: 7833 | B198: Avskrivning energibesp åtgärder | I198: 0 | K198: =IF(ISNA(VLOOKUP(A198,'Från 3L'!$D$1:G217,4,0))," ",IF(VLOOKUP(A198,'Från 3L'!$D$1:G217,4,0)="NULL",0,(VLOOKUP(A198,'Från 3L'!$D$1:G217,4,0)))) ->  | L198: =IF(ISNA(VLOOKUP(A198,'Från 3L'!$D$1:G217,2,0))," ",IF(VLOOKUP(A198,'Från 3L'!$D$1:G217,2,0)="NULL",0,(VLOOKUP(A198,'Från 3L'!$D$1:G217,2,0)))) -> 
A199: 7835 | B199: Avskrivning rot-program | I199: 0 | K199: =IF(ISNA(VLOOKUP(A199,'Från 3L'!$D$1:G218,4,0))," ",IF(VLOOKUP(A199,'Från 3L'!$D$1:G218,4,0)="NULL",0,(VLOOKUP(A199,'Från 3L'!$D$1:G218,4,0)))) ->  | L199: =IF(ISNA(VLOOKUP(A199,'Från 3L'!$D$1:G218,2,0))," ",IF(VLOOKUP(A199,'Från 3L'!$D$1:G218,2,0)="NULL",0,(VLOOKUP(A199,'Från 3L'!$D$1:G218,2,0)))) -> 
A200: 7837 | B200: Avskrivning ventilationssystem | I200: 0 | K200: =IF(ISNA(VLOOKUP(A200,'Från 3L'!$D$1:G219,4,0))," ",IF(VLOOKUP(A200,'Från 3L'!$D$1:G219,4,0)="NULL",0,(VLOOKUP(A200,'Från 3L'!$D$1:G219,4,0)))) ->  | L200: =IF(ISNA(VLOOKUP(A200,'Från 3L'!$D$1:G219,2,0))," ",IF(VLOOKUP(A200,'Från 3L'!$D$1:G219,2,0)="NULL",0,(VLOOKUP(A200,'Från 3L'!$D$1:G219,2,0)))) -> 
A201: 7843 | B201: Avskrivning garage | I201: 0 | K201: =IF(ISNA(VLOOKUP(A201,'Från 3L'!$D$1:G220,4,0))," ",IF(VLOOKUP(A201,'Från 3L'!$D$1:G220,4,0)="NULL",0,(VLOOKUP(A201,'Från 3L'!$D$1:G220,4,0)))) ->  | L201: =IF(ISNA(VLOOKUP(A201,'Från 3L'!$D$1:G220,2,0))," ",IF(VLOOKUP(A201,'Från 3L'!$D$1:G220,2,0)="NULL",0,(VLOOKUP(A201,'Från 3L'!$D$1:G220,2,0)))) -> 
A202: 7861 | B202: Avskrivning markanl./motorvärmare | I202: 0 | K202: =IF(ISNA(VLOOKUP(A202,'Från 3L'!$D$1:G221,4,0))," ",IF(VLOOKUP(A202,'Från 3L'!$D$1:G221,4,0)="NULL",0,(VLOOKUP(A202,'Från 3L'!$D$1:G221,4,0)))) ->  | L202: =IF(ISNA(VLOOKUP(A202,'Från 3L'!$D$1:G221,2,0))," ",IF(VLOOKUP(A202,'Från 3L'!$D$1:G221,2,0)="NULL",0,(VLOOKUP(A202,'Från 3L'!$D$1:G221,2,0)))) -> 
A203: 7871 | B203: Avskrivning mask./ tekn anläggn | G203: -58 | H203: 20 | I203: 0 | J203: -58 | K203: =IF(ISNA(VLOOKUP(A203,'Från 3L'!$D$1:G222,4,0))," ",IF(VLOOKUP(A203,'Från 3L'!$D$1:G222,4,0)="NULL",0,(VLOOKUP(A203,'Från 3L'!$D$1:G222,4,0)))) -> -41 | L203: =IF(ISNA(VLOOKUP(A203,'Från 3L'!$D$1:G222,2,0))," ",IF(VLOOKUP(A203,'Från 3L'!$D$1:G222,2,0)="NULL",0,(VLOOKUP(A203,'Från 3L'!$D$1:G222,2,0)))) -> -30.701
A204: 7881 | B204: Avskrivning inventarier/verktyg | I204: 0 | K204: =IF(ISNA(VLOOKUP(A204,'Från 3L'!$D$1:G223,4,0))," ",IF(VLOOKUP(A204,'Från 3L'!$D$1:G223,4,0)="NULL",0,(VLOOKUP(A204,'Från 3L'!$D$1:G223,4,0)))) ->  | L204: =IF(ISNA(VLOOKUP(A204,'Från 3L'!$D$1:G223,2,0))," ",IF(VLOOKUP(A204,'Från 3L'!$D$1:G223,2,0)="NULL",0,(VLOOKUP(A204,'Från 3L'!$D$1:G223,2,0)))) -> 
A205: 7892 | B205: Avskrivning installation kabel-tv | I205: 0 | K205: =IF(ISNA(VLOOKUP(A205,'Från 3L'!$D$1:G224,4,0))," ",IF(VLOOKUP(A205,'Från 3L'!$D$1:G224,4,0)="NULL",0,(VLOOKUP(A205,'Från 3L'!$D$1:G224,4,0)))) ->  | L205: =IF(ISNA(VLOOKUP(A205,'Från 3L'!$D$1:G224,2,0))," ",IF(VLOOKUP(A205,'Från 3L'!$D$1:G224,2,0)="NULL",0,(VLOOKUP(A205,'Från 3L'!$D$1:G224,2,0)))) -> 
A206: 7894 | B206: Avskrivning installation bredband | I206: 0 | K206: =IF(ISNA(VLOOKUP(A206,'Från 3L'!$D$1:G225,4,0))," ",IF(VLOOKUP(A206,'Från 3L'!$D$1:G225,4,0)="NULL",0,(VLOOKUP(A206,'Från 3L'!$D$1:G225,4,0)))) ->  | L206: =IF(ISNA(VLOOKUP(A206,'Från 3L'!$D$1:G225,2,0))," ",IF(VLOOKUP(A206,'Från 3L'!$D$1:G225,2,0)="NULL",0,(VLOOKUP(A206,'Från 3L'!$D$1:G225,2,0)))) -> 
B207: Summa avskrivningar | F207: =SUM(F192:F206) -> 0 | G207: =SUM(G192:G206) -> -704.877 | I207: -0.0001744680851 | J207: -705 | K207: -352 | L207: -677.578
B208: RESULTAT FÖRE FINANSIELLA POSTER | F208: =F190+F207 -> 0 | G208: =G190+G207 -> 538.005 | I208: 0.3845340237 | J208: 388.582 | K208: 583 | L208: 415.665
B209: Resultat från finansiella poster
B210: Resultat från aktier och andelar
A211: 8221 | B211: Res fsg vp/långf ford ftg | F211: 0 | G211: 0 | I211: =IF(J211=0,0,(G211-J211)/J211) -> 0 | J211: 0 | K211: =IF(ISNA(VLOOKUP(A211,'Från 3L'!$D$1:G230,4,0))," ",IF(VLOOKUP(A211,'Från 3L'!$D$1:G230,4,0)="NULL",0,(VLOOKUP(A211,'Från 3L'!$D$1:G230,4,0)))) ->  | L211: =IF(ISNA(VLOOKUP(A211,'Från 3L'!$D$1:G230,2,0))," ",IF(VLOOKUP(A211,'Från 3L'!$D$1:G230,2,0)="NULL",0,(VLOOKUP(A211,'Från 3L'!$D$1:G230,2,0)))) -> 
B212: Fri rad | F212: 0 | G212: 0 | I212: 0 | J212: 0 | K212: =IF(ISNA(VLOOKUP(A212,'Från 3L'!$D$1:G231,4,0))," ",IF(VLOOKUP(A212,'Från 3L'!$D$1:G231,4,0)="NULL",0,(VLOOKUP(A212,'Från 3L'!$D$1:G231,4,0)))) ->  | L212: =IF(ISNA(VLOOKUP(A212,'Från 3L'!$D$1:G231,2,0))," ",IF(VLOOKUP(A212,'Från 3L'!$D$1:G231,2,0)="NULL",0,(VLOOKUP(A212,'Från 3L'!$D$1:G231,2,0)))) -> 
A213: 8351 | B213: Res vid fsg av kortfr plac | F213: 0 | G213: 0 | I213: =IF(J213=0,0,(G213-J213)/J213) -> 0 | J213: 0 | K213: =IF(ISNA(VLOOKUP(A213,'Från 3L'!$D$1:G232,4,0))," ",IF(VLOOKUP(A213,'Från 3L'!$D$1:G232,4,0)="NULL",0,(VLOOKUP(A213,'Från 3L'!$D$1:G232,4,0)))) ->  | L213: =IF(ISNA(VLOOKUP(A213,'Från 3L'!$D$1:G232,2,0))," ",IF(VLOOKUP(A213,'Från 3L'!$D$1:G232,2,0)="NULL",0,(VLOOKUP(A213,'Från 3L'!$D$1:G232,2,0)))) -> 
A214: 8381 | B214: Åtf av nedskr av kortfr plac | F214: 0 | G214: 0 | I214: =IF(J214=0,0,(G214-J214)/J214) -> 0 | J214: 0 | K214: =IF(ISNA(VLOOKUP(A214,'Från 3L'!$D$1:G233,4,0))," ",IF(VLOOKUP(A214,'Från 3L'!$D$1:G233,4,0)="NULL",0,(VLOOKUP(A214,'Från 3L'!$D$1:G233,4,0)))) ->  | L214: =IF(ISNA(VLOOKUP(A214,'Från 3L'!$D$1:G233,2,0))," ",IF(VLOOKUP(A214,'Från 3L'!$D$1:G233,2,0)="NULL",0,(VLOOKUP(A214,'Från 3L'!$D$1:G233,2,0)))) -> 
B215: Summa resultat från aktier och andelar | F215: =SUM(F211:F214) -> 0 | G215: =SUM(G211:G214) -> 0 | I215: =IF(J215=0,0,(G215-J215)/J215) -> 0 | J215: 0 | K215: 0 | L215: 0
B216: Ränteintäkter
A217: 8310 | B217: Ränteint från omsättn.tillg. | F217: 0 | G217: 0 | I217: =IF(J217=0,0,(G217-J217)/J217) -> 0 | J217: 0 | K217: =IF(ISNA(VLOOKUP(A217,'Från 3L'!$D$1:G236,4,0))," ",IF(VLOOKUP(A217,'Från 3L'!$D$1:G236,4,0)="NULL",0,(VLOOKUP(A217,'Från 3L'!$D$1:G236,4,0)))) -> 0 | L217: =IF(ISNA(VLOOKUP(A217,'Från 3L'!$D$1:G236,2,0))," ",IF(VLOOKUP(A217,'Från 3L'!$D$1:G236,2,0)="NULL",0,(VLOOKUP(A217,'Från 3L'!$D$1:G236,2,0)))) -> 0.218
... 80 more rows

Sheet kostn med flera BN (hidden)
A1: ='Från 3L'!A2 -> 278 | B1: ='Från 3L'!B2 -> Brf Kämpevägen
A4: Denna flik används för de kostnader som det vanligen behövs fler budgetnycklar till för att få en
A5: korrekt fördelning av kostnaderna i likviditetsbudgeten.
B7: Budget | C7: BN
A8: Årsavgifter bostäder | B8: .
A9: Årsavgifter bostäder, m | B9: 1901 | C9: 20
A10: Årsavgifter bostäder, kv | B10: 0 | C10: 20
A11: Totalt årsavgifter | B11: =SUM(B9:B10) -> 1901
A13: Årsavgifter lokaler
A14: Årsavgifter lokaler, m | B14: 0 | C14: 20
A15: Årsavgifter lokaler, kv | B15: 0 | C15: 20
A16: Totalt årsavgifter lokaler | B16: =SUM(B14:B15) -> 0
A18: Snöröjning/sandning
A19: Snöröjning/sandning 1 | B19: -9 | C19: 12
A20: Snöröjning/sandning 2 | B20: -9 | C20: 1
A21: Snöröjning/sandning 3 | B21: -9 | C21: 2
A22: Snöröjning/sandning 4 | B22: -9 | C22: 3
A23: Totalt snöröjning/sandning | B23: =SUM(B19:B22) -> -36
A26: Renhållning
A27: Renhållning 1 | B27: -73 | C27: 20
A28: Renhållning 2 | B28: 0 | C28: 8
A29: Renhållning 3 | B29: 0 | C29: 20
A30: Renhållning 4 | B30: 0 | C30: 20
A31: Totalt renhållning | B31: =SUM(B27:B30) -> -73
A33: Sociala kostnader
A34: Sociala kostnader 1 | B34: 0 | C34: 6
A35: Sociala kostnader 2 | B35: 0 | C35: 10
A36: Sociala kostnader 3 | B36: -7 | C36: 20
A37: Sociala kostnader 4 | B37: 0 | C37: 20
A38: Totalt sociala kostnader | B38: =SUM(B34:B37) -> -7

Sheet kapital
A1: ='Från 3L'!A2 -> 278 | B1: ='Från 3L'!B2 -> Brf Kämpevägen
J2: OBS! Arbeta bara i de vita cellerna i kolumn A-H. Infoga inte nya rader! | EA2: OBS! Arbeta bara i de vita cellerna i kolumn A-H. Infoga inte nya rader!
B3: KAPITALKOSTNADER (TKR) | H3: =Grunddata!F8 -> 201601
D5: ING | H5: UTG | I5: månad | J5: Beräkning räntor per månad | X5: Beräkning amorteringar per månad
A6: bet.period dgr | B6: LÅNGIVARE | C6: FF-DAG | D6: SKULD | E6: % | F6: RÄNTA | G6: AMORT | H6: SKULD | J6: =IF(RIGHT('Från 3L'!$C$2,2)="01","JAN",IF((RIGHT('Från 3L'!$C$2,2))="07","JUL","SEP")) -> JAN | K6: =IF(RIGHT('Från 3L'!$C$2,2)="01","FEB",IF(RIGHT('Från 3L'!$C$2,2)="07","AUG","OKT")) -> FEB | L6: =IF(RIGHT('Från 3L'!$C$2,2)="01","MAR",IF(RIGHT('Från 3L'!$C$2,2)="07","SEP","NOV")) -> MAR | M6: =IF(RIGHT('Från 3L'!$C$2,2)="01","APR",IF(RIGHT('Från 3L'!$C$2,2)="07","OKT","DEC")) -> APR | N6: =IF(RIGHT('Från 3L'!$C$2,2)="01","MAJ",IF(RIGHT('Från 3L'!$C$2,2)="07","NOV","JAN")) -> MAJ | O6: =IF(RIGHT('Från 3L'!$C$2,2)="01","JUN",IF(RIGHT('Från 3L'!$C$2,2)="07","DEC","FEB")) -> JUN | P6: =IF(RIGHT('Från 3L'!$C$2,2)="01","JUL",IF(RIGHT('Från 3L'!$C$2,2)="07","JAN","MAR")) -> JUL | Q6: =IF(RIGHT('Från 3L'!$C$2,2)="01","AUG",IF(RIGHT('Från 3L'!$C$2,2)="07","FEB","APR")) -> AUG | R6: =IF(RIGHT('Från 3L'!$C$2,2)="01","SEP",IF(RIGHT('Från 3L'!$C$2,2)="07","MAR","MAJ")) -> SEP | S6: =IF(RIGHT('Från 3L'!$C$2,2)="01","OKT",IF(RIGHT('Från 3L'!$C$2,2)="07","APR","JUN")) -> OKT | T6: =IF(RIGHT('Från 3L'!$C$2,2)="01","NOV",IF(RIGHT('Från 3L'!$C$2,2)="07","MAJ","JUL")) -> NOV | U6: =IF(RIGHT('Från 3L'!$C$2,2)="01","DEC",IF(RIGHT('Från 3L'!$C$2,2)="07","JUN","AUG")) -> DEC | V6: TOTALT | X6: =IF(RIGHT('Från 3L'!$C$2,2)="01","JAN",IF(RIGHT('Från 3L'!$C$2,2)="07","JUL","SEP")) -> JAN | Y6: =IF(RIGHT('Från 3L'!$C$2,2)="01","FEB",IF(RIGHT('Från 3L'!$C$2,2)="07","AUG","OKT")) -> FEB | Z6: =IF(RIGHT('Från 3L'!$C$2,2)="01","MAR",IF(RIGHT('Från 3L'!$C$2,2)="07","SEP","NOV")) -> MAR | AA6: =IF(RIGHT('Från 3L'!$C$2,2)="01","APR",IF(RIGHT('Från 3L'!$C$2,2)="07","OKT","DEC")) -> APR | AB6: =IF(RIGHT('Från 3L'!$C$2,2)="01","MAJ",IF(RIGHT('Från 3L'!$C$2,2)="07","NOV","JAN")) -> MAJ | AC6: =IF(RIGHT('Från 3L'!$C$2,2)="01","JUN",IF(RIGHT('Från 3L'!$C$2,2)="07","DEC","FEB")) -> JUN | AD6: =IF(RIGHT('Från 3L'!$C$2,2)="01","JUL",IF(RIGHT('Från 3L'!$C$2,2)="07","JAN","MAR")) -> JUL | AE6: =IF(RIGHT('Från 3L'!$C$2,2)="01","AUG",IF(RIGHT('Från 3L'!$C$2,2)="07","FEB","APR")) -> AUG | AF6: =IF(RIGHT('Från 3L'!$C$2,2)="01","SEP",IF(RIGHT('Från 3L'!$C$2,2)="07","MAR","MAJ")) -> SEP | AG6: =IF(RIGHT('Från 3L'!$C$2,2)="01","OKT",IF(RIGHT('Från 3L'!$C$2,2)="07","APR","JUN")) -> OKT | AH6: =IF(RIGHT('Från 3L'!$C$2,2)="01","NOV",IF(RIGHT('Från 3L'!$C$2,2)="07","MAJ","JUL")) -> NOV | AI6: =IF(RIGHT('Från 3L'!$C$2,2)="01","DEC",IF(RIGHT('Från 3L'!$C$2,2)="07","JUN","AUG")) -> DEC | AJ6: TOTALT | BA6: Kalenderår | CA6: Brutet juli - juni | DA6: Brutet september - augusti
I7: =IF(C7=0,0,MONTH(C7)) -> 0
A8: 91 | B8: Bank Nordea | C8: 2016-02-04 | D8: 6160 | E8: 0.011 | F8: =D8*E8/365*34 -> 6.311890411 | G8: 35 | H8: =D8-G8 -> 6125 | I8: 2 | J8: =IF(RIGHT('Från 3L'!$C$2,2)="01",kapital!BA8,IF(RIGHT('Från 3L'!$C$2,2)="07",kapital!CA8,DA8)) -> 0 | K8: =IF(RIGHT('Från 3L'!$C$2,2)="01",kapital!BB8,IF(RIGHT('Från 3L'!$C$2,2)="07",kapital!CB8,DB8)) -> 16.89358904 | L8: =IF(RIGHT('Från 3L'!$C$2,2)="01",kapital!BC8,IF(RIGHT('Från 3L'!$C$2,2)="07",kapital!CC8,DC8)) -> 0 | M8: =IF(RIGHT('Från 3L'!$C$2,2)="01",kapital!BD8,IF(RIGHT('Från 3L'!$C$2,2)="07",kapital!CD8,DD8)) -> 0 | N8: =IF(RIGHT('Från 3L'!$C$2,2)="01",kapital!BE8,IF(RIGHT('Från 3L'!$C$2,2)="07",kapital!CE8,DE8)) -> 0 | O8: =IF(RIGHT('Från 3L'!$C$2,2)="01",kapital!BF8,IF(RIGHT('Från 3L'!$C$2,2)="07",kapital!CF8,DF8)) -> 0 | P8: =IF(RIGHT('Från 3L'!$C$2,2)="01",kapital!BG8,IF(RIGHT('Från 3L'!$C$2,2)="07",kapital!CG8,DG8)) -> 0 | Q8: =IF(RIGHT('Från 3L'!$C$2,2)="01",kapital!BH8,IF(RIGHT('Från 3L'!$C$2,2)="07",kapital!CH8,DH8)) -> 0 | R8: =IF(RIGHT('Från 3L'!$C$2,2)="01",kapital!BI8,IF(RIGHT('Från 3L'!$C$2,2)="07",kapital!CI8,DI8)) -> 0 | S8: =IF(RIGHT('Från 3L'!$C$2,2)="01",kapital!BJ8,IF(RIGHT('Från 3L'!$C$2,2)="07",kapital!CJ8,DJ8)) -> 0 | T8: =IF(RIGHT('Från 3L'!$C$2,2)="01",kapital!BK8,IF(RIGHT('Från 3L'!$C$2,2)="07",kapital!CK8,DK8)) -> 0 | U8: =IF(RIGHT('Från 3L'!$C$2,2)="01",kapital!BL8,IF(RIGHT('Från 3L'!$C$2,2)="07",kapital!CL8,DL8)) -> 0 | V8: =SUM(J8:U8) -> 16.89358904 | X8: =IF(RIGHT('Från 3L'!$C$2,2)="01",kapital!BM8,IF(RIGHT('Från 3L'!$C$2,2)="07",kapital!CM8,DM8)) -> 0 | Y8: =IF(RIGHT('Från 3L'!$C$2,2)="01",kapital!BN8,IF(RIGHT('Från 3L'!$C$2,2)="07",kapital!CN8,DN8)) -> 35 | Z8: =IF(RIGHT('Från 3L'!$C$2,2)="01",kapital!BO8,IF(RIGHT('Från 3L'!$C$2,2)="07",kapital!CO8,DO8)) -> 0 | AA8: =IF(RIGHT('Från 3L'!$C$2,2)="01",kapital!BP8,IF(RIGHT('Från 3L'!$C$2,2)="07",kapital!CP8,DP8)) -> 0 | AB8: =IF(RIGHT('Från 3L'!$C$2,2)="01",kapital!BQ8,IF(RIGHT('Från 3L'!$C$2,2)="07",kapital!CQ8,DQ8)) -> 0 | AC8: =IF(RIGHT('Från 3L'!$C$2,2)="01",kapital!BR8,IF(RIGHT('Från 3L'!$C$2,2)="07",kapital!CR8,DR8)) -> 0 | AD8: =IF(RIGHT('Från 3L'!$C$2,2)="01",kapital!BS8,IF(RIGHT('Från 3L'!$C$2,2)="07",kapital!CS8,DS8)) -> 0 | AE8: =IF(RIGHT('Från 3L'!$C$2,2)="01",kapital!BT8,IF(RIGHT('Från 3L'!$C$2,2)="07",kapital!CT8,DT8)) -> 0 | AF8: =IF(RIGHT('Från 3L'!$C$2,2)="01",kapital!BU8,IF(RIGHT('Från 3L'!$C$2,2)="07",kapital!CU8,DU8)) -> 0 | AG8: =IF(RIGHT('Från 3L'!$C$2,2)="01",kapital!BV8,IF(RIGHT('Från 3L'!$C$2,2)="07",kapital!CV8,DV8)) -> 0 | AH8: =IF(RIGHT('Från 3L'!$C$2,2)="01",kapital!BW8,IF(RIGHT('Från 3L'!$C$2,2)="07",kapital!CW8,DW8)) -> 0 | AI8: =IF(RIGHT('Från 3L'!$C$2,2)="01",kapital!BX8,IF(RIGHT('Från 3L'!$C$2,2)="07",kapital!CX8,DX8)) -> 0 | AJ8: =SUM(X8:AI8) -> 35 | BA8: =IF($I8=1,IF($I7=0,($D8*$E8)/365*$A8,IF($I7>0,$F8,0)),0) -> 0 | BB8: =IF($I8=2,IF($I7=0,($D8*$E8)/365*$A8,IF($I7>0,$F8,0)),0) -> 16.89358904 | BC8: =IF($I8=3,IF($I7=0,($D8*$E8)/365*$A8,IF($I7>0,$F8,0)),0) -> 0 | BD8: =IF($I8=4,IF($I7=0,($D8*$E8)/365*$A8,IF($I7>0,$F8,0)),0) -> 0 | BE8: =IF($I8=5,IF($I7=0,($D8*$E8)/365*$A8,IF($I7>0,$F8,0)),0) -> 0 | BF8: =IF($I8=6,IF($I7=0,($D8*$E8)/365*$A8,IF($I7>0,$F8,0)),0) -> 0 | BG8: =IF($I8=7,IF($I7=0,($D8*$E8)/365*$A8,IF($I7>0,$F8,0)),0) -> 0 | BH8: =IF($I8=8,IF($I7=0,($D8*$E8)/365*$A8,IF($I7>0,$F8,0)),0) -> 0 | BI8: =IF($I8=9,IF($I7=0,($D8*$E8)/365*$A8,IF($I7>0,$F8,0)),0) -> 0 | BJ8: =IF($I8=10,IF($I7=0,($D8*$E8)/365*$A8,IF($I7>0,$F8,0)),0) -> 0 | BK8: =IF($I8=11,IF($I7=0,($D8*$E8)/365*$A8,IF($I7>0,$F8,0)),0) -> 0 | BL8: =IF($I8=12,IF($F8<($D8*$E8)/365*$A8,0,$F8),0) -> 0 | BM8: =IF($I8=1,$G8,0) -> 0 | BN8: =IF($I8=2,$G8,0) -> 35 | BO8: =IF($I8=3,$G8,0) -> 0 | BP8: =IF($I8=4,$G8,0) -> 0 | BQ8: =IF($I8=5,$G8,0) -> 0 | BR8: =IF($I8=6,$G8,0) -> 0 | BS8: =IF($I8=7,$G8,0) -> 0 | BT8: =IF($I8=8,$G8,0) -> 0 | BU8: =IF($I8=9,$G8,0) -> 0 | BV8: =IF($I8=10,$G8,0) -> 0 | BW8: =IF($I8=11,$G8,0) -> 0 | BX8: =IF($I8=12,$G8,0) -> 0 | CA8: =IF($I8=7,IF($I7=0,($D8*$E8)/360*$A8,IF($I7>0,$F8,0)),0) -> 0 | CB8: =IF($I8=8,IF($I7=0,($D8*$E8)/360*$A8,IF($I7>0,$F8,0)),0) -> 0 | CC8: =IF($I8=9,IF($I7=0,($D8*$E8)/360*$A8,IF($I7>0,$F8,0)),0) -> 0 | CD8: =IF($I8=10,IF($I7=0,($D8*$E8)/360*$A8,IF($I7>0,$F8,0)),0) -> 0 | CE8: =IF($I8=11,IF($I7=0,($D8*$E8)/360*$A8,IF($I7>0,$F8,0)),0) -> 0 | CF8: =IF($I8=12,IF($I7=0,($D8*$E8)/360*$A8,IF($I7>0,$F8,0)),0) -> 0 | CG8: =IF($I8=1,IF($I7=0,($D8*$E8)/360*$A8,IF($I7>0,$F8,0)),0) -> 0 | CH8: =IF($I8=2,IF($I7=0,($D8*$E8)/360*$A8,IF($I7>0,$F8,0)),0) -> 17.12822222 | CI8: =IF($I8=3,IF($I7=0,($D8*$E8)/360*$A8,IF($I7>0,$F8,0)),0) -> 0 | CJ8: =IF($I8=4,IF($I7=0,($D8*$E8)/360*$A8,IF($I7>0,$F8,0)),0) -> 0 | CK8: =IF($I8=5,IF($I7=0,($D8*$E8)/360*$A8,IF($I7>0,$F8,0)),0) -> 0 | CL8: =IF($I8=6,IF($F8<($D8*$E8)/360*$A8,0,$F8),0) -> 0 | CM8: =IF($I8=7,$G8,0) -> 0 | CN8: =IF($I8=8,$G8,0) -> 0 | CO8: =IF($I8=9,$G8,0) -> 0 | CP8: =IF($I8=10,$G8,0) -> 0 | CQ8: =IF($I8=11,$G8,0) -> 0 | CR8: =IF($I8=12,$G8,0) -> 0 | CS8: =IF($I8=1,$G8,0) -> 0 | CT8: =IF($I8=2,$G8,0) -> 35 | CU8: =IF($I8=3,$G8,0) -> 0 | CV8: =IF($I8=4,$G8,0) -> 0 | CW8: =IF($I8=5,$G8,0) -> 0 | CX8: =IF($I8=6,$G8,0) -> 0 | DA8: =IF($I8=9,IF($I7=0,($D8*$E8)/360*$A8,IF($I7>0,$F8,0)),0) -> 0 | DB8: =IF($I8=10,IF($I7=0,($D8*$E8)/360*$A8,IF($I7>0,$F8,0)),0) -> 0 | DC8: =IF($I8=11,IF($I7=0,($D8*$E8)/360*$A8,IF($I7>0,$F8,0)),0) -> 0 | DD8: =IF($I8=12,IF($I7=0,($D8*$E8)/360*$A8,IF($I7>0,$F8,0)),0) -> 0 | DE8: =IF($I8=1,IF($I7=0,($D8*$E8)/360*$A8,IF($I7>0,$F8,0)),0) -> 0 | DF8: =IF($I8=2,IF($I7=0,($D8*$E8)/360*$A8,IF($I7>0,$F8,0)),0) -> 17.12822222 | DG8: =IF($I8=3,IF($I7=0,($D8*$E8)/360*$A8,IF($I7>0,$F8,0)),0) -> 0 | DH8: =IF($I8=4,IF($I7=0,($D8*$E8)/360*$A8,IF($I7>0,$F8,0)),0) -> 0 | DI8: =IF($I8=5,IF($I7=0,($D8*$E8)/360*$A8,IF($I7>0,$F8,0)),0) -> 0 | DJ8: =IF($I8=6,IF($I7=0,($D8*$E8)/360*$A8,IF($I7>0,$F8,0)),0) -> 0 | DK8: =IF($I8=7,IF($I7=0,($D8*$E8)/360*$A8,IF($I7>0,$F8,0)),0) -> 0 | DL8: =IF($I8=8,IF($F8<($D8*$E8)/360*$A8,0,$F8),0) -> 0 | DM8: =IF($I8=9,$G8,0) -> 0 | DN8: =IF($I8=10,$G8,0) -> 0 | DO8: =IF($I8=11,$G8,0) -> 0 | DP8: =IF($I8=12,$G8,0) -> 0 | DQ8: =IF($I8=1,$G8,0) -> 0 | DR8: =IF($I8=2,$G8,0) -> 35 | DS8: =IF($I8=3,$G8,0) -> 0 | DT8: =IF($I8=4,$G8,0) -> 0 | DU8: =IF($I8=5,$G8,0) -> 0 | DV8: =IF($I8=6,$G8,0) -> 0 | DW8: =IF($I8=7,$G8,0) -> 0 | DX8: =IF($I8=8,$G8,0) -> 0
A9: =+A8 -> 91 | B9: Lån 3978 84 05983 | C9: 2016-05-04 | D9: =H8 -> 6125 | E9: 0.012 | F9: =D9*E9/365*89 -> 17.92191781 | G9: 35 | H9: =D9-G9 -> 6090 | I9: 5 | J9: =IF(RIGHT('Från 3L'!$C$2,2)="01",kapital!BA9,IF(RIGHT('Från 3L'!$C$2,2)="07",kapital!CA9,DA9)) -> 0 | K9: =IF(RIGHT('Från 3L'!$C$2,2)="01",kapital!BB9,IF(RIGHT('Från 3L'!$C$2,2)="07",kapital!CB9,DB9)) -> 0 | L9: =IF(RIGHT('Från 3L'!$C$2,2)="01",kapital!BC9,IF(RIGHT('Från 3L'!$C$2,2)="07",kapital!CC9,DC9)) -> 0 | M9: =IF(RIGHT('Från 3L'!$C$2,2)="01",kapital!BD9,IF(RIGHT('Från 3L'!$C$2,2)="07",kapital!CD9,DD9)) -> 0 | N9: =IF(RIGHT('Från 3L'!$C$2,2)="01",kapital!BE9,IF(RIGHT('Från 3L'!$C$2,2)="07",kapital!CE9,DE9)) -> 17.92191781 | O9: =IF(RIGHT('Från 3L'!$C$2,2)="01",kapital!BF9,IF(RIGHT('Från 3L'!$C$2,2)="07",kapital!CF9,DF9)) -> 0 | P9: =IF(RIGHT('Från 3L'!$C$2,2)="01",kapital!BG9,IF(RIGHT('Från 3L'!$C$2,2)="07",kapital!CG9,DG9)) -> 0 | Q9: =IF(RIGHT('Från 3L'!$C$2,2)="01",kapital!BH9,IF(RIGHT('Från 3L'!$C$2,2)="07",kapital!CH9,DH9)) -> 0 | R9: =IF(RIGHT('Från 3L'!$C$2,2)="01",kapital!BI9,IF(RIGHT('Från 3L'!$C$2,2)="07",kapital!CI9,DI9)) -> 0 | S9: =IF(RIGHT('Från 3L'!$C$2,2)="01",kapital!BJ9,IF(RIGHT('Från 3L'!$C$2,2)="07",kapital!CJ9,DJ9)) -> 0 | T9: =IF(RIGHT('Från 3L'!$C$2,2)="01",kapital!BK9,IF(RIGHT('Från 3L'!$C$2,2)="07",kapital!CK9,DK9)) -> 0 | U9: =IF(RIGHT('Från 3L'!$C$2,2)="01",kapital!BL9,IF(RIGHT('Från 3L'!$C$2,2)="07",kapital!CL9,DL9)) -> 0 | V9: =SUM(J9:U9) -> 17.92191781 | X9: =IF(RIGHT('Från 3L'!$C$2,2)="01",kapital!BM9,IF(RIGHT('Från 3L'!$C$2,2)="07",kapital!CM9,DM9)) -> 0 | Y9: =IF(RIGHT('Från 3L'!$C$2,2)="01",kapital!BN9,IF(RIGHT('Från 3L'!$C$2,2)="07",kapital!CN9,DN9)) -> 0 | Z9: =IF(RIGHT('Från 3L'!$C$2,2)="01",kapital!BO9,IF(RIGHT('Från 3L'!$C$2,2)="07",kapital!CO9,DO9)) -> 0 | AA9: =IF(RIGHT('Från 3L'!$C$2,2)="01",kapital!BP9,IF(RIGHT('Från 3L'!$C$2,2)="07",kapital!CP9,DP9)) -> 0 | AB9: =IF(RIGHT('Från 3L'!$C$2,2)="01",kapital!BQ9,IF(RIGHT('Från 3L'!$C$2,2)="07",kapital!CQ9,DQ9)) -> 35 | AC9: =IF(RIGHT('Från 3L'!$C$2,2)="01",kapital!BR9,IF(RIGHT('Från 3L'!$C$2,2)="07",kapital!CR9,DR9)) -> 0 | AD9: =IF(RIGHT('Från 3L'!$C$2,2)="01",kapital!BS9,IF(RIGHT('Från 3L'!$C$2,2)="07",kapital!CS9,DS9)) -> 0 | AE9: =IF(RIGHT('Från 3L'!$C$2,2)="01",kapital!BT9,IF(RIGHT('Från 3L'!$C$2,2)="07",kapital!CT9,DT9)) -> 0 | AF9: =IF(RIGHT('Från 3L'!$C$2,2)="01",kapital!BU9,IF(RIGHT('Från 3L'!$C$2,2)="07",kapital!CU9,DU9)) -> 0 | AG9: =IF(RIGHT('Från 3L'!$C$2,2)="01",kapital!BV9,IF(RIGHT('Från 3L'!$C$2,2)="07",kapital!CV9,DV9)) -> 0 | AH9: =IF(RIGHT('Från 3L'!$C$2,2)="01",kapital!BW9,IF(RIGHT('Från 3L'!$C$2,2)="07",kapital!CW9,DW9)) -> 0 | AI9: =IF(RIGHT('Från 3L'!$C$2,2)="01",kapital!BX9,IF(RIGHT('Från 3L'!$C$2,2)="07",kapital!CX9,DX9)) -> 0 | AJ9: =SUM(X9:AI9) -> 35 | BA9: 0 | BB9: 0 | BC9: 0 | BD9: 0 | BE9: 17.92191781 | BF9: 0 | BG9: 0 | BH9: 0 | BI9: 0 | BJ9: 0 | BK9: 0 | BL9: 0 | BM9: =IF($I9=1,$G9,0) -> 0 | BN9: =IF($I9=2,$G9,0) -> 0 | BO9: =IF($I9=3,$G9,0) -> 0 | BP9: =IF($I9=4,$G9,0) -> 0 | BQ9: =IF($I9=5,$G9,0) -> 35 | BR9: =IF($I9=6,$G9,0) -> 0 | BS9: =IF($I9=7,$G9,0) -> 0 | BT9: =IF($I9=8,$G9,0) -> 0 | BU9: =IF($I9=9,$G9,0) -> 0 | BV9: =IF($I9=10,$G9,0) -> 0 | BW9: =IF($I9=11,$G9,0) -> 0 | BX9: =IF($I9=12,$G9,0) -> 0 | CA9: =IF($I9=7,IF($I8=0,($D9*$E9)/360*$A9,IF($I8>0,$F9,0)),0) -> 0 | CB9: =IF($I9=8,IF($I8=0,($D9*$E9)/360*$A9,IF($I8>0,$F9,0)),0) -> 0 | CC9: =IF($I9=9,IF($I8=0,($D9*$E9)/360*$A9,IF($I8>0,$F9,0)),0) -> 0 | CD9: =IF($I9=10,IF($I8=0,($D9*$E9)/360*$A9,IF($I8>0,$F9,0)),0) -> 0 | CE9: =IF($I9=11,IF($I8=0,($D9*$E9)/360*$A9,IF($I8>0,$F9,0)),0) -> 0 | CF9: =IF($I9=12,IF($I8=0,($D9*$E9)/360*$A9,IF($I8>0,$F9,0)),0) -> 0 | CG9: =IF($I9=1,IF($I8=0,($D9*$E9)/360*$A9,IF($I8>0,$F9,0)),0) -> 0 | CH9: =IF($I9=2,IF($I8=0,($D9*$E9)/360*$A9,IF($I8>0,$F9,0)),0) -> 0 | CI9: =IF($I9=3,IF($I8=0,($D9*$E9)/360*$A9,IF($I8>0,$F9,0)),0) -> 0 | CJ9: =IF($I9=4,IF($I8=0,($D9*$E9)/360*$A9,IF($I8>0,$F9,0)),0) -> 0 | CK9: =IF($I9=5,IF($I8=0,($D9*$E9)/360*$A9,IF($I8>0,$F9,0)),0) -> 17.92191781 | CL9: =IF($I9=6,IF($F9<($D9*$E9)/360*$A9,0,$F9),0) -> 0 | CM9: =IF($I9=7,$G9,0) -> 0 | CN9: =IF($I9=8,$G9,0) -> 0 | CO9: =IF($I9=9,$G9,0) -> 0 | CP9: =IF($I9=10,$G9,0) -> 0 | CQ9: =IF($I9=11,$G9,0) -> 0 | CR9: =IF($I9=12,$G9,0) -> 0 | CS9: =IF($I9=1,$G9,0) -> 0 | CT9: =IF($I9=2,$G9,0) -> 0 | CU9: =IF($I9=3,$G9,0) -> 0 | CV9: =IF($I9=4,$G9,0) -> 0 | CW9: =IF($I9=5,$G9,0) -> 35 | CX9: =IF($I9=6,$G9,0) -> 0 | DA9: =IF($I9=9,IF($I8=0,($D9*$E9)/360*$A9,IF($I8>0,$F9,0)),0) -> 0 | DB9: =IF($I9=10,IF($I8=0,($D9*$E9)/360*$A9,IF($I8>0,$F9,0)),0) -> 0 | DC9: =IF($I9=11,IF($I8=0,($D9*$E9)/360*$A9,IF($I8>0,$F9,0)),0) -> 0 | DD9: =IF($I9=12,IF($I8=0,($D9*$E9)/360*$A9,IF($I8>0,$F9,0)),0) -> 0 | DE9: =IF($I9=1,IF($I8=0,($D9*$E9)/360*$A9,IF($I8>0,$F9,0)),0) -> 0 | DF9: =IF($I9=2,IF($I8=0,($D9*$E9)/360*$A9,IF($I8>0,$F9,0)),0) -> 0 | DG9: =IF($I9=3,IF($I8=0,($D9*$E9)/360*$A9,IF($I8>0,$F9,0)),0) -> 0 | DH9: =IF($I9=4,IF($I8=0,($D9*$E9)/360*$A9,IF($I8>0,$F9,0)),0) -> 0 | DI9: =IF($I9=5,IF($I8=0,($D9*$E9)/360*$A9,IF($I8>0,$F9,0)),0) -> 17.92191781 | DJ9: =IF($I9=6,IF($I8=0,($D9*$E9)/360*$A9,IF($I8>0,$F9,0)),0) -> 0 | DK9: =IF($I9=7,IF($I8=0,($D9*$E9)/360*$A9,IF($I8>0,$F9,0)),0) -> 0 | DL9: =IF($I9=8,IF($F9<($D9*$E9)/360*$A9,0,$F9),0) -> 0 | DM9: =IF($I9=9,$G9,0) -> 0 | DN9: =IF($I9=10,$G9,0) -> 0 | DO9: =IF($I9=11,$G9,0) -> 0 | DP9: =IF($I9=12,$G9,0) -> 0 | DQ9: =IF($I9=1,$G9,0) -> 0 | DR9: =IF($I9=2,$G9,0) -> 0 | DS9: =IF($I9=3,$G9,0) -> 0 | DT9: =IF($I9=4,$G9,0) -> 0 | DU9: =IF($I9=5,$G9,0) -> 35 | DV9: =IF($I9=6,$G9,0) -> 0 | DW9: =IF($I9=7,$G9,0) -> 0 | DX9: =IF($I9=8,$G9,0) -> 0
A10: =+A9 -> 91 | B10: rörligt | C10: 2016-08-04 | D10: =H9 -> 6090 | E10: 0.013 | F10: =D10*E10/365*92 -> 19.95517808 | G10: 35 | H10: =D10-G10 -> 6055 | I10: 8 | J10: =IF(RIGHT('Från 3L'!$C$2,2)="01",kapital!BA10,IF(RIGHT('Från 3L'!$C$2,2)="07",kapital!CA10,DA10)) -> 0 | K10: =IF(RIGHT('Från 3L'!$C$2,2)="01",kapital!BB10,IF(RIGHT('Från 3L'!$C$2,2)="07",kapital!CB10,DB10)) -> 0 | L10: =IF(RIGHT('Från 3L'!$C$2,2)="01",kapital!BC10,IF(RIGHT('Från 3L'!$C$2,2)="07",kapital!CC10,DC10)) -> 0 | M10: =IF(RIGHT('Från 3L'!$C$2,2)="01",kapital!BD10,IF(RIGHT('Från 3L'!$C$2,2)="07",kapital!CD10,DD10)) -> 0 | N10: =IF(RIGHT('Från 3L'!$C$2,2)="01",kapital!BE10,IF(RIGHT('Från 3L'!$C$2,2)="07",kapital!CE10,DE10)) -> 0 | O10: =IF(RIGHT('Från 3L'!$C$2,2)="01",kapital!BF10,IF(RIGHT('Från 3L'!$C$2,2)="07",kapital!CF10,DF10)) -> 0 | P10: =IF(RIGHT('Från 3L'!$C$2,2)="01",kapital!BG10,IF(RIGHT('Från 3L'!$C$2,2)="07",kapital!CG10,DG10)) -> 0 | Q10: =IF(RIGHT('Från 3L'!$C$2,2)="01",kapital!BH10,IF(RIGHT('Från 3L'!$C$2,2)="07",kapital!CH10,DH10)) -> 19.95517808 | R10: =IF(RIGHT('Från 3L'!$C$2,2)="01",kapital!BI10,IF(RIGHT('Från 3L'!$C$2,2)="07",kapital!CI10,DI10)) -> 0 | S10: =IF(RIGHT('Från 3L'!$C$2,2)="01",kapital!BJ10,IF(RIGHT('Från 3L'!$C$2,2)="07",kapital!CJ10,DJ10)) -> 0 | T10: =IF(RIGHT('Från 3L'!$C$2,2)="01",kapital!BK10,IF(RIGHT('Från 3L'!$C$2,2)="07",kapital!CK10,DK10)) -> 0 | U10: =IF(RIGHT('Från 3L'!$C$2,2)="01",kapital!BL10,IF(RIGHT('Från 3L'!$C$2,2)="07",kapital!CL10,DL10)) -> 0 | V10: 19.95517808 | X10: =IF(RIGHT('Från 3L'!$C$2,2)="01",kapital!BM10,IF(RIGHT('Från 3L'!$C$2,2)="07",kapital!CM10,DM10)) -> 0 | Y10: =IF(RIGHT('Från 3L'!$C$2,2)="01",kapital!BN10,IF(RIGHT('Från 3L'!$C$2,2)="07",kapital!CN10,DN10)) -> 0 | Z10: =IF(RIGHT('Från 3L'!$C$2,2)="01",kapital!BO10,IF(RIGHT('Från 3L'!$C$2,2)="07",kapital!CO10,DO10)) -> 0 | AA10: =IF(RIGHT('Från 3L'!$C$2,2)="01",kapital!BP10,IF(RIGHT('Från 3L'!$C$2,2)="07",kapital!CP10,DP10)) -> 0 | AB10: =IF(RIGHT('Från 3L'!$C$2,2)="01",kapital!BQ10,IF(RIGHT('Från 3L'!$C$2,2)="07",kapital!CQ10,DQ10)) -> 0 | AC10: =IF(RIGHT('Från 3L'!$C$2,2)="01",kapital!BR10,IF(RIGHT('Från 3L'!$C$2,2)="07",kapital!CR10,DR10)) -> 0 | AD10: =IF(RIGHT('Från 3L'!$C$2,2)="01",kapital!BS10,IF(RIGHT('Från 3L'!$C$2,2)="07",kapital!CS10,DS10)) -> 0 | AE10: =IF(RIGHT('Från 3L'!$C$2,2)="01",kapital!BT10,IF(RIGHT('Från 3L'!$C$2,2)="07",kapital!CT10,DT10)) -> 35 | AF10: =IF(RIGHT('Från 3L'!$C$2,2)="01",kapital!BU10,IF(RIGHT('Från 3L'!$C$2,2)="07",kapital!CU10,DU10)) -> 0 | AG10: =IF(RIGHT('Från 3L'!$C$2,2)="01",kapital!BV10,IF(RIGHT('Från 3L'!$C$2,2)="07",kapital!CV10,DV10)) -> 0 | AH10: =IF(RIGHT('Från 3L'!$C$2,2)="01",kapital!BW10,IF(RIGHT('Från 3L'!$C$2,2)="07",kapital!CW10,DW10)) -> 0 | AI10: =IF(RIGHT('Från 3L'!$C$2,2)="01",kapital!BX10,IF(RIGHT('Från 3L'!$C$2,2)="07",kapital!CX10,DX10)) -> 0 | AJ10: 35 | BA10: 0 | BB10: 0 | BC10: 0 | BD10: 0 | BE10: 0 | BF10: 0 | BG10: 0 | BH10: 19.95517808 | BI10: 0 | BJ10: 0 | BK10: 0 | BL10: 0 | BM10: 0 | BN10: 0 | BO10: 0 | BP10: 0 | BQ10: 0 | BR10: 0 | BS10: 0 | BT10: 35 | BU10: 0 | BV10: 0 | BW10: 0 | BX10: 0 | CA10: 0 | CB10: 19.95517808 | CC10: 0 | CD10: 0 | CE10: 0 | CF10: 0 | CG10: 0 | CH10: 0 | CI10: 0 | CJ10: 0 | CK10: 0 | CL10: 0 | CM10: 0 | CN10: 35 | CO10: 0 | CP10: 0 | CQ10: 0 | CR10: 0 | CS10: 0 | CT10: 0 | CU10: 0 | CV10: 0 | CW10: 0 | CX10: 0 | DA10: 0 | DB10: 0 | DC10: 0 | DD10: 0 | DE10: 0 | DF10: 0 | DG10: 0 | DH10: 0 | DI10: 0 | DJ10: 0 | DK10: 0 | DL10: 0 | DM10: 0 | DN10: 0 | DO10: 0 | DP10: 0 | DQ10: 0 | DR10: 0 | DS10: 0 | DT10: 0 | DU10: 0 | DV10: 0 | DW10: 0 | DX10: 35
A11: 91 | B11: ff-dag 180321 | C11: 2016-11-04 | D11: =H10 -> 6055 | E11: 0.014 | F11: =D11*E11/360*90 -> 21.1925 | G11: 35 | H11: =D11-G11 -> 6020 | I11: 11 | J11: =IF(RIGHT('Från 3L'!$C$2,2)="01",kapital!BA11,IF(RIGHT('Från 3L'!$C$2,2)="07",kapital!CA11,DA11)) -> 0 | K11: =IF(RIGHT('Från 3L'!$C$2,2)="01",kapital!BB11,IF(RIGHT('Från 3L'!$C$2,2)="07",kapital!CB11,DB11)) -> 0 | L11: =IF(RIGHT('Från 3L'!$C$2,2)="01",kapital!BC11,IF(RIGHT('Från 3L'!$C$2,2)="07",kapital!CC11,DC11)) -> 0 | M11: =IF(RIGHT('Från 3L'!$C$2,2)="01",kapital!BD11,IF(RIGHT('Från 3L'!$C$2,2)="07",kapital!CD11,DD11)) -> 0 | N11: =IF(RIGHT('Från 3L'!$C$2,2)="01",kapital!BE11,IF(RIGHT('Från 3L'!$C$2,2)="07",kapital!CE11,DE11)) -> 0 | O11: =IF(RIGHT('Från 3L'!$C$2,2)="01",kapital!BF11,IF(RIGHT('Från 3L'!$C$2,2)="07",kapital!CF11,DF11)) -> 0 | P11: =IF(RIGHT('Från 3L'!$C$2,2)="01",kapital!BG11,IF(RIGHT('Från 3L'!$C$2,2)="07",kapital!CG11,DG11)) -> 0 | Q11: =IF(RIGHT('Från 3L'!$C$2,2)="01",kapital!BH11,IF(RIGHT('Från 3L'!$C$2,2)="07",kapital!CH11,DH11)) -> 0 | R11: =IF(RIGHT('Från 3L'!$C$2,2)="01",kapital!BI11,IF(RIGHT('Från 3L'!$C$2,2)="07",kapital!CI11,DI11)) -> 0 | S11: =IF(RIGHT('Från 3L'!$C$2,2)="01",kapital!BJ11,IF(RIGHT('Från 3L'!$C$2,2)="07",kapital!CJ11,DJ11)) -> 0 | T11: =IF(RIGHT('Från 3L'!$C$2,2)="01",kapital!BK11,IF(RIGHT('Från 3L'!$C$2,2)="07",kapital!CK11,DK11)) -> 21.1925 | U11: =IF(RIGHT('Från 3L'!$C$2,2)="01",kapital!BL11,IF(RIGHT('Från 3L'!$C$2,2)="07",kapital!CL11,DL11)) -> 0 | V11: 21.1925 | X11: =IF(RIGHT('Från 3L'!$C$2,2)="01",kapital!BM11,IF(RIGHT('Från 3L'!$C$2,2)="07",kapital!CM11,DM11)) -> 0 | Y11: =IF(RIGHT('Från 3L'!$C$2,2)="01",kapital!BN11,IF(RIGHT('Från 3L'!$C$2,2)="07",kapital!CN11,DN11)) -> 0 | Z11: =IF(RIGHT('Från 3L'!$C$2,2)="01",kapital!BO11,IF(RIGHT('Från 3L'!$C$2,2)="07",kapital!CO11,DO11)) -> 0 | AA11: =IF(RIGHT('Från 3L'!$C$2,2)="01",kapital!BP11,IF(RIGHT('Från 3L'!$C$2,2)="07",kapital!CP11,DP11)) -> 0 | AB11: =IF(RIGHT('Från 3L'!$C$2,2)="01",kapital!BQ11,IF(RIGHT('Från 3L'!$C$2,2)="07",kapital!CQ11,DQ11)) -> 0 | AC11: =IF(RIGHT('Från 3L'!$C$2,2)="01",kapital!BR11,IF(RIGHT('Från 3L'!$C$2,2)="07",kapital!CR11,DR11)) -> 0 | AD11: =IF(RIGHT('Från 3L'!$C$2,2)="01",kapital!BS11,IF(RIGHT('Från 3L'!$C$2,2)="07",kapital!CS11,DS11)) -> 0 | AE11: =IF(RIGHT('Från 3L'!$C$2,2)="01",kapital!BT11,IF(RIGHT('Från 3L'!$C$2,2)="07",kapital!CT11,DT11)) -> 0 | AF11: =IF(RIGHT('Från 3L'!$C$2,2)="01",kapital!BU11,IF(RIGHT('Från 3L'!$C$2,2)="07",kapital!CU11,DU11)) -> 0 | AG11: =IF(RIGHT('Från 3L'!$C$2,2)="01",kapital!BV11,IF(RIGHT('Från 3L'!$C$2,2)="07",kapital!CV11,DV11)) -> 0 | AH11: =IF(RIGHT('Från 3L'!$C$2,2)="01",kapital!BW11,IF(RIGHT('Från 3L'!$C$2,2)="07",kapital!CW11,DW11)) -> 35 | AI11: =IF(RIGHT('Från 3L'!$C$2,2)="01",kapital!BX11,IF(RIGHT('Från 3L'!$C$2,2)="07",kapital!CX11,DX11)) -> 0 | AJ11: 35 | BA11: 0 | BB11: 0 | BC11: 0 | BD11: 0 | BE11: 0 | BF11: 0 | BG11: 0 | BH11: 0 | BI11: 0 | BJ11: 0 | BK11: 21.1925 | BL11: 0 | BM11: 0 | BN11: 0 | BO11: 0 | BP11: 0 | BQ11: 0 | BR11: 0 | BS11: 0 | BT11: 0 | BU11: 0 | BV11: 0 | BW11: 35 | BX11: 0 | CA11: 0 | CB11: 0 | CC11: 0 | CD11: 0 | CE11: 21.1925 | CF11: 0 | CG11: 0 | CH11: 0 | CI11: 0 | CJ11: 0 | CK11: 0 | CL11: 0 | CM11: 0 | CN11: 0 | CO11: 0 | CP11: 0 | CQ11: 35 | CR11: 0 | CS11: 0 | CT11: 0 | CU11: 0 | CV11: 0 | CW11: 0 | CX11: 0 | DA11: 0 | DB11: 0 | DC11: 21.1925 | DD11: 0 | DE11: 0 | DF11: 0 | DG11: 0 | DH11: 0 | DI11: 0 | DJ11: 0 | DK11: 0 | DL11: 0 | DM11: 0 | DN11: 0 | DO11: 35 | DP11: 0 | DQ11: 0 | DR11: 0 | DS11: 0 | DT11: 0 | DU11: 0 | DV11: 0 | DW11: 0 | DX11: 0
A12: 91 | C12: 2016-12-31 | D12: =H11 -> 6020 | E12: 0.014 | F12: =D12*E12/360*56 -> 13.11022222 | G12: 0 | H12: =D12-G12 -> 6020 | I12: 12 | J12: =IF(RIGHT('Från 3L'!$C$2,2)="01",kapital!BA12,IF(RIGHT('Från 3L'!$C$2,2)="07",kapital!CA12,DA12)) -> 0 | K12: =IF(RIGHT('Från 3L'!$C$2,2)="01",kapital!BB12,IF(RIGHT('Från 3L'!$C$2,2)="07",kapital!CB12,DB12)) -> 0 | L12: =IF(RIGHT('Från 3L'!$C$2,2)="01",kapital!BC12,IF(RIGHT('Från 3L'!$C$2,2)="07",kapital!CC12,DC12)) -> 0 | M12: =IF(RIGHT('Från 3L'!$C$2,2)="01",kapital!BD12,IF(RIGHT('Från 3L'!$C$2,2)="07",kapital!CD12,DD12)) -> 0 | N12: =IF(RIGHT('Från 3L'!$C$2,2)="01",kapital!BE12,IF(RIGHT('Från 3L'!$C$2,2)="07",kapital!CE12,DE12)) -> 0 | O12: =IF(RIGHT('Från 3L'!$C$2,2)="01",kapital!BF12,IF(RIGHT('Från 3L'!$C$2,2)="07",kapital!CF12,DF12)) -> 0 | P12: =IF(RIGHT('Från 3L'!$C$2,2)="01",kapital!BG12,IF(RIGHT('Från 3L'!$C$2,2)="07",kapital!CG12,DG12)) -> 0 | Q12: =IF(RIGHT('Från 3L'!$C$2,2)="01",kapital!BH12,IF(RIGHT('Från 3L'!$C$2,2)="07",kapital!CH12,DH12)) -> 0 | R12: =IF(RIGHT('Från 3L'!$C$2,2)="01",kapital!BI12,IF(RIGHT('Från 3L'!$C$2,2)="07",kapital!CI12,DI12)) -> 0 | S12: =IF(RIGHT('Från 3L'!$C$2,2)="01",kapital!BJ12,IF(RIGHT('Från 3L'!$C$2,2)="07",kapital!CJ12,DJ12)) -> 0 | T12: =IF(RIGHT('Från 3L'!$C$2,2)="01",kapital!BK12,IF(RIGHT('Från 3L'!$C$2,2)="07",kapital!CK12,DK12)) -> 0 | U12: =IF(RIGHT('Från 3L'!$C$2,2)="01",kapital!BL12,IF(RIGHT('Från 3L'!$C$2,2)="07",kapital!CL12,DL12)) -> 0 | V12: 0 | X12: =IF(RIGHT('Från 3L'!$C$2,2)="01",kapital!BM12,IF(RIGHT('Från 3L'!$C$2,2)="07",kapital!CM12,DM12)) -> 0 | Y12: =IF(RIGHT('Från 3L'!$C$2,2)="01",kapital!BN12,IF(RIGHT('Från 3L'!$C$2,2)="07",kapital!CN12,DN12)) -> 0 | Z12: =IF(RIGHT('Från 3L'!$C$2,2)="01",kapital!BO12,IF(RIGHT('Från 3L'!$C$2,2)="07",kapital!CO12,DO12)) -> 0 | AA12: =IF(RIGHT('Från 3L'!$C$2,2)="01",kapital!BP12,IF(RIGHT('Från 3L'!$C$2,2)="07",kapital!CP12,DP12)) -> 0 | AB12: =IF(RIGHT('Från 3L'!$C$2,2)="01",kapital!BQ12,IF(RIGHT('Från 3L'!$C$2,2)="07",kapital!CQ12,DQ12)) -> 0 | AC12: =IF(RIGHT('Från 3L'!$C$2,2)="01",kapital!BR12,IF(RIGHT('Från 3L'!$C$2,2)="07",kapital!CR12,DR12)) -> 0 | AD12: =IF(RIGHT('Från 3L'!$C$2,2)="01",kapital!BS12,IF(RIGHT('Från 3L'!$C$2,2)="07",kapital!CS12,DS12)) -> 0 | AE12: =IF(RIGHT('Från 3L'!$C$2,2)="01",kapital!BT12,IF(RIGHT('Från 3L'!$C$2,2)="07",kapital!CT12,DT12)) -> 0 | AF12: =IF(RIGHT('Från 3L'!$C$2,2)="01",kapital!BU12,IF(RIGHT('Från 3L'!$C$2,2)="07",kapital!CU12,DU12)) -> 0 | AG12: =IF(RIGHT('Från 3L'!$C$2,2)="01",kapital!BV12,IF(RIGHT('Från 3L'!$C$2,2)="07",kapital!CV12,DV12)) -> 0 | AH12: =IF(RIGHT('Från 3L'!$C$2,2)="01",kapital!BW12,IF(RIGHT('Från 3L'!$C$2,2)="07",kapital!CW12,DW12)) -> 0 | AI12: =IF(RIGHT('Från 3L'!$C$2,2)="01",kapital!BX12,IF(RIGHT('Från 3L'!$C$2,2)="07",kapital!CX12,DX12)) -> 0 | AJ12: 0 | BA12: 0 | BB12: 0 | BC12: 0 | BD12: 0 | BE12: 0 | BF12: 0 | BG12: 0 | BH12: 0 | BI12: 0 | BJ12: 0 | BK12: 0 | BL12: 0 | BM12: 0 | BN12: 0 | BO12: 0 | BP12: 0 | BQ12: 0 | BR12: 0 | BS12: 0 | BT12: 0 | BU12: 0 | BV12: 0 | BW12: 0 | BX12: 0 | CA12: 0 | CB12: 0 | CC12: 0 | CD12: 0 | CE12: 0 | CF12: 13.11022222 | CG12: 0 | CH12: 0 | CI12: 0 | CJ12: 0 | CK12: 0 | CL12: 0 | CM12: 0 | CN12: 0 | CO12: 0 | CP12: 0 | CQ12: 0 | CR12: 0 | CS12: 0 | CT12: 0 | CU12: 0 | CV12: 0 | CW12: 0 | CX12: 0 | DA12: 0 | DB12: 0 | DC12: 0 | DD12: 13.11022222 | DE12: 0 | DF12: 0 | DG12: 0 | DH12: 0 | DI12: 0 | DJ12: 0 | DK12: 0 | DL12: 0 | DM12: 0 | DN12: 0 | DO12: 0 | DP12: 0 | DQ12: 0 | DR12: 0 | DS12: 0 | DT12: 0 | DU12: 0 | DV12: 0 | DW12: 0 | DX12: 0
A13: 91 | I13: 0 | J13: =IF(RIGHT('Från 3L'!$C$2,2)="01",kapital!BA13,IF(RIGHT('Från 3L'!$C$2,2)="07",kapital!CA13,DA13)) -> 0 | K13: =IF(RIGHT('Från 3L'!$C$2,2)="01",kapital!BB13,IF(RIGHT('Från 3L'!$C$2,2)="07",kapital!CB13,DB13)) -> 0 | L13: =IF(RIGHT('Från 3L'!$C$2,2)="01",kapital!BC13,IF(RIGHT('Från 3L'!$C$2,2)="07",kapital!CC13,DC13)) -> 0 | M13: =IF(RIGHT('Från 3L'!$C$2,2)="01",kapital!BD13,IF(RIGHT('Från 3L'!$C$2,2)="07",kapital!CD13,DD13)) -> 0 | N13: =IF(RIGHT('Från 3L'!$C$2,2)="01",kapital!BE13,IF(RIGHT('Från 3L'!$C$2,2)="07",kapital!CE13,DE13)) -> 0 | O13: =IF(RIGHT('Från 3L'!$C$2,2)="01",kapital!BF13,IF(RIGHT('Från 3L'!$C$2,2)="07",kapital!CF13,DF13)) -> 0 | P13: =IF(RIGHT('Från 3L'!$C$2,2)="01",kapital!BG13,IF(RIGHT('Från 3L'!$C$2,2)="07",kapital!CG13,DG13)) -> 0 | Q13: =IF(RIGHT('Från 3L'!$C$2,2)="01",kapital!BH13,IF(RIGHT('Från 3L'!$C$2,2)="07",kapital!CH13,DH13)) -> 0 | R13: =IF(RIGHT('Från 3L'!$C$2,2)="01",kapital!BI13,IF(RIGHT('Från 3L'!$C$2,2)="07",kapital!CI13,DI13)) -> 0 | S13: =IF(RIGHT('Från 3L'!$C$2,2)="01",kapital!BJ13,IF(RIGHT('Från 3L'!$C$2,2)="07",kapital!CJ13,DJ13)) -> 0 | T13: =IF(RIGHT('Från 3L'!$C$2,2)="01",kapital!BK13,IF(RIGHT('Från 3L'!$C$2,2)="07",kapital!CK13,DK13)) -> 0 | U13: =IF(RIGHT('Från 3L'!$C$2,2)="01",kapital!BL13,IF(RIGHT('Från 3L'!$C$2,2)="07",kapital!CL13,DL13)) -> 0 | V13: 0 | X13: =IF(RIGHT('Från 3L'!$C$2,2)="01",kapital!BM13,IF(RIGHT('Från 3L'!$C$2,2)="07",kapital!CM13,DM13)) -> 0 | Y13: =IF(RIGHT('Från 3L'!$C$2,2)="01",kapital!BN13,IF(RIGHT('Från 3L'!$C$2,2)="07",kapital!CN13,DN13)) -> 0 | Z13: =IF(RIGHT('Från 3L'!$C$2,2)="01",kapital!BO13,IF(RIGHT('Från 3L'!$C$2,2)="07",kapital!CO13,DO13)) -> 0 | AA13: =IF(RIGHT('Från 3L'!$C$2,2)="01",kapital!BP13,IF(RIGHT('Från 3L'!$C$2,2)="07",kapital!CP13,DP13)) -> 0 | AB13: =IF(RIGHT('Från 3L'!$C$2,2)="01",kapital!BQ13,IF(RIGHT('Från 3L'!$C$2,2)="07",kapital!CQ13,DQ13)) -> 0 | AC13: =IF(RIGHT('Från 3L'!$C$2,2)="01",kapital!BR13,IF(RIGHT('Från 3L'!$C$2,2)="07",kapital!CR13,DR13)) -> 0 | AD13: =IF(RIGHT('Från 3L'!$C$2,2)="01",kapital!BS13,IF(RIGHT('Från 3L'!$C$2,2)="07",kapital!CS13,DS13)) -> 0 | AE13: =IF(RIGHT('Från 3L'!$C$2,2)="01",kapital!BT13,IF(RIGHT('Från 3L'!$C$2,2)="07",kapital!CT13,DT13)) -> 0 | AF13: =IF(RIGHT('Från 3L'!$C$2,2)="01",kapital!BU13,IF(RIGHT('Från 3L'!$C$2,2)="07",kapital!CU13,DU13)) -> 0 | AG13: =IF(RIGHT('Från 3L'!$C$2,2)="01",kapital!BV13,IF(RIGHT('Från 3L'!$C$2,2)="07",kapital!CV13,DV13)) -> 0 | AH13: =IF(RIGHT('Från 3L'!$C$2,2)="01",kapital!BW13,IF(RIGHT('Från 3L'!$C$2,2)="07",kapital!CW13,DW13)) -> 0 | AI13: =IF(RIGHT('Från 3L'!$C$2,2)="01",kapital!BX13,IF(RIGHT('Från 3L'!$C$2,2)="07",kapital!CX13,DX13)) -> 0 | AJ13: 0 | BA13: 0 | BB13: 0 | BC13: 0 | BD13: 0 | BE13: 0 | BF13: 0 | BG13: 0 | BH13: 0 | BI13: 0 | BJ13: 0 | BK13: 0 | BL13: 0 | BM13: 0 | BN13: 0 | BO13: 0 | BP13: 0 | BQ13: 0 | BR13: 0 | BS13: 0 | BT13: 0 | BU13: 0 | BV13: 0 | BW13: 0 | BX13: 0 | CA13: 0 | CB13: 0 | CC13: 0 | CD13: 0 | CE13: 0 | CF13: 0 | CG13: 0 | CH13: 0 | CI13: 0 | CJ13: 0 | CK13: 0 | CL13: 0 | CM13: 0 | CN13: 0 | CO13: 0 | CP13: 0 | CQ13: 0 | CR13: 0 | CS13: 0 | CT13: 0 | CU13: 0 | CV13: 0 | CW13: 0 | CX13: 0 | DA13: 0 | DB13: 0 | DC13: 0 | DD13: 0 | DE13: 0 | DF13: 0 | DG13: 0 | DH13: 0 | DI13: 0 | DJ13: 0 | DK13: 0 | DL13: 0 | DM13: 0 | DN13: 0 | DO13: 0 | DP13: 0 | DQ13: 0 | DR13: 0 | DS13: 0 | DT13: 0 | DU13: 0 | DV13: 0 | DW13: 0 | DX13: 0
A14: 91 | B14: Summa | F14: =SUM(F8:F12) -> 78.49170852 | G14: =SUM(G8:G12) -> 140 | I14: 0 | J14: =IF(RIGHT('Från 3L'!$C$2,2)="01",kapital!BA14,IF(RIGHT('Från 3L'!$C$2,2)="07",kapital!CA14,DA14)) -> 0 | K14: =IF(RIGHT('Från 3L'!$C$2,2)="01",kapital!BB14,IF(RIGHT('Från 3L'!$C$2,2)="07",kapital!CB14,DB14)) -> 0 | L14: =IF(RIGHT('Från 3L'!$C$2,2)="01",kapital!BC14,IF(RIGHT('Från 3L'!$C$2,2)="07",kapital!CC14,DC14)) -> 0 | M14: =IF(RIGHT('Från 3L'!$C$2,2)="01",kapital!BD14,IF(RIGHT('Från 3L'!$C$2,2)="07",kapital!CD14,DD14)) -> 0 | N14: =IF(RIGHT('Från 3L'!$C$2,2)="01",kapital!BE14,IF(RIGHT('Från 3L'!$C$2,2)="07",kapital!CE14,DE14)) -> 0 | O14: =IF(RIGHT('Från 3L'!$C$2,2)="01",kapital!BF14,IF(RIGHT('Från 3L'!$C$2,2)="07",kapital!CF14,DF14)) -> 0 | P14: =IF(RIGHT('Från 3L'!$C$2,2)="01",kapital!BG14,IF(RIGHT('Från 3L'!$C$2,2)="07",kapital!CG14,DG14)) -> 0 | Q14: =IF(RIGHT('Från 3L'!$C$2,2)="01",kapital!BH14,IF(RIGHT('Från 3L'!$C$2,2)="07",kapital!CH14,DH14)) -> 0 | R14: =IF(RIGHT('Från 3L'!$C$2,2)="01",kapital!BI14,IF(RIGHT('Från 3L'!$C$2,2)="07",kapital!CI14,DI14)) -> 0 | S14: =IF(RIGHT('Från 3L'!$C$2,2)="01",kapital!BJ14,IF(RIGHT('Från 3L'!$C$2,2)="07",kapital!CJ14,DJ14)) -> 0 | T14: =IF(RIGHT('Från 3L'!$C$2,2)="01",kapital!BK14,IF(RIGHT('Från 3L'!$C$2,2)="07",kapital!CK14,DK14)) -> 0 | U14: =IF(RIGHT('Från 3L'!$C$2,2)="01",kapital!BL14,IF(RIGHT('Från 3L'!$C$2,2)="07",kapital!CL14,DL14)) -> 0 | V14: 0 | X14: =IF(RIGHT('Från 3L'!$C$2,2)="01",kapital!BM14,IF(RIGHT('Från 3L'!$C$2,2)="07",kapital!CM14,DM14)) -> 0 | Y14: =IF(RIGHT('Från 3L'!$C$2,2)="01",kapital!BN14,IF(RIGHT('Från 3L'!$C$2,2)="07",kapital!CN14,DN14)) -> 0 | Z14: =IF(RIGHT('Från 3L'!$C$2,2)="01",kapital!BO14,IF(RIGHT('Från 3L'!$C$2,2)="07",kapital!CO14,DO14)) -> 0 | AA14: =IF(RIGHT('Från 3L'!$C$2,2)="01",kapital!BP14,IF(RIGHT('Från 3L'!$C$2,2)="07",kapital!CP14,DP14)) -> 0 | AB14: =IF(RIGHT('Från 3L'!$C$2,2)="01",kapital!BQ14,IF(RIGHT('Från 3L'!$C$2,2)="07",kapital!CQ14,DQ14)) -> 0 | AC14: =IF(RIGHT('Från 3L'!$C$2,2)="01",kapital!BR14,IF(RIGHT('Från 3L'!$C$2,2)="07",kapital!CR14,DR14)) -> 0 | AD14: =IF(RIGHT('Från 3L'!$C$2,2)="01",kapital!BS14,IF(RIGHT('Från 3L'!$C$2,2)="07",kapital!CS14,DS14)) -> 0 | AE14: =IF(RIGHT('Från 3L'!$C$2,2)="01",kapital!BT14,IF(RIGHT('Från 3L'!$C$2,2)="07",kapital!CT14,DT14)) -> 0 | AF14: =IF(RIGHT('Från 3L'!$C$2,2)="01",kapital!BU14,IF(RIGHT('Från 3L'!$C$2,2)="07",kapital!CU14,DU14)) -> 0 | AG14: =IF(RIGHT('Från 3L'!$C$2,2)="01",kapital!BV14,IF(RIGHT('Från 3L'!$C$2,2)="07",kapital!CV14,DV14)) -> 0 | AH14: =IF(RIGHT('Från 3L'!$C$2,2)="01",kapital!BW14,IF(RIGHT('Från 3L'!$C$2,2)="07",kapital!CW14,DW14)) -> 0 | AI14: =IF(RIGHT('Från 3L'!$C$2,2)="01",kapital!BX14,IF(RIGHT('Från 3L'!$C$2,2)="07",kapital!CX14,DX14)) -> 0 | AJ14: 0 | BA14: 0 | BB14: 0 | BC14: 0 | BD14: 0 | BE14: 0 | BF14: 0 | BG14: 0 | BH14: 0 | BI14: 0 | BJ14: 0 | BK14: 0 | BL14: 0 | BM14: 0 | BN14: 0 | BO14: 0 | BP14: 0 | BQ14: 0 | BR14: 0 | BS14: 0 | BT14: 0 | BU14: 0 | BV14: 0 | BW14: 0 | BX14: 0 | CA14: 0 | CB14: 0 | CC14: 0 | CD14: 0 | CE14: 0 | CF14: 0 | CG14: 0 | CH14: 0 | CI14: 0 | CJ14: 0 | CK14: 0 | CL14: 0 | CM14: 0 | CN14: 0 | CO14: 0 | CP14: 0 | CQ14: 0 | CR14: 0 | CS14: 0 | CT14: 0 | CU14: 0 | CV14: 0 | CW14: 0 | CX14: 0 | DA14: 0 | DB14: 0 | DC14: 0 | DD14: 0 | DE14: 0 | DF14: 0 | DG14: 0 | DH14: 0 | DI14: 0 | DJ14: 0 | DK14: 0 | DL14: 0 | DM14: 0 | DN14: 0 | DO14: 0 | DP14: 0 | DQ14: 0 | DR14: 0 | DS14: 0 | DT14: 0 | DU14: 0 | DV14: 0 | DW14: 0 | DX14: 0
A15: 91 | I15: 0 | J15: =IF(RIGHT('Från 3L'!$C$2,2)="01",kapital!BA15,IF(RIGHT('Från 3L'!$C$2,2)="07",kapital!CA15,DA15)) -> 0 | K15: =IF(RIGHT('Från 3L'!$C$2,2)="01",kapital!BB15,IF(RIGHT('Från 3L'!$C$2,2)="07",kapital!CB15,DB15)) -> 0 | L15: =IF(RIGHT('Från 3L'!$C$2,2)="01",kapital!BC15,IF(RIGHT('Från 3L'!$C$2,2)="07",kapital!CC15,DC15)) -> 0 | M15: =IF(RIGHT('Från 3L'!$C$2,2)="01",kapital!BD15,IF(RIGHT('Från 3L'!$C$2,2)="07",kapital!CD15,DD15)) -> 0 | N15: =IF(RIGHT('Från 3L'!$C$2,2)="01",kapital!BE15,IF(RIGHT('Från 3L'!$C$2,2)="07",kapital!CE15,DE15)) -> 0 | O15: =IF(RIGHT('Från 3L'!$C$2,2)="01",kapital!BF15,IF(RIGHT('Från 3L'!$C$2,2)="07",kapital!CF15,DF15)) -> 0 | P15: =IF(RIGHT('Från 3L'!$C$2,2)="01",kapital!BG15,IF(RIGHT('Från 3L'!$C$2,2)="07",kapital!CG15,DG15)) -> 0 | Q15: =IF(RIGHT('Från 3L'!$C$2,2)="01",kapital!BH15,IF(RIGHT('Från 3L'!$C$2,2)="07",kapital!CH15,DH15)) -> 0 | R15: =IF(RIGHT('Från 3L'!$C$2,2)="01",kapital!BI15,IF(RIGHT('Från 3L'!$C$2,2)="07",kapital!CI15,DI15)) -> 0 | S15: =IF(RIGHT('Från 3L'!$C$2,2)="01",kapital!BJ15,IF(RIGHT('Från 3L'!$C$2,2)="07",kapital!CJ15,DJ15)) -> 0 | T15: =IF(RIGHT('Från 3L'!$C$2,2)="01",kapital!BK15,IF(RIGHT('Från 3L'!$C$2,2)="07",kapital!CK15,DK15)) -> 0 | U15: =IF(RIGHT('Från 3L'!$C$2,2)="01",kapital!BL15,IF(RIGHT('Från 3L'!$C$2,2)="07",kapital!CL15,DL15)) -> 0 | V15: 0 | X15: =IF(RIGHT('Från 3L'!$C$2,2)="01",kapital!BM15,IF(RIGHT('Från 3L'!$C$2,2)="07",kapital!CM15,DM15)) -> 0 | Y15: =IF(RIGHT('Från 3L'!$C$2,2)="01",kapital!BN15,IF(RIGHT('Från 3L'!$C$2,2)="07",kapital!CN15,DN15)) -> 0 | Z15: =IF(RIGHT('Från 3L'!$C$2,2)="01",kapital!BO15,IF(RIGHT('Från 3L'!$C$2,2)="07",kapital!CO15,DO15)) -> 0 | AA15: =IF(RIGHT('Från 3L'!$C$2,2)="01",kapital!BP15,IF(RIGHT('Från 3L'!$C$2,2)="07",kapital!CP15,DP15)) -> 0 | AB15: =IF(RIGHT('Från 3L'!$C$2,2)="01",kapital!BQ15,IF(RIGHT('Från 3L'!$C$2,2)="07",kapital!CQ15,DQ15)) -> 0 | AC15: =IF(RIGHT('Från 3L'!$C$2,2)="01",kapital!BR15,IF(RIGHT('Från 3L'!$C$2,2)="07",kapital!CR15,DR15)) -> 0 | AD15: =IF(RIGHT('Från 3L'!$C$2,2)="01",kapital!BS15,IF(RIGHT('Från 3L'!$C$2,2)="07",kapital!CS15,DS15)) -> 0 | AE15: =IF(RIGHT('Från 3L'!$C$2,2)="01",kapital!BT15,IF(RIGHT('Från 3L'!$C$2,2)="07",kapital!CT15,DT15)) -> 0 | AF15: =IF(RIGHT('Från 3L'!$C$2,2)="01",kapital!BU15,IF(RIGHT('Från 3L'!$C$2,2)="07",kapital!CU15,DU15)) -> 0 | AG15: =IF(RIGHT('Från 3L'!$C$2,2)="01",kapital!BV15,IF(RIGHT('Från 3L'!$C$2,2)="07",kapital!CV15,DV15)) -> 0 | AH15: =IF(RIGHT('Från 3L'!$C$2,2)="01",kapital!BW15,IF(RIGHT('Från 3L'!$C$2,2)="07",kapital!CW15,DW15)) -> 0 | AI15: =IF(RIGHT('Från 3L'!$C$2,2)="01",kapital!BX15,IF(RIGHT('Från 3L'!$C$2,2)="07",kapital!CX15,DX15)) -> 0 | AJ15: 0 | BA15: 0 | BB15: 0 | BC15: 0 | BD15: 0 | BE15: 0 | BF15: 0 | BG15: 0 | BH15: 0 | BI15: 0 | BJ15: 0 | BK15: 0 | BL15: 0 | BM15: 0 | BN15: 0 | BO15: 0 | BP15: 0 | BQ15: 0 | BR15: 0 | BS15: 0 | BT15: 0 | BU15: 0 | BV15: 0 | BW15: 0 | BX15: 0 | CA15: 0 | CB15: 0 | CC15: 0 | CD15: 0 | CE15: 0 | CF15: 0 | CG15: 0 | CH15: 0 | CI15: 0 | CJ15: 0 | CK15: 0 | CL15: 0 | CM15: 0 | CN15: 0 | CO15: 0 | CP15: 0 | CQ15: 0 | CR15: 0 | CS15: 0 | CT15: 0 | CU15: 0 | CV15: 0 | CW15: 0 | CX15: 0 | DA15: 0 | DB15: 0 | DC15: 0 | DD15: 0 | DE15: 0 | DF15: 0 | DG15: 0 | DH15: 0 | DI15: 0 | DJ15: 0 | DK15: 0 | DL15: 0 | DM15: 0 | DN15: 0 | DO15: 0 | DP15: 0 | DQ15: 0 | DR15: 0 | DS15: 0 | DT15: 0 | DU15: 0 | DV15: 0 | DW15: 0 | DX15: 0
A16: 91 | B16: Bank Nordea | C16: 2016-02-04 | D16: 6160 | E16: 0.0275 | F16: =D16*E16/365*34 -> 15.77972603 | G16: 35 | H16: =D16-G16 -> 6125 | I16: 2 | J16: =IF(RIGHT('Från 3L'!$C$2,2)="01",kapital!BA16,IF(RIGHT('Från 3L'!$C$2,2)="07",kapital!CA16,DA16)) -> 0 | K16: =IF(RIGHT('Från 3L'!$C$2,2)="01",kapital!BB16,IF(RIGHT('Från 3L'!$C$2,2)="07",kapital!CB16,DB16)) -> 42.2339726 | L16: =IF(RIGHT('Från 3L'!$C$2,2)="01",kapital!BC16,IF(RIGHT('Från 3L'!$C$2,2)="07",kapital!CC16,DC16)) -> 0 | M16: =IF(RIGHT('Från 3L'!$C$2,2)="01",kapital!BD16,IF(RIGHT('Från 3L'!$C$2,2)="07",kapital!CD16,DD16)) -> 0 | N16: =IF(RIGHT('Från 3L'!$C$2,2)="01",kapital!BE16,IF(RIGHT('Från 3L'!$C$2,2)="07",kapital!CE16,DE16)) -> 0 | O16: =IF(RIGHT('Från 3L'!$C$2,2)="01",kapital!BF16,IF(RIGHT('Från 3L'!$C$2,2)="07",kapital!CF16,DF16)) -> 0 | P16: =IF(RIGHT('Från 3L'!$C$2,2)="01",kapital!BG16,IF(RIGHT('Från 3L'!$C$2,2)="07",kapital!CG16,DG16)) -> 0 | Q16: =IF(RIGHT('Från 3L'!$C$2,2)="01",kapital!BH16,IF(RIGHT('Från 3L'!$C$2,2)="07",kapital!CH16,DH16)) -> 0 | R16: =IF(RIGHT('Från 3L'!$C$2,2)="01",kapital!BI16,IF(RIGHT('Från 3L'!$C$2,2)="07",kapital!CI16,DI16)) -> 0 | S16: =IF(RIGHT('Från 3L'!$C$2,2)="01",kapital!BJ16,IF(RIGHT('Från 3L'!$C$2,2)="07",kapital!CJ16,DJ16)) -> 0 | T16: =IF(RIGHT('Från 3L'!$C$2,2)="01",kapital!BK16,IF(RIGHT('Från 3L'!$C$2,2)="07",kapital!CK16,DK16)) -> 0 | U16: =IF(RIGHT('Från 3L'!$C$2,2)="01",kapital!BL16,IF(RIGHT('Från 3L'!$C$2,2)="07",kapital!CL16,DL16)) -> 0 | V16: 42.2339726 | X16: =IF(RIGHT('Från 3L'!$C$2,2)="01",kapital!BM16,IF(RIGHT('Från 3L'!$C$2,2)="07",kapital!CM16,DM16)) -> 0 | Y16: =IF(RIGHT('Från 3L'!$C$2,2)="01",kapital!BN16,IF(RIGHT('Från 3L'!$C$2,2)="07",kapital!CN16,DN16)) -> 35 | Z16: =IF(RIGHT('Från 3L'!$C$2,2)="01",kapital!BO16,IF(RIGHT('Från 3L'!$C$2,2)="07",kapital!CO16,DO16)) -> 0 | AA16: =IF(RIGHT('Från 3L'!$C$2,2)="01",kapital!BP16,IF(RIGHT('Från 3L'!$C$2,2)="07",kapital!CP16,DP16)) -> 0 | AB16: =IF(RIGHT('Från 3L'!$C$2,2)="01",kapital!BQ16,IF(RIGHT('Från 3L'!$C$2,2)="07",kapital!CQ16,DQ16)) -> 0 | AC16: =IF(RIGHT('Från 3L'!$C$2,2)="01",kapital!BR16,IF(RIGHT('Från 3L'!$C$2,2)="07",kapital!CR16,DR16)) -> 0 | AD16: =IF(RIGHT('Från 3L'!$C$2,2)="01",kapital!BS16,IF(RIGHT('Från 3L'!$C$2,2)="07",kapital!CS16,DS16)) -> 0 | AE16: =IF(RIGHT('Från 3L'!$C$2,2)="01",kapital!BT16,IF(RIGHT('Från 3L'!$C$2,2)="07",kapital!CT16,DT16)) -> 0 | AF16: =IF(RIGHT('Från 3L'!$C$2,2)="01",kapital!BU16,IF(RIGHT('Från 3L'!$C$2,2)="07",kapital!CU16,DU16)) -> 0 | AG16: =IF(RIGHT('Från 3L'!$C$2,2)="01",kapital!BV16,IF(RIGHT('Från 3L'!$C$2,2)="07",kapital!CV16,DV16)) -> 0 | AH16: =IF(RIGHT('Från 3L'!$C$2,2)="01",kapital!BW16,IF(RIGHT('Från 3L'!$C$2,2)="07",kapital!CW16,DW16)) -> 0 | AI16: =IF(RIGHT('Från 3L'!$C$2,2)="01",kapital!BX16,IF(RIGHT('Från 3L'!$C$2,2)="07",kapital!CX16,DX16)) -> 0 | AJ16: 35 | BA16: 0 | BB16: 42.2339726 | BC16: 0 | BD16: 0 | BE16: 0 | BF16: 0 | BG16: 0 | BH16: 0 | BI16: 0 | BJ16: 0 | BK16: 0 | BL16: 0 | BM16: 0 | BN16: 35 | BO16: 0 | BP16: 0 | BQ16: 0 | BR16: 0 | BS16: 0 | BT16: 0 | BU16: 0 | BV16: 0 | BW16: 0 | BX16: 0 | CA16: 0 | CB16: 0 | CC16: 0 | CD16: 0 | CE16: 0 | CF16: 0 | CG16: 0 | CH16: 42.82055556 | CI16: 0 | CJ16: 0 | CK16: 0 | CL16: 0 | CM16: 0 | CN16: 0 | CO16: 0 | CP16: 0 | CQ16: 0 | CR16: 0 | CS16: 0 | CT16: 35 | CU16: 0 | CV16: 0 | CW16: 0 | CX16: 0 | DA16: 0 | DB16: 0 | DC16: 0 | DD16: 0 | DE16: 0 | DF16: 42.82055556 | DG16: 0 | DH16: 0 | DI16: 0 | DJ16: 0 | DK16: 0 | DL16: 0 | DM16: 0 | DN16: 0 | DO16: 0 | DP16: 0 | DQ16: 0 | DR16: 35 | DS16: 0 | DT16: 0 | DU16: 0 | DV16: 0 | DW16: 0 | DX16: 0
A17: 91 | B17: Lån 3978 84 05991 | C17: 2016-05-04 | D17: =H16 -> 6125 | E17: 0.0275 | F17: =D17*E17/365*89 -> 41.07106164 | G17: 35 | H17: =D17-G17 -> 6090 | I17: 5 | J17: =IF(RIGHT('Från 3L'!$C$2,2)="01",kapital!BA17,IF(RIGHT('Från 3L'!$C$2,2)="07",kapital!CA17,DA17)) -> 0 | K17: =IF(RIGHT('Från 3L'!$C$2,2)="01",kapital!BB17,IF(RIGHT('Från 3L'!$C$2,2)="07",kapital!CB17,DB17)) -> 0 | L17: =IF(RIGHT('Från 3L'!$C$2,2)="01",kapital!BC17,IF(RIGHT('Från 3L'!$C$2,2)="07",kapital!CC17,DC17)) -> 0 | M17: =IF(RIGHT('Från 3L'!$C$2,2)="01",kapital!BD17,IF(RIGHT('Från 3L'!$C$2,2)="07",kapital!CD17,DD17)) -> 0 | N17: =IF(RIGHT('Från 3L'!$C$2,2)="01",kapital!BE17,IF(RIGHT('Från 3L'!$C$2,2)="07",kapital!CE17,DE17)) -> 41.07106164 | O17: =IF(RIGHT('Från 3L'!$C$2,2)="01",kapital!BF17,IF(RIGHT('Från 3L'!$C$2,2)="07",kapital!CF17,DF17)) -> 0 | P17: =IF(RIGHT('Från 3L'!$C$2,2)="01",kapital!BG17,IF(RIGHT('Från 3L'!$C$2,2)="07",kapital!CG17,DG17)) -> 0 | Q17: =IF(RIGHT('Från 3L'!$C$2,2)="01",kapital!BH17,IF(RIGHT('Från 3L'!$C$2,2)="07",kapital!CH17,DH17)) -> 0 | R17: =IF(RIGHT('Från 3L'!$C$2,2)="01",kapital!BI17,IF(RIGHT('Från 3L'!$C$2,2)="07",kapital!CI17,DI17)) -> 0 | S17: =IF(RIGHT('Från 3L'!$C$2,2)="01",kapital!BJ17,IF(RIGHT('Från 3L'!$C$2,2)="07",kapital!CJ17,DJ17)) -> 0 | T17: =IF(RIGHT('Från 3L'!$C$2,2)="01",kapital!BK17,IF(RIGHT('Från 3L'!$C$2,2)="07",kapital!CK17,DK17)) -> 0 | U17: =IF(RIGHT('Från 3L'!$C$2,2)="01",kapital!BL17,IF(RIGHT('Från 3L'!$C$2,2)="07",kapital!CL17,DL17)) -> 0 | V17: 41.07106164 | X17: =IF(RIGHT('Från 3L'!$C$2,2)="01",kapital!BM17,IF(RIGHT('Från 3L'!$C$2,2)="07",kapital!CM17,DM17)) -> 0 | Y17: =IF(RIGHT('Från 3L'!$C$2,2)="01",kapital!BN17,IF(RIGHT('Från 3L'!$C$2,2)="07",kapital!CN17,DN17)) -> 0 | Z17: =IF(RIGHT('Från 3L'!$C$2,2)="01",kapital!BO17,IF(RIGHT('Från 3L'!$C$2,2)="07",kapital!CO17,DO17)) -> 0 | AA17: =IF(RIGHT('Från 3L'!$C$2,2)="01",kapital!BP17,IF(RIGHT('Från 3L'!$C$2,2)="07",kapital!CP17,DP17)) -> 0 | AB17: =IF(RIGHT('Från 3L'!$C$2,2)="01",kapital!BQ17,IF(RIGHT('Från 3L'!$C$2,2)="07",kapital!CQ17,DQ17)) -> 35 | AC17: =IF(RIGHT('Från 3L'!$C$2,2)="01",kapital!BR17,IF(RIGHT('Från 3L'!$C$2,2)="07",kapital!CR17,DR17)) -> 0 | AD17: =IF(RIGHT('Från 3L'!$C$2,2)="01",kapital!BS17,IF(RIGHT('Från 3L'!$C$2,2)="07",kapital!CS17,DS17)) -> 0 | AE17: =IF(RIGHT('Från 3L'!$C$2,2)="01",kapital!BT17,IF(RIGHT('Från 3L'!$C$2,2)="07",kapital!CT17,DT17)) -> 0 | AF17: =IF(RIGHT('Från 3L'!$C$2,2)="01",kapital!BU17,IF(RIGHT('Från 3L'!$C$2,2)="07",kapital!CU17,DU17)) -> 0 | AG17: =IF(RIGHT('Från 3L'!$C$2,2)="01",kapital!BV17,IF(RIGHT('Från 3L'!$C$2,2)="07",kapital!CV17,DV17)) -> 0 | AH17: =IF(RIGHT('Från 3L'!$C$2,2)="01",kapital!BW17,IF(RIGHT('Från 3L'!$C$2,2)="07",kapital!CW17,DW17)) -> 0 | AI17: =IF(RIGHT('Från 3L'!$C$2,2)="01",kapital!BX17,IF(RIGHT('Från 3L'!$C$2,2)="07",kapital!CX17,DX17)) -> 0 | AJ17: 35 | BA17: 0 | BB17: 0 | BC17: 0 | BD17: 0 | BE17: 41.07106164 | BF17: 0 | BG17: 0 | BH17: 0 | BI17: 0 | BJ17: 0 | BK17: 0 | BL17: 0 | BM17: 0 | BN17: 0 | BO17: 0 | BP17: 0 | BQ17: 35 | BR17: 0 | BS17: 0 | BT17: 0 | BU17: 0 | BV17: 0 | BW17: 0 | BX17: 0 | CA17: 0 | CB17: 0 | CC17: 0 | CD17: 0 | CE17: 0 | CF17: 0 | CG17: 0 | CH17: 0 | CI17: 0 | CJ17: 0 | CK17: 41.07106164 | CL17: 0 | CM17: 0 | CN17: 0 | CO17: 0 | CP17: 0 | CQ17: 0 | CR17: 0 | CS17: 0 | CT17: 0 | CU17: 0 | CV17: 0 | CW17: 35 | CX17: 0 | DA17: 0 | DB17: 0 | DC17: 0 | DD17: 0 | DE17: 0 | DF17: 0 | DG17: 0 | DH17: 0 | DI17: 41.07106164 | DJ17: 0 | DK17: 0 | DL17: 0 | DM17: 0 | DN17: 0 | DO17: 0 | DP17: 0 | DQ17: 0 | DR17: 0 | DS17: 0 | DT17: 0 | DU17: 35 | DV17: 0 | DW17: 0 | DX17: 0
A18: 91 | B18: rörligt | C18: 2016-08-04 | D18: =H17 -> 6090 | E18: 0.0275 | F18: =D18*E18/365*92 -> 42.21287671 | G18: 35 | H18: =D18-G18 -> 6055 | I18: 8 | J18: =IF(RIGHT('Från 3L'!$C$2,2)="01",kapital!BA18,IF(RIGHT('Från 3L'!$C$2,2)="07",kapital!CA18,DA18)) -> 0 | K18: =IF(RIGHT('Från 3L'!$C$2,2)="01",kapital!BB18,IF(RIGHT('Från 3L'!$C$2,2)="07",kapital!CB18,DB18)) -> 0 | L18: =IF(RIGHT('Från 3L'!$C$2,2)="01",kapital!BC18,IF(RIGHT('Från 3L'!$C$2,2)="07",kapital!CC18,DC18)) -> 0 | M18: =IF(RIGHT('Från 3L'!$C$2,2)="01",kapital!BD18,IF(RIGHT('Från 3L'!$C$2,2)="07",kapital!CD18,DD18)) -> 0 | N18: =IF(RIGHT('Från 3L'!$C$2,2)="01",kapital!BE18,IF(RIGHT('Från 3L'!$C$2,2)="07",kapital!CE18,DE18)) -> 0 | O18: =IF(RIGHT('Från 3L'!$C$2,2)="01",kapital!BF18,IF(RIGHT('Från 3L'!$C$2,2)="07",kapital!CF18,DF18)) -> 0 | P18: =IF(RIGHT('Från 3L'!$C$2,2)="01",kapital!BG18,IF(RIGHT('Från 3L'!$C$2,2)="07",kapital!CG18,DG18)) -> 0 | Q18: =IF(RIGHT('Från 3L'!$C$2,2)="01",kapital!BH18,IF(RIGHT('Från 3L'!$C$2,2)="07",kapital!CH18,DH18)) -> 42.21287671 | R18: =IF(RIGHT('Från 3L'!$C$2,2)="01",kapital!BI18,IF(RIGHT('Från 3L'!$C$2,2)="07",kapital!CI18,DI18)) -> 0 | S18: =IF(RIGHT('Från 3L'!$C$2,2)="01",kapital!BJ18,IF(RIGHT('Från 3L'!$C$2,2)="07",kapital!CJ18,DJ18)) -> 0 | T18: =IF(RIGHT('Från 3L'!$C$2,2)="01",kapital!BK18,IF(RIGHT('Från 3L'!$C$2,2)="07",kapital!CK18,DK18)) -> 0 | U18: =IF(RIGHT('Från 3L'!$C$2,2)="01",kapital!BL18,IF(RIGHT('Från 3L'!$C$2,2)="07",kapital!CL18,DL18)) -> 0 | V18: 42.21287671 | X18: =IF(RIGHT('Från 3L'!$C$2,2)="01",kapital!BM18,IF(RIGHT('Från 3L'!$C$2,2)="07",kapital!CM18,DM18)) -> 0 | Y18: =IF(RIGHT('Från 3L'!$C$2,2)="01",kapital!BN18,IF(RIGHT('Från 3L'!$C$2,2)="07",kapital!CN18,DN18)) -> 0 | Z18: =IF(RIGHT('Från 3L'!$C$2,2)="01",kapital!BO18,IF(RIGHT('Från 3L'!$C$2,2)="07",kapital!CO18,DO18)) -> 0 | AA18: =IF(RIGHT('Från 3L'!$C$2,2)="01",kapital!BP18,IF(RIGHT('Från 3L'!$C$2,2)="07",kapital!CP18,DP18)) -> 0 | AB18: =IF(RIGHT('Från 3L'!$C$2,2)="01",kapital!BQ18,IF(RIGHT('Från 3L'!$C$2,2)="07",kapital!CQ18,DQ18)) -> 0 | AC18: =IF(RIGHT('Från 3L'!$C$2,2)="01",kapital!BR18,IF(RIGHT('Från 3L'!$C$2,2)="07",kapital!CR18,DR18)) -> 0 | AD18: =IF(RIGHT('Från 3L'!$C$2,2)="01",kapital!BS18,IF(RIGHT('Från 3L'!$C$2,2)="07",kapital!CS18,DS18)) -> 0 | AE18: =IF(RIGHT('Från 3L'!$C$2,2)="01",kapital!BT18,IF(RIGHT('Från 3L'!$C$2,2)="07",kapital!CT18,DT18)) -> 35 | AF18: =IF(RIGHT('Från 3L'!$C$2,2)="01",kapital!BU18,IF(RIGHT('Från 3L'!$C$2,2)="07",kapital!CU18,DU18)) -> 0 | AG18: =IF(RIGHT('Från 3L'!$C$2,2)="01",kapital!BV18,IF(RIGHT('Från 3L'!$C$2,2)="07",kapital!CV18,DV18)) -> 0 | AH18: =IF(RIGHT('Från 3L'!$C$2,2)="01",kapital!BW18,IF(RIGHT('Från 3L'!$C$2,2)="07",kapital!CW18,DW18)) -> 0 | AI18: =IF(RIGHT('Från 3L'!$C$2,2)="01",kapital!BX18,IF(RIGHT('Från 3L'!$C$2,2)="07",kapital!CX18,DX18)) -> 0 | AJ18: 35 | BA18: 0 | BB18: 0 | BC18: 0 | BD18: 0 | BE18: 0 | BF18: 0 | BG18: 0 | BH18: 42.21287671 | BI18: 0 | BJ18: 0 | BK18: 0 | BL18: 0 | BM18: 0 | BN18: 0 | BO18: 0 | BP18: 0 | BQ18: 0 | BR18: 0 | BS18: 0 | BT18: 35 | BU18: 0 | BV18: 0 | BW18: 0 | BX18: 0 | CA18: 0 | CB18: 42.21287671 | CC18: 0 | CD18: 0 | CE18: 0 | CF18: 0 | CG18: 0 | CH18: 0 | CI18: 0 | CJ18: 0 | CK18: 0 | CL18: 0 | CM18: 0 | CN18: 35 | CO18: 0 | CP18: 0 | CQ18: 0 | CR18: 0 | CS18: 0 | CT18: 0 | CU18: 0 | CV18: 0 | CW18: 0 | CX18: 0 | DA18: 0 | DB18: 0 | DC18: 0 | DD18: 0 | DE18: 0 | DF18: 0 | DG18: 0 | DH18: 0 | DI18: 0 | DJ18: 0 | DK18: 0 | DL18: 0 | DM18: 0 | DN18: 0 | DO18: 0 | DP18: 0 | DQ18: 0 | DR18: 0 | DS18: 0 | DT18: 0 | DU18: 0 | DV18: 0 | DW18: 0 | DX18: 35
A19: 91 | C19: 2016-11-04 | D19: =H18 -> 6055 | E19: 0.0275 | F19: =D19*E19/360*92 -> 42.55319444 | G19: 35 | H19: =D19-G19 -> 6020 | I19: 11 | J19: =IF(RIGHT('Från 3L'!$C$2,2)="01",kapital!BA19,IF(RIGHT('Från 3L'!$C$2,2)="07",kapital!CA19,DA19)) -> 0 | K19: =IF(RIGHT('Från 3L'!$C$2,2)="01",kapital!BB19,IF(RIGHT('Från 3L'!$C$2,2)="07",kapital!CB19,DB19)) -> 0 | L19: =IF(RIGHT('Från 3L'!$C$2,2)="01",kapital!BC19,IF(RIGHT('Från 3L'!$C$2,2)="07",kapital!CC19,DC19)) -> 0 | M19: =IF(RIGHT('Från 3L'!$C$2,2)="01",kapital!BD19,IF(RIGHT('Från 3L'!$C$2,2)="07",kapital!CD19,DD19)) -> 0 | N19: =IF(RIGHT('Från 3L'!$C$2,2)="01",kapital!BE19,IF(RIGHT('Från 3L'!$C$2,2)="07",kapital!CE19,DE19)) -> 0 | O19: =IF(RIGHT('Från 3L'!$C$2,2)="01",kapital!BF19,IF(RIGHT('Från 3L'!$C$2,2)="07",kapital!CF19,DF19)) -> 0 | P19: =IF(RIGHT('Från 3L'!$C$2,2)="01",kapital!BG19,IF(RIGHT('Från 3L'!$C$2,2)="07",kapital!CG19,DG19)) -> 0 | Q19: =IF(RIGHT('Från 3L'!$C$2,2)="01",kapital!BH19,IF(RIGHT('Från 3L'!$C$2,2)="07",kapital!CH19,DH19)) -> 0 | R19: =IF(RIGHT('Från 3L'!$C$2,2)="01",kapital!BI19,IF(RIGHT('Från 3L'!$C$2,2)="07",kapital!CI19,DI19)) -> 0 | S19: =IF(RIGHT('Från 3L'!$C$2,2)="01",kapital!BJ19,IF(RIGHT('Från 3L'!$C$2,2)="07",kapital!CJ19,DJ19)) -> 0 | T19: =IF(RIGHT('Från 3L'!$C$2,2)="01",kapital!BK19,IF(RIGHT('Från 3L'!$C$2,2)="07",kapital!CK19,DK19)) -> 42.55319444 | U19: =IF(RIGHT('Från 3L'!$C$2,2)="01",kapital!BL19,IF(RIGHT('Från 3L'!$C$2,2)="07",kapital!CL19,DL19)) -> 0 | V19: 42.55319444 | X19: =IF(RIGHT('Från 3L'!$C$2,2)="01",kapital!BM19,IF(RIGHT('Från 3L'!$C$2,2)="07",kapital!CM19,DM19)) -> 0 | Y19: =IF(RIGHT('Från 3L'!$C$2,2)="01",kapital!BN19,IF(RIGHT('Från 3L'!$C$2,2)="07",kapital!CN19,DN19)) -> 0 | Z19: =IF(RIGHT('Från 3L'!$C$2,2)="01",kapital!BO19,IF(RIGHT('Från 3L'!$C$2,2)="07",kapital!CO19,DO19)) -> 0 | AA19: =IF(RIGHT('Från 3L'!$C$2,2)="01",kapital!BP19,IF(RIGHT('Från 3L'!$C$2,2)="07",kapital!CP19,DP19)) -> 0 | AB19: =IF(RIGHT('Från 3L'!$C$2,2)="01",kapital!BQ19,IF(RIGHT('Från 3L'!$C$2,2)="07",kapital!CQ19,DQ19)) -> 0 | AC19: =IF(RIGHT('Från 3L'!$C$2,2)="01",kapital!BR19,IF(RIGHT('Från 3L'!$C$2,2)="07",kapital!CR19,DR19)) -> 0 | AD19: =IF(RIGHT('Från 3L'!$C$2,2)="01",kapital!BS19,IF(RIGHT('Från 3L'!$C$2,2)="07",kapital!CS19,DS19)) -> 0 | AE19: =IF(RIGHT('Från 3L'!$C$2,2)="01",kapital!BT19,IF(RIGHT('Från 3L'!$C$2,2)="07",kapital!CT19,DT19)) -> 0 | AF19: =IF(RIGHT('Från 3L'!$C$2,2)="01",kapital!BU19,IF(RIGHT('Från 3L'!$C$2,2)="07",kapital!CU19,DU19)) -> 0 | AG19: =IF(RIGHT('Från 3L'!$C$2,2)="01",kapital!BV19,IF(RIGHT('Från 3L'!$C$2,2)="07",kapital!CV19,DV19)) -> 0 | AH19: =IF(RIGHT('Från 3L'!$C$2,2)="01",kapital!BW19,IF(RIGHT('Från 3L'!$C$2,2)="07",kapital!CW19,DW19)) -> 35 | AI19: =IF(RIGHT('Från 3L'!$C$2,2)="01",kapital!BX19,IF(RIGHT('Från 3L'!$C$2,2)="07",kapital!CX19,DX19)) -> 0 | AJ19: 35 | BA19: 0 | BB19: 0 | BC19: 0 | BD19: 0 | BE19: 0 | BF19: 0 | BG19: 0 | BH19: 0 | BI19: 0 | BJ19: 0 | BK19: 42.55319444 | BL19: 0 | BM19: 0 | BN19: 0 | BO19: 0 | BP19: 0 | BQ19: 0 | BR19: 0 | BS19: 0 | BT19: 0 | BU19: 0 | BV19: 0 | BW19: 35 | BX19: 0 | CA19: 0 | CB19: 0 | CC19: 0 | CD19: 0 | CE19: 42.55319444 | CF19: 0 | CG19: 0 | CH19: 0 | CI19: 0 | CJ19: 0 | CK19: 0 | CL19: 0 | CM19: 0 | CN19: 0 | CO19: 0 | CP19: 0 | CQ19: 35 | CR19: 0 | CS19: 0 | CT19: 0 | CU19: 0 | CV19: 0 | CW19: 0 | CX19: 0 | DA19: 0 | DB19: 0 | DC19: 42.55319444 | DD19: 0 | DE19: 0 | DF19: 0 | DG19: 0 | DH19: 0 | DI19: 0 | DJ19: 0 | DK19: 0 | DL19: 0 | DM19: 0 | DN19: 0 | DO19: 35 | DP19: 0 | DQ19: 0 | DR19: 0 | DS19: 0 | DT19: 0 | DU19: 0 | DV19: 0 | DW19: 0 | DX19: 0
A20: 91 | C20: 2016-12-31 | D20: =H19 -> 6020 | E20: 0.0275 | F20: =D20*E20/365*56 -> 25.39945205 | G20: 0 | H20: =D20-G20 -> 6020 | I20: 12 | J20: =IF(RIGHT('Från 3L'!$C$2,2)="01",kapital!BA20,IF(RIGHT('Från 3L'!$C$2,2)="07",kapital!CA20,DA20)) -> 0 | K20: =IF(RIGHT('Från 3L'!$C$2,2)="01",kapital!BB20,IF(RIGHT('Från 3L'!$C$2,2)="07",kapital!CB20,DB20)) -> 0 | L20: =IF(RIGHT('Från 3L'!$C$2,2)="01",kapital!BC20,IF(RIGHT('Från 3L'!$C$2,2)="07",kapital!CC20,DC20)) -> 0 | M20: =IF(RIGHT('Från 3L'!$C$2,2)="01",kapital!BD20,IF(RIGHT('Från 3L'!$C$2,2)="07",kapital!CD20,DD20)) -> 0 | N20: =IF(RIGHT('Från 3L'!$C$2,2)="01",kapital!BE20,IF(RIGHT('Från 3L'!$C$2,2)="07",kapital!CE20,DE20)) -> 0 | O20: =IF(RIGHT('Från 3L'!$C$2,2)="01",kapital!BF20,IF(RIGHT('Från 3L'!$C$2,2)="07",kapital!CF20,DF20)) -> 0 | P20: =IF(RIGHT('Från 3L'!$C$2,2)="01",kapital!BG20,IF(RIGHT('Från 3L'!$C$2,2)="07",kapital!CG20,DG20)) -> 0 | Q20: =IF(RIGHT('Från 3L'!$C$2,2)="01",kapital!BH20,IF(RIGHT('Från 3L'!$C$2,2)="07",kapital!CH20,DH20)) -> 0 | R20: =IF(RIGHT('Från 3L'!$C$2,2)="01",kapital!BI20,IF(RIGHT('Från 3L'!$C$2,2)="07",kapital!CI20,DI20)) -> 0 | S20: =IF(RIGHT('Från 3L'!$C$2,2)="01",kapital!BJ20,IF(RIGHT('Från 3L'!$C$2,2)="07",kapital!CJ20,DJ20)) -> 0 | T20: =IF(RIGHT('Från 3L'!$C$2,2)="01",kapital!BK20,IF(RIGHT('Från 3L'!$C$2,2)="07",kapital!CK20,DK20)) -> 0 | U20: =IF(RIGHT('Från 3L'!$C$2,2)="01",kapital!BL20,IF(RIGHT('Från 3L'!$C$2,2)="07",kapital!CL20,DL20)) -> 0 | V20: =SUM(J20:U20) -> 0 | X20: =IF(RIGHT('Från 3L'!$C$2,2)="01",kapital!BM20,IF(RIGHT('Från 3L'!$C$2,2)="07",kapital!CM20,DM20)) -> 0 | Y20: =IF(RIGHT('Från 3L'!$C$2,2)="01",kapital!BN20,IF(RIGHT('Från 3L'!$C$2,2)="07",kapital!CN20,DN20)) -> 0 | Z20: =IF(RIGHT('Från 3L'!$C$2,2)="01",kapital!BO20,IF(RIGHT('Från 3L'!$C$2,2)="07",kapital!CO20,DO20)) -> 0 | AA20: =IF(RIGHT('Från 3L'!$C$2,2)="01",kapital!BP20,IF(RIGHT('Från 3L'!$C$2,2)="07",kapital!CP20,DP20)) -> 0 | AB20: =IF(RIGHT('Från 3L'!$C$2,2)="01",kapital!BQ20,IF(RIGHT('Från 3L'!$C$2,2)="07",kapital!CQ20,DQ20)) -> 0 | AC20: =IF(RIGHT('Från 3L'!$C$2,2)="01",kapital!BR20,IF(RIGHT('Från 3L'!$C$2,2)="07",kapital!CR20,DR20)) -> 0 | AD20: =IF(RIGHT('Från 3L'!$C$2,2)="01",kapital!BS20,IF(RIGHT('Från 3L'!$C$2,2)="07",kapital!CS20,DS20)) -> 0 | AE20: =IF(RIGHT('Från 3L'!$C$2,2)="01",kapital!BT20,IF(RIGHT('Från 3L'!$C$2,2)="07",kapital!CT20,DT20)) -> 0 | AF20: =IF(RIGHT('Från 3L'!$C$2,2)="01",kapital!BU20,IF(RIGHT('Från 3L'!$C$2,2)="07",kapital!CU20,DU20)) -> 0 | AG20: =IF(RIGHT('Från 3L'!$C$2,2)="01",kapital!BV20,IF(RIGHT('Från 3L'!$C$2,2)="07",kapital!CV20,DV20)) -> 0 | AH20: =IF(RIGHT('Från 3L'!$C$2,2)="01",kapital!BW20,IF(RIGHT('Från 3L'!$C$2,2)="07",kapital!CW20,DW20)) -> 0 | AI20: =IF(RIGHT('Från 3L'!$C$2,2)="01",kapital!BX20,IF(RIGHT('Från 3L'!$C$2,2)="07",kapital!CX20,DX20)) -> 0 | AJ20: =SUM(X20:AI20) -> 0 | BA20: 0 | BB20: 0 | BC20: 0 | BD20: 0 | BE20: 0 | BF20: 0 | BG20: 0 | BH20: 0 | BI20: 0 | BJ20: 0 | BK20: 0 | BL20: 0 | BM20: 0 | BN20: 0 | BO20: 0 | BP20: 0 | BQ20: 0 | BR20: 0 | BS20: 0 | BT20: 0 | BU20: 0 | BV20: 0 | BW20: 0 | BX20: 0 | CA20: 0 | CB20: 0 | CC20: 0 | CD20: 0 | CE20: 0 | CF20: 25.39945205 | CG20: 0 | CH20: 0 | CI20: 0 | CJ20: 0 | CK20: 0 | CL20: 0 | CM20: 0 | CN20: 0 | CO20: 0 | CP20: 0 | CQ20: 0 | CR20: 0 | CS20: 0 | CT20: 0 | CU20: 0 | CV20: 0 | CW20: 0 | CX20: 0 | DA20: 0 | DB20: 0 | DC20: 0 | DD20: 25.39945205 | DE20: 0 | DF20: 0 | DG20: 0 | DH20: 0 | DI20: 0 | DJ20: 0 | DK20: 0 | DL20: 0 | DM20: 0 | DN20: 0 | DO20: 0 | DP20: 0 | DQ20: 0 | DR20: 0 | DS20: 0 | DT20: 0 | DU20: 0 | DV20: 0 | DW20: 0 | DX20: 0
A21: 91 | I21: 0 | J21: =IF(RIGHT('Från 3L'!$C$2,2)="01",kapital!BA21,IF(RIGHT('Från 3L'!$C$2,2)="07",kapital!CA21,DA21)) -> 0 | K21: =IF(RIGHT('Från 3L'!$C$2,2)="01",kapital!BB21,IF(RIGHT('Från 3L'!$C$2,2)="07",kapital!CB21,DB21)) -> 0 | L21: =IF(RIGHT('Från 3L'!$C$2,2)="01",kapital!BC21,IF(RIGHT('Från 3L'!$C$2,2)="07",kapital!CC21,DC21)) -> 0 | M21: =IF(RIGHT('Från 3L'!$C$2,2)="01",kapital!BD21,IF(RIGHT('Från 3L'!$C$2,2)="07",kapital!CD21,DD21)) -> 0 | N21: =IF(RIGHT('Från 3L'!$C$2,2)="01",kapital!BE21,IF(RIGHT('Från 3L'!$C$2,2)="07",kapital!CE21,DE21)) -> 0 | O21: =IF(RIGHT('Från 3L'!$C$2,2)="01",kapital!BF21,IF(RIGHT('Från 3L'!$C$2,2)="07",kapital!CF21,DF21)) -> 0 | P21: =IF(RIGHT('Från 3L'!$C$2,2)="01",kapital!BG21,IF(RIGHT('Från 3L'!$C$2,2)="07",kapital!CG21,DG21)) -> 0 | Q21: =IF(RIGHT('Från 3L'!$C$2,2)="01",kapital!BH21,IF(RIGHT('Från 3L'!$C$2,2)="07",kapital!CH21,DH21)) -> 0 | R21: =IF(RIGHT('Från 3L'!$C$2,2)="01",kapital!BI21,IF(RIGHT('Från 3L'!$C$2,2)="07",kapital!CI21,DI21)) -> 0 | S21: =IF(RIGHT('Från 3L'!$C$2,2)="01",kapital!BJ21,IF(RIGHT('Från 3L'!$C$2,2)="07",kapital!CJ21,DJ21)) -> 0 | T21: =IF(RIGHT('Från 3L'!$C$2,2)="01",kapital!BK21,IF(RIGHT('Från 3L'!$C$2,2)="07",kapital!CK21,DK21)) -> 0 | U21: =IF(RIGHT('Från 3L'!$C$2,2)="01",kapital!BL21,IF(RIGHT('Från 3L'!$C$2,2)="07",kapital!CL21,DL21)) -> 0 | V21: 0 | X21: =IF(RIGHT('Från 3L'!$C$2,2)="01",kapital!BM21,IF(RIGHT('Från 3L'!$C$2,2)="07",kapital!CM21,DM21)) -> 0 | Y21: =IF(RIGHT('Från 3L'!$C$2,2)="01",kapital!BN21,IF(RIGHT('Från 3L'!$C$2,2)="07",kapital!CN21,DN21)) -> 0 | Z21: =IF(RIGHT('Från 3L'!$C$2,2)="01",kapital!BO21,IF(RIGHT('Från 3L'!$C$2,2)="07",kapital!CO21,DO21)) -> 0 | AA21: =IF(RIGHT('Från 3L'!$C$2,2)="01",kapital!BP21,IF(RIGHT('Från 3L'!$C$2,2)="07",kapital!CP21,DP21)) -> 0 | AB21: =IF(RIGHT('Från 3L'!$C$2,2)="01",kapital!BQ21,IF(RIGHT('Från 3L'!$C$2,2)="07",kapital!CQ21,DQ21)) -> 0 | AC21: =IF(RIGHT('Från 3L'!$C$2,2)="01",kapital!BR21,IF(RIGHT('Från 3L'!$C$2,2)="07",kapital!CR21,DR21)) -> 0 | AD21: =IF(RIGHT('Från 3L'!$C$2,2)="01",kapital!BS21,IF(RIGHT('Från 3L'!$C$2,2)="07",kapital!CS21,DS21)) -> 0 | AE21: =IF(RIGHT('Från 3L'!$C$2,2)="01",kapital!BT21,IF(RIGHT('Från 3L'!$C$2,2)="07",kapital!CT21,DT21)) -> 0 | AF21: =IF(RIGHT('Från 3L'!$C$2,2)="01",kapital!BU21,IF(RIGHT('Från 3L'!$C$2,2)="07",kapital!CU21,DU21)) -> 0 | AG21: =IF(RIGHT('Från 3L'!$C$2,2)="01",kapital!BV21,IF(RIGHT('Från 3L'!$C$2,2)="07",kapital!CV21,DV21)) -> 0 | AH21: =IF(RIGHT('Från 3L'!$C$2,2)="01",kapital!BW21,IF(RIGHT('Från 3L'!$C$2,2)="07",kapital!CW21,DW21)) -> 0 | AI21: =IF(RIGHT('Från 3L'!$C$2,2)="01",kapital!BX21,IF(RIGHT('Från 3L'!$C$2,2)="07",kapital!CX21,DX21)) -> 0 | AJ21: =SUM(X21:AI21) -> 0 | BA21: 0 | BB21: 0 | BC21: 0 | BD21: 0 | BE21: 0 | BF21: 0 | BG21: 0 | BH21: 0 | BI21: 0 | BJ21: 0 | BK21: 0 | BL21: 0 | BM21: 0 | BN21: 0 | BO21: 0 | BP21: 0 | BQ21: 0 | BR21: 0 | BS21: 0 | BT21: 0 | BU21: 0 | BV21: 0 | BW21: 0 | BX21: 0 | CA21: 0 | CB21: 0 | CC21: 0 | CD21: 0 | CE21: 0 | CF21: 0 | CG21: 0 | CH21: 0 | CI21: 0 | CJ21: 0 | CK21: 0 | CL21: 0 | CM21: 0 | CN21: 0 | CO21: 0 | CP21: 0 | CQ21: 0 | CR21: 0 | CS21: 0 | CT21: 0 | CU21: 0 | CV21: 0 | CW21: 0 | CX21: 0 | DA21: 0 | DB21: 0 | DC21: 0 | DD21: 0 | DE21: 0 | DF21: 0 | DG21: 0 | DH21: 0 | DI21: 0 | DJ21: 0 | DK21: 0 | DL21: 0 | DM21: 0 | DN21: 0 | DO21: 0 | DP21: 0 | DQ21: 0 | DR21: 0 | DS21: 0 | DT21: 0 | DU21: 0 | DV21: 0 | DW21: 0 | DX21: 0
A22: 91 | B22: Summa | F22: =SUM(F16:F20) -> 167.0163109 | G22: =SUM(G16:G20) -> 140 | I22: 0 | J22: =IF(RIGHT('Från 3L'!$C$2,2)="01",kapital!BA22,IF(RIGHT('Från 3L'!$C$2,2)="07",kapital!CA22,DA22)) -> 0 | K22: =IF(RIGHT('Från 3L'!$C$2,2)="01",kapital!BB22,IF(RIGHT('Från 3L'!$C$2,2)="07",kapital!CB22,DB22)) -> 0 | L22: =IF(RIGHT('Från 3L'!$C$2,2)="01",kapital!BC22,IF(RIGHT('Från 3L'!$C$2,2)="07",kapital!CC22,DC22)) -> 0 | M22: =IF(RIGHT('Från 3L'!$C$2,2)="01",kapital!BD22,IF(RIGHT('Från 3L'!$C$2,2)="07",kapital!CD22,DD22)) -> 0 | N22: =IF(RIGHT('Från 3L'!$C$2,2)="01",kapital!BE22,IF(RIGHT('Från 3L'!$C$2,2)="07",kapital!CE22,DE22)) -> 0 | O22: =IF(RIGHT('Från 3L'!$C$2,2)="01",kapital!BF22,IF(RIGHT('Från 3L'!$C$2,2)="07",kapital!CF22,DF22)) -> 0 | P22: =IF(RIGHT('Från 3L'!$C$2,2)="01",kapital!BG22,IF(RIGHT('Från 3L'!$C$2,2)="07",kapital!CG22,DG22)) -> 0 | Q22: =IF(RIGHT('Från 3L'!$C$2,2)="01",kapital!BH22,IF(RIGHT('Från 3L'!$C$2,2)="07",kapital!CH22,DH22)) -> 0 | R22: =IF(RIGHT('Från 3L'!$C$2,2)="01",kapital!BI22,IF(RIGHT('Från 3L'!$C$2,2)="07",kapital!CI22,DI22)) -> 0 | S22: =IF(RIGHT('Från 3L'!$C$2,2)="01",kapital!BJ22,IF(RIGHT('Från 3L'!$C$2,2)="07",kapital!CJ22,DJ22)) -> 0 | T22: =IF(RIGHT('Från 3L'!$C$2,2)="01",kapital!BK22,IF(RIGHT('Från 3L'!$C$2,2)="07",kapital!CK22,DK22)) -> 0 | U22: =IF(RIGHT('Från 3L'!$C$2,2)="01",kapital!BL22,IF(RIGHT('Från 3L'!$C$2,2)="07",kapital!CL22,DL22)) -> 0 | V22: 0 | X22: =IF(RIGHT('Från 3L'!$C$2,2)="01",kapital!BM22,IF(RIGHT('Från 3L'!$C$2,2)="07",kapital!CM22,DM22)) -> 0 | Y22: =IF(RIGHT('Från 3L'!$C$2,2)="01",kapital!BN22,IF(RIGHT('Från 3L'!$C$2,2)="07",kapital!CN22,DN22)) -> 0 | Z22: =IF(RIGHT('Från 3L'!$C$2,2)="01",kapital!BO22,IF(RIGHT('Från 3L'!$C$2,2)="07",kapital!CO22,DO22)) -> 0 | AA22: =IF(RIGHT('Från 3L'!$C$2,2)="01",kapital!BP22,IF(RIGHT('Från 3L'!$C$2,2)="07",kapital!CP22,DP22)) -> 0 | AB22: =IF(RIGHT('Från 3L'!$C$2,2)="01",kapital!BQ22,IF(RIGHT('Från 3L'!$C$2,2)="07",kapital!CQ22,DQ22)) -> 0 | AC22: =IF(RIGHT('Från 3L'!$C$2,2)="01",kapital!BR22,IF(RIGHT('Från 3L'!$C$2,2)="07",kapital!CR22,DR22)) -> 0 | AD22: =IF(RIGHT('Från 3L'!$C$2,2)="01",kapital!BS22,IF(RIGHT('Från 3L'!$C$2,2)="07",kapital!CS22,DS22)) -> 0 | AE22: =IF(RIGHT('Från 3L'!$C$2,2)="01",kapital!BT22,IF(RIGHT('Från 3L'!$C$2,2)="07",kapital!CT22,DT22)) -> 0 | AF22: =IF(RIGHT('Från 3L'!$C$2,2)="01",kapital!BU22,IF(RIGHT('Från 3L'!$C$2,2)="07",kapital!CU22,DU22)) -> 0 | AG22: =IF(RIGHT('Från 3L'!$C$2,2)="01",kapital!BV22,IF(RIGHT('Från 3L'!$C$2,2)="07",kapital!CV22,DV22)) -> 0 | AH22: =IF(RIGHT('Från 3L'!$C$2,2)="01",kapital!BW22,IF(RIGHT('Från 3L'!$C$2,2)="07",kapital!CW22,DW22)) -> 0 | AI22: =IF(RIGHT('Från 3L'!$C$2,2)="01",kapital!BX22,IF(RIGHT('Från 3L'!$C$2,2)="07",kapital!CX22,DX22)) -> 0 | AJ22: 0 | BA22: 0 | BB22: 0 | BC22: 0 | BD22: 0 | BE22: 0 | BF22: 0 | BG22: 0 | BH22: 0 | BI22: 0 | BJ22: 0 | BK22: 0 | BL22: 0 | BM22: 0 | BN22: 0 | BO22: 0 | BP22: 0 | BQ22: 0 | BR22: 0 | BS22: 0 | BT22: 0 | BU22: 0 | BV22: 0 | BW22: 0 | BX22: 0 | CA22: 0 | CB22: 0 | CC22: 0 | CD22: 0 | CE22: 0 | CF22: 0 | CG22: 0 | CH22: 0 | CI22: 0 | CJ22: 0 | CK22: 0 | CL22: 0 | CM22: 0 | CN22: 0 | CO22: 0 | CP22: 0 | CQ22: 0 | CR22: 0 | CS22: 0 | CT22: 0 | CU22: 0 | CV22: 0 | CW22: 0 | CX22: 0 | DA22: 0 | DB22: 0 | DC22: 0 | DD22: 0 | DE22: 0 | DF22: 0 | DG22: 0 | DH22: 0 | DI22: 0 | DJ22: 0 | DK22: 0 | DL22: 0 | DM22: 0 | DN22: 0 | DO22: 0 | DP22: 0 | DQ22: 0 | DR22: 0 | DS22: 0 | DT22: 0 | DU22: 0 | DV22: 0 | DW22: 0 | DX22: 0
A23: 91 | I23: 0 | J23: =IF(RIGHT('Från 3L'!$C$2,2)="01",kapital!BA23,IF(RIGHT('Från 3L'!$C$2,2)="07",kapital!CA23,DA23)) -> 0 | K23: =IF(RIGHT('Från 3L'!$C$2,2)="01",kapital!BB23,IF(RIGHT('Från 3L'!$C$2,2)="07",kapital!CB23,DB23)) -> 0 | L23: =IF(RIGHT('Från 3L'!$C$2,2)="01",kapital!BC23,IF(RIGHT('Från 3L'!$C$2,2)="07",kapital!CC23,DC23)) -> 0 | M23: =IF(RIGHT('Från 3L'!$C$2,2)="01",kapital!BD23,IF(RIGHT('Från 3L'!$C$2,2)="07",kapital!CD23,DD23)) -> 0 | N23: =IF(RIGHT('Från 3L'!$C$2,2)="01",kapital!BE23,IF(RIGHT('Från 3L'!$C$2,2)="07",kapital!CE23,DE23)) -> 0 | O23: =IF(RIGHT('Från 3L'!$C$2,2)="01",kapital!BF23,IF(RIGHT('Från 3L'!$C$2,2)="07",kapital!CF23,DF23)) -> 0 | P23: =IF(RIGHT('Från 3L'!$C$2,2)="01",kapital!BG23,IF(RIGHT('Från 3L'!$C$2,2)="07",kapital!CG23,DG23)) -> 0 | Q23: =IF(RIGHT('Från 3L'!$C$2,2)="01",kapital!BH23,IF(RIGHT('Från 3L'!$C$2,2)="07",kapital!CH23,DH23)) -> 0 | R23: =IF(RIGHT('Från 3L'!$C$2,2)="01",kapital!BI23,IF(RIGHT('Från 3L'!$C$2,2)="07",kapital!CI23,DI23)) -> 0 | S23: =IF(RIGHT('Från 3L'!$C$2,2)="01",kapital!BJ23,IF(RIGHT('Från 3L'!$C$2,2)="07",kapital!CJ23,DJ23)) -> 0 | T23: =IF(RIGHT('Från 3L'!$C$2,2)="01",kapital!BK23,IF(RIGHT('Från 3L'!$C$2,2)="07",kapital!CK23,DK23)) -> 0 | U23: =IF(RIGHT('Från 3L'!$C$2,2)="01",kapital!BL23,IF(RIGHT('Från 3L'!$C$2,2)="07",kapital!CL23,DL23)) -> 0 | V23: 0 | X23: =IF(RIGHT('Från 3L'!$C$2,2)="01",kapital!BM23,IF(RIGHT('Från 3L'!$C$2,2)="07",kapital!CM23,DM23)) -> 0 | Y23: =IF(RIGHT('Från 3L'!$C$2,2)="01",kapital!BN23,IF(RIGHT('Från 3L'!$C$2,2)="07",kapital!CN23,DN23)) -> 0 | Z23: =IF(RIGHT('Från 3L'!$C$2,2)="01",kapital!BO23,IF(RIGHT('Från 3L'!$C$2,2)="07",kapital!CO23,DO23)) -> 0 | AA23: =IF(RIGHT('Från 3L'!$C$2,2)="01",kapital!BP23,IF(RIGHT('Från 3L'!$C$2,2)="07",kapital!CP23,DP23)) -> 0 | AB23: =IF(RIGHT('Från 3L'!$C$2,2)="01",kapital!BQ23,IF(RIGHT('Från 3L'!$C$2,2)="07",kapital!CQ23,DQ23)) -> 0 | AC23: =IF(RIGHT('Från 3L'!$C$2,2)="01",kapital!BR23,IF(RIGHT('Från 3L'!$C$2,2)="07",kapital!CR23,DR23)) -> 0 | AD23: =IF(RIGHT('Från 3L'!$C$2,2)="01",kapital!BS23,IF(RIGHT('Från 3L'!$C$2,2)="07",kapital!CS23,DS23)) -> 0 | AE23: =IF(RIGHT('Från 3L'!$C$2,2)="01",kapital!BT23,IF(RIGHT('Från 3L'!$C$2,2)="07",kapital!CT23,DT23)) -> 0 | AF23: =IF(RIGHT('Från 3L'!$C$2,2)="01",kapital!BU23,IF(RIGHT('Från 3L'!$C$2,2)="07",kapital!CU23,DU23)) -> 0 | AG23: =IF(RIGHT('Från 3L'!$C$2,2)="01",kapital!BV23,IF(RIGHT('Från 3L'!$C$2,2)="07",kapital!CV23,DV23)) -> 0 | AH23: =IF(RIGHT('Från 3L'!$C$2,2)="01",kapital!BW23,IF(RIGHT('Från 3L'!$C$2,2)="07",kapital!CW23,DW23)) -> 0 | AI23: =IF(RIGHT('Från 3L'!$C$2,2)="01",kapital!BX23,IF(RIGHT('Från 3L'!$C$2,2)="07",kapital!CX23,DX23)) -> 0 | AJ23: 0 | BA23: 0 | BB23: 0 | BC23: 0 | BD23: 0 | BE23: 0 | BF23: 0 | BG23: 0 | BH23: 0 | BI23: 0 | BJ23: 0 | BK23: 0 | BL23: 0 | BM23: 0 | BN23: 0 | BO23: 0 | BP23: 0 | BQ23: 0 | BR23: 0 | BS23: 0 | BT23: 0 | BU23: 0 | BV23: 0 | BW23: 0 | BX23: 0 | CA23: 0 | CB23: 0 | CC23: 0 | CD23: 0 | CE23: 0 | CF23: 0 | CG23: 0 | CH23: 0 | CI23: 0 | CJ23: 0 | CK23: 0 | CL23: 0 | CM23: 0 | CN23: 0 | CO23: 0 | CP23: 0 | CQ23: 0 | CR23: 0 | CS23: 0 | CT23: 0 | CU23: 0 | CV23: 0 | CW23: 0 | CX23: 0 | DA23: 0 | DB23: 0 | DC23: 0 | DD23: 0 | DE23: 0 | DF23: 0 | DG23: 0 | DH23: 0 | DI23: 0 | DJ23: 0 | DK23: 0 | DL23: 0 | DM23: 0 | DN23: 0 | DO23: 0 | DP23: 0 | DQ23: 0 | DR23: 0 | DS23: 0 | DT23: 0 | DU23: 0 | DV23: 0 | DW23: 0 | DX23: 0
A24: 91 | B24: Bank Nordea | C24: 2016-03-21 | D24: 3636 | E24: 0.011 | F24: =D24*E24/365*81 -> 8.875824658 | G24: 50 | H24: =D24-G24 -> 3586 | I24: 3 | J24: =IF(RIGHT('Från 3L'!$C$2,2)="01",kapital!BA24,IF(RIGHT('Från 3L'!$C$2,2)="07",kapital!CA24,DA24)) -> 0 | K24: =IF(RIGHT('Från 3L'!$C$2,2)="01",kapital!BB24,IF(RIGHT('Från 3L'!$C$2,2)="07",kapital!CB24,DB24)) -> 0 | L24: =IF(RIGHT('Från 3L'!$C$2,2)="01",kapital!BC24,IF(RIGHT('Från 3L'!$C$2,2)="07",kapital!CC24,DC24)) -> 9.971605479 | M24: =IF(RIGHT('Från 3L'!$C$2,2)="01",kapital!BD24,IF(RIGHT('Från 3L'!$C$2,2)="07",kapital!CD24,DD24)) -> 0 | N24: =IF(RIGHT('Från 3L'!$C$2,2)="01",kapital!BE24,IF(RIGHT('Från 3L'!$C$2,2)="07",kapital!CE24,DE24)) -> 0 | O24: =IF(RIGHT('Från 3L'!$C$2,2)="01",kapital!BF24,IF(RIGHT('Från 3L'!$C$2,2)="07",kapital!CF24,DF24)) -> 0 | P24: =IF(RIGHT('Från 3L'!$C$2,2)="01",kapital!BG24,IF(RIGHT('Från 3L'!$C$2,2)="07",kapital!CG24,DG24)) -> 0 | Q24: =IF(RIGHT('Från 3L'!$C$2,2)="01",kapital!BH24,IF(RIGHT('Från 3L'!$C$2,2)="07",kapital!CH24,DH24)) -> 0 | R24: =IF(RIGHT('Från 3L'!$C$2,2)="01",kapital!BI24,IF(RIGHT('Från 3L'!$C$2,2)="07",kapital!CI24,DI24)) -> 0 | S24: =IF(RIGHT('Från 3L'!$C$2,2)="01",kapital!BJ24,IF(RIGHT('Från 3L'!$C$2,2)="07",kapital!CJ24,DJ24)) -> 0 | T24: =IF(RIGHT('Från 3L'!$C$2,2)="01",kapital!BK24,IF(RIGHT('Från 3L'!$C$2,2)="07",kapital!CK24,DK24)) -> 0 | U24: =IF(RIGHT('Från 3L'!$C$2,2)="01",kapital!BL24,IF(RIGHT('Från 3L'!$C$2,2)="07",kapital!CL24,DL24)) -> 0 | V24: 9.971605479 | X24: =IF(RIGHT('Från 3L'!$C$2,2)="01",kapital!BM24,IF(RIGHT('Från 3L'!$C$2,2)="07",kapital!CM24,DM24)) -> 0 | Y24: =IF(RIGHT('Från 3L'!$C$2,2)="01",kapital!BN24,IF(RIGHT('Från 3L'!$C$2,2)="07",kapital!CN24,DN24)) -> 0 | Z24: =IF(RIGHT('Från 3L'!$C$2,2)="01",kapital!BO24,IF(RIGHT('Från 3L'!$C$2,2)="07",kapital!CO24,DO24)) -> 50 | AA24: =IF(RIGHT('Från 3L'!$C$2,2)="01",kapital!BP24,IF(RIGHT('Från 3L'!$C$2,2)="07",kapital!CP24,DP24)) -> 0 | AB24: =IF(RIGHT('Från 3L'!$C$2,2)="01",kapital!BQ24,IF(RIGHT('Från 3L'!$C$2,2)="07",kapital!CQ24,DQ24)) -> 0 | AC24: =IF(RIGHT('Från 3L'!$C$2,2)="01",kapital!BR24,IF(RIGHT('Från 3L'!$C$2,2)="07",kapital!CR24,DR24)) -> 0 | AD24: =IF(RIGHT('Från 3L'!$C$2,2)="01",kapital!BS24,IF(RIGHT('Från 3L'!$C$2,2)="07",kapital!CS24,DS24)) -> 0 | AE24: =IF(RIGHT('Från 3L'!$C$2,2)="01",kapital!BT24,IF(RIGHT('Från 3L'!$C$2,2)="07",kapital!CT24,DT24)) -> 0 | AF24: =IF(RIGHT('Från 3L'!$C$2,2)="01",kapital!BU24,IF(RIGHT('Från 3L'!$C$2,2)="07",kapital!CU24,DU24)) -> 0 | AG24: =IF(RIGHT('Från 3L'!$C$2,2)="01",kapital!BV24,IF(RIGHT('Från 3L'!$C$2,2)="07",kapital!CV24,DV24)) -> 0 | AH24: =IF(RIGHT('Från 3L'!$C$2,2)="01",kapital!BW24,IF(RIGHT('Från 3L'!$C$2,2)="07",kapital!CW24,DW24)) -> 0 | AI24: =IF(RIGHT('Från 3L'!$C$2,2)="01",kapital!BX24,IF(RIGHT('Från 3L'!$C$2,2)="07",kapital!CX24,DX24)) -> 0 | AJ24: 50 | BA24: 0 | BB24: 0 | BC24: 9.971605479 | BD24: 0 | BE24: 0 | BF24: 0 | BG24: 0 | BH24: 0 | BI24: 0 | BJ24: 0 | BK24: 0 | BL24: 0 | BM24: 0 | BN24: 0 | BO24: 50 | BP24: 0 | BQ24: 0 | BR24: 0 | BS24: 0 | BT24: 0 | BU24: 0 | BV24: 0 | BW24: 0 | BX24: 0 | CA24: 0 | CB24: 0 | CC24: 0 | CD24: 0 | CE24: 0 | CF24: 0 | CG24: 0 | CH24: 0 | CI24: 10.1101 | CJ24: 0 | CK24: 0 | CL24: 0 | CM24: 0 | CN24: 0 | CO24: 0 | CP24: 0 | CQ24: 0 | CR24: 0 | CS24: 0 | CT24: 0 | CU24: 50 | CV24: 0 | CW24: 0 | CX24: 0 | DA24: 0 | DB24: 0 | DC24: 0 | DD24: 0 | DE24: 0 | DF24: 0 | DG24: 10.1101 | DH24: 0 | DI24: 0 | DJ24: 0 | DK24: 0 | DL24: 0 | DM24: 0 | DN24: 0 | DO24: 0 | DP24: 0 | DQ24: 0 | DR24: 0 | DS24: 50 | DT24: 0 | DU24: 0 | DV24: 0 | DW24: 0 | DX24: 0
A25: 91 | B25: Lån 3978 84 06009 | C25: 2016-06-21 | D25: =H24 -> 3586 | E25: 0.012 | F25: =D25*E25/365*89 -> 10.49273425 | G25: 50 | H25: =D25-G25 -> 3536 | I25: 6 | J25: =IF(RIGHT('Från 3L'!$C$2,2)="01",kapital!BA25,IF(RIGHT('Från 3L'!$C$2,2)="07",kapital!CA25,DA25)) -> 0 | K25: =IF(RIGHT('Från 3L'!$C$2,2)="01",kapital!BB25,IF(RIGHT('Från 3L'!$C$2,2)="07",kapital!CB25,DB25)) -> 0 | L25: =IF(RIGHT('Från 3L'!$C$2,2)="01",kapital!BC25,IF(RIGHT('Från 3L'!$C$2,2)="07",kapital!CC25,DC25)) -> 0 | M25: =IF(RIGHT('Från 3L'!$C$2,2)="01",kapital!BD25,IF(RIGHT('Från 3L'!$C$2,2)="07",kapital!CD25,DD25)) -> 0 | N25: =IF(RIGHT('Från 3L'!$C$2,2)="01",kapital!BE25,IF(RIGHT('Från 3L'!$C$2,2)="07",kapital!CE25,DE25)) -> 0 | O25: =IF(RIGHT('Från 3L'!$C$2,2)="01",kapital!BF25,IF(RIGHT('Från 3L'!$C$2,2)="07",kapital!CF25,DF25)) -> 10.49273425 | P25: =IF(RIGHT('Från 3L'!$C$2,2)="01",kapital!BG25,IF(RIGHT('Från 3L'!$C$2,2)="07",kapital!CG25,DG25)) -> 0 | Q25: =IF(RIGHT('Från 3L'!$C$2,2)="01",kapital!BH25,IF(RIGHT('Från 3L'!$C$2,2)="07",kapital!CH25,DH25)) -> 0 | R25: =IF(RIGHT('Från 3L'!$C$2,2)="01",kapital!BI25,IF(RIGHT('Från 3L'!$C$2,2)="07",kapital!CI25,DI25)) -> 0 | S25: =IF(RIGHT('Från 3L'!$C$2,2)="01",kapital!BJ25,IF(RIGHT('Från 3L'!$C$2,2)="07",kapital!CJ25,DJ25)) -> 0 | T25: =IF(RIGHT('Från 3L'!$C$2,2)="01",kapital!BK25,IF(RIGHT('Från 3L'!$C$2,2)="07",kapital!CK25,DK25)) -> 0 | U25: =IF(RIGHT('Från 3L'!$C$2,2)="01",kapital!BL25,IF(RIGHT('Från 3L'!$C$2,2)="07",kapital!CL25,DL25)) -> 0 | V25: 10.49273425 | X25: =IF(RIGHT('Från 3L'!$C$2,2)="01",kapital!BM25,IF(RIGHT('Från 3L'!$C$2,2)="07",kapital!CM25,DM25)) -> 0 | Y25: =IF(RIGHT('Från 3L'!$C$2,2)="01",kapital!BN25,IF(RIGHT('Från 3L'!$C$2,2)="07",kapital!CN25,DN25)) -> 0 | Z25: =IF(RIGHT('Från 3L'!$C$2,2)="01",kapital!BO25,IF(RIGHT('Från 3L'!$C$2,2)="07",kapital!CO25,DO25)) -> 0 | AA25: =IF(RIGHT('Från 3L'!$C$2,2)="01",kapital!BP25,IF(RIGHT('Från 3L'!$C$2,2)="07",kapital!CP25,DP25)) -> 0 | AB25: =IF(RIGHT('Från 3L'!$C$2,2)="01",kapital!BQ25,IF(RIGHT('Från 3L'!$C$2,2)="07",kapital!CQ25,DQ25)) -> 0 | AC25: =IF(RIGHT('Från 3L'!$C$2,2)="01",kapital!BR25,IF(RIGHT('Från 3L'!$C$2,2)="07",kapital!CR25,DR25)) -> 50 | AD25: =IF(RIGHT('Från 3L'!$C$2,2)="01",kapital!BS25,IF(RIGHT('Från 3L'!$C$2,2)="07",kapital!CS25,DS25)) -> 0 | AE25: =IF(RIGHT('Från 3L'!$C$2,2)="01",kapital!BT25,IF(RIGHT('Från 3L'!$C$2,2)="07",kapital!CT25,DT25)) -> 0 | AF25: =IF(RIGHT('Från 3L'!$C$2,2)="01",kapital!BU25,IF(RIGHT('Från 3L'!$C$2,2)="07",kapital!CU25,DU25)) -> 0 | AG25: =IF(RIGHT('Från 3L'!$C$2,2)="01",kapital!BV25,IF(RIGHT('Från 3L'!$C$2,2)="07",kapital!CV25,DV25)) -> 0 | AH25: =IF(RIGHT('Från 3L'!$C$2,2)="01",kapital!BW25,IF(RIGHT('Från 3L'!$C$2,2)="07",kapital!CW25,DW25)) -> 0 | AI25: =IF(RIGHT('Från 3L'!$C$2,2)="01",kapital!BX25,IF(RIGHT('Från 3L'!$C$2,2)="07",kapital!CX25,DX25)) -> 0 | AJ25: 50 | BA25: 0 | BB25: 0 | BC25: 0 | BD25: 0 | BE25: 0 | BF25: 10.49273425 | BG25: 0 | BH25: 0 | BI25: 0 | BJ25: 0 | BK25: 0 | BL25: 0 | BM25: 0 | BN25: 0 | BO25: 0 | BP25: 0 | BQ25: 0 | BR25: 50 | BS25: 0 | BT25: 0 | BU25: 0 | BV25: 0 | BW25: 0 | BX25: 0 | CA25: 0 | CB25: 0 | CC25: 0 | CD25: 0 | CE25: 0 | CF25: 0 | CG25: 0 | CH25: 0 | CI25: 0 | CJ25: 0 | CK25: 0 | CL25: 0 | CM25: 0 | CN25: 0 | CO25: 0 | CP25: 0 | CQ25: 0 | CR25: 0 | CS25: 0 | CT25: 0 | CU25: 0 | CV25: 0 | CW25: 0 | CX25: 50 | DA25: 0 | DB25: 0 | DC25: 0 | DD25: 0 | DE25: 0 | DF25: 0 | DG25: 0 | DH25: 0 | DI25: 0 | DJ25: 10.49273425 | DK25: 0 | DL25: 0 | DM25: 0 | DN25: 0 | DO25: 0 | DP25: 0 | DQ25: 0 | DR25: 0 | DS25: 0 | DT25: 0 | DU25: 0 | DV25: 50 | DW25: 0 | DX25: 0
A26: 91 | B26: rörligt | C26: 2016-09-21 | D26: =H25 -> 3536 | E26: 0.013 | F26: =D26*E26/365*92 -> 11.58645479 | G26: 50 | H26: =D26-G26 -> 3486 | I26: 9 | J26: =IF(RIGHT('Från 3L'!$C$2,2)="01",kapital!BA26,IF(RIGHT('Från 3L'!$C$2,2)="07",kapital!CA26,DA26)) -> 0 | K26: =IF(RIGHT('Från 3L'!$C$2,2)="01",kapital!BB26,IF(RIGHT('Från 3L'!$C$2,2)="07",kapital!CB26,DB26)) -> 0 | L26: =IF(RIGHT('Från 3L'!$C$2,2)="01",kapital!BC26,IF(RIGHT('Från 3L'!$C$2,2)="07",kapital!CC26,DC26)) -> 0 | M26: =IF(RIGHT('Från 3L'!$C$2,2)="01",kapital!BD26,IF(RIGHT('Från 3L'!$C$2,2)="07",kapital!CD26,DD26)) -> 0 | N26: =IF(RIGHT('Från 3L'!$C$2,2)="01",kapital!BE26,IF(RIGHT('Från 3L'!$C$2,2)="07",kapital!CE26,DE26)) -> 0 | O26: =IF(RIGHT('Från 3L'!$C$2,2)="01",kapital!BF26,IF(RIGHT('Från 3L'!$C$2,2)="07",kapital!CF26,DF26)) -> 0 | P26: =IF(RIGHT('Från 3L'!$C$2,2)="01",kapital!BG26,IF(RIGHT('Från 3L'!$C$2,2)="07",kapital!CG26,DG26)) -> 0 | Q26: =IF(RIGHT('Från 3L'!$C$2,2)="01",kapital!BH26,IF(RIGHT('Från 3L'!$C$2,2)="07",kapital!CH26,DH26)) -> 0 | R26: =IF(RIGHT('Från 3L'!$C$2,2)="01",kapital!BI26,IF(RIGHT('Från 3L'!$C$2,2)="07",kapital!CI26,DI26)) -> 11.58645479 | S26: =IF(RIGHT('Från 3L'!$C$2,2)="01",kapital!BJ26,IF(RIGHT('Från 3L'!$C$2,2)="07",kapital!CJ26,DJ26)) -> 0 | T26: =IF(RIGHT('Från 3L'!$C$2,2)="01",kapital!BK26,IF(RIGHT('Från 3L'!$C$2,2)="07",kapital!CK26,DK26)) -> 0 | U26: =IF(RIGHT('Från 3L'!$C$2,2)="01",kapital!BL26,IF(RIGHT('Från 3L'!$C$2,2)="07",kapital!CL26,DL26)) -> 0 | V26: 11.58645479 | X26: =IF(RIGHT('Från 3L'!$C$2,2)="01",kapital!BM26,IF(RIGHT('Från 3L'!$C$2,2)="07",kapital!CM26,DM26)) -> 0 | Y26: =IF(RIGHT('Från 3L'!$C$2,2)="01",kapital!BN26,IF(RIGHT('Från 3L'!$C$2,2)="07",kapital!CN26,DN26)) -> 0 | Z26: =IF(RIGHT('Från 3L'!$C$2,2)="01",kapital!BO26,IF(RIGHT('Från 3L'!$C$2,2)="07",kapital!CO26,DO26)) -> 0 | AA26: =IF(RIGHT('Från 3L'!$C$2,2)="01",kapital!BP26,IF(RIGHT('Från 3L'!$C$2,2)="07",kapital!CP26,DP26)) -> 0 | AB26: =IF(RIGHT('Från 3L'!$C$2,2)="01",kapital!BQ26,IF(RIGHT('Från 3L'!$C$2,2)="07",kapital!CQ26,DQ26)) -> 0 | AC26: =IF(RIGHT('Från 3L'!$C$2,2)="01",kapital!BR26,IF(RIGHT('Från 3L'!$C$2,2)="07",kapital!CR26,DR26)) -> 0 | AD26: =IF(RIGHT('Från 3L'!$C$2,2)="01",kapital!BS26,IF(RIGHT('Från 3L'!$C$2,2)="07",kapital!CS26,DS26)) -> 0 | AE26: =IF(RIGHT('Från 3L'!$C$2,2)="01",kapital!BT26,IF(RIGHT('Från 3L'!$C$2,2)="07",kapital!CT26,DT26)) -> 0 | AF26: =IF(RIGHT('Från 3L'!$C$2,2)="01",kapital!BU26,IF(RIGHT('Från 3L'!$C$2,2)="07",kapital!CU26,DU26)) -> 50 | AG26: =IF(RIGHT('Från 3L'!$C$2,2)="01",kapital!BV26,IF(RIGHT('Från 3L'!$C$2,2)="07",kapital!CV26,DV26)) -> 0 | AH26: =IF(RIGHT('Från 3L'!$C$2,2)="01",kapital!BW26,IF(RIGHT('Från 3L'!$C$2,2)="07",kapital!CW26,DW26)) -> 0 | AI26: =IF(RIGHT('Från 3L'!$C$2,2)="01",kapital!BX26,IF(RIGHT('Från 3L'!$C$2,2)="07",kapital!CX26,DX26)) -> 0 | AJ26: 50 | BA26: 0 | BB26: 0 | BC26: 0 | BD26: 0 | BE26: 0 | BF26: 0 | BG26: 0 | BH26: 0 | BI26: 11.58645479 | BJ26: 0 | BK26: 0 | BL26: 0 | BM26: 0 | BN26: 0 | BO26: 0 | BP26: 0 | BQ26: 0 | BR26: 0 | BS26: 0 | BT26: 0 | BU26: 50 | BV26: 0 | BW26: 0 | BX26: 0 | CA26: 0 | CB26: 0 | CC26: 11.58645479 | CD26: 0 | CE26: 0 | CF26: 0 | CG26: 0 | CH26: 0 | CI26: 0 | CJ26: 0 | CK26: 0 | CL26: 0 | CM26: 0 | CN26: 0 | CO26: 50 | CP26: 0 | CQ26: 0 | CR26: 0 | CS26: 0 | CT26: 0 | CU26: 0 | CV26: 0 | CW26: 0 | CX26: 0 | DA26: 11.58645479 | DB26: 0 | DC26: 0 | DD26: 0 | DE26: 0 | DF26: 0 | DG26: 0 | DH26: 0 | DI26: 0 | DJ26: 0 | DK26: 0 | DL26: 0 | DM26: 50 | DN26: 0 | DO26: 0 | DP26: 0 | DQ26: 0 | DR26: 0 | DS26: 0 | DT26: 0 | DU26: 0 | DV26: 0 | DW26: 0 | DX26: 0
A27: 91 | C27: 2016-12-21 | D27: =H26 -> 3486 | E27: 0.014 | F27: =D27*E27/360*92 -> 12.47213333 | G27: 50 | H27: =D27-G27 -> 3436 | I27: 12 | J27: =IF(RIGHT('Från 3L'!$C$2,2)="01",kapital!BA27,IF(RIGHT('Från 3L'!$C$2,2)="07",kapital!CA27,DA27)) -> 0 | K27: =IF(RIGHT('Från 3L'!$C$2,2)="01",kapital!BB27,IF(RIGHT('Från 3L'!$C$2,2)="07",kapital!CB27,DB27)) -> 0 | L27: =IF(RIGHT('Från 3L'!$C$2,2)="01",kapital!BC27,IF(RIGHT('Från 3L'!$C$2,2)="07",kapital!CC27,DC27)) -> 0 | M27: =IF(RIGHT('Från 3L'!$C$2,2)="01",kapital!BD27,IF(RIGHT('Från 3L'!$C$2,2)="07",kapital!CD27,DD27)) -> 0 | N27: =IF(RIGHT('Från 3L'!$C$2,2)="01",kapital!BE27,IF(RIGHT('Från 3L'!$C$2,2)="07",kapital!CE27,DE27)) -> 0 | O27: =IF(RIGHT('Från 3L'!$C$2,2)="01",kapital!BF27,IF(RIGHT('Från 3L'!$C$2,2)="07",kapital!CF27,DF27)) -> 0 | P27: =IF(RIGHT('Från 3L'!$C$2,2)="01",kapital!BG27,IF(RIGHT('Från 3L'!$C$2,2)="07",kapital!CG27,DG27)) -> 0 | Q27: =IF(RIGHT('Från 3L'!$C$2,2)="01",kapital!BH27,IF(RIGHT('Från 3L'!$C$2,2)="07",kapital!CH27,DH27)) -> 0 | R27: =IF(RIGHT('Från 3L'!$C$2,2)="01",kapital!BI27,IF(RIGHT('Från 3L'!$C$2,2)="07",kapital!CI27,DI27)) -> 0 | S27: =IF(RIGHT('Från 3L'!$C$2,2)="01",kapital!BJ27,IF(RIGHT('Från 3L'!$C$2,2)="07",kapital!CJ27,DJ27)) -> 0 | T27: =IF(RIGHT('Från 3L'!$C$2,2)="01",kapital!BK27,IF(RIGHT('Från 3L'!$C$2,2)="07",kapital!CK27,DK27)) -> 0 | U27: =IF(RIGHT('Från 3L'!$C$2,2)="01",kapital!BL27,IF(RIGHT('Från 3L'!$C$2,2)="07",kapital!CL27,DL27)) -> 12.47213333 | V27: 12.47213333 | X27: =IF(RIGHT('Från 3L'!$C$2,2)="01",kapital!BM27,IF(RIGHT('Från 3L'!$C$2,2)="07",kapital!CM27,DM27)) -> 0 | Y27: =IF(RIGHT('Från 3L'!$C$2,2)="01",kapital!BN27,IF(RIGHT('Från 3L'!$C$2,2)="07",kapital!CN27,DN27)) -> 0 | Z27: =IF(RIGHT('Från 3L'!$C$2,2)="01",kapital!BO27,IF(RIGHT('Från 3L'!$C$2,2)="07",kapital!CO27,DO27)) -> 0 | AA27: =IF(RIGHT('Från 3L'!$C$2,2)="01",kapital!BP27,IF(RIGHT('Från 3L'!$C$2,2)="07",kapital!CP27,DP27)) -> 0 | AB27: =IF(RIGHT('Från 3L'!$C$2,2)="01",kapital!BQ27,IF(RIGHT('Från 3L'!$C$2,2)="07",kapital!CQ27,DQ27)) -> 0 | AC27: =IF(RIGHT('Från 3L'!$C$2,2)="01",kapital!BR27,IF(RIGHT('Från 3L'!$C$2,2)="07",kapital!CR27,DR27)) -> 0 | AD27: =IF(RIGHT('Från 3L'!$C$2,2)="01",kapital!BS27,IF(RIGHT('Från 3L'!$C$2,2)="07",kapital!CS27,DS27)) -> 0 | AE27: =IF(RIGHT('Från 3L'!$C$2,2)="01",kapital!BT27,IF(RIGHT('Från 3L'!$C$2,2)="07",kapital!CT27,DT27)) -> 0 | AF27: =IF(RIGHT('Från 3L'!$C$2,2)="01",kapital!BU27,IF(RIGHT('Från 3L'!$C$2,2)="07",kapital!CU27,DU27)) -> 0 | AG27: =IF(RIGHT('Från 3L'!$C$2,2)="01",kapital!BV27,IF(RIGHT('Från 3L'!$C$2,2)="07",kapital!CV27,DV27)) -> 0 | AH27: =IF(RIGHT('Från 3L'!$C$2,2)="01",kapital!BW27,IF(RIGHT('Från 3L'!$C$2,2)="07",kapital!CW27,DW27)) -> 0 | AI27: =IF(RIGHT('Från 3L'!$C$2,2)="01",kapital!BX27,IF(RIGHT('Från 3L'!$C$2,2)="07",kapital!CX27,DX27)) -> 50 | AJ27: 50 | BA27: 0 | BB27: 0 | BC27: 0 | BD27: 0 | BE27: 0 | BF27: 0 | BG27: 0 | BH27: 0 | BI27: 0 | BJ27: 0 | BK27: 0 | BL27: 12.47213333 | BM27: 0 | BN27: 0 | BO27: 0 | BP27: 0 | BQ27: 0 | BR27: 0 | BS27: 0 | BT27: 0 | BU27: 0 | BV27: 0 | BW27: 0 | BX27: 50 | CA27: 0 | CB27: 0 | CC27: 0 | CD27: 0 | CE27: 0 | CF27: 12.47213333 | CG27: 0 | CH27: 0 | CI27: 0 | CJ27: 0 | CK27: 0 | CL27: 0 | CM27: 0 | CN27: 0 | CO27: 0 | CP27: 0 | CQ27: 0 | CR27: 50 | CS27: 0 | CT27: 0 | CU27: 0 | CV27: 0 | CW27: 0 | CX27: 0 | DA27: 0 | DB27: 0 | DC27: 0 | DD27: 12.47213333 | DE27: 0 | DF27: 0 | DG27: 0 | DH27: 0 | DI27: 0 | DJ27: 0 | DK27: 0 | DL27: 0 | DM27: 0 | DN27: 0 | DO27: 0 | DP27: 50 | DQ27: 0 | DR27: 0 | DS27: 0 | DT27: 0 | DU27: 0 | DV27: 0 | DW27: 0 | DX27: 0
A28: 91 | C28: 2016-12-31 | D28: =H27 -> 3436 | E28: 0.014 | F28: =D28*E28/365*9 -> 1.186126027 | G28: 0 | H28: =D28-G28 -> 3436 | I28: 12 | J28: =IF(RIGHT('Från 3L'!$C$2,2)="01",kapital!BA28,IF(RIGHT('Från 3L'!$C$2,2)="07",kapital!CA28,DA28)) -> 0 | K28: =IF(RIGHT('Från 3L'!$C$2,2)="01",kapital!BB28,IF(RIGHT('Från 3L'!$C$2,2)="07",kapital!CB28,DB28)) -> 0 | L28: =IF(RIGHT('Från 3L'!$C$2,2)="01",kapital!BC28,IF(RIGHT('Från 3L'!$C$2,2)="07",kapital!CC28,DC28)) -> 0 | M28: =IF(RIGHT('Från 3L'!$C$2,2)="01",kapital!BD28,IF(RIGHT('Från 3L'!$C$2,2)="07",kapital!CD28,DD28)) -> 0 | N28: =IF(RIGHT('Från 3L'!$C$2,2)="01",kapital!BE28,IF(RIGHT('Från 3L'!$C$2,2)="07",kapital!CE28,DE28)) -> 0 | O28: =IF(RIGHT('Från 3L'!$C$2,2)="01",kapital!BF28,IF(RIGHT('Från 3L'!$C$2,2)="07",kapital!CF28,DF28)) -> 0 | P28: =IF(RIGHT('Från 3L'!$C$2,2)="01",kapital!BG28,IF(RIGHT('Från 3L'!$C$2,2)="07",kapital!CG28,DG28)) -> 0 | Q28: =IF(RIGHT('Från 3L'!$C$2,2)="01",kapital!BH28,IF(RIGHT('Från 3L'!$C$2,2)="07",kapital!CH28,DH28)) -> 0 | R28: =IF(RIGHT('Från 3L'!$C$2,2)="01",kapital!BI28,IF(RIGHT('Från 3L'!$C$2,2)="07",kapital!CI28,DI28)) -> 0 | S28: =IF(RIGHT('Från 3L'!$C$2,2)="01",kapital!BJ28,IF(RIGHT('Från 3L'!$C$2,2)="07",kapital!CJ28,DJ28)) -> 0 | T28: =IF(RIGHT('Från 3L'!$C$2,2)="01",kapital!BK28,IF(RIGHT('Från 3L'!$C$2,2)="07",kapital!CK28,DK28)) -> 0 | U28: =IF(RIGHT('Från 3L'!$C$2,2)="01",kapital!BL28,IF(RIGHT('Från 3L'!$C$2,2)="07",kapital!CL28,DL28)) -> 0 | V28: =SUM(J28:U28) -> 0 | X28: =IF(RIGHT('Från 3L'!$C$2,2)="01",kapital!BM28,IF(RIGHT('Från 3L'!$C$2,2)="07",kapital!CM28,DM28)) -> 0 | Y28: =IF(RIGHT('Från 3L'!$C$2,2)="01",kapital!BN28,IF(RIGHT('Från 3L'!$C$2,2)="07",kapital!CN28,DN28)) -> 0 | Z28: =IF(RIGHT('Från 3L'!$C$2,2)="01",kapital!BO28,IF(RIGHT('Från 3L'!$C$2,2)="07",kapital!CO28,DO28)) -> 0 | AA28: =IF(RIGHT('Från 3L'!$C$2,2)="01",kapital!BP28,IF(RIGHT('Från 3L'!$C$2,2)="07",kapital!CP28,DP28)) -> 0 | AB28: =IF(RIGHT('Från 3L'!$C$2,2)="01",kapital!BQ28,IF(RIGHT('Från 3L'!$C$2,2)="07",kapital!CQ28,DQ28)) -> 0 | AC28: =IF(RIGHT('Från 3L'!$C$2,2)="01",kapital!BR28,IF(RIGHT('Från 3L'!$C$2,2)="07",kapital!CR28,DR28)) -> 0 | AD28: =IF(RIGHT('Från 3L'!$C$2,2)="01",kapital!BS28,IF(RIGHT('Från 3L'!$C$2,2)="07",kapital!CS28,DS28)) -> 0 | AE28: =IF(RIGHT('Från 3L'!$C$2,2)="01",kapital!BT28,IF(RIGHT('Från 3L'!$C$2,2)="07",kapital!CT28,DT28)) -> 0 | AF28: =IF(RIGHT('Från 3L'!$C$2,2)="01",kapital!BU28,IF(RIGHT('Från 3L'!$C$2,2)="07",kapital!CU28,DU28)) -> 0 | AG28: =IF(RIGHT('Från 3L'!$C$2,2)="01",kapital!BV28,IF(RIGHT('Från 3L'!$C$2,2)="07",kapital!CV28,DV28)) -> 0 | AH28: =IF(RIGHT('Från 3L'!$C$2,2)="01",kapital!BW28,IF(RIGHT('Från 3L'!$C$2,2)="07",kapital!CW28,DW28)) -> 0 | AI28: =IF(RIGHT('Från 3L'!$C$2,2)="01",kapital!BX28,IF(RIGHT('Från 3L'!$C$2,2)="07",kapital!CX28,DX28)) -> 0 | AJ28: =SUM(X28:AI28) -> 0 | BA28: 0 | BB28: 0 | BC28: 0 | BD28: 0 | BE28: 0 | BF28: 0 | BG28: 0 | BH28: 0 | BI28: 0 | BJ28: 0 | BK28: 0 | BL28: 0 | BM28: 0 | BN28: 0 | BO28: 0 | BP28: 0 | BQ28: 0 | BR28: 0 | BS28: 0 | BT28: 0 | BU28: 0 | BV28: 0 | BW28: 0 | BX28: 0 | CA28: 0 | CB28: 0 | CC28: 0 | CD28: 0 | CE28: 0 | CF28: 1.186126027 | CG28: 0 | CH28: 0 | CI28: 0 | CJ28: 0 | CK28: 0 | CL28: 0 | CM28: 0 | CN28: 0 | CO28: 0 | CP28: 0 | CQ28: 0 | CR28: 0 | CS28: 0 | CT28: 0 | CU28: 0 | CV28: 0 | CW28: 0 | CX28: 0 | DA28: 0 | DB28: 0 | DC28: 0 | DD28: 1.186126027 | DE28: 0 | DF28: 0 | DG28: 0 | DH28: 0 | DI28: 0 | DJ28: 0 | DK28: 0 | DL28: 0 | DM28: 0 | DN28: 0 | DO28: 0 | DP28: 0 | DQ28: 0 | DR28: 0 | DS28: 0 | DT28: 0 | DU28: 0 | DV28: 0 | DW28: 0 | DX28: 0
A29: 91 | I29: 0 | J29: =IF(RIGHT('Från 3L'!$C$2,2)="01",kapital!BA29,IF(RIGHT('Från 3L'!$C$2,2)="07",kapital!CA29,DA29)) -> 0 | K29: =IF(RIGHT('Från 3L'!$C$2,2)="01",kapital!BB29,IF(RIGHT('Från 3L'!$C$2,2)="07",kapital!CB29,DB29)) -> 0 | L29: =IF(RIGHT('Från 3L'!$C$2,2)="01",kapital!BC29,IF(RIGHT('Från 3L'!$C$2,2)="07",kapital!CC29,DC29)) -> 0 | M29: =IF(RIGHT('Från 3L'!$C$2,2)="01",kapital!BD29,IF(RIGHT('Från 3L'!$C$2,2)="07",kapital!CD29,DD29)) -> 0 | N29: =IF(RIGHT('Från 3L'!$C$2,2)="01",kapital!BE29,IF(RIGHT('Från 3L'!$C$2,2)="07",kapital!CE29,DE29)) -> 0 | O29: =IF(RIGHT('Från 3L'!$C$2,2)="01",kapital!BF29,IF(RIGHT('Från 3L'!$C$2,2)="07",kapital!CF29,DF29)) -> 0 | P29: =IF(RIGHT('Från 3L'!$C$2,2)="01",kapital!BG29,IF(RIGHT('Från 3L'!$C$2,2)="07",kapital!CG29,DG29)) -> 0 | Q29: =IF(RIGHT('Från 3L'!$C$2,2)="01",kapital!BH29,IF(RIGHT('Från 3L'!$C$2,2)="07",kapital!CH29,DH29)) -> 0 | R29: =IF(RIGHT('Från 3L'!$C$2,2)="01",kapital!BI29,IF(RIGHT('Från 3L'!$C$2,2)="07",kapital!CI29,DI29)) -> 0 | S29: =IF(RIGHT('Från 3L'!$C$2,2)="01",kapital!BJ29,IF(RIGHT('Från 3L'!$C$2,2)="07",kapital!CJ29,DJ29)) -> 0 | T29: =IF(RIGHT('Från 3L'!$C$2,2)="01",kapital!BK29,IF(RIGHT('Från 3L'!$C$2,2)="07",kapital!CK29,DK29)) -> 0 | U29: =IF(RIGHT('Från 3L'!$C$2,2)="01",kapital!BL29,IF(RIGHT('Från 3L'!$C$2,2)="07",kapital!CL29,DL29)) -> 0 | V29: 0 | X29: =IF(RIGHT('Från 3L'!$C$2,2)="01",kapital!BM29,IF(RIGHT('Från 3L'!$C$2,2)="07",kapital!CM29,DM29)) -> 0 | Y29: =IF(RIGHT('Från 3L'!$C$2,2)="01",kapital!BN29,IF(RIGHT('Från 3L'!$C$2,2)="07",kapital!CN29,DN29)) -> 0 | Z29: =IF(RIGHT('Från 3L'!$C$2,2)="01",kapital!BO29,IF(RIGHT('Från 3L'!$C$2,2)="07",kapital!CO29,DO29)) -> 0 | AA29: =IF(RIGHT('Från 3L'!$C$2,2)="01",kapital!BP29,IF(RIGHT('Från 3L'!$C$2,2)="07",kapital!CP29,DP29)) -> 0 | AB29: =IF(RIGHT('Från 3L'!$C$2,2)="01",kapital!BQ29,IF(RIGHT('Från 3L'!$C$2,2)="07",kapital!CQ29,DQ29)) -> 0 | AC29: =IF(RIGHT('Från 3L'!$C$2,2)="01",kapital!BR29,IF(RIGHT('Från 3L'!$C$2,2)="07",kapital!CR29,DR29)) -> 0 | AD29: =IF(RIGHT('Från 3L'!$C$2,2)="01",kapital!BS29,IF(RIGHT('Från 3L'!$C$2,2)="07",kapital!CS29,DS29)) -> 0 | AE29: =IF(RIGHT('Från 3L'!$C$2,2)="01",kapital!BT29,IF(RIGHT('Från 3L'!$C$2,2)="07",kapital!CT29,DT29)) -> 0 | AF29: =IF(RIGHT('Från 3L'!$C$2,2)="01",kapital!BU29,IF(RIGHT('Från 3L'!$C$2,2)="07",kapital!CU29,DU29)) -> 0 | AG29: =IF(RIGHT('Från 3L'!$C$2,2)="01",kapital!BV29,IF(RIGHT('Från 3L'!$C$2,2)="07",kapital!CV29,DV29)) -> 0 | AH29: =IF(RIGHT('Från 3L'!$C$2,2)="01",kapital!BW29,IF(RIGHT('Från 3L'!$C$2,2)="07",kapital!CW29,DW29)) -> 0 | AI29: =IF(RIGHT('Från 3L'!$C$2,2)="01",kapital!BX29,IF(RIGHT('Från 3L'!$C$2,2)="07",kapital!CX29,DX29)) -> 0 | AJ29: =SUM(X29:AI29) -> 0 | BA29: 0 | BB29: 0 | BC29: 0 | BD29: 0 | BE29: 0 | BF29: 0 | BG29: 0 | BH29: 0 | BI29: 0 | BJ29: 0 | BK29: 0 | BL29: 0 | BM29: 0 | BN29: 0 | BO29: 0 | BP29: 0 | BQ29: 0 | BR29: 0 | BS29: 0 | BT29: 0 | BU29: 0 | BV29: 0 | BW29: 0 | BX29: 0 | CA29: 0 | CB29: 0 | CC29: 0 | CD29: 0 | CE29: 0 | CF29: 0 | CG29: 0 | CH29: 0 | CI29: 0 | CJ29: 0 | CK29: 0 | CL29: 0 | CM29: 0 | CN29: 0 | CO29: 0 | CP29: 0 | CQ29: 0 | CR29: 0 | CS29: 0 | CT29: 0 | CU29: 0 | CV29: 0 | CW29: 0 | CX29: 0 | DA29: 0 | DB29: 0 | DC29: 0 | DD29: 0 | DE29: 0 | DF29: 0 | DG29: 0 | DH29: 0 | DI29: 0 | DJ29: 0 | DK29: 0 | DL29: 0 | DM29: 0 | DN29: 0 | DO29: 0 | DP29: 0 | DQ29: 0 | DR29: 0 | DS29: 0 | DT29: 0 | DU29: 0 | DV29: 0 | DW29: 0 | DX29: 0
A30: 91 | B30: Summa | F30: =SUM(F24:F28) -> 44.61327306 | G30: =SUM(G24:G28) -> 200 | I30: 0 | J30: =IF(RIGHT('Från 3L'!$C$2,2)="01",kapital!BA30,IF(RIGHT('Från 3L'!$C$2,2)="07",kapital!CA30,DA30)) -> 0 | K30: =IF(RIGHT('Från 3L'!$C$2,2)="01",kapital!BB30,IF(RIGHT('Från 3L'!$C$2,2)="07",kapital!CB30,DB30)) -> 0 | L30: =IF(RIGHT('Från 3L'!$C$2,2)="01",kapital!BC30,IF(RIGHT('Från 3L'!$C$2,2)="07",kapital!CC30,DC30)) -> 0 | M30: =IF(RIGHT('Från 3L'!$C$2,2)="01",kapital!BD30,IF(RIGHT('Från 3L'!$C$2,2)="07",kapital!CD30,DD30)) -> 0 | N30: =IF(RIGHT('Från 3L'!$C$2,2)="01",kapital!BE30,IF(RIGHT('Från 3L'!$C$2,2)="07",kapital!CE30,DE30)) -> 0 | O30: =IF(RIGHT('Från 3L'!$C$2,2)="01",kapital!BF30,IF(RIGHT('Från 3L'!$C$2,2)="07",kapital!CF30,DF30)) -> 0 | P30: =IF(RIGHT('Från 3L'!$C$2,2)="01",kapital!BG30,IF(RIGHT('Från 3L'!$C$2,2)="07",kapital!CG30,DG30)) -> 0 | Q30: =IF(RIGHT('Från 3L'!$C$2,2)="01",kapital!BH30,IF(RIGHT('Från 3L'!$C$2,2)="07",kapital!CH30,DH30)) -> 0 | R30: =IF(RIGHT('Från 3L'!$C$2,2)="01",kapital!BI30,IF(RIGHT('Från 3L'!$C$2,2)="07",kapital!CI30,DI30)) -> 0 | S30: =IF(RIGHT('Från 3L'!$C$2,2)="01",kapital!BJ30,IF(RIGHT('Från 3L'!$C$2,2)="07",kapital!CJ30,DJ30)) -> 0 | T30: =IF(RIGHT('Från 3L'!$C$2,2)="01",kapital!BK30,IF(RIGHT('Från 3L'!$C$2,2)="07",kapital!CK30,DK30)) -> 0 | U30: =IF(RIGHT('Från 3L'!$C$2,2)="01",kapital!BL30,IF(RIGHT('Från 3L'!$C$2,2)="07",kapital!CL30,DL30)) -> 0 | V30: 0 | X30: =IF(RIGHT('Från 3L'!$C$2,2)="01",kapital!BM30,IF(RIGHT('Från 3L'!$C$2,2)="07",kapital!CM30,DM30)) -> 0 | Y30: =IF(RIGHT('Från 3L'!$C$2,2)="01",kapital!BN30,IF(RIGHT('Från 3L'!$C$2,2)="07",kapital!CN30,DN30)) -> 0 | Z30: =IF(RIGHT('Från 3L'!$C$2,2)="01",kapital!BO30,IF(RIGHT('Från 3L'!$C$2,2)="07",kapital!CO30,DO30)) -> 0 | AA30: =IF(RIGHT('Från 3L'!$C$2,2)="01",kapital!BP30,IF(RIGHT('Från 3L'!$C$2,2)="07",kapital!CP30,DP30)) -> 0 | AB30: =IF(RIGHT('Från 3L'!$C$2,2)="01",kapital!BQ30,IF(RIGHT('Från 3L'!$C$2,2)="07",kapital!CQ30,DQ30)) -> 0 | AC30: =IF(RIGHT('Från 3L'!$C$2,2)="01",kapital!BR30,IF(RIGHT('Från 3L'!$C$2,2)="07",kapital!CR30,DR30)) -> 0 | AD30: =IF(RIGHT('Från 3L'!$C$2,2)="01",kapital!BS30,IF(RIGHT('Från 3L'!$C$2,2)="07",kapital!CS30,DS30)) -> 0 | AE30: =IF(RIGHT('Från 3L'!$C$2,2)="01",kapital!BT30,IF(RIGHT('Från 3L'!$C$2,2)="07",kapital!CT30,DT30)) -> 0 | AF30: =IF(RIGHT('Från 3L'!$C$2,2)="01",kapital!BU30,IF(RIGHT('Från 3L'!$C$2,2)="07",kapital!CU30,DU30)) -> 0 | AG30: =IF(RIGHT('Från 3L'!$C$2,2)="01",kapital!BV30,IF(RIGHT('Från 3L'!$C$2,2)="07",kapital!CV30,DV30)) -> 0 | AH30: =IF(RIGHT('Från 3L'!$C$2,2)="01",kapital!BW30,IF(RIGHT('Från 3L'!$C$2,2)="07",kapital!CW30,DW30)) -> 0 | AI30: =IF(RIGHT('Från 3L'!$C$2,2)="01",kapital!BX30,IF(RIGHT('Från 3L'!$C$2,2)="07",kapital!CX30,DX30)) -> 0 | AJ30: 0 | BA30: 0 | BB30: 0 | BC30: 0 | BD30: 0 | BE30: 0 | BF30: 0 | BG30: 0 | BH30: 0 | BI30: 0 | BJ30: 0 | BK30: 0 | BL30: 0 | BM30: =IF($I30=1,$G30,0) -> 0 | BN30: =IF($I30=2,$G30,0) -> 0 | BO30: =IF($I30=3,$G30,0) -> 0 | BP30: =IF($I30=4,$G30,0) -> 0 | BQ30: =IF($I30=5,$G30,0) -> 0 | BR30: =IF($I30=6,$G30,0) -> 0 | BS30: =IF($I30=7,$G30,0) -> 0 | BT30: =IF($I30=8,$G30,0) -> 0 | BU30: =IF($I30=9,$G30,0) -> 0 | BV30: =IF($I30=10,$G30,0) -> 0 | BW30: =IF($I30=11,$G30,0) -> 0 | BX30: =IF($I30=12,$G30,0) -> 0 | CA30: 0 | CB30: 0 | CC30: 0 | CD30: 0 | CE30: 0 | CF30: 0 | CG30: 0 | CH30: 0 | CI30: 0 | CJ30: 0 | CK30: 0 | CL30: 0 | CM30: 0 | CN30: 0 | CO30: 0 | CP30: 0 | CQ30: 0 | CR30: 0 | CS30: 0 | CT30: 0 | CU30: 0 | CV30: 0 | CW30: 0 | CX30: 0 | DA30: 0 | DB30: 0 | DC30: 0 | DD30: 0 | DE30: 0 | DF30: 0 | DG30: 0 | DH30: 0 | DI30: 0 | DJ30: 0 | DK30: 0 | DL30: 0 | DM30: 0 | DN30: 0 | DO30: 0 | DP30: 0 | DQ30: 0 | DR30: 0 | DS30: 0 | DT30: 0 | DU30: 0 | DV30: 0 | DW30: 0 | DX30: 0
A31: 91 | I31: 0 | J31: =IF(RIGHT('Från 3L'!$C$2,2)="01",kapital!BA31,IF(RIGHT('Från 3L'!$C$2,2)="07",kapital!CA31,DA31)) -> 0 | K31: =IF(RIGHT('Från 3L'!$C$2,2)="01",kapital!BB31,IF(RIGHT('Från 3L'!$C$2,2)="07",kapital!CB31,DB31)) -> 0 | L31: =IF(RIGHT('Från 3L'!$C$2,2)="01",kapital!BC31,IF(RIGHT('Från 3L'!$C$2,2)="07",kapital!CC31,DC31)) -> 0 | M31: =IF(RIGHT('Från 3L'!$C$2,2)="01",kapital!BD31,IF(RIGHT('Från 3L'!$C$2,2)="07",kapital!CD31,DD31)) -> 0 | N31: =IF(RIGHT('Från 3L'!$C$2,2)="01",kapital!BE31,IF(RIGHT('Från 3L'!$C$2,2)="07",kapital!CE31,DE31)) -> 0 | O31: =IF(RIGHT('Från 3L'!$C$2,2)="01",kapital!BF31,IF(RIGHT('Från 3L'!$C$2,2)="07",kapital!CF31,DF31)) -> 0 | P31: =IF(RIGHT('Från 3L'!$C$2,2)="01",kapital!BG31,IF(RIGHT('Från 3L'!$C$2,2)="07",kapital!CG31,DG31)) -> 0 | Q31: =IF(RIGHT('Från 3L'!$C$2,2)="01",kapital!BH31,IF(RIGHT('Från 3L'!$C$2,2)="07",kapital!CH31,DH31)) -> 0 | R31: =IF(RIGHT('Från 3L'!$C$2,2)="01",kapital!BI31,IF(RIGHT('Från 3L'!$C$2,2)="07",kapital!CI31,DI31)) -> 0 | S31: =IF(RIGHT('Från 3L'!$C$2,2)="01",kapital!BJ31,IF(RIGHT('Från 3L'!$C$2,2)="07",kapital!CJ31,DJ31)) -> 0 | T31: =IF(RIGHT('Från 3L'!$C$2,2)="01",kapital!BK31,IF(RIGHT('Från 3L'!$C$2,2)="07",kapital!CK31,DK31)) -> 0 | U31: =IF(RIGHT('Från 3L'!$C$2,2)="01",kapital!BL31,IF(RIGHT('Från 3L'!$C$2,2)="07",kapital!CL31,DL31)) -> 0 | V31: 0 | X31: =IF(RIGHT('Från 3L'!$C$2,2)="01",kapital!BM31,IF(RIGHT('Från 3L'!$C$2,2)="07",kapital!CM31,DM31)) -> 0 | Y31: =IF(RIGHT('Från 3L'!$C$2,2)="01",kapital!BN31,IF(RIGHT('Från 3L'!$C$2,2)="07",kapital!CN31,DN31)) -> 0 | Z31: =IF(RIGHT('Från 3L'!$C$2,2)="01",kapital!BO31,IF(RIGHT('Från 3L'!$C$2,2)="07",kapital!CO31,DO31)) -> 0 | AA31: =IF(RIGHT('Från 3L'!$C$2,2)="01",kapital!BP31,IF(RIGHT('Från 3L'!$C$2,2)="07",kapital!CP31,DP31)) -> 0 | AB31: =IF(RIGHT('Från 3L'!$C$2,2)="01",kapital!BQ31,IF(RIGHT('Från 3L'!$C$2,2)="07",kapital!CQ31,DQ31)) -> 0 | AC31: =IF(RIGHT('Från 3L'!$C$2,2)="01",kapital!BR31,IF(RIGHT('Från 3L'!$C$2,2)="07",kapital!CR31,DR31)) -> 0 | AD31: =IF(RIGHT('Från 3L'!$C$2,2)="01",kapital!BS31,IF(RIGHT('Från 3L'!$C$2,2)="07",kapital!CS31,DS31)) -> 0 | AE31: =IF(RIGHT('Från 3L'!$C$2,2)="01",kapital!BT31,IF(RIGHT('Från 3L'!$C$2,2)="07",kapital!CT31,DT31)) -> 0 | AF31: =IF(RIGHT('Från 3L'!$C$2,2)="01",kapital!BU31,IF(RIGHT('Från 3L'!$C$2,2)="07",kapital!CU31,DU31)) -> 0 | AG31: =IF(RIGHT('Från 3L'!$C$2,2)="01",kapital!BV31,IF(RIGHT('Från 3L'!$C$2,2)="07",kapital!CV31,DV31)) -> 0 | AH31: =IF(RIGHT('Från 3L'!$C$2,2)="01",kapital!BW31,IF(RIGHT('Från 3L'!$C$2,2)="07",kapital!CW31,DW31)) -> 0 | AI31: =IF(RIGHT('Från 3L'!$C$2,2)="01",kapital!BX31,IF(RIGHT('Från 3L'!$C$2,2)="07",kapital!CX31,DX31)) -> 0 | AJ31: 0 | BA31: 0 | BB31: 0 | BC31: 0 | BD31: 0 | BE31: 0 | BF31: 0 | BG31: 0 | BH31: 0 | BI31: 0 | BJ31: 0 | BK31: 0 | BL31: 0 | BM31: =IF($I31=1,$G31,0) -> 0 | BN31: =IF($I31=2,$G31,0) -> 0 | BO31: =IF($I31=3,$G31,0) -> 0 | BP31: =IF($I31=4,$G31,0) -> 0 | BQ31: =IF($I31=5,$G31,0) -> 0 | BR31: =IF($I31=6,$G31,0) -> 0 | BS31: =IF($I31=7,$G31,0) -> 0 | BT31: =IF($I31=8,$G31,0) -> 0 | BU31: =IF($I31=9,$G31,0) -> 0 | BV31: =IF($I31=10,$G31,0) -> 0 | BW31: =IF($I31=11,$G31,0) -> 0 | BX31: =IF($I31=12,$G31,0) -> 0 | CA31: 0 | CB31: 0 | CC31: 0 | CD31: 0 | CE31: 0 | CF31: 0 | CG31: 0 | CH31: 0 | CI31: 0 | CJ31: 0 | CK31: 0 | CL31: 0 | CM31: 0 | CN31: 0 | CO31: 0 | CP31: 0 | CQ31: 0 | CR31: 0 | CS31: 0 | CT31: 0 | CU31: 0 | CV31: 0 | CW31: 0 | CX31: 0 | DA31: 0 | DB31: 0 | DC31: 0 | DD31: 0 | DE31: 0 | DF31: 0 | DG31: 0 | DH31: 0 | DI31: 0 | DJ31: 0 | DK31: 0 | DL31: 0 | DM31: 0 | DN31: 0 | DO31: 0 | DP31: 0 | DQ31: 0 | DR31: 0 | DS31: 0 | DT31: 0 | DU31: 0 | DV31: 0 | DW31: 0 | DX31: 0
A32: 91 | B32: TOTALT | F32: =F30+F22+F14 -> 290.1212925 | G32: =G30+G22+G14 -> 480 | I32: 0 | J32: =IF(RIGHT('Från 3L'!$C$2,2)="01",kapital!BA32,IF(RIGHT('Från 3L'!$C$2,2)="07",kapital!CA32,DA32)) -> 0 | K32: =IF(RIGHT('Från 3L'!$C$2,2)="01",kapital!BB32,IF(RIGHT('Från 3L'!$C$2,2)="07",kapital!CB32,DB32)) -> 0 | L32: =IF(RIGHT('Från 3L'!$C$2,2)="01",kapital!BC32,IF(RIGHT('Från 3L'!$C$2,2)="07",kapital!CC32,DC32)) -> 0 | M32: =IF(RIGHT('Från 3L'!$C$2,2)="01",kapital!BD32,IF(RIGHT('Från 3L'!$C$2,2)="07",kapital!CD32,DD32)) -> 0 | N32: =IF(RIGHT('Från 3L'!$C$2,2)="01",kapital!BE32,IF(RIGHT('Från 3L'!$C$2,2)="07",kapital!CE32,DE32)) -> 0 | O32: =IF(RIGHT('Från 3L'!$C$2,2)="01",kapital!BF32,IF(RIGHT('Från 3L'!$C$2,2)="07",kapital!CF32,DF32)) -> 0 | P32: =IF(RIGHT('Från 3L'!$C$2,2)="01",kapital!BG32,IF(RIGHT('Från 3L'!$C$2,2)="07",kapital!CG32,DG32)) -> 0 | Q32: =IF(RIGHT('Från 3L'!$C$2,2)="01",kapital!BH32,IF(RIGHT('Från 3L'!$C$2,2)="07",kapital!CH32,DH32)) -> 0 | R32: =IF(RIGHT('Från 3L'!$C$2,2)="01",kapital!BI32,IF(RIGHT('Från 3L'!$C$2,2)="07",kapital!CI32,DI32)) -> 0 | S32: =IF(RIGHT('Från 3L'!$C$2,2)="01",kapital!BJ32,IF(RIGHT('Från 3L'!$C$2,2)="07",kapital!CJ32,DJ32)) -> 0 | T32: =IF(RIGHT('Från 3L'!$C$2,2)="01",kapital!BK32,IF(RIGHT('Från 3L'!$C$2,2)="07",kapital!CK32,DK32)) -> 0 | U32: =IF(RIGHT('Från 3L'!$C$2,2)="01",kapital!BL32,IF(RIGHT('Från 3L'!$C$2,2)="07",kapital!CL32,DL32)) -> 0 | V32: 0 | X32: =IF(RIGHT('Från 3L'!$C$2,2)="01",kapital!BM32,IF(RIGHT('Från 3L'!$C$2,2)="07",kapital!CM32,DM32)) -> 0 | Y32: =IF(RIGHT('Från 3L'!$C$2,2)="01",kapital!BN32,IF(RIGHT('Från 3L'!$C$2,2)="07",kapital!CN32,DN32)) -> 0 | Z32: =IF(RIGHT('Från 3L'!$C$2,2)="01",kapital!BO32,IF(RIGHT('Från 3L'!$C$2,2)="07",kapital!CO32,DO32)) -> 0 | AA32: =IF(RIGHT('Från 3L'!$C$2,2)="01",kapital!BP32,IF(RIGHT('Från 3L'!$C$2,2)="07",kapital!CP32,DP32)) -> 0 | AB32: =IF(RIGHT('Från 3L'!$C$2,2)="01",kapital!BQ32,IF(RIGHT('Från 3L'!$C$2,2)="07",kapital!CQ32,DQ32)) -> 0 | AC32: =IF(RIGHT('Från 3L'!$C$2,2)="01",kapital!BR32,IF(RIGHT('Från 3L'!$C$2,2)="07",kapital!CR32,DR32)) -> 0 | AD32: =IF(RIGHT('Från 3L'!$C$2,2)="01",kapital!BS32,IF(RIGHT('Från 3L'!$C$2,2)="07",kapital!CS32,DS32)) -> 0 | AE32: =IF(RIGHT('Från 3L'!$C$2,2)="01",kapital!BT32,IF(RIGHT('Från 3L'!$C$2,2)="07",kapital!CT32,DT32)) -> 0 | AF32: =IF(RIGHT('Från 3L'!$C$2,2)="01",kapital!BU32,IF(RIGHT('Från 3L'!$C$2,2)="07",kapital!CU32,DU32)) -> 0 | AG32: =IF(RIGHT('Från 3L'!$C$2,2)="01",kapital!BV32,IF(RIGHT('Från 3L'!$C$2,2)="07",kapital!CV32,DV32)) -> 0 | AH32: =IF(RIGHT('Från 3L'!$C$2,2)="01",kapital!BW32,IF(RIGHT('Från 3L'!$C$2,2)="07",kapital!CW32,DW32)) -> 0 | AI32: =IF(RIGHT('Från 3L'!$C$2,2)="01",kapital!BX32,IF(RIGHT('Från 3L'!$C$2,2)="07",kapital!CX32,DX32)) -> 0 | AJ32: 0 | BA32: 0 | BB32: 0 | BC32: 0 | BD32: 0 | BE32: 0 | BF32: 0 | BG32: 0 | BH32: 0 | BI32: 0 | BJ32: 0 | BK32: 0 | BL32: 0 | BM32: =IF($I32=1,$G32,0) -> 0 | BN32: =IF($I32=2,$G32,0) -> 0 | BO32: =IF($I32=3,$G32,0) -> 0 | BP32: =IF($I32=4,$G32,0) -> 0 | BQ32: =IF($I32=5,$G32,0) -> 0 | BR32: =IF($I32=6,$G32,0) -> 0 | BS32: =IF($I32=7,$G32,0) -> 0 | BT32: =IF($I32=8,$G32,0) -> 0 | BU32: =IF($I32=9,$G32,0) -> 0 | BV32: =IF($I32=10,$G32,0) -> 0 | BW32: =IF($I32=11,$G32,0) -> 0 | BX32: =IF($I32=12,$G32,0) -> 0 | CA32: 0 | CB32: 0 | CC32: 0 | CD32: 0 | CE32: 0 | CF32: 0 | CG32: 0 | CH32: 0 | CI32: 0 | CJ32: 0 | CK32: 0 | CL32: 0 | CM32: 0 | CN32: 0 | CO32: 0 | CP32: 0 | CQ32: 0 | CR32: 0 | CS32: 0 | CT32: 0 | CU32: 0 | CV32: 0 | CW32: 0 | CX32: 0 | DA32: 0 | DB32: 0 | DC32: 0 | DD32: 0 | DE32: 0 | DF32: 0 | DG32: 0 | DH32: 0 | DI32: 0 | DJ32: 0 | DK32: 0 | DL32: 0 | DM32: 0 | DN32: 0 | DO32: 0 | DP32: 0 | DQ32: 0 | DR32: 0 | DS32: 0 | DT32: 0 | DU32: 0 | DV32: 0 | DW32: 0 | DX32: 0
A33: 91 | I33: 0 | J33: =IF(RIGHT('Från 3L'!$C$2,2)="01",kapital!BA33,IF(RIGHT('Från 3L'!$C$2,2)="07",kapital!CA33,DA33)) -> 0 | K33: =IF(RIGHT('Från 3L'!$C$2,2)="01",kapital!BB33,IF(RIGHT('Från 3L'!$C$2,2)="07",kapital!CB33,DB33)) -> 0 | L33: =IF(RIGHT('Från 3L'!$C$2,2)="01",kapital!BC33,IF(RIGHT('Från 3L'!$C$2,2)="07",kapital!CC33,DC33)) -> 0 | M33: =IF(RIGHT('Från 3L'!$C$2,2)="01",kapital!BD33,IF(RIGHT('Från 3L'!$C$2,2)="07",kapital!CD33,DD33)) -> 0 | N33: =IF(RIGHT('Från 3L'!$C$2,2)="01",kapital!BE33,IF(RIGHT('Från 3L'!$C$2,2)="07",kapital!CE33,DE33)) -> 0 | O33: =IF(RIGHT('Från 3L'!$C$2,2)="01",kapital!BF33,IF(RIGHT('Från 3L'!$C$2,2)="07",kapital!CF33,DF33)) -> 0 | P33: =IF(RIGHT('Från 3L'!$C$2,2)="01",kapital!BG33,IF(RIGHT('Från 3L'!$C$2,2)="07",kapital!CG33,DG33)) -> 0 | Q33: =IF(RIGHT('Från 3L'!$C$2,2)="01",kapital!BH33,IF(RIGHT('Från 3L'!$C$2,2)="07",kapital!CH33,DH33)) -> 0 | R33: =IF(RIGHT('Från 3L'!$C$2,2)="01",kapital!BI33,IF(RIGHT('Från 3L'!$C$2,2)="07",kapital!CI33,DI33)) -> 0 | S33: =IF(RIGHT('Från 3L'!$C$2,2)="01",kapital!BJ33,IF(RIGHT('Från 3L'!$C$2,2)="07",kapital!CJ33,DJ33)) -> 0 | T33: =IF(RIGHT('Från 3L'!$C$2,2)="01",kapital!BK33,IF(RIGHT('Från 3L'!$C$2,2)="07",kapital!CK33,DK33)) -> 0 | U33: =IF(RIGHT('Från 3L'!$C$2,2)="01",kapital!BL33,IF(RIGHT('Från 3L'!$C$2,2)="07",kapital!CL33,DL33)) -> 0 | V33: 0 | X33: =IF(RIGHT('Från 3L'!$C$2,2)="01",kapital!BM33,IF(RIGHT('Från 3L'!$C$2,2)="07",kapital!CM33,DM33)) -> 0 | Y33: =IF(RIGHT('Från 3L'!$C$2,2)="01",kapital!BN33,IF(RIGHT('Från 3L'!$C$2,2)="07",kapital!CN33,DN33)) -> 0 | Z33: =IF(RIGHT('Från 3L'!$C$2,2)="01",kapital!BO33,IF(RIGHT('Från 3L'!$C$2,2)="07",kapital!CO33,DO33)) -> 0 | AA33: =IF(RIGHT('Från 3L'!$C$2,2)="01",kapital!BP33,IF(RIGHT('Från 3L'!$C$2,2)="07",kapital!CP33,DP33)) -> 0 | AB33: =IF(RIGHT('Från 3L'!$C$2,2)="01",kapital!BQ33,IF(RIGHT('Från 3L'!$C$2,2)="07",kapital!CQ33,DQ33)) -> 0 | AC33: =IF(RIGHT('Från 3L'!$C$2,2)="01",kapital!BR33,IF(RIGHT('Från 3L'!$C$2,2)="07",kapital!CR33,DR33)) -> 0 | AD33: =IF(RIGHT('Från 3L'!$C$2,2)="01",kapital!BS33,IF(RIGHT('Från 3L'!$C$2,2)="07",kapital!CS33,DS33)) -> 0 | AE33: =IF(RIGHT('Från 3L'!$C$2,2)="01",kapital!BT33,IF(RIGHT('Från 3L'!$C$2,2)="07",kapital!CT33,DT33)) -> 0 | AF33: =IF(RIGHT('Från 3L'!$C$2,2)="01",kapital!BU33,IF(RIGHT('Från 3L'!$C$2,2)="07",kapital!CU33,DU33)) -> 0 | AG33: =IF(RIGHT('Från 3L'!$C$2,2)="01",kapital!BV33,IF(RIGHT('Från 3L'!$C$2,2)="07",kapital!CV33,DV33)) -> 0 | AH33: =IF(RIGHT('Från 3L'!$C$2,2)="01",kapital!BW33,IF(RIGHT('Från 3L'!$C$2,2)="07",kapital!CW33,DW33)) -> 0 | AI33: =IF(RIGHT('Från 3L'!$C$2,2)="01",kapital!BX33,IF(RIGHT('Från 3L'!$C$2,2)="07",kapital!CX33,DX33)) -> 0 | AJ33: 0 | BA33: 0 | BB33: 0 | BC33: 0 | BD33: 0 | BE33: 0 | BF33: 0 | BG33: 0 | BH33: 0 | BI33: 0 | BJ33: 0 | BK33: 0 | BL33: 0 | BM33: =IF($I33=1,$G33,0) -> 0 | BN33: =IF($I33=2,$G33,0) -> 0 | BO33: =IF($I33=3,$G33,0) -> 0 | BP33: =IF($I33=4,$G33,0) -> 0 | BQ33: =IF($I33=5,$G33,0) -> 0 | BR33: =IF($I33=6,$G33,0) -> 0 | BS33: =IF($I33=7,$G33,0) -> 0 | BT33: =IF($I33=8,$G33,0) -> 0 | BU33: =IF($I33=9,$G33,0) -> 0 | BV33: =IF($I33=10,$G33,0) -> 0 | BW33: =IF($I33=11,$G33,0) -> 0 | BX33: =IF($I33=12,$G33,0) -> 0 | CA33: 0 | CB33: 0 | CC33: 0 | CD33: 0 | CE33: 0 | CF33: 0 | CG33: 0 | CH33: 0 | CI33: 0 | CJ33: 0 | CK33: 0 | CL33: 0 | CM33: 0 | CN33: 0 | CO33: 0 | CP33: 0 | CQ33: 0 | CR33: 0 | CS33: 0 | CT33: 0 | CU33: 0 | CV33: 0 | CW33: 0 | CX33: 0 | DA33: 0 | DB33: 0 | DC33: 0 | DD33: 0 | DE33: 0 | DF33: 0 | DG33: 0 | DH33: 0 | DI33: 0 | DJ33: 0 | DK33: 0 | DL33: 0 | DM33: 0 | DN33: 0 | DO33: 0 | DP33: 0 | DQ33: 0 | DR33: 0 | DS33: 0 | DT33: 0 | DU33: 0 | DV33: 0 | DW33: 0 | DX33: 0
A34: 91 | I34: 0 | J34: =IF(RIGHT('Från 3L'!$C$2,2)="01",kapital!BA34,IF(RIGHT('Från 3L'!$C$2,2)="07",kapital!CA34,DA34)) -> 0 | K34: =IF(RIGHT('Från 3L'!$C$2,2)="01",kapital!BB34,IF(RIGHT('Från 3L'!$C$2,2)="07",kapital!CB34,DB34)) -> 0 | L34: =IF(RIGHT('Från 3L'!$C$2,2)="01",kapital!BC34,IF(RIGHT('Från 3L'!$C$2,2)="07",kapital!CC34,DC34)) -> 0 | M34: =IF(RIGHT('Från 3L'!$C$2,2)="01",kapital!BD34,IF(RIGHT('Från 3L'!$C$2,2)="07",kapital!CD34,DD34)) -> 0 | N34: =IF(RIGHT('Från 3L'!$C$2,2)="01",kapital!BE34,IF(RIGHT('Från 3L'!$C$2,2)="07",kapital!CE34,DE34)) -> 0 | O34: =IF(RIGHT('Från 3L'!$C$2,2)="01",kapital!BF34,IF(RIGHT('Från 3L'!$C$2,2)="07",kapital!CF34,DF34)) -> 0 | P34: =IF(RIGHT('Från 3L'!$C$2,2)="01",kapital!BG34,IF(RIGHT('Från 3L'!$C$2,2)="07",kapital!CG34,DG34)) -> 0 | Q34: =IF(RIGHT('Från 3L'!$C$2,2)="01",kapital!BH34,IF(RIGHT('Från 3L'!$C$2,2)="07",kapital!CH34,DH34)) -> 0 | R34: =IF(RIGHT('Från 3L'!$C$2,2)="01",kapital!BI34,IF(RIGHT('Från 3L'!$C$2,2)="07",kapital!CI34,DI34)) -> 0 | S34: =IF(RIGHT('Från 3L'!$C$2,2)="01",kapital!BJ34,IF(RIGHT('Från 3L'!$C$2,2)="07",kapital!CJ34,DJ34)) -> 0 | T34: =IF(RIGHT('Från 3L'!$C$2,2)="01",kapital!BK34,IF(RIGHT('Från 3L'!$C$2,2)="07",kapital!CK34,DK34)) -> 0 | U34: =IF(RIGHT('Från 3L'!$C$2,2)="01",kapital!BL34,IF(RIGHT('Från 3L'!$C$2,2)="07",kapital!CL34,DL34)) -> 0 | V34: 0 | X34: =IF(RIGHT('Från 3L'!$C$2,2)="01",kapital!BM34,IF(RIGHT('Från 3L'!$C$2,2)="07",kapital!CM34,DM34)) -> 0 | Y34: =IF(RIGHT('Från 3L'!$C$2,2)="01",kapital!BN34,IF(RIGHT('Från 3L'!$C$2,2)="07",kapital!CN34,DN34)) -> 0 | Z34: =IF(RIGHT('Från 3L'!$C$2,2)="01",kapital!BO34,IF(RIGHT('Från 3L'!$C$2,2)="07",kapital!CO34,DO34)) -> 0 | AA34: =IF(RIGHT('Från 3L'!$C$2,2)="01",kapital!BP34,IF(RIGHT('Från 3L'!$C$2,2)="07",kapital!CP34,DP34)) -> 0 | AB34: =IF(RIGHT('Från 3L'!$C$2,2)="01",kapital!BQ34,IF(RIGHT('Från 3L'!$C$2,2)="07",kapital!CQ34,DQ34)) -> 0 | AC34: =IF(RIGHT('Från 3L'!$C$2,2)="01",kapital!BR34,IF(RIGHT('Från 3L'!$C$2,2)="07",kapital!CR34,DR34)) -> 0 | AD34: =IF(RIGHT('Från 3L'!$C$2,2)="01",kapital!BS34,IF(RIGHT('Från 3L'!$C$2,2)="07",kapital!CS34,DS34)) -> 0 | AE34: =IF(RIGHT('Från 3L'!$C$2,2)="01",kapital!BT34,IF(RIGHT('Från 3L'!$C$2,2)="07",kapital!CT34,DT34)) -> 0 | AF34: =IF(RIGHT('Från 3L'!$C$2,2)="01",kapital!BU34,IF(RIGHT('Från 3L'!$C$2,2)="07",kapital!CU34,DU34)) -> 0 | AG34: =IF(RIGHT('Från 3L'!$C$2,2)="01",kapital!BV34,IF(RIGHT('Från 3L'!$C$2,2)="07",kapital!CV34,DV34)) -> 0 | AH34: =IF(RIGHT('Från 3L'!$C$2,2)="01",kapital!BW34,IF(RIGHT('Från 3L'!$C$2,2)="07",kapital!CW34,DW34)) -> 0 | AI34: =IF(RIGHT('Från 3L'!$C$2,2)="01",kapital!BX34,IF(RIGHT('Från 3L'!$C$2,2)="07",kapital!CX34,DX34)) -> 0 | AJ34: 0 | BA34: 0 | BB34: 0 | BC34: 0 | BD34: 0 | BE34: 0 | BF34: 0 | BG34: 0 | BH34: 0 | BI34: 0 | BJ34: 0 | BK34: 0 | BL34: 0 | BM34: 0 | BN34: 0 | BO34: 0 | BP34: 0 | BQ34: 0 | BR34: 0 | BS34: 0 | BT34: 0 | BU34: 0 | BV34: 0 | BW34: 0 | BX34: 0 | CA34: 0 | CB34: 0 | CC34: 0 | CD34: 0 | CE34: 0 | CF34: 0 | CG34: 0 | CH34: 0 | CI34: 0 | CJ34: 0 | CK34: 0 | CL34: 0 | CM34: 0 | CN34: 0 | CO34: 0 | CP34: 0 | CQ34: 0 | CR34: 0 | CS34: 0 | CT34: 0 | CU34: 0 | CV34: 0 | CW34: 0 | CX34: 0 | DA34: 0 | DB34: 0 | DC34: 0 | DD34: 0 | DE34: 0 | DF34: 0 | DG34: 0 | DH34: 0 | DI34: 0 | DJ34: 0 | DK34: 0 | DL34: 0 | DM34: 0 | DN34: 0 | DO34: 0 | DP34: 0 | DQ34: 0 | DR34: 0 | DS34: 0 | DT34: 0 | DU34: 0 | DV34: 0 | DW34: 0 | DX34: 0
A35: 91 | I35: 0 | J35: =IF(RIGHT('Från 3L'!$C$2,2)="01",kapital!BA35,IF(RIGHT('Från 3L'!$C$2,2)="07",kapital!CA35,DA35)) -> 0 | K35: =IF(RIGHT('Från 3L'!$C$2,2)="01",kapital!BB35,IF(RIGHT('Från 3L'!$C$2,2)="07",kapital!CB35,DB35)) -> 0 | L35: =IF(RIGHT('Från 3L'!$C$2,2)="01",kapital!BC35,IF(RIGHT('Från 3L'!$C$2,2)="07",kapital!CC35,DC35)) -> 0 | M35: =IF(RIGHT('Från 3L'!$C$2,2)="01",kapital!BD35,IF(RIGHT('Från 3L'!$C$2,2)="07",kapital!CD35,DD35)) -> 0 | N35: =IF(RIGHT('Från 3L'!$C$2,2)="01",kapital!BE35,IF(RIGHT('Från 3L'!$C$2,2)="07",kapital!CE35,DE35)) -> 0 | O35: =IF(RIGHT('Från 3L'!$C$2,2)="01",kapital!BF35,IF(RIGHT('Från 3L'!$C$2,2)="07",kapital!CF35,DF35)) -> 0 | P35: =IF(RIGHT('Från 3L'!$C$2,2)="01",kapital!BG35,IF(RIGHT('Från 3L'!$C$2,2)="07",kapital!CG35,DG35)) -> 0 | Q35: =IF(RIGHT('Från 3L'!$C$2,2)="01",kapital!BH35,IF(RIGHT('Från 3L'!$C$2,2)="07",kapital!CH35,DH35)) -> 0 | R35: =IF(RIGHT('Från 3L'!$C$2,2)="01",kapital!BI35,IF(RIGHT('Från 3L'!$C$2,2)="07",kapital!CI35,DI35)) -> 0 | S35: =IF(RIGHT('Från 3L'!$C$2,2)="01",kapital!BJ35,IF(RIGHT('Från 3L'!$C$2,2)="07",kapital!CJ35,DJ35)) -> 0 | T35: =IF(RIGHT('Från 3L'!$C$2,2)="01",kapital!BK35,IF(RIGHT('Från 3L'!$C$2,2)="07",kapital!CK35,DK35)) -> 0 | U35: =IF(RIGHT('Från 3L'!$C$2,2)="01",kapital!BL35,IF(RIGHT('Från 3L'!$C$2,2)="07",kapital!CL35,DL35)) -> 0 | V35: 0 | X35: =IF(RIGHT('Från 3L'!$C$2,2)="01",kapital!BM35,IF(RIGHT('Från 3L'!$C$2,2)="07",kapital!CM35,DM35)) -> 0 | Y35: =IF(RIGHT('Från 3L'!$C$2,2)="01",kapital!BN35,IF(RIGHT('Från 3L'!$C$2,2)="07",kapital!CN35,DN35)) -> 0 | Z35: =IF(RIGHT('Från 3L'!$C$2,2)="01",kapital!BO35,IF(RIGHT('Från 3L'!$C$2,2)="07",kapital!CO35,DO35)) -> 0 | AA35: =IF(RIGHT('Från 3L'!$C$2,2)="01",kapital!BP35,IF(RIGHT('Från 3L'!$C$2,2)="07",kapital!CP35,DP35)) -> 0 | AB35: =IF(RIGHT('Från 3L'!$C$2,2)="01",kapital!BQ35,IF(RIGHT('Från 3L'!$C$2,2)="07",kapital!CQ35,DQ35)) -> 0 | AC35: =IF(RIGHT('Från 3L'!$C$2,2)="01",kapital!BR35,IF(RIGHT('Från 3L'!$C$2,2)="07",kapital!CR35,DR35)) -> 0 | AD35: =IF(RIGHT('Från 3L'!$C$2,2)="01",kapital!BS35,IF(RIGHT('Från 3L'!$C$2,2)="07",kapital!CS35,DS35)) -> 0 | AE35: =IF(RIGHT('Från 3L'!$C$2,2)="01",kapital!BT35,IF(RIGHT('Från 3L'!$C$2,2)="07",kapital!CT35,DT35)) -> 0 | AF35: =IF(RIGHT('Från 3L'!$C$2,2)="01",kapital!BU35,IF(RIGHT('Från 3L'!$C$2,2)="07",kapital!CU35,DU35)) -> 0 | AG35: =IF(RIGHT('Från 3L'!$C$2,2)="01",kapital!BV35,IF(RIGHT('Från 3L'!$C$2,2)="07",kapital!CV35,DV35)) -> 0 | AH35: =IF(RIGHT('Från 3L'!$C$2,2)="01",kapital!BW35,IF(RIGHT('Från 3L'!$C$2,2)="07",kapital!CW35,DW35)) -> 0 | AI35: =IF(RIGHT('Från 3L'!$C$2,2)="01",kapital!BX35,IF(RIGHT('Från 3L'!$C$2,2)="07",kapital!CX35,DX35)) -> 0 | AJ35: 0 | BA35: 0 | BB35: 0 | BC35: 0 | BD35: 0 | BE35: 0 | BF35: 0 | BG35: 0 | BH35: 0 | BI35: 0 | BJ35: 0 | BK35: 0 | BL35: 0 | BM35: 0 | BN35: 0 | BO35: 0 | BP35: 0 | BQ35: 0 | BR35: 0 | BS35: 0 | BT35: 0 | BU35: 0 | BV35: 0 | BW35: 0 | BX35: 0 | CA35: 0 | CB35: 0 | CC35: 0 | CD35: 0 | CE35: 0 | CF35: 0 | CG35: 0 | CH35: 0 | CI35: 0 | CJ35: 0 | CK35: 0 | CL35: 0 | CM35: 0 | CN35: 0 | CO35: 0 | CP35: 0 | CQ35: 0 | CR35: 0 | CS35: 0 | CT35: 0 | CU35: 0 | CV35: 0 | CW35: 0 | CX35: 0 | DA35: 0 | DB35: 0 | DC35: 0 | DD35: 0 | DE35: 0 | DF35: 0 | DG35: 0 | DH35: 0 | DI35: 0 | DJ35: 0 | DK35: 0 | DL35: 0 | DM35: 0 | DN35: 0 | DO35: 0 | DP35: 0 | DQ35: 0 | DR35: 0 | DS35: 0 | DT35: 0 | DU35: 0 | DV35: 0 | DW35: 0 | DX35: 0
A36: 91 | I36: 0 | J36: =IF(RIGHT('Från 3L'!$C$2,2)="01",kapital!BA36,IF(RIGHT('Från 3L'!$C$2,2)="07",kapital!CA36,DA36)) -> 0 | K36: =IF(RIGHT('Från 3L'!$C$2,2)="01",kapital!BB36,IF(RIGHT('Från 3L'!$C$2,2)="07",kapital!CB36,DB36)) -> 0 | L36: =IF(RIGHT('Från 3L'!$C$2,2)="01",kapital!BC36,IF(RIGHT('Från 3L'!$C$2,2)="07",kapital!CC36,DC36)) -> 0 | M36: =IF(RIGHT('Från 3L'!$C$2,2)="01",kapital!BD36,IF(RIGHT('Från 3L'!$C$2,2)="07",kapital!CD36,DD36)) -> 0 | N36: =IF(RIGHT('Från 3L'!$C$2,2)="01",kapital!BE36,IF(RIGHT('Från 3L'!$C$2,2)="07",kapital!CE36,DE36)) -> 0 | O36: =IF(RIGHT('Från 3L'!$C$2,2)="01",kapital!BF36,IF(RIGHT('Från 3L'!$C$2,2)="07",kapital!CF36,DF36)) -> 0 | P36: =IF(RIGHT('Från 3L'!$C$2,2)="01",kapital!BG36,IF(RIGHT('Från 3L'!$C$2,2)="07",kapital!CG36,DG36)) -> 0 | Q36: =IF(RIGHT('Från 3L'!$C$2,2)="01",kapital!BH36,IF(RIGHT('Från 3L'!$C$2,2)="07",kapital!CH36,DH36)) -> 0 | R36: =IF(RIGHT('Från 3L'!$C$2,2)="01",kapital!BI36,IF(RIGHT('Från 3L'!$C$2,2)="07",kapital!CI36,DI36)) -> 0 | S36: =IF(RIGHT('Från 3L'!$C$2,2)="01",kapital!BJ36,IF(RIGHT('Från 3L'!$C$2,2)="07",kapital!CJ36,DJ36)) -> 0 | T36: =IF(RIGHT('Från 3L'!$C$2,2)="01",kapital!BK36,IF(RIGHT('Från 3L'!$C$2,2)="07",kapital!CK36,DK36)) -> 0 | U36: =IF(RIGHT('Från 3L'!$C$2,2)="01",kapital!BL36,IF(RIGHT('Från 3L'!$C$2,2)="07",kapital!CL36,DL36)) -> 0 | V36: 0 | X36: =IF(RIGHT('Från 3L'!$C$2,2)="01",kapital!BM36,IF(RIGHT('Från 3L'!$C$2,2)="07",kapital!CM36,DM36)) -> 0 | Y36: =IF(RIGHT('Från 3L'!$C$2,2)="01",kapital!BN36,IF(RIGHT('Från 3L'!$C$2,2)="07",kapital!CN36,DN36)) -> 0 | Z36: =IF(RIGHT('Från 3L'!$C$2,2)="01",kapital!BO36,IF(RIGHT('Från 3L'!$C$2,2)="07",kapital!CO36,DO36)) -> 0 | AA36: =IF(RIGHT('Från 3L'!$C$2,2)="01",kapital!BP36,IF(RIGHT('Från 3L'!$C$2,2)="07",kapital!CP36,DP36)) -> 0 | AB36: =IF(RIGHT('Från 3L'!$C$2,2)="01",kapital!BQ36,IF(RIGHT('Från 3L'!$C$2,2)="07",kapital!CQ36,DQ36)) -> 0 | AC36: =IF(RIGHT('Från 3L'!$C$2,2)="01",kapital!BR36,IF(RIGHT('Från 3L'!$C$2,2)="07",kapital!CR36,DR36)) -> 0 | AD36: =IF(RIGHT('Från 3L'!$C$2,2)="01",kapital!BS36,IF(RIGHT('Från 3L'!$C$2,2)="07",kapital!CS36,DS36)) -> 0 | AE36: =IF(RIGHT('Från 3L'!$C$2,2)="01",kapital!BT36,IF(RIGHT('Från 3L'!$C$2,2)="07",kapital!CT36,DT36)) -> 0 | AF36: =IF(RIGHT('Från 3L'!$C$2,2)="01",kapital!BU36,IF(RIGHT('Från 3L'!$C$2,2)="07",kapital!CU36,DU36)) -> 0 | AG36: =IF(RIGHT('Från 3L'!$C$2,2)="01",kapital!BV36,IF(RIGHT('Från 3L'!$C$2,2)="07",kapital!CV36,DV36)) -> 0 | AH36: =IF(RIGHT('Från 3L'!$C$2,2)="01",kapital!BW36,IF(RIGHT('Från 3L'!$C$2,2)="07",kapital!CW36,DW36)) -> 0 | AI36: =IF(RIGHT('Från 3L'!$C$2,2)="01",kapital!BX36,IF(RIGHT('Från 3L'!$C$2,2)="07",kapital!CX36,DX36)) -> 0 | AJ36: 0 | BA36: 0 | BB36: 0 | BC36: 0 | BD36: 0 | BE36: 0 | BF36: 0 | BG36: 0 | BH36: 0 | BI36: 0 | BJ36: 0 | BK36: 0 | BL36: 0 | BM36: 0 | BN36: 0 | BO36: 0 | BP36: 0 | BQ36: 0 | BR36: 0 | BS36: 0 | BT36: 0 | BU36: 0 | BV36: 0 | BW36: 0 | BX36: 0 | CA36: 0 | CB36: 0 | CC36: 0 | CD36: 0 | CE36: 0 | CF36: 0 | CG36: 0 | CH36: 0 | CI36: 0 | CJ36: 0 | CK36: 0 | CL36: 0 | CM36: 0 | CN36: 0 | CO36: 0 | CP36: 0 | CQ36: 0 | CR36: 0 | CS36: 0 | CT36: 0 | CU36: 0 | CV36: 0 | CW36: 0 | CX36: 0 | DA36: 0 | DB36: 0 | DC36: 0 | DD36: 0 | DE36: 0 | DF36: 0 | DG36: 0 | DH36: 0 | DI36: 0 | DJ36: 0 | DK36: 0 | DL36: 0 | DM36: 0 | DN36: 0 | DO36: 0 | DP36: 0 | DQ36: 0 | DR36: 0 | DS36: 0 | DT36: 0 | DU36: 0 | DV36: 0 | DW36: 0 | DX36: 0
A37: 91 | I37: 0 | J37: =IF(RIGHT('Från 3L'!$C$2,2)="01",kapital!BA37,IF(RIGHT('Från 3L'!$C$2,2)="07",kapital!CA37,DA37)) -> 0 | K37: =IF(RIGHT('Från 3L'!$C$2,2)="01",kapital!BB37,IF(RIGHT('Från 3L'!$C$2,2)="07",kapital!CB37,DB37)) -> 0 | L37: =IF(RIGHT('Från 3L'!$C$2,2)="01",kapital!BC37,IF(RIGHT('Från 3L'!$C$2,2)="07",kapital!CC37,DC37)) -> 0 | M37: =IF(RIGHT('Från 3L'!$C$2,2)="01",kapital!BD37,IF(RIGHT('Från 3L'!$C$2,2)="07",kapital!CD37,DD37)) -> 0 | N37: =IF(RIGHT('Från 3L'!$C$2,2)="01",kapital!BE37,IF(RIGHT('Från 3L'!$C$2,2)="07",kapital!CE37,DE37)) -> 0 | O37: =IF(RIGHT('Från 3L'!$C$2,2)="01",kapital!BF37,IF(RIGHT('Från 3L'!$C$2,2)="07",kapital!CF37,DF37)) -> 0 | P37: =IF(RIGHT('Från 3L'!$C$2,2)="01",kapital!BG37,IF(RIGHT('Från 3L'!$C$2,2)="07",kapital!CG37,DG37)) -> 0 | Q37: =IF(RIGHT('Från 3L'!$C$2,2)="01",kapital!BH37,IF(RIGHT('Från 3L'!$C$2,2)="07",kapital!CH37,DH37)) -> 0 | R37: =IF(RIGHT('Från 3L'!$C$2,2)="01",kapital!BI37,IF(RIGHT('Från 3L'!$C$2,2)="07",kapital!CI37,DI37)) -> 0 | S37: =IF(RIGHT('Från 3L'!$C$2,2)="01",kapital!BJ37,IF(RIGHT('Från 3L'!$C$2,2)="07",kapital!CJ37,DJ37)) -> 0 | T37: =IF(RIGHT('Från 3L'!$C$2,2)="01",kapital!BK37,IF(RIGHT('Från 3L'!$C$2,2)="07",kapital!CK37,DK37)) -> 0 | U37: =IF(RIGHT('Från 3L'!$C$2,2)="01",kapital!BL37,IF(RIGHT('Från 3L'!$C$2,2)="07",kapital!CL37,DL37)) -> 0 | V37: 0 | X37: =IF(RIGHT('Från 3L'!$C$2,2)="01",kapital!BM37,IF(RIGHT('Från 3L'!$C$2,2)="07",kapital!CM37,DM37)) -> 0 | Y37: =IF(RIGHT('Från 3L'!$C$2,2)="01",kapital!BN37,IF(RIGHT('Från 3L'!$C$2,2)="07",kapital!CN37,DN37)) -> 0 | Z37: =IF(RIGHT('Från 3L'!$C$2,2)="01",kapital!BO37,IF(RIGHT('Från 3L'!$C$2,2)="07",kapital!CO37,DO37)) -> 0 | AA37: =IF(RIGHT('Från 3L'!$C$2,2)="01",kapital!BP37,IF(RIGHT('Från 3L'!$C$2,2)="07",kapital!CP37,DP37)) -> 0 | AB37: =IF(RIGHT('Från 3L'!$C$2,2)="01",kapital!BQ37,IF(RIGHT('Från 3L'!$C$2,2)="07",kapital!CQ37,DQ37)) -> 0 | AC37: =IF(RIGHT('Från 3L'!$C$2,2)="01",kapital!BR37,IF(RIGHT('Från 3L'!$C$2,2)="07",kapital!CR37,DR37)) -> 0 | AD37: =IF(RIGHT('Från 3L'!$C$2,2)="01",kapital!BS37,IF(RIGHT('Från 3L'!$C$2,2)="07",kapital!CS37,DS37)) -> 0 | AE37: =IF(RIGHT('Från 3L'!$C$2,2)="01",kapital!BT37,IF(RIGHT('Från 3L'!$C$2,2)="07",kapital!CT37,DT37)) -> 0 | AF37: =IF(RIGHT('Från 3L'!$C$2,2)="01",kapital!BU37,IF(RIGHT('Från 3L'!$C$2,2)="07",kapital!CU37,DU37)) -> 0 | AG37: =IF(RIGHT('Från 3L'!$C$2,2)="01",kapital!BV37,IF(RIGHT('Från 3L'!$C$2,2)="07",kapital!CV37,DV37)) -> 0 | AH37: =IF(RIGHT('Från 3L'!$C$2,2)="01",kapital!BW37,IF(RIGHT('Från 3L'!$C$2,2)="07",kapital!CW37,DW37)) -> 0 | AI37: =IF(RIGHT('Från 3L'!$C$2,2)="01",kapital!BX37,IF(RIGHT('Från 3L'!$C$2,2)="07",kapital!CX37,DX37)) -> 0 | AJ37: 0 | BA37: 0 | BB37: 0 | BC37: 0 | BD37: 0 | BE37: 0 | BF37: 0 | BG37: 0 | BH37: 0 | BI37: 0 | BJ37: 0 | BK37: 0 | BL37: 0 | BM37: =IF($I37=1,$G37,0) -> 0 | BN37: =IF($I37=2,$G37,0) -> 0 | BO37: =IF($I37=3,$G37,0) -> 0 | BP37: =IF($I37=4,$G37,0) -> 0 | BQ37: =IF($I37=5,$G37,0) -> 0 | BR37: =IF($I37=6,$G37,0) -> 0 | BS37: =IF($I37=7,$G37,0) -> 0 | BT37: =IF($I37=8,$G37,0) -> 0 | BU37: =IF($I37=9,$G37,0) -> 0 | BV37: =IF($I37=10,$G37,0) -> 0 | BW37: =IF($I37=11,$G37,0) -> 0 | BX37: =IF($I37=12,$G37,0) -> 0 | CA37: 0 | CB37: 0 | CC37: 0 | CD37: 0 | CE37: 0 | CF37: 0 | CG37: 0 | CH37: 0 | CI37: 0 | CJ37: 0 | CK37: 0 | CL37: 0 | CM37: 0 | CN37: 0 | CO37: 0 | CP37: 0 | CQ37: 0 | CR37: 0 | CS37: 0 | CT37: 0 | CU37: 0 | CV37: 0 | CW37: 0 | CX37: 0 | DA37: 0 | DB37: 0 | DC37: 0 | DD37: 0 | DE37: 0 | DF37: 0 | DG37: 0 | DH37: 0 | DI37: 0 | DJ37: 0 | DK37: 0 | DL37: 0 | DM37: 0 | DN37: 0 | DO37: 0 | DP37: 0 | DQ37: 0 | DR37: 0 | DS37: 0 | DT37: 0 | DU37: 0 | DV37: 0 | DW37: 0 | DX37: 0
A38: 91 | I38: 0 | J38: =IF(RIGHT('Från 3L'!$C$2,2)="01",kapital!BA38,IF(RIGHT('Från 3L'!$C$2,2)="07",kapital!CA38,DA38)) -> 0 | K38: =IF(RIGHT('Från 3L'!$C$2,2)="01",kapital!BB38,IF(RIGHT('Från 3L'!$C$2,2)="07",kapital!CB38,DB38)) -> 0 | L38: =IF(RIGHT('Från 3L'!$C$2,2)="01",kapital!BC38,IF(RIGHT('Från 3L'!$C$2,2)="07",kapital!CC38,DC38)) -> 0 | M38: =IF(RIGHT('Från 3L'!$C$2,2)="01",kapital!BD38,IF(RIGHT('Från 3L'!$C$2,2)="07",kapital!CD38,DD38)) -> 0 | N38: =IF(RIGHT('Från 3L'!$C$2,2)="01",kapital!BE38,IF(RIGHT('Från 3L'!$C$2,2)="07",kapital!CE38,DE38)) -> 0 | O38: =IF(RIGHT('Från 3L'!$C$2,2)="01",kapital!BF38,IF(RIGHT('Från 3L'!$C$2,2)="07",kapital!CF38,DF38)) -> 0 | P38: =IF(RIGHT('Från 3L'!$C$2,2)="01",kapital!BG38,IF(RIGHT('Från 3L'!$C$2,2)="07",kapital!CG38,DG38)) -> 0 | Q38: =IF(RIGHT('Från 3L'!$C$2,2)="01",kapital!BH38,IF(RIGHT('Från 3L'!$C$2,2)="07",kapital!CH38,DH38)) -> 0 | R38: =IF(RIGHT('Från 3L'!$C$2,2)="01",kapital!BI38,IF(RIGHT('Från 3L'!$C$2,2)="07",kapital!CI38,DI38)) -> 0 | S38: =IF(RIGHT('Från 3L'!$C$2,2)="01",kapital!BJ38,IF(RIGHT('Från 3L'!$C$2,2)="07",kapital!CJ38,DJ38)) -> 0 | T38: =IF(RIGHT('Från 3L'!$C$2,2)="01",kapital!BK38,IF(RIGHT('Från 3L'!$C$2,2)="07",kapital!CK38,DK38)) -> 0 | U38: =IF(RIGHT('Från 3L'!$C$2,2)="01",kapital!BL38,IF(RIGHT('Från 3L'!$C$2,2)="07",kapital!CL38,DL38)) -> 0 | V38: 0 | X38: =IF(RIGHT('Från 3L'!$C$2,2)="01",kapital!BM38,IF(RIGHT('Från 3L'!$C$2,2)="07",kapital!CM38,DM38)) -> 0 | Y38: =IF(RIGHT('Från 3L'!$C$2,2)="01",kapital!BN38,IF(RIGHT('Från 3L'!$C$2,2)="07",kapital!CN38,DN38)) -> 0 | Z38: =IF(RIGHT('Från 3L'!$C$2,2)="01",kapital!BO38,IF(RIGHT('Från 3L'!$C$2,2)="07",kapital!CO38,DO38)) -> 0 | AA38: =IF(RIGHT('Från 3L'!$C$2,2)="01",kapital!BP38,IF(RIGHT('Från 3L'!$C$2,2)="07",kapital!CP38,DP38)) -> 0 | AB38: =IF(RIGHT('Från 3L'!$C$2,2)="01",kapital!BQ38,IF(RIGHT('Från 3L'!$C$2,2)="07",kapital!CQ38,DQ38)) -> 0 | AC38: =IF(RIGHT('Från 3L'!$C$2,2)="01",kapital!BR38,IF(RIGHT('Från 3L'!$C$2,2)="07",kapital!CR38,DR38)) -> 0 | AD38: =IF(RIGHT('Från 3L'!$C$2,2)="01",kapital!BS38,IF(RIGHT('Från 3L'!$C$2,2)="07",kapital!CS38,DS38)) -> 0 | AE38: =IF(RIGHT('Från 3L'!$C$2,2)="01",kapital!BT38,IF(RIGHT('Från 3L'!$C$2,2)="07",kapital!CT38,DT38)) -> 0 | AF38: =IF(RIGHT('Från 3L'!$C$2,2)="01",kapital!BU38,IF(RIGHT('Från 3L'!$C$2,2)="07",kapital!CU38,DU38)) -> 0 | AG38: =IF(RIGHT('Från 3L'!$C$2,2)="01",kapital!BV38,IF(RIGHT('Från 3L'!$C$2,2)="07",kapital!CV38,DV38)) -> 0 | AH38: =IF(RIGHT('Från 3L'!$C$2,2)="01",kapital!BW38,IF(RIGHT('Från 3L'!$C$2,2)="07",kapital!CW38,DW38)) -> 0 | AI38: =IF(RIGHT('Från 3L'!$C$2,2)="01",kapital!BX38,IF(RIGHT('Från 3L'!$C$2,2)="07",kapital!CX38,DX38)) -> 0 | AJ38: 0 | BA38: 0 | BB38: 0 | BC38: 0 | BD38: 0 | BE38: 0 | BF38: 0 | BG38: 0 | BH38: 0 | BI38: 0 | BJ38: 0 | BK38: 0 | BL38: 0 | BM38: =IF($I38=1,$G38,0) -> 0 | BN38: =IF($I38=2,$G38,0) -> 0 | BO38: =IF($I38=3,$G38,0) -> 0 | BP38: =IF($I38=4,$G38,0) -> 0 | BQ38: =IF($I38=5,$G38,0) -> 0 | BR38: =IF($I38=6,$G38,0) -> 0 | BS38: =IF($I38=7,$G38,0) -> 0 | BT38: =IF($I38=8,$G38,0) -> 0 | BU38: =IF($I38=9,$G38,0) -> 0 | BV38: =IF($I38=10,$G38,0) -> 0 | BW38: =IF($I38=11,$G38,0) -> 0 | BX38: =IF($I38=12,$G38,0) -> 0 | CA38: 0 | CB38: 0 | CC38: 0 | CD38: 0 | CE38: 0 | CF38: 0 | CG38: 0 | CH38: 0 | CI38: 0 | CJ38: 0 | CK38: 0 | CL38: 0 | CM38: 0 | CN38: 0 | CO38: 0 | CP38: 0 | CQ38: 0 | CR38: 0 | CS38: 0 | CT38: 0 | CU38: 0 | CV38: 0 | CW38: 0 | CX38: 0 | DA38: 0 | DB38: 0 | DC38: 0 | DD38: 0 | DE38: 0 | DF38: 0 | DG38: 0 | DH38: 0 | DI38: 0 | DJ38: 0 | DK38: 0 | DL38: 0 | DM38: 0 | DN38: 0 | DO38: 0 | DP38: 0 | DQ38: 0 | DR38: 0 | DS38: 0 | DT38: 0 | DU38: 0 | DV38: 0 | DW38: 0 | DX38: 0
A39: 91 | I39: =IF(C39=0,0,MONTH(C39)) -> 0 | J39: =IF(RIGHT('Från 3L'!$C$2,2)="01",kapital!BA39,IF(RIGHT('Från 3L'!$C$2,2)="07",kapital!CA39,DA39)) -> 0 | K39: =IF(RIGHT('Från 3L'!$C$2,2)="01",kapital!BB39,IF(RIGHT('Från 3L'!$C$2,2)="07",kapital!CB39,DB39)) -> 0 | L39: =IF(RIGHT('Från 3L'!$C$2,2)="01",kapital!BC39,IF(RIGHT('Från 3L'!$C$2,2)="07",kapital!CC39,DC39)) -> 0 | M39: =IF(RIGHT('Från 3L'!$C$2,2)="01",kapital!BD39,IF(RIGHT('Från 3L'!$C$2,2)="07",kapital!CD39,DD39)) -> 0 | N39: =IF(RIGHT('Från 3L'!$C$2,2)="01",kapital!BE39,IF(RIGHT('Från 3L'!$C$2,2)="07",kapital!CE39,DE39)) -> 0 | O39: =IF(RIGHT('Från 3L'!$C$2,2)="01",kapital!BF39,IF(RIGHT('Från 3L'!$C$2,2)="07",kapital!CF39,DF39)) -> 0 | P39: =IF(RIGHT('Från 3L'!$C$2,2)="01",kapital!BG39,IF(RIGHT('Från 3L'!$C$2,2)="07",kapital!CG39,DG39)) -> 0 | Q39: =IF(RIGHT('Från 3L'!$C$2,2)="01",kapital!BH39,IF(RIGHT('Från 3L'!$C$2,2)="07",kapital!CH39,DH39)) -> 0 | R39: =IF(RIGHT('Från 3L'!$C$2,2)="01",kapital!BI39,IF(RIGHT('Från 3L'!$C$2,2)="07",kapital!CI39,DI39)) -> 0 | S39: =IF(RIGHT('Från 3L'!$C$2,2)="01",kapital!BJ39,IF(RIGHT('Från 3L'!$C$2,2)="07",kapital!CJ39,DJ39)) -> 0 | T39: =IF(RIGHT('Från 3L'!$C$2,2)="01",kapital!BK39,IF(RIGHT('Från 3L'!$C$2,2)="07",kapital!CK39,DK39)) -> 0 | U39: =IF(RIGHT('Från 3L'!$C$2,2)="01",kapital!BL39,IF(RIGHT('Från 3L'!$C$2,2)="07",kapital!CL39,DL39)) -> 0 | V39: 0 | X39: =IF(RIGHT('Från 3L'!$C$2,2)="01",kapital!BM39,IF(RIGHT('Från 3L'!$C$2,2)="07",kapital!CM39,DM39)) -> 0 | Y39: =IF(RIGHT('Från 3L'!$C$2,2)="01",kapital!BN39,IF(RIGHT('Från 3L'!$C$2,2)="07",kapital!CN39,DN39)) -> 0 | Z39: =IF(RIGHT('Från 3L'!$C$2,2)="01",kapital!BO39,IF(RIGHT('Från 3L'!$C$2,2)="07",kapital!CO39,DO39)) -> 0 | AA39: =IF(RIGHT('Från 3L'!$C$2,2)="01",kapital!BP39,IF(RIGHT('Från 3L'!$C$2,2)="07",kapital!CP39,DP39)) -> 0 | AB39: =IF(RIGHT('Från 3L'!$C$2,2)="01",kapital!BQ39,IF(RIGHT('Från 3L'!$C$2,2)="07",kapital!CQ39,DQ39)) -> 0 | AC39: =IF(RIGHT('Från 3L'!$C$2,2)="01",kapital!BR39,IF(RIGHT('Från 3L'!$C$2,2)="07",kapital!CR39,DR39)) -> 0 | AD39: =IF(RIGHT('Från 3L'!$C$2,2)="01",kapital!BS39,IF(RIGHT('Från 3L'!$C$2,2)="07",kapital!CS39,DS39)) -> 0 | AE39: =IF(RIGHT('Från 3L'!$C$2,2)="01",kapital!BT39,IF(RIGHT('Från 3L'!$C$2,2)="07",kapital!CT39,DT39)) -> 0 | AF39: =IF(RIGHT('Från 3L'!$C$2,2)="01",kapital!BU39,IF(RIGHT('Från 3L'!$C$2,2)="07",kapital!CU39,DU39)) -> 0 | AG39: =IF(RIGHT('Från 3L'!$C$2,2)="01",kapital!BV39,IF(RIGHT('Från 3L'!$C$2,2)="07",kapital!CV39,DV39)) -> 0 | AH39: =IF(RIGHT('Från 3L'!$C$2,2)="01",kapital!BW39,IF(RIGHT('Från 3L'!$C$2,2)="07",kapital!CW39,DW39)) -> 0 | AI39: =IF(RIGHT('Från 3L'!$C$2,2)="01",kapital!BX39,IF(RIGHT('Från 3L'!$C$2,2)="07",kapital!CX39,DX39)) -> 0 | AJ39: 0 | BA39: 0 | BB39: 0 | BC39: 0 | BD39: 0 | BE39: 0 | BF39: 0 | BG39: 0 | BH39: 0 | BI39: 0 | BJ39: 0 | BK39: 0 | BL39: 0 | BM39: =IF($I39=1,$G39,0) -> 0 | BN39: =IF($I39=2,$G39,0) -> 0 | BO39: =IF($I39=3,$G39,0) -> 0 | BP39: =IF($I39=4,$G39,0) -> 0 | BQ39: =IF($I39=5,$G39,0) -> 0 | BR39: =IF($I39=6,$G39,0) -> 0 | BS39: =IF($I39=7,$G39,0) -> 0 | BT39: =IF($I39=8,$G39,0) -> 0 | BU39: =IF($I39=9,$G39,0) -> 0 | BV39: =IF($I39=10,$G39,0) -> 0 | BW39: =IF($I39=11,$G39,0) -> 0 | BX39: =IF($I39=12,$G39,0) -> 0 | CA39: 0 | CB39: 0 | CC39: 0 | CD39: 0 | CE39: 0 | CF39: 0 | CG39: 0 | CH39: 0 | CI39: 0 | CJ39: 0 | CK39: 0 | CL39: 0 | CM39: 0 | CN39: 0 | CO39: 0 | CP39: 0 | CQ39: 0 | CR39: 0 | CS39: 0 | CT39: 0 | CU39: 0 | CV39: 0 | CW39: 0 | CX39: 0 | DA39: 0 | DB39: 0 | DC39: 0 | DD39: 0 | DE39: 0 | DF39: 0 | DG39: 0 | DH39: 0 | DI39: 0 | DJ39: 0 | DK39: 0 | DL39: 0 | DM39: 0 | DN39: 0 | DO39: 0 | DP39: 0 | DQ39: 0 | DR39: 0 | DS39: 0 | DT39: 0 | DU39: 0 | DV39: 0 | DW39: 0 | DX39: 0
A40: 91 | I40: 0 | J40: =IF(RIGHT('Från 3L'!$C$2,2)="01",kapital!BA40,IF(RIGHT('Från 3L'!$C$2,2)="07",kapital!CA40,DA40)) -> 0 | K40: =IF(RIGHT('Från 3L'!$C$2,2)="01",kapital!BB40,IF(RIGHT('Från 3L'!$C$2,2)="07",kapital!CB40,DB40)) -> 0 | L40: =IF(RIGHT('Från 3L'!$C$2,2)="01",kapital!BC40,IF(RIGHT('Från 3L'!$C$2,2)="07",kapital!CC40,DC40)) -> 0 | M40: =IF(RIGHT('Från 3L'!$C$2,2)="01",kapital!BD40,IF(RIGHT('Från 3L'!$C$2,2)="07",kapital!CD40,DD40)) -> 0 | N40: =IF(RIGHT('Från 3L'!$C$2,2)="01",kapital!BE40,IF(RIGHT('Från 3L'!$C$2,2)="07",kapital!CE40,DE40)) -> 0 | O40: =IF(RIGHT('Från 3L'!$C$2,2)="01",kapital!BF40,IF(RIGHT('Från 3L'!$C$2,2)="07",kapital!CF40,DF40)) -> 0 | P40: =IF(RIGHT('Från 3L'!$C$2,2)="01",kapital!BG40,IF(RIGHT('Från 3L'!$C$2,2)="07",kapital!CG40,DG40)) -> 0 | Q40: =IF(RIGHT('Från 3L'!$C$2,2)="01",kapital!BH40,IF(RIGHT('Från 3L'!$C$2,2)="07",kapital!CH40,DH40)) -> 0 | R40: =IF(RIGHT('Från 3L'!$C$2,2)="01",kapital!BI40,IF(RIGHT('Från 3L'!$C$2,2)="07",kapital!CI40,DI40)) -> 0 | S40: =IF(RIGHT('Från 3L'!$C$2,2)="01",kapital!BJ40,IF(RIGHT('Från 3L'!$C$2,2)="07",kapital!CJ40,DJ40)) -> 0 | T40: =IF(RIGHT('Från 3L'!$C$2,2)="01",kapital!BK40,IF(RIGHT('Från 3L'!$C$2,2)="07",kapital!CK40,DK40)) -> 0 | U40: =IF(RIGHT('Från 3L'!$C$2,2)="01",kapital!BL40,IF(RIGHT('Från 3L'!$C$2,2)="07",kapital!CL40,DL40)) -> 0 | V40: =SUM(J40:U40) -> 0 | X40: =IF(RIGHT('Från 3L'!$C$2,2)="01",kapital!BM40,IF(RIGHT('Från 3L'!$C$2,2)="07",kapital!CM40,DM40)) -> 0 | Y40: =IF(RIGHT('Från 3L'!$C$2,2)="01",kapital!BN40,IF(RIGHT('Från 3L'!$C$2,2)="07",kapital!CN40,DN40)) -> 0 | Z40: =IF(RIGHT('Från 3L'!$C$2,2)="01",kapital!BO40,IF(RIGHT('Från 3L'!$C$2,2)="07",kapital!CO40,DO40)) -> 0 | AA40: =IF(RIGHT('Från 3L'!$C$2,2)="01",kapital!BP40,IF(RIGHT('Från 3L'!$C$2,2)="07",kapital!CP40,DP40)) -> 0 | AB40: =IF(RIGHT('Från 3L'!$C$2,2)="01",kapital!BQ40,IF(RIGHT('Från 3L'!$C$2,2)="07",kapital!CQ40,DQ40)) -> 0 | AC40: =IF(RIGHT('Från 3L'!$C$2,2)="01",kapital!BR40,IF(RIGHT('Från 3L'!$C$2,2)="07",kapital!CR40,DR40)) -> 0 | AD40: =IF(RIGHT('Från 3L'!$C$2,2)="01",kapital!BS40,IF(RIGHT('Från 3L'!$C$2,2)="07",kapital!CS40,DS40)) -> 0 | AE40: =IF(RIGHT('Från 3L'!$C$2,2)="01",kapital!BT40,IF(RIGHT('Från 3L'!$C$2,2)="07",kapital!CT40,DT40)) -> 0 | AF40: =IF(RIGHT('Från 3L'!$C$2,2)="01",kapital!BU40,IF(RIGHT('Från 3L'!$C$2,2)="07",kapital!CU40,DU40)) -> 0 | AG40: =IF(RIGHT('Från 3L'!$C$2,2)="01",kapital!BV40,IF(RIGHT('Från 3L'!$C$2,2)="07",kapital!CV40,DV40)) -> 0 | AH40: =IF(RIGHT('Från 3L'!$C$2,2)="01",kapital!BW40,IF(RIGHT('Från 3L'!$C$2,2)="07",kapital!CW40,DW40)) -> 0 | AI40: =IF(RIGHT('Från 3L'!$C$2,2)="01",kapital!BX40,IF(RIGHT('Från 3L'!$C$2,2)="07",kapital!CX40,DX40)) -> 0 | AJ40: =SUM(X40:AI40) -> 0 | BA40: =IF($I40=1,IF($I39=0,($D40*$E40)/365*$A40,IF($I39>0,$F40,0)),0) -> 0 | BB40: =IF($I40=2,IF($I39=0,($D40*$E40)/365*$A40,IF($I39>0,$F40,0)),0) -> 0 | BC40: =IF($I40=3,IF($I39=0,($D40*$E40)/365*$A40,IF($I39>0,$F40,0)),0) -> 0 | BD40: =IF($I40=4,IF($I39=0,($D40*$E40)/365*$A40,IF($I39>0,$F40,0)),0) -> 0 | BE40: =IF($I40=5,IF($I39=0,($D40*$E40)/365*$A40,IF($I39>0,$F40,0)),0) -> 0 | BF40: =IF($I40=6,IF($I39=0,($D40*$E40)/365*$A40,IF($I39>0,$F40,0)),0) -> 0 | BG40: =IF($I40=7,IF($I39=0,($D40*$E40)/365*$A40,IF($I39>0,$F40,0)),0) -> 0 | BH40: =IF($I40=8,IF($I39=0,($D40*$E40)/365*$A40,IF($I39>0,$F40,0)),0) -> 0 | BI40: =IF($I40=9,IF($I39=0,($D40*$E40)/365*$A40,IF($I39>0,$F40,0)),0) -> 0 | BJ40: =IF($I40=10,IF($I39=0,($D40*$E40)/365*$A40,IF($I39>0,$F40,0)),0) -> 0 | BK40: =IF($I40=11,IF($I39=0,($D40*$E40)/365*$A40,IF($I39>0,$F40,0)),0) -> 0 | BL40: =IF($I40=12,IF($F40<($D40*$E40)/365*$A40,0,$F40),0) -> 0 | BM40: =IF($I40=1,$G40,0) -> 0 | BN40: =IF($I40=2,$G40,0) -> 0 | BO40: =IF($I40=3,$G40,0) -> 0 | BP40: =IF($I40=4,$G40,0) -> 0 | BQ40: =IF($I40=5,$G40,0) -> 0 | BR40: =IF($I40=6,$G40,0) -> 0 | BS40: =IF($I40=7,$G40,0) -> 0 | BT40: =IF($I40=8,$G40,0) -> 0 | BU40: =IF($I40=9,$G40,0) -> 0 | BV40: =IF($I40=10,$G40,0) -> 0 | BW40: =IF($I40=11,$G40,0) -> 0 | BX40: =IF($I40=12,$G40,0) -> 0 | CA40: 0 | CB40: 0 | CC40: 0 | CD40: 0 | CE40: 0 | CF40: 0 | CG40: 0 | CH40: 0 | CI40: 0 | CJ40: 0 | CK40: 0 | CL40: 0 | CM40: 0 | CN40: 0 | CO40: 0 | CP40: 0 | CQ40: 0 | CR40: 0 | CS40: 0 | CT40: 0 | CU40: 0 | CV40: 0 | CW40: 0 | CX40: 0 | DA40: 0 | DB40: 0 | DC40: 0 | DD40: 0 | DE40: 0 | DF40: 0 | DG40: 0 | DH40: 0 | DI40: 0 | DJ40: 0 | DK40: 0 | DL40: 0 | DM40: 0 | DN40: 0 | DO40: 0 | DP40: 0 | DQ40: 0 | DR40: 0 | DS40: 0 | DT40: 0 | DU40: 0 | DV40: 0 | DW40: 0 | DX40: 0
A41: 91 | I41: 0 | J41: =IF(RIGHT('Från 3L'!$C$2,2)="01",kapital!BA41,IF(RIGHT('Från 3L'!$C$2,2)="07",kapital!CA41,DA41)) -> 0 | K41: =IF(RIGHT('Från 3L'!$C$2,2)="01",kapital!BB41,IF(RIGHT('Från 3L'!$C$2,2)="07",kapital!CB41,DB41)) -> 0 | L41: =IF(RIGHT('Från 3L'!$C$2,2)="01",kapital!BC41,IF(RIGHT('Från 3L'!$C$2,2)="07",kapital!CC41,DC41)) -> 0 | M41: =IF(RIGHT('Från 3L'!$C$2,2)="01",kapital!BD41,IF(RIGHT('Från 3L'!$C$2,2)="07",kapital!CD41,DD41)) -> 0 | N41: =IF(RIGHT('Från 3L'!$C$2,2)="01",kapital!BE41,IF(RIGHT('Från 3L'!$C$2,2)="07",kapital!CE41,DE41)) -> 0 | O41: =IF(RIGHT('Från 3L'!$C$2,2)="01",kapital!BF41,IF(RIGHT('Från 3L'!$C$2,2)="07",kapital!CF41,DF41)) -> 0 | P41: =IF(RIGHT('Från 3L'!$C$2,2)="01",kapital!BG41,IF(RIGHT('Från 3L'!$C$2,2)="07",kapital!CG41,DG41)) -> 0 | Q41: =IF(RIGHT('Från 3L'!$C$2,2)="01",kapital!BH41,IF(RIGHT('Från 3L'!$C$2,2)="07",kapital!CH41,DH41)) -> 0 | R41: =IF(RIGHT('Från 3L'!$C$2,2)="01",kapital!BI41,IF(RIGHT('Från 3L'!$C$2,2)="07",kapital!CI41,DI41)) -> 0 | S41: =IF(RIGHT('Från 3L'!$C$2,2)="01",kapital!BJ41,IF(RIGHT('Från 3L'!$C$2,2)="07",kapital!CJ41,DJ41)) -> 0 | T41: =IF(RIGHT('Från 3L'!$C$2,2)="01",kapital!BK41,IF(RIGHT('Från 3L'!$C$2,2)="07",kapital!CK41,DK41)) -> 0 | U41: =IF(RIGHT('Från 3L'!$C$2,2)="01",kapital!BL41,IF(RIGHT('Från 3L'!$C$2,2)="07",kapital!CL41,DL41)) -> 0 | V41: =SUM(J41:U41) -> 0 | X41: =IF(RIGHT('Från 3L'!$C$2,2)="01",kapital!BM41,IF(RIGHT('Från 3L'!$C$2,2)="07",kapital!CM41,DM41)) -> 0 | Y41: =IF(RIGHT('Från 3L'!$C$2,2)="01",kapital!BN41,IF(RIGHT('Från 3L'!$C$2,2)="07",kapital!CN41,DN41)) -> 0 | Z41: =IF(RIGHT('Från 3L'!$C$2,2)="01",kapital!BO41,IF(RIGHT('Från 3L'!$C$2,2)="07",kapital!CO41,DO41)) -> 0 | AA41: =IF(RIGHT('Från 3L'!$C$2,2)="01",kapital!BP41,IF(RIGHT('Från 3L'!$C$2,2)="07",kapital!CP41,DP41)) -> 0 | AB41: =IF(RIGHT('Från 3L'!$C$2,2)="01",kapital!BQ41,IF(RIGHT('Från 3L'!$C$2,2)="07",kapital!CQ41,DQ41)) -> 0 | AC41: =IF(RIGHT('Från 3L'!$C$2,2)="01",kapital!BR41,IF(RIGHT('Från 3L'!$C$2,2)="07",kapital!CR41,DR41)) -> 0 | AD41: =IF(RIGHT('Från 3L'!$C$2,2)="01",kapital!BS41,IF(RIGHT('Från 3L'!$C$2,2)="07",kapital!CS41,DS41)) -> 0 | AE41: =IF(RIGHT('Från 3L'!$C$2,2)="01",kapital!BT41,IF(RIGHT('Från 3L'!$C$2,2)="07",kapital!CT41,DT41)) -> 0 | AF41: =IF(RIGHT('Från 3L'!$C$2,2)="01",kapital!BU41,IF(RIGHT('Från 3L'!$C$2,2)="07",kapital!CU41,DU41)) -> 0 | AG41: =IF(RIGHT('Från 3L'!$C$2,2)="01",kapital!BV41,IF(RIGHT('Från 3L'!$C$2,2)="07",kapital!CV41,DV41)) -> 0 | AH41: =IF(RIGHT('Från 3L'!$C$2,2)="01",kapital!BW41,IF(RIGHT('Från 3L'!$C$2,2)="07",kapital!CW41,DW41)) -> 0 | AI41: =IF(RIGHT('Från 3L'!$C$2,2)="01",kapital!BX41,IF(RIGHT('Från 3L'!$C$2,2)="07",kapital!CX41,DX41)) -> 0 | AJ41: =SUM(X41:AI41) -> 0 | BA41: 0 | BB41: 0 | BC41: 0 | BD41: 0 | BE41: 0 | BF41: 0 | BG41: 0 | BH41: 0 | BI41: 0 | BJ41: 0 | BK41: 0 | BL41: 0 | BM41: 0 | BN41: 0 | BO41: 0 | BP41: 0 | BQ41: 0 | BR41: 0 | BS41: 0 | BT41: 0 | BU41: 0 | BV41: 0 | BW41: 0 | BX41: 0 | CA41: 0 | CB41: 0 | CC41: 0 | CD41: 0 | CE41: 0 | CF41: 0 | CG41: 0 | CH41: 0 | CI41: 0 | CJ41: 0 | CK41: 0 | CL41: 0 | CM41: 0 | CN41: 0 | CO41: 0 | CP41: 0 | CQ41: 0 | CR41: 0 | CS41: 0 | CT41: 0 | CU41: 0 | CV41: 0 | CW41: 0 | CX41: 0 | DA41: 0 | DB41: 0 | DC41: 0 | DD41: 0 | DE41: 0 | DF41: 0 | DG41: 0 | DH41: 0 | DI41: 0 | DJ41: 0 | DK41: 0 | DL41: 0 | DM41: 0 | DN41: 0 | DO41: 0 | DP41: 0 | DQ41: 0 | DR41: 0 | DS41: 0 | DT41: 0 | DU41: 0 | DV41: 0 | DW41: 0 | DX41: 0
A42: 91 | I42: 0 | J42: =IF(RIGHT('Från 3L'!$C$2,2)="01",kapital!BA42,IF(RIGHT('Från 3L'!$C$2,2)="07",kapital!CA42,DA42)) -> 0 | K42: =IF(RIGHT('Från 3L'!$C$2,2)="01",kapital!BB42,IF(RIGHT('Från 3L'!$C$2,2)="07",kapital!CB42,DB42)) -> 0 | L42: =IF(RIGHT('Från 3L'!$C$2,2)="01",kapital!BC42,IF(RIGHT('Från 3L'!$C$2,2)="07",kapital!CC42,DC42)) -> 0 | M42: =IF(RIGHT('Från 3L'!$C$2,2)="01",kapital!BD42,IF(RIGHT('Från 3L'!$C$2,2)="07",kapital!CD42,DD42)) -> 0 | N42: =IF(RIGHT('Från 3L'!$C$2,2)="01",kapital!BE42,IF(RIGHT('Från 3L'!$C$2,2)="07",kapital!CE42,DE42)) -> 0 | O42: =IF(RIGHT('Från 3L'!$C$2,2)="01",kapital!BF42,IF(RIGHT('Från 3L'!$C$2,2)="07",kapital!CF42,DF42)) -> 0 | P42: =IF(RIGHT('Från 3L'!$C$2,2)="01",kapital!BG42,IF(RIGHT('Från 3L'!$C$2,2)="07",kapital!CG42,DG42)) -> 0 | Q42: =IF(RIGHT('Från 3L'!$C$2,2)="01",kapital!BH42,IF(RIGHT('Från 3L'!$C$2,2)="07",kapital!CH42,DH42)) -> 0 | R42: =IF(RIGHT('Från 3L'!$C$2,2)="01",kapital!BI42,IF(RIGHT('Från 3L'!$C$2,2)="07",kapital!CI42,DI42)) -> 0 | S42: =IF(RIGHT('Från 3L'!$C$2,2)="01",kapital!BJ42,IF(RIGHT('Från 3L'!$C$2,2)="07",kapital!CJ42,DJ42)) -> 0 | T42: =IF(RIGHT('Från 3L'!$C$2,2)="01",kapital!BK42,IF(RIGHT('Från 3L'!$C$2,2)="07",kapital!CK42,DK42)) -> 0 | U42: =IF(RIGHT('Från 3L'!$C$2,2)="01",kapital!BL42,IF(RIGHT('Från 3L'!$C$2,2)="07",kapital!CL42,DL42)) -> 0 | V42: =SUM(J42:U42) -> 0 | X42: =IF(RIGHT('Från 3L'!$C$2,2)="01",kapital!BM42,IF(RIGHT('Från 3L'!$C$2,2)="07",kapital!CM42,DM42)) -> 0 | Y42: =IF(RIGHT('Från 3L'!$C$2,2)="01",kapital!BN42,IF(RIGHT('Från 3L'!$C$2,2)="07",kapital!CN42,DN42)) -> 0 | Z42: =IF(RIGHT('Från 3L'!$C$2,2)="01",kapital!BO42,IF(RIGHT('Från 3L'!$C$2,2)="07",kapital!CO42,DO42)) -> 0 | AA42: =IF(RIGHT('Från 3L'!$C$2,2)="01",kapital!BP42,IF(RIGHT('Från 3L'!$C$2,2)="07",kapital!CP42,DP42)) -> 0 | AB42: =IF(RIGHT('Från 3L'!$C$2,2)="01",kapital!BQ42,IF(RIGHT('Från 3L'!$C$2,2)="07",kapital!CQ42,DQ42)) -> 0 | AC42: =IF(RIGHT('Från 3L'!$C$2,2)="01",kapital!BR42,IF(RIGHT('Från 3L'!$C$2,2)="07",kapital!CR42,DR42)) -> 0 | AD42: =IF(RIGHT('Från 3L'!$C$2,2)="01",kapital!BS42,IF(RIGHT('Från 3L'!$C$2,2)="07",kapital!CS42,DS42)) -> 0 | AE42: =IF(RIGHT('Från 3L'!$C$2,2)="01",kapital!BT42,IF(RIGHT('Från 3L'!$C$2,2)="07",kapital!CT42,DT42)) -> 0 | AF42: =IF(RIGHT('Från 3L'!$C$2,2)="01",kapital!BU42,IF(RIGHT('Från 3L'!$C$2,2)="07",kapital!CU42,DU42)) -> 0 | AG42: =IF(RIGHT('Från 3L'!$C$2,2)="01",kapital!BV42,IF(RIGHT('Från 3L'!$C$2,2)="07",kapital!CV42,DV42)) -> 0 | AH42: =IF(RIGHT('Från 3L'!$C$2,2)="01",kapital!BW42,IF(RIGHT('Från 3L'!$C$2,2)="07",kapital!CW42,DW42)) -> 0 | AI42: =IF(RIGHT('Från 3L'!$C$2,2)="01",kapital!BX42,IF(RIGHT('Från 3L'!$C$2,2)="07",kapital!CX42,DX42)) -> 0 | AJ42: =SUM(X42:AI42) -> 0 | BA42: 0 | BB42: 0 | BC42: 0 | BD42: 0 | BE42: 0 | BF42: 0 | BG42: 0 | BH42: 0 | BI42: 0 | BJ42: 0 | BK42: 0 | BL42: 0 | BM42: 0 | BN42: 0 | BO42: 0 | BP42: 0 | BQ42: 0 | BR42: 0 | BS42: 0 | BT42: 0 | BU42: 0 | BV42: 0 | BW42: 0 | BX42: 0 | CA42: 0 | CB42: 0 | CC42: 0 | CD42: 0 | CE42: 0 | CF42: 0 | CG42: 0 | CH42: 0 | CI42: 0 | CJ42: 0 | CK42: 0 | CL42: 0 | CM42: 0 | CN42: 0 | CO42: 0 | CP42: 0 | CQ42: 0 | CR42: 0 | CS42: 0 | CT42: 0 | CU42: 0 | CV42: 0 | CW42: 0 | CX42: 0 | DA42: 0 | DB42: 0 | DC42: 0 | DD42: 0 | DE42: 0 | DF42: 0 | DG42: 0 | DH42: 0 | DI42: 0 | DJ42: 0 | DK42: 0 | DL42: 0 | DM42: 0 | DN42: 0 | DO42: 0 | DP42: 0 | DQ42: 0 | DR42: 0 | DS42: 0 | DT42: 0 | DU42: 0 | DV42: 0 | DW42: 0 | DX42: 0
A43: 91 | I43: 0 | J43: =IF(RIGHT('Från 3L'!$C$2,2)="01",kapital!BA43,IF(RIGHT('Från 3L'!$C$2,2)="07",kapital!CA43,DA43)) -> 0 | K43: =IF(RIGHT('Från 3L'!$C$2,2)="01",kapital!BB43,IF(RIGHT('Från 3L'!$C$2,2)="07",kapital!CB43,DB43)) -> 0 | L43: =IF(RIGHT('Från 3L'!$C$2,2)="01",kapital!BC43,IF(RIGHT('Från 3L'!$C$2,2)="07",kapital!CC43,DC43)) -> 0 | M43: =IF(RIGHT('Från 3L'!$C$2,2)="01",kapital!BD43,IF(RIGHT('Från 3L'!$C$2,2)="07",kapital!CD43,DD43)) -> 0 | N43: =IF(RIGHT('Från 3L'!$C$2,2)="01",kapital!BE43,IF(RIGHT('Från 3L'!$C$2,2)="07",kapital!CE43,DE43)) -> 0 | O43: =IF(RIGHT('Från 3L'!$C$2,2)="01",kapital!BF43,IF(RIGHT('Från 3L'!$C$2,2)="07",kapital!CF43,DF43)) -> 0 | P43: =IF(RIGHT('Från 3L'!$C$2,2)="01",kapital!BG43,IF(RIGHT('Från 3L'!$C$2,2)="07",kapital!CG43,DG43)) -> 0 | Q43: =IF(RIGHT('Från 3L'!$C$2,2)="01",kapital!BH43,IF(RIGHT('Från 3L'!$C$2,2)="07",kapital!CH43,DH43)) -> 0 | R43: =IF(RIGHT('Från 3L'!$C$2,2)="01",kapital!BI43,IF(RIGHT('Från 3L'!$C$2,2)="07",kapital!CI43,DI43)) -> 0 | S43: =IF(RIGHT('Från 3L'!$C$2,2)="01",kapital!BJ43,IF(RIGHT('Från 3L'!$C$2,2)="07",kapital!CJ43,DJ43)) -> 0 | T43: =IF(RIGHT('Från 3L'!$C$2,2)="01",kapital!BK43,IF(RIGHT('Från 3L'!$C$2,2)="07",kapital!CK43,DK43)) -> 0 | U43: =IF(RIGHT('Från 3L'!$C$2,2)="01",kapital!BL43,IF(RIGHT('Från 3L'!$C$2,2)="07",kapital!CL43,DL43)) -> 0 | V43: 0 | X43: =IF(RIGHT('Från 3L'!$C$2,2)="01",kapital!BM43,IF(RIGHT('Från 3L'!$C$2,2)="07",kapital!CM43,DM43)) -> 0 | Y43: =IF(RIGHT('Från 3L'!$C$2,2)="01",kapital!BN43,IF(RIGHT('Från 3L'!$C$2,2)="07",kapital!CN43,DN43)) -> 0 | Z43: =IF(RIGHT('Från 3L'!$C$2,2)="01",kapital!BO43,IF(RIGHT('Från 3L'!$C$2,2)="07",kapital!CO43,DO43)) -> 0 | AA43: =IF(RIGHT('Från 3L'!$C$2,2)="01",kapital!BP43,IF(RIGHT('Från 3L'!$C$2,2)="07",kapital!CP43,DP43)) -> 0 | AB43: =IF(RIGHT('Från 3L'!$C$2,2)="01",kapital!BQ43,IF(RIGHT('Från 3L'!$C$2,2)="07",kapital!CQ43,DQ43)) -> 0 | AC43: =IF(RIGHT('Från 3L'!$C$2,2)="01",kapital!BR43,IF(RIGHT('Från 3L'!$C$2,2)="07",kapital!CR43,DR43)) -> 0 | AD43: =IF(RIGHT('Från 3L'!$C$2,2)="01",kapital!BS43,IF(RIGHT('Från 3L'!$C$2,2)="07",kapital!CS43,DS43)) -> 0 | AE43: =IF(RIGHT('Från 3L'!$C$2,2)="01",kapital!BT43,IF(RIGHT('Från 3L'!$C$2,2)="07",kapital!CT43,DT43)) -> 0 | AF43: =IF(RIGHT('Från 3L'!$C$2,2)="01",kapital!BU43,IF(RIGHT('Från 3L'!$C$2,2)="07",kapital!CU43,DU43)) -> 0 | AG43: =IF(RIGHT('Från 3L'!$C$2,2)="01",kapital!BV43,IF(RIGHT('Från 3L'!$C$2,2)="07",kapital!CV43,DV43)) -> 0 | AH43: =IF(RIGHT('Från 3L'!$C$2,2)="01",kapital!BW43,IF(RIGHT('Från 3L'!$C$2,2)="07",kapital!CW43,DW43)) -> 0 | AI43: =IF(RIGHT('Från 3L'!$C$2,2)="01",kapital!BX43,IF(RIGHT('Från 3L'!$C$2,2)="07",kapital!CX43,DX43)) -> 0 | AJ43: 0 | BA43: 0 | BB43: 0 | BC43: 0 | BD43: 0 | BE43: 0 | BF43: 0 | BG43: 0 | BH43: 0 | BI43: 0 | BJ43: 0 | BK43: 0 | BL43: 0 | BM43: 0 | BN43: 0 | BO43: 0 | BP43: 0 | BQ43: 0 | BR43: 0 | BS43: 0 | BT43: 0 | BU43: 0 | BV43: 0 | BW43: 0 | BX43: 0 | CA43: 0 | CB43: 0 | CC43: 0 | CD43: 0 | CE43: 0 | CF43: 0 | CG43: 0 | CH43: 0 | CI43: 0 | CJ43: 0 | CK43: 0 | CL43: 0 | CM43: 0 | CN43: 0 | CO43: 0 | CP43: 0 | CQ43: 0 | CR43: 0 | CS43: 0 | CT43: 0 | CU43: 0 | CV43: 0 | CW43: 0 | CX43: 0 | DA43: 0 | DB43: 0 | DC43: 0 | DD43: 0 | DE43: 0 | DF43: 0 | DG43: 0 | DH43: 0 | DI43: 0 | DJ43: 0 | DK43: 0 | DL43: 0 | DM43: 0 | DN43: 0 | DO43: 0 | DP43: 0 | DQ43: 0 | DR43: 0 | DS43: 0 | DT43: 0 | DU43: 0 | DV43: 0 | DW43: 0 | DX43: 0
A44: 91 | I44: 0 | J44: =IF(RIGHT('Från 3L'!$C$2,2)="01",kapital!BA44,IF(RIGHT('Från 3L'!$C$2,2)="07",kapital!CA44,DA44)) -> 0 | K44: =IF(RIGHT('Från 3L'!$C$2,2)="01",kapital!BB44,IF(RIGHT('Från 3L'!$C$2,2)="07",kapital!CB44,DB44)) -> 0 | L44: =IF(RIGHT('Från 3L'!$C$2,2)="01",kapital!BC44,IF(RIGHT('Från 3L'!$C$2,2)="07",kapital!CC44,DC44)) -> 0 | M44: =IF(RIGHT('Från 3L'!$C$2,2)="01",kapital!BD44,IF(RIGHT('Från 3L'!$C$2,2)="07",kapital!CD44,DD44)) -> 0 | N44: =IF(RIGHT('Från 3L'!$C$2,2)="01",kapital!BE44,IF(RIGHT('Från 3L'!$C$2,2)="07",kapital!CE44,DE44)) -> 0 | O44: =IF(RIGHT('Från 3L'!$C$2,2)="01",kapital!BF44,IF(RIGHT('Från 3L'!$C$2,2)="07",kapital!CF44,DF44)) -> 0 | P44: =IF(RIGHT('Från 3L'!$C$2,2)="01",kapital!BG44,IF(RIGHT('Från 3L'!$C$2,2)="07",kapital!CG44,DG44)) -> 0 | Q44: =IF(RIGHT('Från 3L'!$C$2,2)="01",kapital!BH44,IF(RIGHT('Från 3L'!$C$2,2)="07",kapital!CH44,DH44)) -> 0 | R44: =IF(RIGHT('Från 3L'!$C$2,2)="01",kapital!BI44,IF(RIGHT('Från 3L'!$C$2,2)="07",kapital!CI44,DI44)) -> 0 | S44: =IF(RIGHT('Från 3L'!$C$2,2)="01",kapital!BJ44,IF(RIGHT('Från 3L'!$C$2,2)="07",kapital!CJ44,DJ44)) -> 0 | T44: =IF(RIGHT('Från 3L'!$C$2,2)="01",kapital!BK44,IF(RIGHT('Från 3L'!$C$2,2)="07",kapital!CK44,DK44)) -> 0 | U44: =IF(RIGHT('Från 3L'!$C$2,2)="01",kapital!BL44,IF(RIGHT('Från 3L'!$C$2,2)="07",kapital!CL44,DL44)) -> 0 | V44: 0 | X44: =IF(RIGHT('Från 3L'!$C$2,2)="01",kapital!BM44,IF(RIGHT('Från 3L'!$C$2,2)="07",kapital!CM44,DM44)) -> 0 | Y44: =IF(RIGHT('Från 3L'!$C$2,2)="01",kapital!BN44,IF(RIGHT('Från 3L'!$C$2,2)="07",kapital!CN44,DN44)) -> 0 | Z44: =IF(RIGHT('Från 3L'!$C$2,2)="01",kapital!BO44,IF(RIGHT('Från 3L'!$C$2,2)="07",kapital!CO44,DO44)) -> 0 | AA44: =IF(RIGHT('Från 3L'!$C$2,2)="01",kapital!BP44,IF(RIGHT('Från 3L'!$C$2,2)="07",kapital!CP44,DP44)) -> 0 | AB44: =IF(RIGHT('Från 3L'!$C$2,2)="01",kapital!BQ44,IF(RIGHT('Från 3L'!$C$2,2)="07",kapital!CQ44,DQ44)) -> 0 | AC44: =IF(RIGHT('Från 3L'!$C$2,2)="01",kapital!BR44,IF(RIGHT('Från 3L'!$C$2,2)="07",kapital!CR44,DR44)) -> 0 | AD44: =IF(RIGHT('Från 3L'!$C$2,2)="01",kapital!BS44,IF(RIGHT('Från 3L'!$C$2,2)="07",kapital!CS44,DS44)) -> 0 | AE44: =IF(RIGHT('Från 3L'!$C$2,2)="01",kapital!BT44,IF(RIGHT('Från 3L'!$C$2,2)="07",kapital!CT44,DT44)) -> 0 | AF44: =IF(RIGHT('Från 3L'!$C$2,2)="01",kapital!BU44,IF(RIGHT('Från 3L'!$C$2,2)="07",kapital!CU44,DU44)) -> 0 | AG44: =IF(RIGHT('Från 3L'!$C$2,2)="01",kapital!BV44,IF(RIGHT('Från 3L'!$C$2,2)="07",kapital!CV44,DV44)) -> 0 | AH44: =IF(RIGHT('Från 3L'!$C$2,2)="01",kapital!BW44,IF(RIGHT('Från 3L'!$C$2,2)="07",kapital!CW44,DW44)) -> 0 | AI44: =IF(RIGHT('Från 3L'!$C$2,2)="01",kapital!BX44,IF(RIGHT('Från 3L'!$C$2,2)="07",kapital!CX44,DX44)) -> 0 | AJ44: 0 | BA44: 0 | BB44: 0 | BC44: 0 | BD44: 0 | BE44: 0 | BF44: 0 | BG44: 0 | BH44: 0 | BI44: 0 | BJ44: 0 | BK44: 0 | BL44: 0 | BM44: 0 | BN44: 0 | BO44: 0 | BP44: 0 | BQ44: 0 | BR44: 0 | BS44: 0 | BT44: 0 | BU44: 0 | BV44: 0 | BW44: 0 | BX44: 0 | CA44: 0 | CB44: 0 | CC44: 0 | CD44: 0 | CE44: 0 | CF44: 0 | CG44: 0 | CH44: 0 | CI44: 0 | CJ44: 0 | CK44: 0 | CL44: 0 | CM44: 0 | CN44: 0 | CO44: 0 | CP44: 0 | CQ44: 0 | CR44: 0 | CS44: 0 | CT44: 0 | CU44: 0 | CV44: 0 | CW44: 0 | CX44: 0 | DA44: 0 | DB44: 0 | DC44: 0 | DD44: 0 | DE44: 0 | DF44: 0 | DG44: 0 | DH44: 0 | DI44: 0 | DJ44: 0 | DK44: 0 | DL44: 0 | DM44: 0 | DN44: 0 | DO44: 0 | DP44: 0 | DQ44: 0 | DR44: 0 | DS44: 0 | DT44: 0 | DU44: 0 | DV44: 0 | DW44: 0 | DX44: 0
A45: 91 | I45: 0 | J45: =IF(RIGHT('Från 3L'!$C$2,2)="01",kapital!BA45,IF(RIGHT('Från 3L'!$C$2,2)="07",kapital!CA45,DA45)) -> 0 | K45: =IF(RIGHT('Från 3L'!$C$2,2)="01",kapital!BB45,IF(RIGHT('Från 3L'!$C$2,2)="07",kapital!CB45,DB45)) -> 0 | L45: =IF(RIGHT('Från 3L'!$C$2,2)="01",kapital!BC45,IF(RIGHT('Från 3L'!$C$2,2)="07",kapital!CC45,DC45)) -> 0 | M45: =IF(RIGHT('Från 3L'!$C$2,2)="01",kapital!BD45,IF(RIGHT('Från 3L'!$C$2,2)="07",kapital!CD45,DD45)) -> 0 | N45: =IF(RIGHT('Från 3L'!$C$2,2)="01",kapital!BE45,IF(RIGHT('Från 3L'!$C$2,2)="07",kapital!CE45,DE45)) -> 0 | O45: =IF(RIGHT('Från 3L'!$C$2,2)="01",kapital!BF45,IF(RIGHT('Från 3L'!$C$2,2)="07",kapital!CF45,DF45)) -> 0 | P45: =IF(RIGHT('Från 3L'!$C$2,2)="01",kapital!BG45,IF(RIGHT('Från 3L'!$C$2,2)="07",kapital!CG45,DG45)) -> 0 | Q45: =IF(RIGHT('Från 3L'!$C$2,2)="01",kapital!BH45,IF(RIGHT('Från 3L'!$C$2,2)="07",kapital!CH45,DH45)) -> 0 | R45: =IF(RIGHT('Från 3L'!$C$2,2)="01",kapital!BI45,IF(RIGHT('Från 3L'!$C$2,2)="07",kapital!CI45,DI45)) -> 0 | S45: =IF(RIGHT('Från 3L'!$C$2,2)="01",kapital!BJ45,IF(RIGHT('Från 3L'!$C$2,2)="07",kapital!CJ45,DJ45)) -> 0 | T45: =IF(RIGHT('Från 3L'!$C$2,2)="01",kapital!BK45,IF(RIGHT('Från 3L'!$C$2,2)="07",kapital!CK45,DK45)) -> 0 | U45: =IF(RIGHT('Från 3L'!$C$2,2)="01",kapital!BL45,IF(RIGHT('Från 3L'!$C$2,2)="07",kapital!CL45,DL45)) -> 0 | V45: 0 | X45: =IF(RIGHT('Från 3L'!$C$2,2)="01",kapital!BM45,IF(RIGHT('Från 3L'!$C$2,2)="07",kapital!CM45,DM45)) -> 0 | Y45: =IF(RIGHT('Från 3L'!$C$2,2)="01",kapital!BN45,IF(RIGHT('Från 3L'!$C$2,2)="07",kapital!CN45,DN45)) -> 0 | Z45: =IF(RIGHT('Från 3L'!$C$2,2)="01",kapital!BO45,IF(RIGHT('Från 3L'!$C$2,2)="07",kapital!CO45,DO45)) -> 0 | AA45: =IF(RIGHT('Från 3L'!$C$2,2)="01",kapital!BP45,IF(RIGHT('Från 3L'!$C$2,2)="07",kapital!CP45,DP45)) -> 0 | AB45: =IF(RIGHT('Från 3L'!$C$2,2)="01",kapital!BQ45,IF(RIGHT('Från 3L'!$C$2,2)="07",kapital!CQ45,DQ45)) -> 0 | AC45: =IF(RIGHT('Från 3L'!$C$2,2)="01",kapital!BR45,IF(RIGHT('Från 3L'!$C$2,2)="07",kapital!CR45,DR45)) -> 0 | AD45: =IF(RIGHT('Från 3L'!$C$2,2)="01",kapital!BS45,IF(RIGHT('Från 3L'!$C$2,2)="07",kapital!CS45,DS45)) -> 0 | AE45: =IF(RIGHT('Från 3L'!$C$2,2)="01",kapital!BT45,IF(RIGHT('Från 3L'!$C$2,2)="07",kapital!CT45,DT45)) -> 0 | AF45: =IF(RIGHT('Från 3L'!$C$2,2)="01",kapital!BU45,IF(RIGHT('Från 3L'!$C$2,2)="07",kapital!CU45,DU45)) -> 0 | AG45: =IF(RIGHT('Från 3L'!$C$2,2)="01",kapital!BV45,IF(RIGHT('Från 3L'!$C$2,2)="07",kapital!CV45,DV45)) -> 0 | AH45: =IF(RIGHT('Från 3L'!$C$2,2)="01",kapital!BW45,IF(RIGHT('Från 3L'!$C$2,2)="07",kapital!CW45,DW45)) -> 0 | AI45: =IF(RIGHT('Från 3L'!$C$2,2)="01",kapital!BX45,IF(RIGHT('Från 3L'!$C$2,2)="07",kapital!CX45,DX45)) -> 0 | AJ45: 0 | BA45: 0 | BB45: 0 | BC45: 0 | BD45: 0 | BE45: 0 | BF45: 0 | BG45: 0 | BH45: 0 | BI45: 0 | BJ45: 0 | BK45: 0 | BL45: 0 | BM45: 0 | BN45: 0 | BO45: 0 | BP45: 0 | BQ45: 0 | BR45: 0 | BS45: 0 | BT45: 0 | BU45: 0 | BV45: 0 | BW45: 0 | BX45: 0 | CA45: 0 | CB45: 0 | CC45: 0 | CD45: 0 | CE45: 0 | CF45: 0 | CG45: 0 | CH45: 0 | CI45: 0 | CJ45: 0 | CK45: 0 | CL45: 0 | CM45: 0 | CN45: 0 | CO45: 0 | CP45: 0 | CQ45: 0 | CR45: 0 | CS45: 0 | CT45: 0 | CU45: 0 | CV45: 0 | CW45: 0 | CX45: 0 | DA45: 0 | DB45: 0 | DC45: 0 | DD45: 0 | DE45: 0 | DF45: 0 | DG45: 0 | DH45: 0 | DI45: 0 | DJ45: 0 | DK45: 0 | DL45: 0 | DM45: 0 | DN45: 0 | DO45: 0 | DP45: 0 | DQ45: 0 | DR45: 0 | DS45: 0 | DT45: 0 | DU45: 0 | DV45: 0 | DW45: 0 | DX45: 0
A46: 91 | I46: 0 | J46: =IF(RIGHT('Från 3L'!$C$2,2)="01",kapital!BA46,IF(RIGHT('Från 3L'!$C$2,2)="07",kapital!CA46,DA46)) -> 0 | K46: =IF(RIGHT('Från 3L'!$C$2,2)="01",kapital!BB46,IF(RIGHT('Från 3L'!$C$2,2)="07",kapital!CB46,DB46)) -> 0 | L46: =IF(RIGHT('Från 3L'!$C$2,2)="01",kapital!BC46,IF(RIGHT('Från 3L'!$C$2,2)="07",kapital!CC46,DC46)) -> 0 | M46: =IF(RIGHT('Från 3L'!$C$2,2)="01",kapital!BD46,IF(RIGHT('Från 3L'!$C$2,2)="07",kapital!CD46,DD46)) -> 0 | N46: =IF(RIGHT('Från 3L'!$C$2,2)="01",kapital!BE46,IF(RIGHT('Från 3L'!$C$2,2)="07",kapital!CE46,DE46)) -> 0 | O46: =IF(RIGHT('Från 3L'!$C$2,2)="01",kapital!BF46,IF(RIGHT('Från 3L'!$C$2,2)="07",kapital!CF46,DF46)) -> 0 | P46: =IF(RIGHT('Från 3L'!$C$2,2)="01",kapital!BG46,IF(RIGHT('Från 3L'!$C$2,2)="07",kapital!CG46,DG46)) -> 0 | Q46: =IF(RIGHT('Från 3L'!$C$2,2)="01",kapital!BH46,IF(RIGHT('Från 3L'!$C$2,2)="07",kapital!CH46,DH46)) -> 0 | R46: =IF(RIGHT('Från 3L'!$C$2,2)="01",kapital!BI46,IF(RIGHT('Från 3L'!$C$2,2)="07",kapital!CI46,DI46)) -> 0 | S46: =IF(RIGHT('Från 3L'!$C$2,2)="01",kapital!BJ46,IF(RIGHT('Från 3L'!$C$2,2)="07",kapital!CJ46,DJ46)) -> 0 | T46: =IF(RIGHT('Från 3L'!$C$2,2)="01",kapital!BK46,IF(RIGHT('Från 3L'!$C$2,2)="07",kapital!CK46,DK46)) -> 0 | U46: =IF(RIGHT('Från 3L'!$C$2,2)="01",kapital!BL46,IF(RIGHT('Från 3L'!$C$2,2)="07",kapital!CL46,DL46)) -> 0 | V46: 0 | X46: =IF(RIGHT('Från 3L'!$C$2,2)="01",kapital!BM46,IF(RIGHT('Från 3L'!$C$2,2)="07",kapital!CM46,DM46)) -> 0 | Y46: =IF(RIGHT('Från 3L'!$C$2,2)="01",kapital!BN46,IF(RIGHT('Från 3L'!$C$2,2)="07",kapital!CN46,DN46)) -> 0 | Z46: =IF(RIGHT('Från 3L'!$C$2,2)="01",kapital!BO46,IF(RIGHT('Från 3L'!$C$2,2)="07",kapital!CO46,DO46)) -> 0 | AA46: =IF(RIGHT('Från 3L'!$C$2,2)="01",kapital!BP46,IF(RIGHT('Från 3L'!$C$2,2)="07",kapital!CP46,DP46)) -> 0 | AB46: =IF(RIGHT('Från 3L'!$C$2,2)="01",kapital!BQ46,IF(RIGHT('Från 3L'!$C$2,2)="07",kapital!CQ46,DQ46)) -> 0 | AC46: =IF(RIGHT('Från 3L'!$C$2,2)="01",kapital!BR46,IF(RIGHT('Från 3L'!$C$2,2)="07",kapital!CR46,DR46)) -> 0 | AD46: =IF(RIGHT('Från 3L'!$C$2,2)="01",kapital!BS46,IF(RIGHT('Från 3L'!$C$2,2)="07",kapital!CS46,DS46)) -> 0 | AE46: =IF(RIGHT('Från 3L'!$C$2,2)="01",kapital!BT46,IF(RIGHT('Från 3L'!$C$2,2)="07",kapital!CT46,DT46)) -> 0 | AF46: =IF(RIGHT('Från 3L'!$C$2,2)="01",kapital!BU46,IF(RIGHT('Från 3L'!$C$2,2)="07",kapital!CU46,DU46)) -> 0 | AG46: =IF(RIGHT('Från 3L'!$C$2,2)="01",kapital!BV46,IF(RIGHT('Från 3L'!$C$2,2)="07",kapital!CV46,DV46)) -> 0 | AH46: =IF(RIGHT('Från 3L'!$C$2,2)="01",kapital!BW46,IF(RIGHT('Från 3L'!$C$2,2)="07",kapital!CW46,DW46)) -> 0 | AI46: =IF(RIGHT('Från 3L'!$C$2,2)="01",kapital!BX46,IF(RIGHT('Från 3L'!$C$2,2)="07",kapital!CX46,DX46)) -> 0 | AJ46: 0 | BA46: 0 | BB46: 0 | BC46: 0 | BD46: 0 | BE46: 0 | BF46: 0 | BG46: 0 | BH46: 0 | BI46: 0 | BJ46: 0 | BK46: 0 | BL46: 0 | BM46: 0 | BN46: 0 | BO46: 0 | BP46: 0 | BQ46: 0 | BR46: 0 | BS46: 0 | BT46: 0 | BU46: 0 | BV46: 0 | BW46: 0 | BX46: 0 | CA46: 0 | CB46: 0 | CC46: 0 | CD46: 0 | CE46: 0 | CF46: 0 | CG46: 0 | CH46: 0 | CI46: 0 | CJ46: 0 | CK46: 0 | CL46: 0 | CM46: 0 | CN46: 0 | CO46: 0 | CP46: 0 | CQ46: 0 | CR46: 0 | CS46: 0 | CT46: 0 | CU46: 0 | CV46: 0 | CW46: 0 | CX46: 0 | DA46: 0 | DB46: 0 | DC46: 0 | DD46: 0 | DE46: 0 | DF46: 0 | DG46: 0 | DH46: 0 | DI46: 0 | DJ46: 0 | DK46: 0 | DL46: 0 | DM46: 0 | DN46: 0 | DO46: 0 | DP46: 0 | DQ46: 0 | DR46: 0 | DS46: 0 | DT46: 0 | DU46: 0 | DV46: 0 | DW46: 0 | DX46: 0
A47: 91 | I47: 0 | J47: =IF(RIGHT('Från 3L'!$C$2,2)="01",kapital!BA47,IF(RIGHT('Från 3L'!$C$2,2)="07",kapital!CA47,DA47)) -> 0 | K47: =IF(RIGHT('Från 3L'!$C$2,2)="01",kapital!BB47,IF(RIGHT('Från 3L'!$C$2,2)="07",kapital!CB47,DB47)) -> 0 | L47: =IF(RIGHT('Från 3L'!$C$2,2)="01",kapital!BC47,IF(RIGHT('Från 3L'!$C$2,2)="07",kapital!CC47,DC47)) -> 0 | M47: =IF(RIGHT('Från 3L'!$C$2,2)="01",kapital!BD47,IF(RIGHT('Från 3L'!$C$2,2)="07",kapital!CD47,DD47)) -> 0 | N47: =IF(RIGHT('Från 3L'!$C$2,2)="01",kapital!BE47,IF(RIGHT('Från 3L'!$C$2,2)="07",kapital!CE47,DE47)) -> 0 | O47: =IF(RIGHT('Från 3L'!$C$2,2)="01",kapital!BF47,IF(RIGHT('Från 3L'!$C$2,2)="07",kapital!CF47,DF47)) -> 0 | P47: =IF(RIGHT('Från 3L'!$C$2,2)="01",kapital!BG47,IF(RIGHT('Från 3L'!$C$2,2)="07",kapital!CG47,DG47)) -> 0 | Q47: =IF(RIGHT('Från 3L'!$C$2,2)="01",kapital!BH47,IF(RIGHT('Från 3L'!$C$2,2)="07",kapital!CH47,DH47)) -> 0 | R47: =IF(RIGHT('Från 3L'!$C$2,2)="01",kapital!BI47,IF(RIGHT('Från 3L'!$C$2,2)="07",kapital!CI47,DI47)) -> 0 | S47: =IF(RIGHT('Från 3L'!$C$2,2)="01",kapital!BJ47,IF(RIGHT('Från 3L'!$C$2,2)="07",kapital!CJ47,DJ47)) -> 0 | T47: =IF(RIGHT('Från 3L'!$C$2,2)="01",kapital!BK47,IF(RIGHT('Från 3L'!$C$2,2)="07",kapital!CK47,DK47)) -> 0 | U47: =IF(RIGHT('Från 3L'!$C$2,2)="01",kapital!BL47,IF(RIGHT('Från 3L'!$C$2,2)="07",kapital!CL47,DL47)) -> 0 | V47: 0 | X47: =IF(RIGHT('Från 3L'!$C$2,2)="01",kapital!BM47,IF(RIGHT('Från 3L'!$C$2,2)="07",kapital!CM47,DM47)) -> 0 | Y47: =IF(RIGHT('Från 3L'!$C$2,2)="01",kapital!BN47,IF(RIGHT('Från 3L'!$C$2,2)="07",kapital!CN47,DN47)) -> 0 | Z47: =IF(RIGHT('Från 3L'!$C$2,2)="01",kapital!BO47,IF(RIGHT('Från 3L'!$C$2,2)="07",kapital!CO47,DO47)) -> 0 | AA47: =IF(RIGHT('Från 3L'!$C$2,2)="01",kapital!BP47,IF(RIGHT('Från 3L'!$C$2,2)="07",kapital!CP47,DP47)) -> 0 | AB47: =IF(RIGHT('Från 3L'!$C$2,2)="01",kapital!BQ47,IF(RIGHT('Från 3L'!$C$2,2)="07",kapital!CQ47,DQ47)) -> 0 | AC47: =IF(RIGHT('Från 3L'!$C$2,2)="01",kapital!BR47,IF(RIGHT('Från 3L'!$C$2,2)="07",kapital!CR47,DR47)) -> 0 | AD47: =IF(RIGHT('Från 3L'!$C$2,2)="01",kapital!BS47,IF(RIGHT('Från 3L'!$C$2,2)="07",kapital!CS47,DS47)) -> 0 | AE47: =IF(RIGHT('Från 3L'!$C$2,2)="01",kapital!BT47,IF(RIGHT('Från 3L'!$C$2,2)="07",kapital!CT47,DT47)) -> 0 | AF47: =IF(RIGHT('Från 3L'!$C$2,2)="01",kapital!BU47,IF(RIGHT('Från 3L'!$C$2,2)="07",kapital!CU47,DU47)) -> 0 | AG47: =IF(RIGHT('Från 3L'!$C$2,2)="01",kapital!BV47,IF(RIGHT('Från 3L'!$C$2,2)="07",kapital!CV47,DV47)) -> 0 | AH47: =IF(RIGHT('Från 3L'!$C$2,2)="01",kapital!BW47,IF(RIGHT('Från 3L'!$C$2,2)="07",kapital!CW47,DW47)) -> 0 | AI47: =IF(RIGHT('Från 3L'!$C$2,2)="01",kapital!BX47,IF(RIGHT('Från 3L'!$C$2,2)="07",kapital!CX47,DX47)) -> 0 | AJ47: 0 | BA47: 0 | BB47: 0 | BC47: 0 | BD47: 0 | BE47: 0 | BF47: 0 | BG47: 0 | BH47: 0 | BI47: 0 | BJ47: 0 | BK47: 0 | BL47: 0 | BM47: 0 | BN47: 0 | BO47: 0 | BP47: 0 | BQ47: 0 | BR47: 0 | BS47: 0 | BT47: 0 | BU47: 0 | BV47: 0 | BW47: 0 | BX47: 0 | CA47: 0 | CB47: 0 | CC47: 0 | CD47: 0 | CE47: 0 | CF47: 0 | CG47: 0 | CH47: 0 | CI47: 0 | CJ47: 0 | CK47: 0 | CL47: 0 | CM47: 0 | CN47: 0 | CO47: 0 | CP47: 0 | CQ47: 0 | CR47: 0 | CS47: 0 | CT47: 0 | CU47: 0 | CV47: 0 | CW47: 0 | CX47: 0 | DA47: 0 | DB47: 0 | DC47: 0 | DD47: 0 | DE47: 0 | DF47: 0 | DG47: 0 | DH47: 0 | DI47: 0 | DJ47: 0 | DK47: 0 | DL47: 0 | DM47: 0 | DN47: 0 | DO47: 0 | DP47: 0 | DQ47: 0 | DR47: 0 | DS47: 0 | DT47: 0 | DU47: 0 | DV47: 0 | DW47: 0 | DX47: 0
A48: 91 | I48: 0 | J48: =IF(RIGHT('Från 3L'!$C$2,2)="01",kapital!BA48,IF(RIGHT('Från 3L'!$C$2,2)="07",kapital!CA48,DA48)) -> 0 | K48: =IF(RIGHT('Från 3L'!$C$2,2)="01",kapital!BB48,IF(RIGHT('Från 3L'!$C$2,2)="07",kapital!CB48,DB48)) -> 0 | L48: =IF(RIGHT('Från 3L'!$C$2,2)="01",kapital!BC48,IF(RIGHT('Från 3L'!$C$2,2)="07",kapital!CC48,DC48)) -> 0 | M48: =IF(RIGHT('Från 3L'!$C$2,2)="01",kapital!BD48,IF(RIGHT('Från 3L'!$C$2,2)="07",kapital!CD48,DD48)) -> 0 | N48: =IF(RIGHT('Från 3L'!$C$2,2)="01",kapital!BE48,IF(RIGHT('Från 3L'!$C$2,2)="07",kapital!CE48,DE48)) -> 0 | O48: =IF(RIGHT('Från 3L'!$C$2,2)="01",kapital!BF48,IF(RIGHT('Från 3L'!$C$2,2)="07",kapital!CF48,DF48)) -> 0 | P48: =IF(RIGHT('Från 3L'!$C$2,2)="01",kapital!BG48,IF(RIGHT('Från 3L'!$C$2,2)="07",kapital!CG48,DG48)) -> 0 | Q48: =IF(RIGHT('Från 3L'!$C$2,2)="01",kapital!BH48,IF(RIGHT('Från 3L'!$C$2,2)="07",kapital!CH48,DH48)) -> 0 | R48: =IF(RIGHT('Från 3L'!$C$2,2)="01",kapital!BI48,IF(RIGHT('Från 3L'!$C$2,2)="07",kapital!CI48,DI48)) -> 0 | S48: =IF(RIGHT('Från 3L'!$C$2,2)="01",kapital!BJ48,IF(RIGHT('Från 3L'!$C$2,2)="07",kapital!CJ48,DJ48)) -> 0 | T48: =IF(RIGHT('Från 3L'!$C$2,2)="01",kapital!BK48,IF(RIGHT('Från 3L'!$C$2,2)="07",kapital!CK48,DK48)) -> 0 | U48: =IF(RIGHT('Från 3L'!$C$2,2)="01",kapital!BL48,IF(RIGHT('Från 3L'!$C$2,2)="07",kapital!CL48,DL48)) -> 0 | V48: 0 | X48: =IF(RIGHT('Från 3L'!$C$2,2)="01",kapital!BM48,IF(RIGHT('Från 3L'!$C$2,2)="07",kapital!CM48,DM48)) -> 0 | Y48: =IF(RIGHT('Från 3L'!$C$2,2)="01",kapital!BN48,IF(RIGHT('Från 3L'!$C$2,2)="07",kapital!CN48,DN48)) -> 0 | Z48: =IF(RIGHT('Från 3L'!$C$2,2)="01",kapital!BO48,IF(RIGHT('Från 3L'!$C$2,2)="07",kapital!CO48,DO48)) -> 0 | AA48: =IF(RIGHT('Från 3L'!$C$2,2)="01",kapital!BP48,IF(RIGHT('Från 3L'!$C$2,2)="07",kapital!CP48,DP48)) -> 0 | AB48: =IF(RIGHT('Från 3L'!$C$2,2)="01",kapital!BQ48,IF(RIGHT('Från 3L'!$C$2,2)="07",kapital!CQ48,DQ48)) -> 0 | AC48: =IF(RIGHT('Från 3L'!$C$2,2)="01",kapital!BR48,IF(RIGHT('Från 3L'!$C$2,2)="07",kapital!CR48,DR48)) -> 0 | AD48: =IF(RIGHT('Från 3L'!$C$2,2)="01",kapital!BS48,IF(RIGHT('Från 3L'!$C$2,2)="07",kapital!CS48,DS48)) -> 0 | AE48: =IF(RIGHT('Från 3L'!$C$2,2)="01",kapital!BT48,IF(RIGHT('Från 3L'!$C$2,2)="07",kapital!CT48,DT48)) -> 0 | AF48: =IF(RIGHT('Från 3L'!$C$2,2)="01",kapital!BU48,IF(RIGHT('Från 3L'!$C$2,2)="07",kapital!CU48,DU48)) -> 0 | AG48: =IF(RIGHT('Från 3L'!$C$2,2)="01",kapital!BV48,IF(RIGHT('Från 3L'!$C$2,2)="07",kapital!CV48,DV48)) -> 0 | AH48: =IF(RIGHT('Från 3L'!$C$2,2)="01",kapital!BW48,IF(RIGHT('Från 3L'!$C$2,2)="07",kapital!CW48,DW48)) -> 0 | AI48: =IF(RIGHT('Från 3L'!$C$2,2)="01",kapital!BX48,IF(RIGHT('Från 3L'!$C$2,2)="07",kapital!CX48,DX48)) -> 0 | AJ48: 0 | BA48: 0 | BB48: 0 | BC48: 0 | BD48: 0 | BE48: 0 | BF48: 0 | BG48: 0 | BH48: 0 | BI48: 0 | BJ48: 0 | BK48: 0 | BL48: 0 | BM48: 0 | BN48: 0 | BO48: 0 | BP48: 0 | BQ48: 0 | BR48: 0 | BS48: 0 | BT48: 0 | BU48: 0 | BV48: 0 | BW48: 0 | BX48: 0 | CA48: 0 | CB48: 0 | CC48: 0 | CD48: 0 | CE48: 0 | CF48: 0 | CG48: 0 | CH48: 0 | CI48: 0 | CJ48: 0 | CK48: 0 | CL48: 0 | CM48: 0 | CN48: 0 | CO48: 0 | CP48: 0 | CQ48: 0 | CR48: 0 | CS48: 0 | CT48: 0 | CU48: 0 | CV48: 0 | CW48: 0 | CX48: 0 | DA48: 0 | DB48: 0 | DC48: 0 | DD48: 0 | DE48: 0 | DF48: 0 | DG48: 0 | DH48: 0 | DI48: 0 | DJ48: 0 | DK48: 0 | DL48: 0 | DM48: 0 | DN48: 0 | DO48: 0 | DP48: 0 | DQ48: 0 | DR48: 0 | DS48: 0 | DT48: 0 | DU48: 0 | DV48: 0 | DW48: 0 | DX48: 0
A49: 91 | I49: 0 | J49: =IF(RIGHT('Från 3L'!$C$2,2)="01",kapital!BA49,IF(RIGHT('Från 3L'!$C$2,2)="07",kapital!CA49,DA49)) -> 0 | K49: =IF(RIGHT('Från 3L'!$C$2,2)="01",kapital!BB49,IF(RIGHT('Från 3L'!$C$2,2)="07",kapital!CB49,DB49)) -> 0 | L49: =IF(RIGHT('Från 3L'!$C$2,2)="01",kapital!BC49,IF(RIGHT('Från 3L'!$C$2,2)="07",kapital!CC49,DC49)) -> 0 | M49: =IF(RIGHT('Från 3L'!$C$2,2)="01",kapital!BD49,IF(RIGHT('Från 3L'!$C$2,2)="07",kapital!CD49,DD49)) -> 0 | N49: =IF(RIGHT('Från 3L'!$C$2,2)="01",kapital!BE49,IF(RIGHT('Från 3L'!$C$2,2)="07",kapital!CE49,DE49)) -> 0 | O49: =IF(RIGHT('Från 3L'!$C$2,2)="01",kapital!BF49,IF(RIGHT('Från 3L'!$C$2,2)="07",kapital!CF49,DF49)) -> 0 | P49: =IF(RIGHT('Från 3L'!$C$2,2)="01",kapital!BG49,IF(RIGHT('Från 3L'!$C$2,2)="07",kapital!CG49,DG49)) -> 0 | Q49: =IF(RIGHT('Från 3L'!$C$2,2)="01",kapital!BH49,IF(RIGHT('Från 3L'!$C$2,2)="07",kapital!CH49,DH49)) -> 0 | R49: =IF(RIGHT('Från 3L'!$C$2,2)="01",kapital!BI49,IF(RIGHT('Från 3L'!$C$2,2)="07",kapital!CI49,DI49)) -> 0 | S49: =IF(RIGHT('Från 3L'!$C$2,2)="01",kapital!BJ49,IF(RIGHT('Från 3L'!$C$2,2)="07",kapital!CJ49,DJ49)) -> 0 | T49: =IF(RIGHT('Från 3L'!$C$2,2)="01",kapital!BK49,IF(RIGHT('Från 3L'!$C$2,2)="07",kapital!CK49,DK49)) -> 0 | U49: =IF(RIGHT('Från 3L'!$C$2,2)="01",kapital!BL49,IF(RIGHT('Från 3L'!$C$2,2)="07",kapital!CL49,DL49)) -> 0 | V49: =SUM(J49:U49) -> 0 | X49: =IF(RIGHT('Från 3L'!$C$2,2)="01",kapital!BM49,IF(RIGHT('Från 3L'!$C$2,2)="07",kapital!CM49,DM49)) -> 0 | Y49: =IF(RIGHT('Från 3L'!$C$2,2)="01",kapital!BN49,IF(RIGHT('Från 3L'!$C$2,2)="07",kapital!CN49,DN49)) -> 0 | Z49: =IF(RIGHT('Från 3L'!$C$2,2)="01",kapital!BO49,IF(RIGHT('Från 3L'!$C$2,2)="07",kapital!CO49,DO49)) -> 0 | AA49: =IF(RIGHT('Från 3L'!$C$2,2)="01",kapital!BP49,IF(RIGHT('Från 3L'!$C$2,2)="07",kapital!CP49,DP49)) -> 0 | AB49: =IF(RIGHT('Från 3L'!$C$2,2)="01",kapital!BQ49,IF(RIGHT('Från 3L'!$C$2,2)="07",kapital!CQ49,DQ49)) -> 0 | AC49: =IF(RIGHT('Från 3L'!$C$2,2)="01",kapital!BR49,IF(RIGHT('Från 3L'!$C$2,2)="07",kapital!CR49,DR49)) -> 0 | AD49: =IF(RIGHT('Från 3L'!$C$2,2)="01",kapital!BS49,IF(RIGHT('Från 3L'!$C$2,2)="07",kapital!CS49,DS49)) -> 0 | AE49: =IF(RIGHT('Från 3L'!$C$2,2)="01",kapital!BT49,IF(RIGHT('Från 3L'!$C$2,2)="07",kapital!CT49,DT49)) -> 0 | AF49: =IF(RIGHT('Från 3L'!$C$2,2)="01",kapital!BU49,IF(RIGHT('Från 3L'!$C$2,2)="07",kapital!CU49,DU49)) -> 0 | AG49: =IF(RIGHT('Från 3L'!$C$2,2)="01",kapital!BV49,IF(RIGHT('Från 3L'!$C$2,2)="07",kapital!CV49,DV49)) -> 0 | AH49: =IF(RIGHT('Från 3L'!$C$2,2)="01",kapital!BW49,IF(RIGHT('Från 3L'!$C$2,2)="07",kapital!CW49,DW49)) -> 0 | AI49: =IF(RIGHT('Från 3L'!$C$2,2)="01",kapital!BX49,IF(RIGHT('Från 3L'!$C$2,2)="07",kapital!CX49,DX49)) -> 0 | AJ49: =SUM(X49:AI49) -> 0 | BA49: 0 | BB49: 0 | BC49: 0 | BD49: 0 | BE49: 0 | BF49: 0 | BG49: 0 | BH49: 0 | BI49: 0 | BJ49: 0 | BK49: 0 | BL49: 0 | BM49: 0 | BN49: 0 | BO49: 0 | BP49: 0 | BQ49: 0 | BR49: 0 | BS49: 0 | BT49: 0 | BU49: 0 | BV49: 0 | BW49: 0 | BX49: 0 | CA49: 0 | CB49: 0 | CC49: 0 | CD49: 0 | CE49: 0 | CF49: 0 | CG49: 0 | CH49: 0 | CI49: 0 | CJ49: 0 | CK49: 0 | CL49: 0 | CM49: 0 | CN49: 0 | CO49: 0 | CP49: 0 | CQ49: 0 | CR49: 0 | CS49: 0 | CT49: 0 | CU49: 0 | CV49: 0 | CW49: 0 | CX49: 0 | DA49: 0 | DB49: 0 | DC49: 0 | DD49: 0 | DE49: 0 | DF49: 0 | DG49: 0 | DH49: 0 | DI49: 0 | DJ49: 0 | DK49: 0 | DL49: 0 | DM49: 0 | DN49: 0 | DO49: 0 | DP49: 0 | DQ49: 0 | DR49: 0 | DS49: 0 | DT49: 0 | DU49: 0 | DV49: 0 | DW49: 0 | DX49: 0
A50: 91 | I50: 0 | J50: =IF(RIGHT('Från 3L'!$C$2,2)="01",kapital!BA50,IF(RIGHT('Från 3L'!$C$2,2)="07",kapital!CA50,DA50)) -> 0 | K50: =IF(RIGHT('Från 3L'!$C$2,2)="01",kapital!BB50,IF(RIGHT('Från 3L'!$C$2,2)="07",kapital!CB50,DB50)) -> 0 | L50: =IF(RIGHT('Från 3L'!$C$2,2)="01",kapital!BC50,IF(RIGHT('Från 3L'!$C$2,2)="07",kapital!CC50,DC50)) -> 0 | M50: =IF(RIGHT('Från 3L'!$C$2,2)="01",kapital!BD50,IF(RIGHT('Från 3L'!$C$2,2)="07",kapital!CD50,DD50)) -> 0 | N50: =IF(RIGHT('Från 3L'!$C$2,2)="01",kapital!BE50,IF(RIGHT('Från 3L'!$C$2,2)="07",kapital!CE50,DE50)) -> 0 | O50: =IF(RIGHT('Från 3L'!$C$2,2)="01",kapital!BF50,IF(RIGHT('Från 3L'!$C$2,2)="07",kapital!CF50,DF50)) -> 0 | P50: =IF(RIGHT('Från 3L'!$C$2,2)="01",kapital!BG50,IF(RIGHT('Från 3L'!$C$2,2)="07",kapital!CG50,DG50)) -> 0 | Q50: =IF(RIGHT('Från 3L'!$C$2,2)="01",kapital!BH50,IF(RIGHT('Från 3L'!$C$2,2)="07",kapital!CH50,DH50)) -> 0 | R50: =IF(RIGHT('Från 3L'!$C$2,2)="01",kapital!BI50,IF(RIGHT('Från 3L'!$C$2,2)="07",kapital!CI50,DI50)) -> 0 | S50: =IF(RIGHT('Från 3L'!$C$2,2)="01",kapital!BJ50,IF(RIGHT('Från 3L'!$C$2,2)="07",kapital!CJ50,DJ50)) -> 0 | T50: =IF(RIGHT('Från 3L'!$C$2,2)="01",kapital!BK50,IF(RIGHT('Från 3L'!$C$2,2)="07",kapital!CK50,DK50)) -> 0 | U50: =IF(RIGHT('Från 3L'!$C$2,2)="01",kapital!BL50,IF(RIGHT('Från 3L'!$C$2,2)="07",kapital!CL50,DL50)) -> 0 | V50: =SUM(J50:U50) -> 0 | X50: =IF(RIGHT('Från 3L'!$C$2,2)="01",kapital!BM50,IF(RIGHT('Från 3L'!$C$2,2)="07",kapital!CM50,DM50)) -> 0 | Y50: =IF(RIGHT('Från 3L'!$C$2,2)="01",kapital!BN50,IF(RIGHT('Från 3L'!$C$2,2)="07",kapital!CN50,DN50)) -> 0 | Z50: =IF(RIGHT('Från 3L'!$C$2,2)="01",kapital!BO50,IF(RIGHT('Från 3L'!$C$2,2)="07",kapital!CO50,DO50)) -> 0 | AA50: =IF(RIGHT('Från 3L'!$C$2,2)="01",kapital!BP50,IF(RIGHT('Från 3L'!$C$2,2)="07",kapital!CP50,DP50)) -> 0 | AB50: =IF(RIGHT('Från 3L'!$C$2,2)="01",kapital!BQ50,IF(RIGHT('Från 3L'!$C$2,2)="07",kapital!CQ50,DQ50)) -> 0 | AC50: =IF(RIGHT('Från 3L'!$C$2,2)="01",kapital!BR50,IF(RIGHT('Från 3L'!$C$2,2)="07",kapital!CR50,DR50)) -> 0 | AD50: =IF(RIGHT('Från 3L'!$C$2,2)="01",kapital!BS50,IF(RIGHT('Från 3L'!$C$2,2)="07",kapital!CS50,DS50)) -> 0 | AE50: =IF(RIGHT('Från 3L'!$C$2,2)="01",kapital!BT50,IF(RIGHT('Från 3L'!$C$2,2)="07",kapital!CT50,DT50)) -> 0 | AF50: =IF(RIGHT('Från 3L'!$C$2,2)="01",kapital!BU50,IF(RIGHT('Från 3L'!$C$2,2)="07",kapital!CU50,DU50)) -> 0 | AG50: =IF(RIGHT('Från 3L'!$C$2,2)="01",kapital!BV50,IF(RIGHT('Från 3L'!$C$2,2)="07",kapital!CV50,DV50)) -> 0 | AH50: =IF(RIGHT('Från 3L'!$C$2,2)="01",kapital!BW50,IF(RIGHT('Från 3L'!$C$2,2)="07",kapital!CW50,DW50)) -> 0 | AI50: =IF(RIGHT('Från 3L'!$C$2,2)="01",kapital!BX50,IF(RIGHT('Från 3L'!$C$2,2)="07",kapital!CX50,DX50)) -> 0 | AJ50: =SUM(X50:AI50) -> 0 | BA50: 0 | BB50: 0 | BC50: 0 | BD50: 0 | BE50: 0 | BF50: 0 | BG50: 0 | BH50: 0 | BI50: 0 | BJ50: 0 | BK50: 0 | BL50: 0 | BM50: 0 | BN50: 0 | BO50: 0 | BP50: 0 | BQ50: 0 | BR50: 0 | BS50: 0 | BT50: 0 | BU50: 0 | BV50: 0 | BW50: 0 | BX50: 0 | CA50: 0 | CB50: 0 | CC50: 0 | CD50: 0 | CE50: 0 | CF50: 0 | CG50: 0 | CH50: 0 | CI50: 0 | CJ50: 0 | CK50: 0 | CL50: 0 | CM50: 0 | CN50: 0 | CO50: 0 | CP50: 0 | CQ50: 0 | CR50: 0 | CS50: 0 | CT50: 0 | CU50: 0 | CV50: 0 | CW50: 0 | CX50: 0 | DA50: 0 | DB50: 0 | DC50: 0 | DD50: 0 | DE50: 0 | DF50: 0 | DG50: 0 | DH50: 0 | DI50: 0 | DJ50: 0 | DK50: 0 | DL50: 0 | DM50: 0 | DN50: 0 | DO50: 0 | DP50: 0 | DQ50: 0 | DR50: 0 | DS50: 0 | DT50: 0 | DU50: 0 | DV50: 0 | DW50: 0 | DX50: 0
A51: 91 | I51: 0 | J51: =IF(RIGHT('Från 3L'!$C$2,2)="01",kapital!BA51,IF(RIGHT('Från 3L'!$C$2,2)="07",kapital!CA51,DA51)) -> 0 | K51: =IF(RIGHT('Från 3L'!$C$2,2)="01",kapital!BB51,IF(RIGHT('Från 3L'!$C$2,2)="07",kapital!CB51,DB51)) -> 0 | L51: =IF(RIGHT('Från 3L'!$C$2,2)="01",kapital!BC51,IF(RIGHT('Från 3L'!$C$2,2)="07",kapital!CC51,DC51)) -> 0 | M51: =IF(RIGHT('Från 3L'!$C$2,2)="01",kapital!BD51,IF(RIGHT('Från 3L'!$C$2,2)="07",kapital!CD51,DD51)) -> 0 | N51: =IF(RIGHT('Från 3L'!$C$2,2)="01",kapital!BE51,IF(RIGHT('Från 3L'!$C$2,2)="07",kapital!CE51,DE51)) -> 0 | O51: =IF(RIGHT('Från 3L'!$C$2,2)="01",kapital!BF51,IF(RIGHT('Från 3L'!$C$2,2)="07",kapital!CF51,DF51)) -> 0 | P51: =IF(RIGHT('Från 3L'!$C$2,2)="01",kapital!BG51,IF(RIGHT('Från 3L'!$C$2,2)="07",kapital!CG51,DG51)) -> 0 | Q51: =IF(RIGHT('Från 3L'!$C$2,2)="01",kapital!BH51,IF(RIGHT('Från 3L'!$C$2,2)="07",kapital!CH51,DH51)) -> 0 | R51: =IF(RIGHT('Från 3L'!$C$2,2)="01",kapital!BI51,IF(RIGHT('Från 3L'!$C$2,2)="07",kapital!CI51,DI51)) -> 0 | S51: =IF(RIGHT('Från 3L'!$C$2,2)="01",kapital!BJ51,IF(RIGHT('Från 3L'!$C$2,2)="07",kapital!CJ51,DJ51)) -> 0 | T51: =IF(RIGHT('Från 3L'!$C$2,2)="01",kapital!BK51,IF(RIGHT('Från 3L'!$C$2,2)="07",kapital!CK51,DK51)) -> 0 | U51: =IF(RIGHT('Från 3L'!$C$2,2)="01",kapital!BL51,IF(RIGHT('Från 3L'!$C$2,2)="07",kapital!CL51,DL51)) -> 0 | V51: 0 | X51: =IF(RIGHT('Från 3L'!$C$2,2)="01",kapital!BM51,IF(RIGHT('Från 3L'!$C$2,2)="07",kapital!CM51,DM51)) -> 0 | Y51: =IF(RIGHT('Från 3L'!$C$2,2)="01",kapital!BN51,IF(RIGHT('Från 3L'!$C$2,2)="07",kapital!CN51,DN51)) -> 0 | Z51: =IF(RIGHT('Från 3L'!$C$2,2)="01",kapital!BO51,IF(RIGHT('Från 3L'!$C$2,2)="07",kapital!CO51,DO51)) -> 0 | AA51: =IF(RIGHT('Från 3L'!$C$2,2)="01",kapital!BP51,IF(RIGHT('Från 3L'!$C$2,2)="07",kapital!CP51,DP51)) -> 0 | AB51: =IF(RIGHT('Från 3L'!$C$2,2)="01",kapital!BQ51,IF(RIGHT('Från 3L'!$C$2,2)="07",kapital!CQ51,DQ51)) -> 0 | AC51: =IF(RIGHT('Från 3L'!$C$2,2)="01",kapital!BR51,IF(RIGHT('Från 3L'!$C$2,2)="07",kapital!CR51,DR51)) -> 0 | AD51: =IF(RIGHT('Från 3L'!$C$2,2)="01",kapital!BS51,IF(RIGHT('Från 3L'!$C$2,2)="07",kapital!CS51,DS51)) -> 0 | AE51: =IF(RIGHT('Från 3L'!$C$2,2)="01",kapital!BT51,IF(RIGHT('Från 3L'!$C$2,2)="07",kapital!CT51,DT51)) -> 0 | AF51: =IF(RIGHT('Från 3L'!$C$2,2)="01",kapital!BU51,IF(RIGHT('Från 3L'!$C$2,2)="07",kapital!CU51,DU51)) -> 0 | AG51: =IF(RIGHT('Från 3L'!$C$2,2)="01",kapital!BV51,IF(RIGHT('Från 3L'!$C$2,2)="07",kapital!CV51,DV51)) -> 0 | AH51: =IF(RIGHT('Från 3L'!$C$2,2)="01",kapital!BW51,IF(RIGHT('Från 3L'!$C$2,2)="07",kapital!CW51,DW51)) -> 0 | AI51: =IF(RIGHT('Från 3L'!$C$2,2)="01",kapital!BX51,IF(RIGHT('Från 3L'!$C$2,2)="07",kapital!CX51,DX51)) -> 0 | AJ51: 0 | BA51: 0 | BB51: 0 | BC51: 0 | BD51: 0 | BE51: 0 | BF51: 0 | BG51: 0 | BH51: 0 | BI51: 0 | BJ51: 0 | BK51: 0 | BL51: 0 | BM51: 0 | BN51: 0 | BO51: 0 | BP51: 0 | BQ51: 0 | BR51: 0 | BS51: 0 | BT51: 0 | BU51: 0 | BV51: 0 | BW51: 0 | BX51: 0 | CA51: 0 | CB51: 0 | CC51: 0 | CD51: 0 | CE51: 0 | CF51: 0 | CG51: 0 | CH51: 0 | CI51: 0 | CJ51: 0 | CK51: 0 | CL51: 0 | CM51: 0 | CN51: 0 | CO51: 0 | CP51: 0 | CQ51: 0 | CR51: 0 | CS51: 0 | CT51: 0 | CU51: 0 | CV51: 0 | CW51: 0 | CX51: 0 | DA51: 0 | DB51: 0 | DC51: 0 | DD51: 0 | DE51: 0 | DF51: 0 | DG51: 0 | DH51: 0 | DI51: 0 | DJ51: 0 | DK51: 0 | DL51: 0 | DM51: 0 | DN51: 0 | DO51: 0 | DP51: 0 | DQ51: 0 | DR51: 0 | DS51: 0 | DT51: 0 | DU51: 0 | DV51: 0 | DW51: 0 | DX51: 0
A52: 91 | I52: 0 | J52: =IF(RIGHT('Från 3L'!$C$2,2)="01",kapital!BA52,IF(RIGHT('Från 3L'!$C$2,2)="07",kapital!CA52,DA52)) -> 0 | K52: =IF(RIGHT('Från 3L'!$C$2,2)="01",kapital!BB52,IF(RIGHT('Från 3L'!$C$2,2)="07",kapital!CB52,DB52)) -> 0 | L52: =IF(RIGHT('Från 3L'!$C$2,2)="01",kapital!BC52,IF(RIGHT('Från 3L'!$C$2,2)="07",kapital!CC52,DC52)) -> 0 | M52: =IF(RIGHT('Från 3L'!$C$2,2)="01",kapital!BD52,IF(RIGHT('Från 3L'!$C$2,2)="07",kapital!CD52,DD52)) -> 0 | N52: =IF(RIGHT('Från 3L'!$C$2,2)="01",kapital!BE52,IF(RIGHT('Från 3L'!$C$2,2)="07",kapital!CE52,DE52)) -> 0 | O52: =IF(RIGHT('Från 3L'!$C$2,2)="01",kapital!BF52,IF(RIGHT('Från 3L'!$C$2,2)="07",kapital!CF52,DF52)) -> 0 | P52: =IF(RIGHT('Från 3L'!$C$2,2)="01",kapital!BG52,IF(RIGHT('Från 3L'!$C$2,2)="07",kapital!CG52,DG52)) -> 0 | Q52: =IF(RIGHT('Från 3L'!$C$2,2)="01",kapital!BH52,IF(RIGHT('Från 3L'!$C$2,2)="07",kapital!CH52,DH52)) -> 0 | R52: =IF(RIGHT('Från 3L'!$C$2,2)="01",kapital!BI52,IF(RIGHT('Från 3L'!$C$2,2)="07",kapital!CI52,DI52)) -> 0 | S52: =IF(RIGHT('Från 3L'!$C$2,2)="01",kapital!BJ52,IF(RIGHT('Från 3L'!$C$2,2)="07",kapital!CJ52,DJ52)) -> 0 | T52: =IF(RIGHT('Från 3L'!$C$2,2)="01",kapital!BK52,IF(RIGHT('Från 3L'!$C$2,2)="07",kapital!CK52,DK52)) -> 0 | U52: =IF(RIGHT('Från 3L'!$C$2,2)="01",kapital!BL52,IF(RIGHT('Från 3L'!$C$2,2)="07",kapital!CL52,DL52)) -> 0 | V52: 0 | X52: =IF(RIGHT('Från 3L'!$C$2,2)="01",kapital!BM52,IF(RIGHT('Från 3L'!$C$2,2)="07",kapital!CM52,DM52)) -> 0 | Y52: =IF(RIGHT('Från 3L'!$C$2,2)="01",kapital!BN52,IF(RIGHT('Från 3L'!$C$2,2)="07",kapital!CN52,DN52)) -> 0 | Z52: =IF(RIGHT('Från 3L'!$C$2,2)="01",kapital!BO52,IF(RIGHT('Från 3L'!$C$2,2)="07",kapital!CO52,DO52)) -> 0 | AA52: =IF(RIGHT('Från 3L'!$C$2,2)="01",kapital!BP52,IF(RIGHT('Från 3L'!$C$2,2)="07",kapital!CP52,DP52)) -> 0 | AB52: =IF(RIGHT('Från 3L'!$C$2,2)="01",kapital!BQ52,IF(RIGHT('Från 3L'!$C$2,2)="07",kapital!CQ52,DQ52)) -> 0 | AC52: =IF(RIGHT('Från 3L'!$C$2,2)="01",kapital!BR52,IF(RIGHT('Från 3L'!$C$2,2)="07",kapital!CR52,DR52)) -> 0 | AD52: =IF(RIGHT('Från 3L'!$C$2,2)="01",kapital!BS52,IF(RIGHT('Från 3L'!$C$2,2)="07",kapital!CS52,DS52)) -> 0 | AE52: =IF(RIGHT('Från 3L'!$C$2,2)="01",kapital!BT52,IF(RIGHT('Från 3L'!$C$2,2)="07",kapital!CT52,DT52)) -> 0 | AF52: =IF(RIGHT('Från 3L'!$C$2,2)="01",kapital!BU52,IF(RIGHT('Från 3L'!$C$2,2)="07",kapital!CU52,DU52)) -> 0 | AG52: =IF(RIGHT('Från 3L'!$C$2,2)="01",kapital!BV52,IF(RIGHT('Från 3L'!$C$2,2)="07",kapital!CV52,DV52)) -> 0 | AH52: =IF(RIGHT('Från 3L'!$C$2,2)="01",kapital!BW52,IF(RIGHT('Från 3L'!$C$2,2)="07",kapital!CW52,DW52)) -> 0 | AI52: =IF(RIGHT('Från 3L'!$C$2,2)="01",kapital!BX52,IF(RIGHT('Från 3L'!$C$2,2)="07",kapital!CX52,DX52)) -> 0 | AJ52: 0 | BA52: 0 | BB52: 0 | BC52: 0 | BD52: 0 | BE52: 0 | BF52: 0 | BG52: 0 | BH52: 0 | BI52: 0 | BJ52: 0 | BK52: 0 | BL52: 0 | BM52: 0 | BN52: 0 | BO52: 0 | BP52: 0 | BQ52: 0 | BR52: 0 | BS52: 0 | BT52: 0 | BU52: 0 | BV52: 0 | BW52: 0 | BX52: 0 | CA52: 0 | CB52: 0 | CC52: 0 | CD52: 0 | CE52: 0 | CF52: 0 | CG52: 0 | CH52: 0 | CI52: 0 | CJ52: 0 | CK52: 0 | CL52: 0 | CM52: 0 | CN52: 0 | CO52: 0 | CP52: 0 | CQ52: 0 | CR52: 0 | CS52: 0 | CT52: 0 | CU52: 0 | CV52: 0 | CW52: 0 | CX52: 0 | DA52: 0 | DB52: 0 | DC52: 0 | DD52: 0 | DE52: 0 | DF52: 0 | DG52: 0 | DH52: 0 | DI52: 0 | DJ52: 0 | DK52: 0 | DL52: 0 | DM52: 0 | DN52: 0 | DO52: 0 | DP52: 0 | DQ52: 0 | DR52: 0 | DS52: 0 | DT52: 0 | DU52: 0 | DV52: 0 | DW52: 0 | DX52: 0
A53: 91 | I53: 0 | J53: =IF(RIGHT('Från 3L'!$C$2,2)="01",kapital!BA53,IF(RIGHT('Från 3L'!$C$2,2)="07",kapital!CA53,DA53)) -> 0 | K53: =IF(RIGHT('Från 3L'!$C$2,2)="01",kapital!BB53,IF(RIGHT('Från 3L'!$C$2,2)="07",kapital!CB53,DB53)) -> 0 | L53: =IF(RIGHT('Från 3L'!$C$2,2)="01",kapital!BC53,IF(RIGHT('Från 3L'!$C$2,2)="07",kapital!CC53,DC53)) -> 0 | M53: =IF(RIGHT('Från 3L'!$C$2,2)="01",kapital!BD53,IF(RIGHT('Från 3L'!$C$2,2)="07",kapital!CD53,DD53)) -> 0 | N53: =IF(RIGHT('Från 3L'!$C$2,2)="01",kapital!BE53,IF(RIGHT('Från 3L'!$C$2,2)="07",kapital!CE53,DE53)) -> 0 | O53: =IF(RIGHT('Från 3L'!$C$2,2)="01",kapital!BF53,IF(RIGHT('Från 3L'!$C$2,2)="07",kapital!CF53,DF53)) -> 0 | P53: =IF(RIGHT('Från 3L'!$C$2,2)="01",kapital!BG53,IF(RIGHT('Från 3L'!$C$2,2)="07",kapital!CG53,DG53)) -> 0 | Q53: =IF(RIGHT('Från 3L'!$C$2,2)="01",kapital!BH53,IF(RIGHT('Från 3L'!$C$2,2)="07",kapital!CH53,DH53)) -> 0 | R53: =IF(RIGHT('Från 3L'!$C$2,2)="01",kapital!BI53,IF(RIGHT('Från 3L'!$C$2,2)="07",kapital!CI53,DI53)) -> 0 | S53: =IF(RIGHT('Från 3L'!$C$2,2)="01",kapital!BJ53,IF(RIGHT('Från 3L'!$C$2,2)="07",kapital!CJ53,DJ53)) -> 0 | T53: =IF(RIGHT('Från 3L'!$C$2,2)="01",kapital!BK53,IF(RIGHT('Från 3L'!$C$2,2)="07",kapital!CK53,DK53)) -> 0 | U53: =IF(RIGHT('Från 3L'!$C$2,2)="01",kapital!BL53,IF(RIGHT('Från 3L'!$C$2,2)="07",kapital!CL53,DL53)) -> 0 | V53: 0 | X53: =IF(RIGHT('Från 3L'!$C$2,2)="01",kapital!BM53,IF(RIGHT('Från 3L'!$C$2,2)="07",kapital!CM53,DM53)) -> 0 | Y53: =IF(RIGHT('Från 3L'!$C$2,2)="01",kapital!BN53,IF(RIGHT('Från 3L'!$C$2,2)="07",kapital!CN53,DN53)) -> 0 | Z53: =IF(RIGHT('Från 3L'!$C$2,2)="01",kapital!BO53,IF(RIGHT('Från 3L'!$C$2,2)="07",kapital!CO53,DO53)) -> 0 | AA53: =IF(RIGHT('Från 3L'!$C$2,2)="01",kapital!BP53,IF(RIGHT('Från 3L'!$C$2,2)="07",kapital!CP53,DP53)) -> 0 | AB53: =IF(RIGHT('Från 3L'!$C$2,2)="01",kapital!BQ53,IF(RIGHT('Från 3L'!$C$2,2)="07",kapital!CQ53,DQ53)) -> 0 | AC53: =IF(RIGHT('Från 3L'!$C$2,2)="01",kapital!BR53,IF(RIGHT('Från 3L'!$C$2,2)="07",kapital!CR53,DR53)) -> 0 | AD53: =IF(RIGHT('Från 3L'!$C$2,2)="01",kapital!BS53,IF(RIGHT('Från 3L'!$C$2,2)="07",kapital!CS53,DS53)) -> 0 | AE53: =IF(RIGHT('Från 3L'!$C$2,2)="01",kapital!BT53,IF(RIGHT('Från 3L'!$C$2,2)="07",kapital!CT53,DT53)) -> 0 | AF53: =IF(RIGHT('Från 3L'!$C$2,2)="01",kapital!BU53,IF(RIGHT('Från 3L'!$C$2,2)="07",kapital!CU53,DU53)) -> 0 | AG53: =IF(RIGHT('Från 3L'!$C$2,2)="01",kapital!BV53,IF(RIGHT('Från 3L'!$C$2,2)="07",kapital!CV53,DV53)) -> 0 | AH53: =IF(RIGHT('Från 3L'!$C$2,2)="01",kapital!BW53,IF(RIGHT('Från 3L'!$C$2,2)="07",kapital!CW53,DW53)) -> 0 | AI53: =IF(RIGHT('Från 3L'!$C$2,2)="01",kapital!BX53,IF(RIGHT('Från 3L'!$C$2,2)="07",kapital!CX53,DX53)) -> 0 | AJ53: 0 | BA53: 0 | BB53: 0 | BC53: 0 | BD53: 0 | BE53: 0 | BF53: 0 | BG53: 0 | BH53: 0 | BI53: 0 | BJ53: 0 | BK53: 0 | BL53: 0 | BM53: 0 | BN53: 0 | BO53: 0 | BP53: 0 | BQ53: 0 | BR53: 0 | BS53: 0 | BT53: 0 | BU53: 0 | BV53: 0 | BW53: 0 | BX53: 0 | CA53: 0 | CB53: 0 | CC53: 0 | CD53: 0 | CE53: 0 | CF53: 0 | CG53: 0 | CH53: 0 | CI53: 0 | CJ53: 0 | CK53: 0 | CL53: 0 | CM53: 0 | CN53: 0 | CO53: 0 | CP53: 0 | CQ53: 0 | CR53: 0 | CS53: 0 | CT53: 0 | CU53: 0 | CV53: 0 | CW53: 0 | CX53: 0 | DA53: 0 | DB53: 0 | DC53: 0 | DD53: 0 | DE53: 0 | DF53: 0 | DG53: 0 | DH53: 0 | DI53: 0 | DJ53: 0 | DK53: 0 | DL53: 0 | DM53: 0 | DN53: 0 | DO53: 0 | DP53: 0 | DQ53: 0 | DR53: 0 | DS53: 0 | DT53: 0 | DU53: 0 | DV53: 0 | DW53: 0 | DX53: 0
A54: 91 | I54: 0 | J54: =IF(RIGHT('Från 3L'!$C$2,2)="01",kapital!BA54,IF(RIGHT('Från 3L'!$C$2,2)="07",kapital!CA54,DA54)) -> 0 | K54: =IF(RIGHT('Från 3L'!$C$2,2)="01",kapital!BB54,IF(RIGHT('Från 3L'!$C$2,2)="07",kapital!CB54,DB54)) -> 0 | L54: =IF(RIGHT('Från 3L'!$C$2,2)="01",kapital!BC54,IF(RIGHT('Från 3L'!$C$2,2)="07",kapital!CC54,DC54)) -> 0 | M54: =IF(RIGHT('Från 3L'!$C$2,2)="01",kapital!BD54,IF(RIGHT('Från 3L'!$C$2,2)="07",kapital!CD54,DD54)) -> 0 | N54: =IF(RIGHT('Från 3L'!$C$2,2)="01",kapital!BE54,IF(RIGHT('Från 3L'!$C$2,2)="07",kapital!CE54,DE54)) -> 0 | O54: =IF(RIGHT('Från 3L'!$C$2,2)="01",kapital!BF54,IF(RIGHT('Från 3L'!$C$2,2)="07",kapital!CF54,DF54)) -> 0 | P54: =IF(RIGHT('Från 3L'!$C$2,2)="01",kapital!BG54,IF(RIGHT('Från 3L'!$C$2,2)="07",kapital!CG54,DG54)) -> 0 | Q54: =IF(RIGHT('Från 3L'!$C$2,2)="01",kapital!BH54,IF(RIGHT('Från 3L'!$C$2,2)="07",kapital!CH54,DH54)) -> 0 | R54: =IF(RIGHT('Från 3L'!$C$2,2)="01",kapital!BI54,IF(RIGHT('Från 3L'!$C$2,2)="07",kapital!CI54,DI54)) -> 0 | S54: =IF(RIGHT('Från 3L'!$C$2,2)="01",kapital!BJ54,IF(RIGHT('Från 3L'!$C$2,2)="07",kapital!CJ54,DJ54)) -> 0 | T54: =IF(RIGHT('Från 3L'!$C$2,2)="01",kapital!BK54,IF(RIGHT('Från 3L'!$C$2,2)="07",kapital!CK54,DK54)) -> 0 | U54: =IF(RIGHT('Från 3L'!$C$2,2)="01",kapital!BL54,IF(RIGHT('Från 3L'!$C$2,2)="07",kapital!CL54,DL54)) -> 0 | V54: 0 | X54: =IF(RIGHT('Från 3L'!$C$2,2)="01",kapital!BM54,IF(RIGHT('Från 3L'!$C$2,2)="07",kapital!CM54,DM54)) -> 0 | Y54: =IF(RIGHT('Från 3L'!$C$2,2)="01",kapital!BN54,IF(RIGHT('Från 3L'!$C$2,2)="07",kapital!CN54,DN54)) -> 0 | Z54: =IF(RIGHT('Från 3L'!$C$2,2)="01",kapital!BO54,IF(RIGHT('Från 3L'!$C$2,2)="07",kapital!CO54,DO54)) -> 0 | AA54: =IF(RIGHT('Från 3L'!$C$2,2)="01",kapital!BP54,IF(RIGHT('Från 3L'!$C$2,2)="07",kapital!CP54,DP54)) -> 0 | AB54: =IF(RIGHT('Från 3L'!$C$2,2)="01",kapital!BQ54,IF(RIGHT('Från 3L'!$C$2,2)="07",kapital!CQ54,DQ54)) -> 0 | AC54: =IF(RIGHT('Från 3L'!$C$2,2)="01",kapital!BR54,IF(RIGHT('Från 3L'!$C$2,2)="07",kapital!CR54,DR54)) -> 0 | AD54: =IF(RIGHT('Från 3L'!$C$2,2)="01",kapital!BS54,IF(RIGHT('Från 3L'!$C$2,2)="07",kapital!CS54,DS54)) -> 0 | AE54: =IF(RIGHT('Från 3L'!$C$2,2)="01",kapital!BT54,IF(RIGHT('Från 3L'!$C$2,2)="07",kapital!CT54,DT54)) -> 0 | AF54: =IF(RIGHT('Från 3L'!$C$2,2)="01",kapital!BU54,IF(RIGHT('Från 3L'!$C$2,2)="07",kapital!CU54,DU54)) -> 0 | AG54: =IF(RIGHT('Från 3L'!$C$2,2)="01",kapital!BV54,IF(RIGHT('Från 3L'!$C$2,2)="07",kapital!CV54,DV54)) -> 0 | AH54: =IF(RIGHT('Från 3L'!$C$2,2)="01",kapital!BW54,IF(RIGHT('Från 3L'!$C$2,2)="07",kapital!CW54,DW54)) -> 0 | AI54: =IF(RIGHT('Från 3L'!$C$2,2)="01",kapital!BX54,IF(RIGHT('Från 3L'!$C$2,2)="07",kapital!CX54,DX54)) -> 0 | AJ54: 0 | BA54: 0 | BB54: 0 | BC54: 0 | BD54: 0 | BE54: 0 | BF54: 0 | BG54: 0 | BH54: 0 | BI54: 0 | BJ54: 0 | BK54: 0 | BL54: 0 | BM54: 0 | BN54: 0 | BO54: 0 | BP54: 0 | BQ54: 0 | BR54: 0 | BS54: 0 | BT54: 0 | BU54: 0 | BV54: 0 | BW54: 0 | BX54: 0 | CA54: 0 | CB54: 0 | CC54: 0 | CD54: 0 | CE54: 0 | CF54: 0 | CG54: 0 | CH54: 0 | CI54: 0 | CJ54: 0 | CK54: 0 | CL54: 0 | CM54: 0 | CN54: 0 | CO54: 0 | CP54: 0 | CQ54: 0 | CR54: 0 | CS54: 0 | CT54: 0 | CU54: 0 | CV54: 0 | CW54: 0 | CX54: 0 | DA54: 0 | DB54: 0 | DC54: 0 | DD54: 0 | DE54: 0 | DF54: 0 | DG54: 0 | DH54: 0 | DI54: 0 | DJ54: 0 | DK54: 0 | DL54: 0 | DM54: 0 | DN54: 0 | DO54: 0 | DP54: 0 | DQ54: 0 | DR54: 0 | DS54: 0 | DT54: 0 | DU54: 0 | DV54: 0 | DW54: 0 | DX54: 0
A55: 91 | I55: 0 | J55: =IF(RIGHT('Från 3L'!$C$2,2)="01",kapital!BA55,IF(RIGHT('Från 3L'!$C$2,2)="07",kapital!CA55,DA55)) -> 0 | K55: =IF(RIGHT('Från 3L'!$C$2,2)="01",kapital!BB55,IF(RIGHT('Från 3L'!$C$2,2)="07",kapital!CB55,DB55)) -> 0 | L55: =IF(RIGHT('Från 3L'!$C$2,2)="01",kapital!BC55,IF(RIGHT('Från 3L'!$C$2,2)="07",kapital!CC55,DC55)) -> 0 | M55: =IF(RIGHT('Från 3L'!$C$2,2)="01",kapital!BD55,IF(RIGHT('Från 3L'!$C$2,2)="07",kapital!CD55,DD55)) -> 0 | N55: =IF(RIGHT('Från 3L'!$C$2,2)="01",kapital!BE55,IF(RIGHT('Från 3L'!$C$2,2)="07",kapital!CE55,DE55)) -> 0 | O55: =IF(RIGHT('Från 3L'!$C$2,2)="01",kapital!BF55,IF(RIGHT('Från 3L'!$C$2,2)="07",kapital!CF55,DF55)) -> 0 | P55: =IF(RIGHT('Från 3L'!$C$2,2)="01",kapital!BG55,IF(RIGHT('Från 3L'!$C$2,2)="07",kapital!CG55,DG55)) -> 0 | Q55: =IF(RIGHT('Från 3L'!$C$2,2)="01",kapital!BH55,IF(RIGHT('Från 3L'!$C$2,2)="07",kapital!CH55,DH55)) -> 0 | R55: =IF(RIGHT('Från 3L'!$C$2,2)="01",kapital!BI55,IF(RIGHT('Från 3L'!$C$2,2)="07",kapital!CI55,DI55)) -> 0 | S55: =IF(RIGHT('Från 3L'!$C$2,2)="01",kapital!BJ55,IF(RIGHT('Från 3L'!$C$2,2)="07",kapital!CJ55,DJ55)) -> 0 | T55: =IF(RIGHT('Från 3L'!$C$2,2)="01",kapital!BK55,IF(RIGHT('Från 3L'!$C$2,2)="07",kapital!CK55,DK55)) -> 0 | U55: =IF(RIGHT('Från 3L'!$C$2,2)="01",kapital!BL55,IF(RIGHT('Från 3L'!$C$2,2)="07",kapital!CL55,DL55)) -> 0 | V55: 0 | X55: =IF(RIGHT('Från 3L'!$C$2,2)="01",kapital!BM55,IF(RIGHT('Från 3L'!$C$2,2)="07",kapital!CM55,DM55)) -> 0 | Y55: =IF(RIGHT('Från 3L'!$C$2,2)="01",kapital!BN55,IF(RIGHT('Från 3L'!$C$2,2)="07",kapital!CN55,DN55)) -> 0 | Z55: =IF(RIGHT('Från 3L'!$C$2,2)="01",kapital!BO55,IF(RIGHT('Från 3L'!$C$2,2)="07",kapital!CO55,DO55)) -> 0 | AA55: =IF(RIGHT('Från 3L'!$C$2,2)="01",kapital!BP55,IF(RIGHT('Från 3L'!$C$2,2)="07",kapital!CP55,DP55)) -> 0 | AB55: =IF(RIGHT('Från 3L'!$C$2,2)="01",kapital!BQ55,IF(RIGHT('Från 3L'!$C$2,2)="07",kapital!CQ55,DQ55)) -> 0 | AC55: =IF(RIGHT('Från 3L'!$C$2,2)="01",kapital!BR55,IF(RIGHT('Från 3L'!$C$2,2)="07",kapital!CR55,DR55)) -> 0 | AD55: =IF(RIGHT('Från 3L'!$C$2,2)="01",kapital!BS55,IF(RIGHT('Från 3L'!$C$2,2)="07",kapital!CS55,DS55)) -> 0 | AE55: =IF(RIGHT('Från 3L'!$C$2,2)="01",kapital!BT55,IF(RIGHT('Från 3L'!$C$2,2)="07",kapital!CT55,DT55)) -> 0 | AF55: =IF(RIGHT('Från 3L'!$C$2,2)="01",kapital!BU55,IF(RIGHT('Från 3L'!$C$2,2)="07",kapital!CU55,DU55)) -> 0 | AG55: =IF(RIGHT('Från 3L'!$C$2,2)="01",kapital!BV55,IF(RIGHT('Från 3L'!$C$2,2)="07",kapital!CV55,DV55)) -> 0 | AH55: =IF(RIGHT('Från 3L'!$C$2,2)="01",kapital!BW55,IF(RIGHT('Från 3L'!$C$2,2)="07",kapital!CW55,DW55)) -> 0 | AI55: =IF(RIGHT('Från 3L'!$C$2,2)="01",kapital!BX55,IF(RIGHT('Från 3L'!$C$2,2)="07",kapital!CX55,DX55)) -> 0 | AJ55: 0 | BA55: 0 | BB55: 0 | BC55: 0 | BD55: 0 | BE55: 0 | BF55: 0 | BG55: 0 | BH55: 0 | BI55: 0 | BJ55: 0 | BK55: 0 | BL55: 0 | BM55: 0 | BN55: 0 | BO55: 0 | BP55: 0 | BQ55: 0 | BR55: 0 | BS55: 0 | BT55: 0 | BU55: 0 | BV55: 0 | BW55: 0 | BX55: 0 | CA55: 0 | CB55: 0 | CC55: 0 | CD55: 0 | CE55: 0 | CF55: 0 | CG55: 0 | CH55: 0 | CI55: 0 | CJ55: 0 | CK55: 0 | CL55: 0 | CM55: 0 | CN55: 0 | CO55: 0 | CP55: 0 | CQ55: 0 | CR55: 0 | CS55: 0 | CT55: 0 | CU55: 0 | CV55: 0 | CW55: 0 | CX55: 0 | DA55: 0 | DB55: 0 | DC55: 0 | DD55: 0 | DE55: 0 | DF55: 0 | DG55: 0 | DH55: 0 | DI55: 0 | DJ55: 0 | DK55: 0 | DL55: 0 | DM55: 0 | DN55: 0 | DO55: 0 | DP55: 0 | DQ55: 0 | DR55: 0 | DS55: 0 | DT55: 0 | DU55: 0 | DV55: 0 | DW55: 0 | DX55: 0
A56: 91 | I56: 0 | J56: =IF(RIGHT('Från 3L'!$C$2,2)="01",kapital!BA56,IF(RIGHT('Från 3L'!$C$2,2)="07",kapital!CA56,DA56)) -> 0 | K56: =IF(RIGHT('Från 3L'!$C$2,2)="01",kapital!BB56,IF(RIGHT('Från 3L'!$C$2,2)="07",kapital!CB56,DB56)) -> 0 | L56: =IF(RIGHT('Från 3L'!$C$2,2)="01",kapital!BC56,IF(RIGHT('Från 3L'!$C$2,2)="07",kapital!CC56,DC56)) -> 0 | M56: =IF(RIGHT('Från 3L'!$C$2,2)="01",kapital!BD56,IF(RIGHT('Från 3L'!$C$2,2)="07",kapital!CD56,DD56)) -> 0 | N56: =IF(RIGHT('Från 3L'!$C$2,2)="01",kapital!BE56,IF(RIGHT('Från 3L'!$C$2,2)="07",kapital!CE56,DE56)) -> 0 | O56: =IF(RIGHT('Från 3L'!$C$2,2)="01",kapital!BF56,IF(RIGHT('Från 3L'!$C$2,2)="07",kapital!CF56,DF56)) -> 0 | P56: =IF(RIGHT('Från 3L'!$C$2,2)="01",kapital!BG56,IF(RIGHT('Från 3L'!$C$2,2)="07",kapital!CG56,DG56)) -> 0 | Q56: =IF(RIGHT('Från 3L'!$C$2,2)="01",kapital!BH56,IF(RIGHT('Från 3L'!$C$2,2)="07",kapital!CH56,DH56)) -> 0 | R56: =IF(RIGHT('Från 3L'!$C$2,2)="01",kapital!BI56,IF(RIGHT('Från 3L'!$C$2,2)="07",kapital!CI56,DI56)) -> 0 | S56: =IF(RIGHT('Från 3L'!$C$2,2)="01",kapital!BJ56,IF(RIGHT('Från 3L'!$C$2,2)="07",kapital!CJ56,DJ56)) -> 0 | T56: =IF(RIGHT('Från 3L'!$C$2,2)="01",kapital!BK56,IF(RIGHT('Från 3L'!$C$2,2)="07",kapital!CK56,DK56)) -> 0 | U56: =IF(RIGHT('Från 3L'!$C$2,2)="01",kapital!BL56,IF(RIGHT('Från 3L'!$C$2,2)="07",kapital!CL56,DL56)) -> 0 | V56: 0 | X56: =IF(RIGHT('Från 3L'!$C$2,2)="01",kapital!BM56,IF(RIGHT('Från 3L'!$C$2,2)="07",kapital!CM56,DM56)) -> 0 | Y56: =IF(RIGHT('Från 3L'!$C$2,2)="01",kapital!BN56,IF(RIGHT('Från 3L'!$C$2,2)="07",kapital!CN56,DN56)) -> 0 | Z56: =IF(RIGHT('Från 3L'!$C$2,2)="01",kapital!BO56,IF(RIGHT('Från 3L'!$C$2,2)="07",kapital!CO56,DO56)) -> 0 | AA56: =IF(RIGHT('Från 3L'!$C$2,2)="01",kapital!BP56,IF(RIGHT('Från 3L'!$C$2,2)="07",kapital!CP56,DP56)) -> 0 | AB56: =IF(RIGHT('Från 3L'!$C$2,2)="01",kapital!BQ56,IF(RIGHT('Från 3L'!$C$2,2)="07",kapital!CQ56,DQ56)) -> 0 | AC56: =IF(RIGHT('Från 3L'!$C$2,2)="01",kapital!BR56,IF(RIGHT('Från 3L'!$C$2,2)="07",kapital!CR56,DR56)) -> 0 | AD56: =IF(RIGHT('Från 3L'!$C$2,2)="01",kapital!BS56,IF(RIGHT('Från 3L'!$C$2,2)="07",kapital!CS56,DS56)) -> 0 | AE56: =IF(RIGHT('Från 3L'!$C$2,2)="01",kapital!BT56,IF(RIGHT('Från 3L'!$C$2,2)="07",kapital!CT56,DT56)) -> 0 | AF56: =IF(RIGHT('Från 3L'!$C$2,2)="01",kapital!BU56,IF(RIGHT('Från 3L'!$C$2,2)="07",kapital!CU56,DU56)) -> 0 | AG56: =IF(RIGHT('Från 3L'!$C$2,2)="01",kapital!BV56,IF(RIGHT('Från 3L'!$C$2,2)="07",kapital!CV56,DV56)) -> 0 | AH56: =IF(RIGHT('Från 3L'!$C$2,2)="01",kapital!BW56,IF(RIGHT('Från 3L'!$C$2,2)="07",kapital!CW56,DW56)) -> 0 | AI56: =IF(RIGHT('Från 3L'!$C$2,2)="01",kapital!BX56,IF(RIGHT('Från 3L'!$C$2,2)="07",kapital!CX56,DX56)) -> 0 | AJ56: 0 | BA56: 0 | BB56: 0 | BC56: 0 | BD56: 0 | BE56: 0 | BF56: 0 | BG56: 0 | BH56: 0 | BI56: 0 | BJ56: 0 | BK56: 0 | BL56: 0 | BM56: 0 | BN56: 0 | BO56: 0 | BP56: 0 | BQ56: 0 | BR56: 0 | BS56: 0 | BT56: 0 | BU56: 0 | BV56: 0 | BW56: 0 | BX56: 0 | CA56: 0 | CB56: 0 | CC56: 0 | CD56: 0 | CE56: 0 | CF56: 0 | CG56: 0 | CH56: 0 | CI56: 0 | CJ56: 0 | CK56: 0 | CL56: 0 | CM56: 0 | CN56: 0 | CO56: 0 | CP56: 0 | CQ56: 0 | CR56: 0 | CS56: 0 | CT56: 0 | CU56: 0 | CV56: 0 | CW56: 0 | CX56: 0 | DA56: 0 | DB56: 0 | DC56: 0 | DD56: 0 | DE56: 0 | DF56: 0 | DG56: 0 | DH56: 0 | DI56: 0 | DJ56: 0 | DK56: 0 | DL56: 0 | DM56: 0 | DN56: 0 | DO56: 0 | DP56: 0 | DQ56: 0 | DR56: 0 | DS56: 0 | DT56: 0 | DU56: 0 | DV56: 0 | DW56: 0 | DX56: 0
A57: 91 | I57: 0 | J57: =IF(RIGHT('Från 3L'!$C$2,2)="01",kapital!BA57,IF(RIGHT('Från 3L'!$C$2,2)="07",kapital!CA57,DA57)) -> 0 | K57: =IF(RIGHT('Från 3L'!$C$2,2)="01",kapital!BB57,IF(RIGHT('Från 3L'!$C$2,2)="07",kapital!CB57,DB57)) -> 0 | L57: =IF(RIGHT('Från 3L'!$C$2,2)="01",kapital!BC57,IF(RIGHT('Från 3L'!$C$2,2)="07",kapital!CC57,DC57)) -> 0 | M57: =IF(RIGHT('Från 3L'!$C$2,2)="01",kapital!BD57,IF(RIGHT('Från 3L'!$C$2,2)="07",kapital!CD57,DD57)) -> 0 | N57: =IF(RIGHT('Från 3L'!$C$2,2)="01",kapital!BE57,IF(RIGHT('Från 3L'!$C$2,2)="07",kapital!CE57,DE57)) -> 0 | O57: =IF(RIGHT('Från 3L'!$C$2,2)="01",kapital!BF57,IF(RIGHT('Från 3L'!$C$2,2)="07",kapital!CF57,DF57)) -> 0 | P57: =IF(RIGHT('Från 3L'!$C$2,2)="01",kapital!BG57,IF(RIGHT('Från 3L'!$C$2,2)="07",kapital!CG57,DG57)) -> 0 | Q57: =IF(RIGHT('Från 3L'!$C$2,2)="01",kapital!BH57,IF(RIGHT('Från 3L'!$C$2,2)="07",kapital!CH57,DH57)) -> 0 | R57: =IF(RIGHT('Från 3L'!$C$2,2)="01",kapital!BI57,IF(RIGHT('Från 3L'!$C$2,2)="07",kapital!CI57,DI57)) -> 0 | S57: =IF(RIGHT('Från 3L'!$C$2,2)="01",kapital!BJ57,IF(RIGHT('Från 3L'!$C$2,2)="07",kapital!CJ57,DJ57)) -> 0 | T57: =IF(RIGHT('Från 3L'!$C$2,2)="01",kapital!BK57,IF(RIGHT('Från 3L'!$C$2,2)="07",kapital!CK57,DK57)) -> 0 | U57: =IF(RIGHT('Från 3L'!$C$2,2)="01",kapital!BL57,IF(RIGHT('Från 3L'!$C$2,2)="07",kapital!CL57,DL57)) -> 0 | V57: 0 | X57: =IF(RIGHT('Från 3L'!$C$2,2)="01",kapital!BM57,IF(RIGHT('Från 3L'!$C$2,2)="07",kapital!CM57,DM57)) -> 0 | Y57: =IF(RIGHT('Från 3L'!$C$2,2)="01",kapital!BN57,IF(RIGHT('Från 3L'!$C$2,2)="07",kapital!CN57,DN57)) -> 0 | Z57: =IF(RIGHT('Från 3L'!$C$2,2)="01",kapital!BO57,IF(RIGHT('Från 3L'!$C$2,2)="07",kapital!CO57,DO57)) -> 0 | AA57: =IF(RIGHT('Från 3L'!$C$2,2)="01",kapital!BP57,IF(RIGHT('Från 3L'!$C$2,2)="07",kapital!CP57,DP57)) -> 0 | AB57: =IF(RIGHT('Från 3L'!$C$2,2)="01",kapital!BQ57,IF(RIGHT('Från 3L'!$C$2,2)="07",kapital!CQ57,DQ57)) -> 0 | AC57: =IF(RIGHT('Från 3L'!$C$2,2)="01",kapital!BR57,IF(RIGHT('Från 3L'!$C$2,2)="07",kapital!CR57,DR57)) -> 0 | AD57: =IF(RIGHT('Från 3L'!$C$2,2)="01",kapital!BS57,IF(RIGHT('Från 3L'!$C$2,2)="07",kapital!CS57,DS57)) -> 0 | AE57: =IF(RIGHT('Från 3L'!$C$2,2)="01",kapital!BT57,IF(RIGHT('Från 3L'!$C$2,2)="07",kapital!CT57,DT57)) -> 0 | AF57: =IF(RIGHT('Från 3L'!$C$2,2)="01",kapital!BU57,IF(RIGHT('Från 3L'!$C$2,2)="07",kapital!CU57,DU57)) -> 0 | AG57: =IF(RIGHT('Från 3L'!$C$2,2)="01",kapital!BV57,IF(RIGHT('Från 3L'!$C$2,2)="07",kapital!CV57,DV57)) -> 0 | AH57: =IF(RIGHT('Från 3L'!$C$2,2)="01",kapital!BW57,IF(RIGHT('Från 3L'!$C$2,2)="07",kapital!CW57,DW57)) -> 0 | AI57: =IF(RIGHT('Från 3L'!$C$2,2)="01",kapital!BX57,IF(RIGHT('Från 3L'!$C$2,2)="07",kapital!CX57,DX57)) -> 0 | AJ57: 0 | BA57: 0 | BB57: 0 | BC57: 0 | BD57: 0 | BE57: 0 | BF57: 0 | BG57: 0 | BH57: 0 | BI57: 0 | BJ57: 0 | BK57: 0 | BL57: 0 | BM57: 0 | BN57: 0 | BO57: 0 | BP57: 0 | BQ57: 0 | BR57: 0 | BS57: 0 | BT57: 0 | BU57: 0 | BV57: 0 | BW57: 0 | BX57: 0 | CA57: 0 | CB57: 0 | CC57: 0 | CD57: 0 | CE57: 0 | CF57: 0 | CG57: 0 | CH57: 0 | CI57: 0 | CJ57: 0 | CK57: 0 | CL57: 0 | CM57: 0 | CN57: 0 | CO57: 0 | CP57: 0 | CQ57: 0 | CR57: 0 | CS57: 0 | CT57: 0 | CU57: 0 | CV57: 0 | CW57: 0 | CX57: 0 | DA57: 0 | DB57: 0 | DC57: 0 | DD57: 0 | DE57: 0 | DF57: 0 | DG57: 0 | DH57: 0 | DI57: 0 | DJ57: 0 | DK57: 0 | DL57: 0 | DM57: 0 | DN57: 0 | DO57: 0 | DP57: 0 | DQ57: 0 | DR57: 0 | DS57: 0 | DT57: 0 | DU57: 0 | DV57: 0 | DW57: 0 | DX57: 0
A58: 91 | I58: 0 | J58: =IF(RIGHT('Från 3L'!$C$2,2)="01",kapital!BA58,IF(RIGHT('Från 3L'!$C$2,2)="07",kapital!CA58,DA58)) -> 0 | K58: =IF(RIGHT('Från 3L'!$C$2,2)="01",kapital!BB58,IF(RIGHT('Från 3L'!$C$2,2)="07",kapital!CB58,DB58)) -> 0 | L58: =IF(RIGHT('Från 3L'!$C$2,2)="01",kapital!BC58,IF(RIGHT('Från 3L'!$C$2,2)="07",kapital!CC58,DC58)) -> 0 | M58: =IF(RIGHT('Från 3L'!$C$2,2)="01",kapital!BD58,IF(RIGHT('Från 3L'!$C$2,2)="07",kapital!CD58,DD58)) -> 0 | N58: =IF(RIGHT('Från 3L'!$C$2,2)="01",kapital!BE58,IF(RIGHT('Från 3L'!$C$2,2)="07",kapital!CE58,DE58)) -> 0 | O58: =IF(RIGHT('Från 3L'!$C$2,2)="01",kapital!BF58,IF(RIGHT('Från 3L'!$C$2,2)="07",kapital!CF58,DF58)) -> 0 | P58: =IF(RIGHT('Från 3L'!$C$2,2)="01",kapital!BG58,IF(RIGHT('Från 3L'!$C$2,2)="07",kapital!CG58,DG58)) -> 0 | Q58: =IF(RIGHT('Från 3L'!$C$2,2)="01",kapital!BH58,IF(RIGHT('Från 3L'!$C$2,2)="07",kapital!CH58,DH58)) -> 0 | R58: =IF(RIGHT('Från 3L'!$C$2,2)="01",kapital!BI58,IF(RIGHT('Från 3L'!$C$2,2)="07",kapital!CI58,DI58)) -> 0 | S58: =IF(RIGHT('Från 3L'!$C$2,2)="01",kapital!BJ58,IF(RIGHT('Från 3L'!$C$2,2)="07",kapital!CJ58,DJ58)) -> 0 | T58: =IF(RIGHT('Från 3L'!$C$2,2)="01",kapital!BK58,IF(RIGHT('Från 3L'!$C$2,2)="07",kapital!CK58,DK58)) -> 0 | U58: =IF(RIGHT('Från 3L'!$C$2,2)="01",kapital!BL58,IF(RIGHT('Från 3L'!$C$2,2)="07",kapital!CL58,DL58)) -> 0 | V58: 0 | X58: =IF(RIGHT('Från 3L'!$C$2,2)="01",kapital!BM58,IF(RIGHT('Från 3L'!$C$2,2)="07",kapital!CM58,DM58)) -> 0 | Y58: =IF(RIGHT('Från 3L'!$C$2,2)="01",kapital!BN58,IF(RIGHT('Från 3L'!$C$2,2)="07",kapital!CN58,DN58)) -> 0 | Z58: =IF(RIGHT('Från 3L'!$C$2,2)="01",kapital!BO58,IF(RIGHT('Från 3L'!$C$2,2)="07",kapital!CO58,DO58)) -> 0 | AA58: =IF(RIGHT('Från 3L'!$C$2,2)="01",kapital!BP58,IF(RIGHT('Från 3L'!$C$2,2)="07",kapital!CP58,DP58)) -> 0 | AB58: =IF(RIGHT('Från 3L'!$C$2,2)="01",kapital!BQ58,IF(RIGHT('Från 3L'!$C$2,2)="07",kapital!CQ58,DQ58)) -> 0 | AC58: =IF(RIGHT('Från 3L'!$C$2,2)="01",kapital!BR58,IF(RIGHT('Från 3L'!$C$2,2)="07",kapital!CR58,DR58)) -> 0 | AD58: =IF(RIGHT('Från 3L'!$C$2,2)="01",kapital!BS58,IF(RIGHT('Från 3L'!$C$2,2)="07",kapital!CS58,DS58)) -> 0 | AE58: =IF(RIGHT('Från 3L'!$C$2,2)="01",kapital!BT58,IF(RIGHT('Från 3L'!$C$2,2)="07",kapital!CT58,DT58)) -> 0 | AF58: =IF(RIGHT('Från 3L'!$C$2,2)="01",kapital!BU58,IF(RIGHT('Från 3L'!$C$2,2)="07",kapital!CU58,DU58)) -> 0 | AG58: =IF(RIGHT('Från 3L'!$C$2,2)="01",kapital!BV58,IF(RIGHT('Från 3L'!$C$2,2)="07",kapital!CV58,DV58)) -> 0 | AH58: =IF(RIGHT('Från 3L'!$C$2,2)="01",kapital!BW58,IF(RIGHT('Från 3L'!$C$2,2)="07",kapital!CW58,DW58)) -> 0 | AI58: =IF(RIGHT('Från 3L'!$C$2,2)="01",kapital!BX58,IF(RIGHT('Från 3L'!$C$2,2)="07",kapital!CX58,DX58)) -> 0 | AJ58: 0 | BA58: 0 | BB58: 0 | BC58: 0 | BD58: 0 | BE58: 0 | BF58: 0 | BG58: 0 | BH58: 0 | BI58: 0 | BJ58: 0 | BK58: 0 | BL58: 0 | BM58: 0 | BN58: 0 | BO58: 0 | BP58: 0 | BQ58: 0 | BR58: 0 | BS58: 0 | BT58: 0 | BU58: 0 | BV58: 0 | BW58: 0 | BX58: 0 | CA58: 0 | CB58: 0 | CC58: 0 | CD58: 0 | CE58: 0 | CF58: 0 | CG58: 0 | CH58: 0 | CI58: 0 | CJ58: 0 | CK58: 0 | CL58: 0 | CM58: 0 | CN58: 0 | CO58: 0 | CP58: 0 | CQ58: 0 | CR58: 0 | CS58: 0 | CT58: 0 | CU58: 0 | CV58: 0 | CW58: 0 | CX58: 0 | DA58: 0 | DB58: 0 | DC58: 0 | DD58: 0 | DE58: 0 | DF58: 0 | DG58: 0 | DH58: 0 | DI58: 0 | DJ58: 0 | DK58: 0 | DL58: 0 | DM58: 0 | DN58: 0 | DO58: 0 | DP58: 0 | DQ58: 0 | DR58: 0 | DS58: 0 | DT58: 0 | DU58: 0 | DV58: 0 | DW58: 0 | DX58: 0
A59: 91 | I59: 0 | J59: =IF(RIGHT('Från 3L'!$C$2,2)="01",kapital!BA59,IF(RIGHT('Från 3L'!$C$2,2)="07",kapital!CA59,DA59)) -> 0 | K59: =IF(RIGHT('Från 3L'!$C$2,2)="01",kapital!BB59,IF(RIGHT('Från 3L'!$C$2,2)="07",kapital!CB59,DB59)) -> 0 | L59: =IF(RIGHT('Från 3L'!$C$2,2)="01",kapital!BC59,IF(RIGHT('Från 3L'!$C$2,2)="07",kapital!CC59,DC59)) -> 0 | M59: =IF(RIGHT('Från 3L'!$C$2,2)="01",kapital!BD59,IF(RIGHT('Från 3L'!$C$2,2)="07",kapital!CD59,DD59)) -> 0 | N59: =IF(RIGHT('Från 3L'!$C$2,2)="01",kapital!BE59,IF(RIGHT('Från 3L'!$C$2,2)="07",kapital!CE59,DE59)) -> 0 | O59: =IF(RIGHT('Från 3L'!$C$2,2)="01",kapital!BF59,IF(RIGHT('Från 3L'!$C$2,2)="07",kapital!CF59,DF59)) -> 0 | P59: =IF(RIGHT('Från 3L'!$C$2,2)="01",kapital!BG59,IF(RIGHT('Från 3L'!$C$2,2)="07",kapital!CG59,DG59)) -> 0 | Q59: =IF(RIGHT('Från 3L'!$C$2,2)="01",kapital!BH59,IF(RIGHT('Från 3L'!$C$2,2)="07",kapital!CH59,DH59)) -> 0 | R59: =IF(RIGHT('Från 3L'!$C$2,2)="01",kapital!BI59,IF(RIGHT('Från 3L'!$C$2,2)="07",kapital!CI59,DI59)) -> 0 | S59: =IF(RIGHT('Från 3L'!$C$2,2)="01",kapital!BJ59,IF(RIGHT('Från 3L'!$C$2,2)="07",kapital!CJ59,DJ59)) -> 0 | T59: =IF(RIGHT('Från 3L'!$C$2,2)="01",kapital!BK59,IF(RIGHT('Från 3L'!$C$2,2)="07",kapital!CK59,DK59)) -> 0 | U59: =IF(RIGHT('Från 3L'!$C$2,2)="01",kapital!BL59,IF(RIGHT('Från 3L'!$C$2,2)="07",kapital!CL59,DL59)) -> 0 | V59: 0 | X59: =IF(RIGHT('Från 3L'!$C$2,2)="01",kapital!BM59,IF(RIGHT('Från 3L'!$C$2,2)="07",kapital!CM59,DM59)) -> 0 | Y59: =IF(RIGHT('Från 3L'!$C$2,2)="01",kapital!BN59,IF(RIGHT('Från 3L'!$C$2,2)="07",kapital!CN59,DN59)) -> 0 | Z59: =IF(RIGHT('Från 3L'!$C$2,2)="01",kapital!BO59,IF(RIGHT('Från 3L'!$C$2,2)="07",kapital!CO59,DO59)) -> 0 | AA59: =IF(RIGHT('Från 3L'!$C$2,2)="01",kapital!BP59,IF(RIGHT('Från 3L'!$C$2,2)="07",kapital!CP59,DP59)) -> 0 | AB59: =IF(RIGHT('Från 3L'!$C$2,2)="01",kapital!BQ59,IF(RIGHT('Från 3L'!$C$2,2)="07",kapital!CQ59,DQ59)) -> 0 | AC59: =IF(RIGHT('Från 3L'!$C$2,2)="01",kapital!BR59,IF(RIGHT('Från 3L'!$C$2,2)="07",kapital!CR59,DR59)) -> 0 | AD59: =IF(RIGHT('Från 3L'!$C$2,2)="01",kapital!BS59,IF(RIGHT('Från 3L'!$C$2,2)="07",kapital!CS59,DS59)) -> 0 | AE59: =IF(RIGHT('Från 3L'!$C$2,2)="01",kapital!BT59,IF(RIGHT('Från 3L'!$C$2,2)="07",kapital!CT59,DT59)) -> 0 | AF59: =IF(RIGHT('Från 3L'!$C$2,2)="01",kapital!BU59,IF(RIGHT('Från 3L'!$C$2,2)="07",kapital!CU59,DU59)) -> 0 | AG59: =IF(RIGHT('Från 3L'!$C$2,2)="01",kapital!BV59,IF(RIGHT('Från 3L'!$C$2,2)="07",kapital!CV59,DV59)) -> 0 | AH59: =IF(RIGHT('Från 3L'!$C$2,2)="01",kapital!BW59,IF(RIGHT('Från 3L'!$C$2,2)="07",kapital!CW59,DW59)) -> 0 | AI59: =IF(RIGHT('Från 3L'!$C$2,2)="01",kapital!BX59,IF(RIGHT('Från 3L'!$C$2,2)="07",kapital!CX59,DX59)) -> 0 | AJ59: 0 | BA59: 0 | BB59: 0 | BC59: 0 | BD59: 0 | BE59: 0 | BF59: 0 | BG59: 0 | BH59: 0 | BI59: 0 | BJ59: 0 | BK59: 0 | BL59: 0 | BM59: 0 | BN59: 0 | BO59: 0 | BP59: 0 | BQ59: 0 | BR59: 0 | BS59: 0 | BT59: 0 | BU59: 0 | BV59: 0 | BW59: 0 | BX59: 0 | CA59: 0 | CB59: 0 | CC59: 0 | CD59: 0 | CE59: 0 | CF59: 0 | CG59: 0 | CH59: 0 | CI59: 0 | CJ59: 0 | CK59: 0 | CL59: 0 | CM59: 0 | CN59: 0 | CO59: 0 | CP59: 0 | CQ59: 0 | CR59: 0 | CS59: 0 | CT59: 0 | CU59: 0 | CV59: 0 | CW59: 0 | CX59: 0 | DA59: 0 | DB59: 0 | DC59: 0 | DD59: 0 | DE59: 0 | DF59: 0 | DG59: 0 | DH59: 0 | DI59: 0 | DJ59: 0 | DK59: 0 | DL59: 0 | DM59: 0 | DN59: 0 | DO59: 0 | DP59: 0 | DQ59: 0 | DR59: 0 | DS59: 0 | DT59: 0 | DU59: 0 | DV59: 0 | DW59: 0 | DX59: 0
A60: 91 | I60: 0 | J60: =IF(RIGHT('Från 3L'!$C$2,2)="01",kapital!BA60,IF(RIGHT('Från 3L'!$C$2,2)="07",kapital!CA60,DA60)) -> 0 | K60: =IF(RIGHT('Från 3L'!$C$2,2)="01",kapital!BB60,IF(RIGHT('Från 3L'!$C$2,2)="07",kapital!CB60,DB60)) -> 0 | L60: =IF(RIGHT('Från 3L'!$C$2,2)="01",kapital!BC60,IF(RIGHT('Från 3L'!$C$2,2)="07",kapital!CC60,DC60)) -> 0 | M60: =IF(RIGHT('Från 3L'!$C$2,2)="01",kapital!BD60,IF(RIGHT('Från 3L'!$C$2,2)="07",kapital!CD60,DD60)) -> 0 | N60: =IF(RIGHT('Från 3L'!$C$2,2)="01",kapital!BE60,IF(RIGHT('Från 3L'!$C$2,2)="07",kapital!CE60,DE60)) -> 0 | O60: =IF(RIGHT('Från 3L'!$C$2,2)="01",kapital!BF60,IF(RIGHT('Från 3L'!$C$2,2)="07",kapital!CF60,DF60)) -> 0 | P60: =IF(RIGHT('Från 3L'!$C$2,2)="01",kapital!BG60,IF(RIGHT('Från 3L'!$C$2,2)="07",kapital!CG60,DG60)) -> 0 | Q60: =IF(RIGHT('Från 3L'!$C$2,2)="01",kapital!BH60,IF(RIGHT('Från 3L'!$C$2,2)="07",kapital!CH60,DH60)) -> 0 | R60: =IF(RIGHT('Från 3L'!$C$2,2)="01",kapital!BI60,IF(RIGHT('Från 3L'!$C$2,2)="07",kapital!CI60,DI60)) -> 0 | S60: =IF(RIGHT('Från 3L'!$C$2,2)="01",kapital!BJ60,IF(RIGHT('Från 3L'!$C$2,2)="07",kapital!CJ60,DJ60)) -> 0 | T60: =IF(RIGHT('Från 3L'!$C$2,2)="01",kapital!BK60,IF(RIGHT('Från 3L'!$C$2,2)="07",kapital!CK60,DK60)) -> 0 | U60: =IF(RIGHT('Från 3L'!$C$2,2)="01",kapital!BL60,IF(RIGHT('Från 3L'!$C$2,2)="07",kapital!CL60,DL60)) -> 0 | V60: =SUM(J60:U60) -> 0 | X60: =IF(RIGHT('Från 3L'!$C$2,2)="01",kapital!BM60,IF(RIGHT('Från 3L'!$C$2,2)="07",kapital!CM60,DM60)) -> 0 | Y60: =IF(RIGHT('Från 3L'!$C$2,2)="01",kapital!BN60,IF(RIGHT('Från 3L'!$C$2,2)="07",kapital!CN60,DN60)) -> 0 | Z60: =IF(RIGHT('Från 3L'!$C$2,2)="01",kapital!BO60,IF(RIGHT('Från 3L'!$C$2,2)="07",kapital!CO60,DO60)) -> 0 | AA60: =IF(RIGHT('Från 3L'!$C$2,2)="01",kapital!BP60,IF(RIGHT('Från 3L'!$C$2,2)="07",kapital!CP60,DP60)) -> 0 | AB60: =IF(RIGHT('Från 3L'!$C$2,2)="01",kapital!BQ60,IF(RIGHT('Från 3L'!$C$2,2)="07",kapital!CQ60,DQ60)) -> 0 | AC60: =IF(RIGHT('Från 3L'!$C$2,2)="01",kapital!BR60,IF(RIGHT('Från 3L'!$C$2,2)="07",kapital!CR60,DR60)) -> 0 | AD60: =IF(RIGHT('Från 3L'!$C$2,2)="01",kapital!BS60,IF(RIGHT('Från 3L'!$C$2,2)="07",kapital!CS60,DS60)) -> 0 | AE60: =IF(RIGHT('Från 3L'!$C$2,2)="01",kapital!BT60,IF(RIGHT('Från 3L'!$C$2,2)="07",kapital!CT60,DT60)) -> 0 | AF60: =IF(RIGHT('Från 3L'!$C$2,2)="01",kapital!BU60,IF(RIGHT('Från 3L'!$C$2,2)="07",kapital!CU60,DU60)) -> 0 | AG60: =IF(RIGHT('Från 3L'!$C$2,2)="01",kapital!BV60,IF(RIGHT('Från 3L'!$C$2,2)="07",kapital!CV60,DV60)) -> 0 | AH60: =IF(RIGHT('Från 3L'!$C$2,2)="01",kapital!BW60,IF(RIGHT('Från 3L'!$C$2,2)="07",kapital!CW60,DW60)) -> 0 | AI60: =IF(RIGHT('Från 3L'!$C$2,2)="01",kapital!BX60,IF(RIGHT('Från 3L'!$C$2,2)="07",kapital!CX60,DX60)) -> 0 | AJ60: =SUM(X60:AI60) -> 0 | BA60: 0 | BB60: 0 | BC60: 0 | BD60: 0 | BE60: 0 | BF60: 0 | BG60: 0 | BH60: 0 | BI60: 0 | BJ60: 0 | BK60: 0 | BL60: 0 | BM60: 0 | BN60: 0 | BO60: 0 | BP60: 0 | BQ60: 0 | BR60: 0 | BS60: 0 | BT60: 0 | BU60: 0 | BV60: 0 | BW60: 0 | BX60: 0 | CA60: 0 | CB60: 0 | CC60: 0 | CD60: 0 | CE60: 0 | CF60: 0 | CG60: 0 | CH60: 0 | CI60: 0 | CJ60: 0 | CK60: 0 | CL60: 0 | CM60: 0 | CN60: 0 | CO60: 0 | CP60: 0 | CQ60: 0 | CR60: 0 | CS60: 0 | CT60: 0 | CU60: 0 | CV60: 0 | CW60: 0 | CX60: 0 | DA60: 0 | DB60: 0 | DC60: 0 | DD60: 0 | DE60: 0 | DF60: 0 | DG60: 0 | DH60: 0 | DI60: 0 | DJ60: 0 | DK60: 0 | DL60: 0 | DM60: 0 | DN60: 0 | DO60: 0 | DP60: 0 | DQ60: 0 | DR60: 0 | DS60: 0 | DT60: 0 | DU60: 0 | DV60: 0 | DW60: 0 | DX60: 0
A61: 91 | I61: 0 | J61: =IF(RIGHT('Från 3L'!$C$2,2)="01",kapital!BA61,IF(RIGHT('Från 3L'!$C$2,2)="07",kapital!CA61,DA61)) -> 0 | K61: =IF(RIGHT('Från 3L'!$C$2,2)="01",kapital!BB61,IF(RIGHT('Från 3L'!$C$2,2)="07",kapital!CB61,DB61)) -> 0 | L61: =IF(RIGHT('Från 3L'!$C$2,2)="01",kapital!BC61,IF(RIGHT('Från 3L'!$C$2,2)="07",kapital!CC61,DC61)) -> 0 | M61: =IF(RIGHT('Från 3L'!$C$2,2)="01",kapital!BD61,IF(RIGHT('Från 3L'!$C$2,2)="07",kapital!CD61,DD61)) -> 0 | N61: =IF(RIGHT('Från 3L'!$C$2,2)="01",kapital!BE61,IF(RIGHT('Från 3L'!$C$2,2)="07",kapital!CE61,DE61)) -> 0 | O61: =IF(RIGHT('Från 3L'!$C$2,2)="01",kapital!BF61,IF(RIGHT('Från 3L'!$C$2,2)="07",kapital!CF61,DF61)) -> 0 | P61: =IF(RIGHT('Från 3L'!$C$2,2)="01",kapital!BG61,IF(RIGHT('Från 3L'!$C$2,2)="07",kapital!CG61,DG61)) -> 0 | Q61: =IF(RIGHT('Från 3L'!$C$2,2)="01",kapital!BH61,IF(RIGHT('Från 3L'!$C$2,2)="07",kapital!CH61,DH61)) -> 0 | R61: =IF(RIGHT('Från 3L'!$C$2,2)="01",kapital!BI61,IF(RIGHT('Från 3L'!$C$2,2)="07",kapital!CI61,DI61)) -> 0 | S61: =IF(RIGHT('Från 3L'!$C$2,2)="01",kapital!BJ61,IF(RIGHT('Från 3L'!$C$2,2)="07",kapital!CJ61,DJ61)) -> 0 | T61: =IF(RIGHT('Från 3L'!$C$2,2)="01",kapital!BK61,IF(RIGHT('Från 3L'!$C$2,2)="07",kapital!CK61,DK61)) -> 0 | U61: =IF(RIGHT('Från 3L'!$C$2,2)="01",kapital!BL61,IF(RIGHT('Från 3L'!$C$2,2)="07",kapital!CL61,DL61)) -> 0 | V61: 0 | X61: =IF(RIGHT('Från 3L'!$C$2,2)="01",kapital!BM61,IF(RIGHT('Från 3L'!$C$2,2)="07",kapital!CM61,DM61)) -> 0 | Y61: =IF(RIGHT('Från 3L'!$C$2,2)="01",kapital!BN61,IF(RIGHT('Från 3L'!$C$2,2)="07",kapital!CN61,DN61)) -> 0 | Z61: =IF(RIGHT('Från 3L'!$C$2,2)="01",kapital!BO61,IF(RIGHT('Från 3L'!$C$2,2)="07",kapital!CO61,DO61)) -> 0 | AA61: =IF(RIGHT('Från 3L'!$C$2,2)="01",kapital!BP61,IF(RIGHT('Från 3L'!$C$2,2)="07",kapital!CP61,DP61)) -> 0 | AB61: =IF(RIGHT('Från 3L'!$C$2,2)="01",kapital!BQ61,IF(RIGHT('Från 3L'!$C$2,2)="07",kapital!CQ61,DQ61)) -> 0 | AC61: =IF(RIGHT('Från 3L'!$C$2,2)="01",kapital!BR61,IF(RIGHT('Från 3L'!$C$2,2)="07",kapital!CR61,DR61)) -> 0 | AD61: =IF(RIGHT('Från 3L'!$C$2,2)="01",kapital!BS61,IF(RIGHT('Från 3L'!$C$2,2)="07",kapital!CS61,DS61)) -> 0 | AE61: =IF(RIGHT('Från 3L'!$C$2,2)="01",kapital!BT61,IF(RIGHT('Från 3L'!$C$2,2)="07",kapital!CT61,DT61)) -> 0 | AF61: =IF(RIGHT('Från 3L'!$C$2,2)="01",kapital!BU61,IF(RIGHT('Från 3L'!$C$2,2)="07",kapital!CU61,DU61)) -> 0 | AG61: =IF(RIGHT('Från 3L'!$C$2,2)="01",kapital!BV61,IF(RIGHT('Från 3L'!$C$2,2)="07",kapital!CV61,DV61)) -> 0 | AH61: =IF(RIGHT('Från 3L'!$C$2,2)="01",kapital!BW61,IF(RIGHT('Från 3L'!$C$2,2)="07",kapital!CW61,DW61)) -> 0 | AI61: =IF(RIGHT('Från 3L'!$C$2,2)="01",kapital!BX61,IF(RIGHT('Från 3L'!$C$2,2)="07",kapital!CX61,DX61)) -> 0 | AJ61: 0 | BA61: 0 | BB61: 0 | BC61: 0 | BD61: 0 | BE61: 0 | BF61: 0 | BG61: 0 | BH61: 0 | BI61: 0 | BJ61: 0 | BK61: 0 | BL61: 0 | BM61: 0 | BN61: 0 | BO61: 0 | BP61: 0 | BQ61: 0 | BR61: 0 | BS61: 0 | BT61: 0 | BU61: 0 | BV61: 0 | BW61: 0 | BX61: 0 | CA61: 0 | CB61: 0 | CC61: 0 | CD61: 0 | CE61: 0 | CF61: 0 | CG61: 0 | CH61: 0 | CI61: 0 | CJ61: 0 | CK61: 0 | CL61: 0 | CM61: 0 | CN61: 0 | CO61: 0 | CP61: 0 | CQ61: 0 | CR61: 0 | CS61: 0 | CT61: 0 | CU61: 0 | CV61: 0 | CW61: 0 | CX61: 0 | DA61: 0 | DB61: 0 | DC61: 0 | DD61: 0 | DE61: 0 | DF61: 0 | DG61: 0 | DH61: 0 | DI61: 0 | DJ61: 0 | DK61: 0 | DL61: 0 | DM61: 0 | DN61: 0 | DO61: 0 | DP61: 0 | DQ61: 0 | DR61: 0 | DS61: 0 | DT61: 0 | DU61: 0 | DV61: 0 | DW61: 0 | DX61: 0
A62: 91 | I62: 0 | J62: =IF(RIGHT('Från 3L'!$C$2,2)="01",kapital!BA62,IF(RIGHT('Från 3L'!$C$2,2)="07",kapital!CA62,DA62)) -> 0 | K62: =IF(RIGHT('Från 3L'!$C$2,2)="01",kapital!BB62,IF(RIGHT('Från 3L'!$C$2,2)="07",kapital!CB62,DB62)) -> 0 | L62: =IF(RIGHT('Från 3L'!$C$2,2)="01",kapital!BC62,IF(RIGHT('Från 3L'!$C$2,2)="07",kapital!CC62,DC62)) -> 0 | M62: =IF(RIGHT('Från 3L'!$C$2,2)="01",kapital!BD62,IF(RIGHT('Från 3L'!$C$2,2)="07",kapital!CD62,DD62)) -> 0 | N62: =IF(RIGHT('Från 3L'!$C$2,2)="01",kapital!BE62,IF(RIGHT('Från 3L'!$C$2,2)="07",kapital!CE62,DE62)) -> 0 | O62: =IF(RIGHT('Från 3L'!$C$2,2)="01",kapital!BF62,IF(RIGHT('Från 3L'!$C$2,2)="07",kapital!CF62,DF62)) -> 0 | P62: =IF(RIGHT('Från 3L'!$C$2,2)="01",kapital!BG62,IF(RIGHT('Från 3L'!$C$2,2)="07",kapital!CG62,DG62)) -> 0 | Q62: =IF(RIGHT('Från 3L'!$C$2,2)="01",kapital!BH62,IF(RIGHT('Från 3L'!$C$2,2)="07",kapital!CH62,DH62)) -> 0 | R62: =IF(RIGHT('Från 3L'!$C$2,2)="01",kapital!BI62,IF(RIGHT('Från 3L'!$C$2,2)="07",kapital!CI62,DI62)) -> 0 | S62: =IF(RIGHT('Från 3L'!$C$2,2)="01",kapital!BJ62,IF(RIGHT('Från 3L'!$C$2,2)="07",kapital!CJ62,DJ62)) -> 0 | T62: =IF(RIGHT('Från 3L'!$C$2,2)="01",kapital!BK62,IF(RIGHT('Från 3L'!$C$2,2)="07",kapital!CK62,DK62)) -> 0 | U62: =IF(RIGHT('Från 3L'!$C$2,2)="01",kapital!BL62,IF(RIGHT('Från 3L'!$C$2,2)="07",kapital!CL62,DL62)) -> 0 | V62: 0 | X62: =IF(RIGHT('Från 3L'!$C$2,2)="01",kapital!BM62,IF(RIGHT('Från 3L'!$C$2,2)="07",kapital!CM62,DM62)) -> 0 | Y62: =IF(RIGHT('Från 3L'!$C$2,2)="01",kapital!BN62,IF(RIGHT('Från 3L'!$C$2,2)="07",kapital!CN62,DN62)) -> 0 | Z62: =IF(RIGHT('Från 3L'!$C$2,2)="01",kapital!BO62,IF(RIGHT('Från 3L'!$C$2,2)="07",kapital!CO62,DO62)) -> 0 | AA62: =IF(RIGHT('Från 3L'!$C$2,2)="01",kapital!BP62,IF(RIGHT('Från 3L'!$C$2,2)="07",kapital!CP62,DP62)) -> 0 | AB62: =IF(RIGHT('Från 3L'!$C$2,2)="01",kapital!BQ62,IF(RIGHT('Från 3L'!$C$2,2)="07",kapital!CQ62,DQ62)) -> 0 | AC62: =IF(RIGHT('Från 3L'!$C$2,2)="01",kapital!BR62,IF(RIGHT('Från 3L'!$C$2,2)="07",kapital!CR62,DR62)) -> 0 | AD62: =IF(RIGHT('Från 3L'!$C$2,2)="01",kapital!BS62,IF(RIGHT('Från 3L'!$C$2,2)="07",kapital!CS62,DS62)) -> 0 | AE62: =IF(RIGHT('Från 3L'!$C$2,2)="01",kapital!BT62,IF(RIGHT('Från 3L'!$C$2,2)="07",kapital!CT62,DT62)) -> 0 | AF62: =IF(RIGHT('Från 3L'!$C$2,2)="01",kapital!BU62,IF(RIGHT('Från 3L'!$C$2,2)="07",kapital!CU62,DU62)) -> 0 | AG62: =IF(RIGHT('Från 3L'!$C$2,2)="01",kapital!BV62,IF(RIGHT('Från 3L'!$C$2,2)="07",kapital!CV62,DV62)) -> 0 | AH62: =IF(RIGHT('Från 3L'!$C$2,2)="01",kapital!BW62,IF(RIGHT('Från 3L'!$C$2,2)="07",kapital!CW62,DW62)) -> 0 | AI62: =IF(RIGHT('Från 3L'!$C$2,2)="01",kapital!BX62,IF(RIGHT('Från 3L'!$C$2,2)="07",kapital!CX62,DX62)) -> 0 | AJ62: 0 | BA62: 0 | BB62: 0 | BC62: 0 | BD62: 0 | BE62: 0 | BF62: 0 | BG62: 0 | BH62: 0 | BI62: 0 | BJ62: 0 | BK62: 0 | BL62: 0 | BM62: 0 | BN62: 0 | BO62: 0 | BP62: 0 | BQ62: 0 | BR62: 0 | BS62: 0 | BT62: 0 | BU62: 0 | BV62: 0 | BW62: 0 | BX62: 0 | CA62: 0 | CB62: 0 | CC62: 0 | CD62: 0 | CE62: 0 | CF62: 0 | CG62: 0 | CH62: 0 | CI62: 0 | CJ62: 0 | CK62: 0 | CL62: 0 | CM62: 0 | CN62: 0 | CO62: 0 | CP62: 0 | CQ62: 0 | CR62: 0 | CS62: 0 | CT62: 0 | CU62: 0 | CV62: 0 | CW62: 0 | CX62: 0 | DA62: 0 | DB62: 0 | DC62: 0 | DD62: 0 | DE62: 0 | DF62: 0 | DG62: 0 | DH62: 0 | DI62: 0 | DJ62: 0 | DK62: 0 | DL62: 0 | DM62: 0 | DN62: 0 | DO62: 0 | DP62: 0 | DQ62: 0 | DR62: 0 | DS62: 0 | DT62: 0 | DU62: 0 | DV62: 0 | DW62: 0 | DX62: 0
A63: 91 | I63: 0 | J63: =IF(RIGHT('Från 3L'!$C$2,2)="01",kapital!BA63,IF(RIGHT('Från 3L'!$C$2,2)="07",kapital!CA63,DA63)) -> 0 | K63: =IF(RIGHT('Från 3L'!$C$2,2)="01",kapital!BB63,IF(RIGHT('Från 3L'!$C$2,2)="07",kapital!CB63,DB63)) -> 0 | L63: =IF(RIGHT('Från 3L'!$C$2,2)="01",kapital!BC63,IF(RIGHT('Från 3L'!$C$2,2)="07",kapital!CC63,DC63)) -> 0 | M63: =IF(RIGHT('Från 3L'!$C$2,2)="01",kapital!BD63,IF(RIGHT('Från 3L'!$C$2,2)="07",kapital!CD63,DD63)) -> 0 | N63: =IF(RIGHT('Från 3L'!$C$2,2)="01",kapital!BE63,IF(RIGHT('Från 3L'!$C$2,2)="07",kapital!CE63,DE63)) -> 0 | O63: =IF(RIGHT('Från 3L'!$C$2,2)="01",kapital!BF63,IF(RIGHT('Från 3L'!$C$2,2)="07",kapital!CF63,DF63)) -> 0 | P63: =IF(RIGHT('Från 3L'!$C$2,2)="01",kapital!BG63,IF(RIGHT('Från 3L'!$C$2,2)="07",kapital!CG63,DG63)) -> 0 | Q63: =IF(RIGHT('Från 3L'!$C$2,2)="01",kapital!BH63,IF(RIGHT('Från 3L'!$C$2,2)="07",kapital!CH63,DH63)) -> 0 | R63: =IF(RIGHT('Från 3L'!$C$2,2)="01",kapital!BI63,IF(RIGHT('Från 3L'!$C$2,2)="07",kapital!CI63,DI63)) -> 0 | S63: =IF(RIGHT('Från 3L'!$C$2,2)="01",kapital!BJ63,IF(RIGHT('Från 3L'!$C$2,2)="07",kapital!CJ63,DJ63)) -> 0 | T63: =IF(RIGHT('Från 3L'!$C$2,2)="01",kapital!BK63,IF(RIGHT('Från 3L'!$C$2,2)="07",kapital!CK63,DK63)) -> 0 | U63: =IF(RIGHT('Från 3L'!$C$2,2)="01",kapital!BL63,IF(RIGHT('Från 3L'!$C$2,2)="07",kapital!CL63,DL63)) -> 0 | V63: 0 | X63: =IF(RIGHT('Från 3L'!$C$2,2)="01",kapital!BM63,IF(RIGHT('Från 3L'!$C$2,2)="07",kapital!CM63,DM63)) -> 0 | Y63: =IF(RIGHT('Från 3L'!$C$2,2)="01",kapital!BN63,IF(RIGHT('Från 3L'!$C$2,2)="07",kapital!CN63,DN63)) -> 0 | Z63: =IF(RIGHT('Från 3L'!$C$2,2)="01",kapital!BO63,IF(RIGHT('Från 3L'!$C$2,2)="07",kapital!CO63,DO63)) -> 0 | AA63: =IF(RIGHT('Från 3L'!$C$2,2)="01",kapital!BP63,IF(RIGHT('Från 3L'!$C$2,2)="07",kapital!CP63,DP63)) -> 0 | AB63: =IF(RIGHT('Från 3L'!$C$2,2)="01",kapital!BQ63,IF(RIGHT('Från 3L'!$C$2,2)="07",kapital!CQ63,DQ63)) -> 0 | AC63: =IF(RIGHT('Från 3L'!$C$2,2)="01",kapital!BR63,IF(RIGHT('Från 3L'!$C$2,2)="07",kapital!CR63,DR63)) -> 0 | AD63: =IF(RIGHT('Från 3L'!$C$2,2)="01",kapital!BS63,IF(RIGHT('Från 3L'!$C$2,2)="07",kapital!CS63,DS63)) -> 0 | AE63: =IF(RIGHT('Från 3L'!$C$2,2)="01",kapital!BT63,IF(RIGHT('Från 3L'!$C$2,2)="07",kapital!CT63,DT63)) -> 0 | AF63: =IF(RIGHT('Från 3L'!$C$2,2)="01",kapital!BU63,IF(RIGHT('Från 3L'!$C$2,2)="07",kapital!CU63,DU63)) -> 0 | AG63: =IF(RIGHT('Från 3L'!$C$2,2)="01",kapital!BV63,IF(RIGHT('Från 3L'!$C$2,2)="07",kapital!CV63,DV63)) -> 0 | AH63: =IF(RIGHT('Från 3L'!$C$2,2)="01",kapital!BW63,IF(RIGHT('Från 3L'!$C$2,2)="07",kapital!CW63,DW63)) -> 0 | AI63: =IF(RIGHT('Från 3L'!$C$2,2)="01",kapital!BX63,IF(RIGHT('Från 3L'!$C$2,2)="07",kapital!CX63,DX63)) -> 0 | AJ63: 0 | BA63: 0 | BB63: 0 | BC63: 0 | BD63: 0 | BE63: 0 | BF63: 0 | BG63: 0 | BH63: 0 | BI63: 0 | BJ63: 0 | BK63: 0 | BL63: 0 | BM63: 0 | BN63: 0 | BO63: 0 | BP63: 0 | BQ63: 0 | BR63: 0 | BS63: 0 | BT63: 0 | BU63: 0 | BV63: 0 | BW63: 0 | BX63: 0 | CA63: 0 | CB63: 0 | CC63: 0 | CD63: 0 | CE63: 0 | CF63: 0 | CG63: 0 | CH63: 0 | CI63: 0 | CJ63: 0 | CK63: 0 | CL63: 0 | CM63: 0 | CN63: 0 | CO63: 0 | CP63: 0 | CQ63: 0 | CR63: 0 | CS63: 0 | CT63: 0 | CU63: 0 | CV63: 0 | CW63: 0 | CX63: 0 | DA63: 0 | DB63: 0 | DC63: 0 | DD63: 0 | DE63: 0 | DF63: 0 | DG63: 0 | DH63: 0 | DI63: 0 | DJ63: 0 | DK63: 0 | DL63: 0 | DM63: 0 | DN63: 0 | DO63: 0 | DP63: 0 | DQ63: 0 | DR63: 0 | DS63: 0 | DT63: 0 | DU63: 0 | DV63: 0 | DW63: 0 | DX63: 0
A64: 91 | I64: 0 | J64: =IF(RIGHT('Från 3L'!$C$2,2)="01",kapital!BA64,IF(RIGHT('Från 3L'!$C$2,2)="07",kapital!CA64,DA64)) -> 0 | K64: =IF(RIGHT('Från 3L'!$C$2,2)="01",kapital!BB64,IF(RIGHT('Från 3L'!$C$2,2)="07",kapital!CB64,DB64)) -> 0 | L64: =IF(RIGHT('Från 3L'!$C$2,2)="01",kapital!BC64,IF(RIGHT('Från 3L'!$C$2,2)="07",kapital!CC64,DC64)) -> 0 | M64: =IF(RIGHT('Från 3L'!$C$2,2)="01",kapital!BD64,IF(RIGHT('Från 3L'!$C$2,2)="07",kapital!CD64,DD64)) -> 0 | N64: =IF(RIGHT('Från 3L'!$C$2,2)="01",kapital!BE64,IF(RIGHT('Från 3L'!$C$2,2)="07",kapital!CE64,DE64)) -> 0 | O64: =IF(RIGHT('Från 3L'!$C$2,2)="01",kapital!BF64,IF(RIGHT('Från 3L'!$C$2,2)="07",kapital!CF64,DF64)) -> 0 | P64: =IF(RIGHT('Från 3L'!$C$2,2)="01",kapital!BG64,IF(RIGHT('Från 3L'!$C$2,2)="07",kapital!CG64,DG64)) -> 0 | Q64: =IF(RIGHT('Från 3L'!$C$2,2)="01",kapital!BH64,IF(RIGHT('Från 3L'!$C$2,2)="07",kapital!CH64,DH64)) -> 0 | R64: =IF(RIGHT('Från 3L'!$C$2,2)="01",kapital!BI64,IF(RIGHT('Från 3L'!$C$2,2)="07",kapital!CI64,DI64)) -> 0 | S64: =IF(RIGHT('Från 3L'!$C$2,2)="01",kapital!BJ64,IF(RIGHT('Från 3L'!$C$2,2)="07",kapital!CJ64,DJ64)) -> 0 | T64: =IF(RIGHT('Från 3L'!$C$2,2)="01",kapital!BK64,IF(RIGHT('Från 3L'!$C$2,2)="07",kapital!CK64,DK64)) -> 0 | U64: =IF(RIGHT('Från 3L'!$C$2,2)="01",kapital!BL64,IF(RIGHT('Från 3L'!$C$2,2)="07",kapital!CL64,DL64)) -> 0 | V64: 0 | X64: =IF(RIGHT('Från 3L'!$C$2,2)="01",kapital!BM64,IF(RIGHT('Från 3L'!$C$2,2)="07",kapital!CM64,DM64)) -> 0 | Y64: =IF(RIGHT('Från 3L'!$C$2,2)="01",kapital!BN64,IF(RIGHT('Från 3L'!$C$2,2)="07",kapital!CN64,DN64)) -> 0 | Z64: =IF(RIGHT('Från 3L'!$C$2,2)="01",kapital!BO64,IF(RIGHT('Från 3L'!$C$2,2)="07",kapital!CO64,DO64)) -> 0 | AA64: =IF(RIGHT('Från 3L'!$C$2,2)="01",kapital!BP64,IF(RIGHT('Från 3L'!$C$2,2)="07",kapital!CP64,DP64)) -> 0 | AB64: =IF(RIGHT('Från 3L'!$C$2,2)="01",kapital!BQ64,IF(RIGHT('Från 3L'!$C$2,2)="07",kapital!CQ64,DQ64)) -> 0 | AC64: =IF(RIGHT('Från 3L'!$C$2,2)="01",kapital!BR64,IF(RIGHT('Från 3L'!$C$2,2)="07",kapital!CR64,DR64)) -> 0 | AD64: =IF(RIGHT('Från 3L'!$C$2,2)="01",kapital!BS64,IF(RIGHT('Från 3L'!$C$2,2)="07",kapital!CS64,DS64)) -> 0 | AE64: =IF(RIGHT('Från 3L'!$C$2,2)="01",kapital!BT64,IF(RIGHT('Från 3L'!$C$2,2)="07",kapital!CT64,DT64)) -> 0 | AF64: =IF(RIGHT('Från 3L'!$C$2,2)="01",kapital!BU64,IF(RIGHT('Från 3L'!$C$2,2)="07",kapital!CU64,DU64)) -> 0 | AG64: =IF(RIGHT('Från 3L'!$C$2,2)="01",kapital!BV64,IF(RIGHT('Från 3L'!$C$2,2)="07",kapital!CV64,DV64)) -> 0 | AH64: =IF(RIGHT('Från 3L'!$C$2,2)="01",kapital!BW64,IF(RIGHT('Från 3L'!$C$2,2)="07",kapital!CW64,DW64)) -> 0 | AI64: =IF(RIGHT('Från 3L'!$C$2,2)="01",kapital!BX64,IF(RIGHT('Från 3L'!$C$2,2)="07",kapital!CX64,DX64)) -> 0 | AJ64: 0 | BA64: 0 | BB64: 0 | BC64: 0 | BD64: 0 | BE64: 0 | BF64: 0 | BG64: 0 | BH64: 0 | BI64: 0 | BJ64: 0 | BK64: 0 | BL64: 0 | BM64: 0 | BN64: 0 | BO64: 0 | BP64: 0 | BQ64: 0 | BR64: 0 | BS64: 0 | BT64: 0 | BU64: 0 | BV64: 0 | BW64: 0 | BX64: 0 | CA64: 0 | CB64: 0 | CC64: 0 | CD64: 0 | CE64: 0 | CF64: 0 | CG64: 0 | CH64: 0 | CI64: 0 | CJ64: 0 | CK64: 0 | CL64: 0 | CM64: 0 | CN64: 0 | CO64: 0 | CP64: 0 | CQ64: 0 | CR64: 0 | CS64: 0 | CT64: 0 | CU64: 0 | CV64: 0 | CW64: 0 | CX64: 0 | DA64: 0 | DB64: 0 | DC64: 0 | DD64: 0 | DE64: 0 | DF64: 0 | DG64: 0 | DH64: 0 | DI64: 0 | DJ64: 0 | DK64: 0 | DL64: 0 | DM64: 0 | DN64: 0 | DO64: 0 | DP64: 0 | DQ64: 0 | DR64: 0 | DS64: 0 | DT64: 0 | DU64: 0 | DV64: 0 | DW64: 0 | DX64: 0
